Workbook

Sheet Example (hidden)
A1: BUDGET 2011 : RETURN OF INFORMATION | E1: Form B
A2: RHODES UNIVERSITY DEPARTMENT RUNNING GRANT
D4: Due Date | E4: 29 October 2010
A5: Include:
A6: Estimated general running costs incurred in the daily operation of the department and primaily in support of academic/teaching activities in the Department, e.g. Consumables,stationery, telephone and small items of teaching equipment costing less than R2,000
A7: Exclude:
A8: Salaries, furniture, office equipment, academic/teaching equipment costing more than R2,000, research activity costs, conference and related travel costs
A10: Department: | B10: Engineering [ 26500 000 1 84]
C11: REQUEST | D11: FORECAST | E11: BUDGET | F11: ACTUAL
C12: 2011 | D12: 2010 | E12: 2010 | F12: 2009
A13: INCOME | C13: =SUM(C14:C19) -> 9500 | D13: =SUM(D14:D19) -> 9000 | E13: 8900 | F13: 8750
A14: Grant | C14: 9500 | D14: 8900 | E14: 8900 | F14: 7950
A15: Grant - additional allocation | C15: 0 | D15: 0 | E15: 0 | F15: 0
A16: Other income - donations received | C16: 0 | D16: 0 | E16: 0 | F16: 800
A17: Other income - sundry | C17: 0 | D17: 100 | E17: 0
A20: EXPENDITURE | C20: =SUM(C21:C30) -> 9500 | D20: =SUM(D21:D30) -> 8975 | E20: =SUM(E21:E30) -> 8900 | F20: =SUM(F21:F30) -> 8750
A21: Supplies and services | C21: 5900 | D21: 5520 | E21: 5500 | F21: 5000
A22: Stationery | C22: 525 | D22: 455 | E22: 525 | F22: 500
A23: Telephone | C23: 1550 | D23: 1400 | E23: 1350 | F23: 1200
A24: Temporary salaries | C24: 700 | D24: 0 | E24: 0 | F24: 250
A25: Small items of Capital < R2,000 | C25: 825 | D25: 1600 | E25: 1525 | F25: 1800
A32: Confirmed by Head of Department
A33: SIGNATURE
A34: NAME | B34: Prof B Engineering
A35: DATE | B35: 2010-10-29
A37: Please return to :
A38: Finance Division
A39: General Finance Office
A40: Mrs Tessa Steele
A41: e.mail | B41: t.steele@ru.ac.za
A42: Ext | B42: 8156

Sheet Instructions
A1: RHODES UNIVERSITY
A2: BUDGET 2014
A3: RUNNING GRANTS
A4: COMMUNITY ENGAGEMENT AND INTERNATIONAL OFFICE
B6: INSTRUCTIONS
B8: Before continuing, check to see if a yellow bar appears above, asking you to enable content. If it does appear, click on the button that indicates Enable Content. Then, click on the Yes button to continue.
A10: A | B10: STRUCTURE AND TERMS
B11: This file contains 8 worksheets, which are:
A12: A1 | B12: 1. Instructions: Describes how to use the file and to complete the budget request
A13: A2 | B13: 2. Main Menu: To select the relevant Department or Faculty
A14: A3 | B14: 3. FormF Summary: To view a summary of the grant requested. No data needs to be captured on this worksheet.
A15: A4 | B15: 4. FormF RI(1) to FormF RI(5): The detail of the requests must be entered on these sheets. Each sheet represents the detail for a Retained Income account. The forms contain actual results for 2011 and 2012, actual results to date for 2013, a forecast 2013 column, and blank cells to complete the budget for 2014.
A16: A5 | B16: A Retained Income account represents the range of accounts for a specific department, faculty, project or activity. It includes both income and expenditure accounts, and generally the balances are carried forward to the following year.
A17: A6 | B17: If only 1 Retained Income account is used and budgeted for, then complete FormF RI(1) only. If 2 Retained Income accounts are used and budgeted for, complete FormF RI(1) and FormF RI(2). Each additional Retained Income account must be planned for on the subsequent worksheets.
A19: B | B19: DETAILED INSTRUCTIONS
A21: B1 | B21: Main Menu
A22: B2 | B22: To select the relevant entity:
A23: B3 | B23: Click on the down arrow in the cell containing the word "All"
A24: B4 | B24: From the drop-down list, select the applicable entity
A25: B5 | B25: Once the entity is selected, click on the "Close" button
A27: B6 | B27: FormF RI(1) to FormF RI(5)
A28: B7 | B28: Once the Department or Faculty is selected from the Main Menu, the applicable Division name will appear in cell B4.
A29: B8 | B29: Select the relevant Retained Income account from the drop-down list in cell B5.
A30: B9 | B30: Once the Retained Income Account has been selected, click on the CLICK HERE TO PREPARE SHEET button.
A31: B10 | B31: Before commencing with entering the 2014 data, enter data for the Forecast 2013 in column F.
A32: B11 | B32: The closing balance for 2013 and opening balance for 2014 will not be correct unless the forecast is completed. The Forecast 2013 represents an estimate of the full year's income and expenditure. Actual YTD 2013 can be used as a guide to determine the full year's values.
A33: B12 | B33: Once the Forecast 2013 has been completed, enter the data for 2014.
A34: B13 | B34: Ensure that the value of the grant required for 2014 is entered in cell H13.
A35: B14 | B35: The Income and Expenditure values for 2014 may be entered as a full year value in Jan 2014, or entered across the year based on the expected spending pattern.
A36: B15 | B36: Where a deficit arises, it may be covered by increasing the grant request or by a transfer from another Retained Income account. In the event that the grant request is increased, consider the % increase from 2013 to 2014.
B38: FormB Summary
A39: B16 | B39: This worksheet contains a summary of the information on the worksheets FormF RI(1) to FormF RI(2).
A40: B17 | B40: Review the results on this sheet. If not satisfactory, return to the relevant worksheets (FormF RI(1) to FormF RI(5)) to make adjustments.
A41: B18
A43: C | B43: PRINTING
A44: C1 | B44: Before printing any of the forms, consider hiding rows that are empty and not relevant. To do this, click the HIDE BLANKS button on the respective worksheets. To unhide the rows, click on the SHOW ALL button.
A45: C2 | B45: Also before printing, you may enter the details (except signatures) in the sections at the bottom of each form.
A47: D | B47: SUBMISSIONS
A48: D1 | B48: This file must be submitted electronically per e-mail to Sonia Kivitts at s.kivitts@ru.ac.za by 30 August 2013.
A49: D2 | B49: A hardcopy of each of the completed forms and the summary must be printed.
A50: D3 | B50: The hardcopies must be signed by the relevant HOD and Dean as required by each form.
A51: D4 | B51: In the case of requests that are substantially higher that 2013, the submission must include a letter of motivation.
A52: D5 | B52: The hardcopies must reach Sonia Kivitts by 6 September 2013.

Sheet Main Menu
B1: RHODES UNIVERSITY | D1: For assistance on this file contact Geoff Erasmus at g.erasmus@ru.ac.za or on ext. 7541, or Ingrid Ford at i.ford@ru.ac.za or ext. 8634 | G1: BCS DEPARTMENT | H1: ACCOUNT NUMBER | I1: ACCOUNT DESCRIPTION | J1: 2012-01-01 | K1: 2012-02-01 | L1: 2012-03-01 | M1: 2012-04-01 | N1: 2012-05-01 | O1: 2012-06-01 | P1: 2012-07-01 | Q1: 2012-08-01 | R1: 2012-09-01 | S1: 2012-10-01 | T1: 2012-11-01 | U1: 2012-12-01 | V1: BCS CATEGORY
B2: BUDGET 2014 | G2: =#REF! -> 
B3: RUNNING GRANTS
B4: COMMUNITY ENGAGEMENT AND INTERNATIONAL OFFICE | G4: BCS DEPARTMENT | H4: ACCOUNT NUMBER | I4: ACCOUNT DESCRIPTION | J4: 2011-01-01 | K4: 2011-02-01 | L4: 2011-03-01 | M4: 2011-04-01 | N4: 2011-05-01 | O4: 2011-06-01 | P4: 2011-07-01 | Q4: 2011-08-01 | R4: 2011-09-01 | S4: 2011-10-01 | T4: 2011-11-01 | U4: 2011-12-01 | V4: TOTAL | W4: BCS Account Category
G5: =#REF! -> 
B6: MAIN MENU
G7: BCS Division | H7: BCS Account Category
B8: INSTRUCTIONS | G8: =#REF! -> 
B9: 1. Select the applicable Department (Branch) from the drop-down list below
B10: Once the correct department is selected, there is no need to return to this sheet.
B11: 2. Click on the sheet tab "FormB RI(1)" to start capturing the details
B16: Select Division: | C16: BRANCH | D16: (All)
C19: COST CENTRE | D19: RI ACCOUNT DESCRIPTION
C20: 20805 | D20: CHINESE RESALE R/I
C21: 55067 | D21: INT OFF VISIT LECT RET INCOME
C22: 55205 | D22: INTERNATIONAL OFFICE RET INCOME
C23: (blank) | D23: (blank)
C24: 55212 | D24: COMMUNITY ENGAGEMENT RET INCOME
C25: 55227 | D25: COMMUNITY ENGAGEMENT SIFE RET INC
C26: 55211 | D26: INTERNAT OFF AFRICAN BALL RET INC
C27: 55228 | D27: INT OFF ERASMUS MUNDUS SAPIENT RI
C28: 55384 | D28: INTERNATIONAL SCH 36/09 RET INC

Sheet FormF Summary
G1: FormF
B2: BUDGET 2014 : RETURN OF INFORMATION
B3: RUNNING GRANT REQUEST
B5: Department: | C5: ='Main Menu'!$D$16 -> (All) | F5: Due Date | G5: 30 August 2013
D7: ACTUAL | E7: ACTUAL | F7: ACTUAL | G7: FORECAST | H7: REQUEST
D8: 2011 | E8: 2012 | F8: YTD JUN '13 | G8: 2013 | H8: 2014
B10: TOTAL RETAINED INCOME
B11: OPENING BALANCE | D11: =D18+D25+D32+D39+D46 -> 0 | E11: =D15 -> 0 | F11: =E15 -> 0 | G11: =E15 -> 0 | H11: =G15 -> 0
B12: GRANT | D12: =D19+D26+D33+D40+D47 -> 0 | E12: =E19+E26+E33+E40+E47 -> 0 | F12: 0 | G12: 0 | H12: 0
B13: (SURPLUS)/DEFICIT FOR THE PERIOD | D13: =D20+D27+D34+D41+D48 -> 0 | E13: 0 | F13: 0 | G13: 0 | H13: 0
B14: TRANSFERS (IN)/OUT | D14: =D21+D28+D35+D42+D49 -> 0 | E14: 0 | F14: 0 | G14: 0 | H14: 0
B15: CLOSING BALANCE | D15: =SUM(D11:D14) -> 0 | E15: =SUM(E11:E14) -> 0 | F15: 0 | G15: =SUM(G11:G14) -> 0 | H15: 0
A16: =IF($B$17=" ",1,"") -> 1
A17: 1 | B17: =CONCATENATE('FormF RI(1)'!$B$5," ",'FormF RI(1)'!$B$6) -> 
A18: =IF($B$17=" ",1,"") -> 1 | B18: Opening Balance | D18: ='FormF RI(1)'!C12 -> 0 | E18: ='FormF RI(1)'!D12 -> 0 | F18: ='FormF RI(1)'!E12 -> 0 | G18: ='FormF RI(1)'!F12 -> 0 | H18: ='FormF RI(1)'!G12 -> 0
A19: =IF($B$17=" ",1,"") -> 1 | B19: Grant | D19: ='FormF RI(1)'!C13 -> 0 | E19: ='FormF RI(1)'!D13 -> 0 | F19: ='FormF RI(1)'!E13 -> 0 | G19: ='FormF RI(1)'!F13 -> 0 | H19: ='FormF RI(1)'!G13 -> 0
A20: 1 | B20: (Surplus)/Deficit for the period | D20: ='FormF RI(1)'!C14 -> 0 | E20: ='FormF RI(1)'!D14 -> 0 | F20: ='FormF RI(1)'!E14 -> 0 | G20: ='FormF RI(1)'!F14 -> 0 | H20: ='FormF RI(1)'!G14 -> 0
A21: 1 | B21: Transfers (in)/out | D21: ='FormF RI(1)'!C15 -> 0 | E21: ='FormF RI(1)'!D15 -> 0 | F21: ='FormF RI(1)'!E15 -> 0 | G21: ='FormF RI(1)'!F15 -> 0 | H21: ='FormF RI(1)'!G15 -> 0
A22: 1 | B22: Closing Balance | D22: ='FormF RI(1)'!C16 -> 0 | E22: ='FormF RI(1)'!D16 -> 0 | F22: ='FormF RI(1)'!E16 -> 0 | G22: ='FormF RI(1)'!F16 -> 0 | H22: ='FormF RI(1)'!G16 -> 0
A23: 1
A24: =IF($B$24=" ",1,"") -> 1 | B24: =CONCATENATE('FormF RI(2)'!$B$5," ",'FormF RI(2)'!$B$6) -> 
A25: =IF($B$24=" ",1,"") -> 1 | B25: Opening Balance | D25: ='FormF RI(2)'!C12 -> 0 | E25: ='FormF RI(2)'!D12 -> 0 | F25: ='FormF RI(2)'!E12 -> 0 | G25: ='FormF RI(2)'!F12 -> 0 | H25: ='FormF RI(2)'!G12 -> 0
A26: 1 | B26: Grant | D26: ='FormF RI(2)'!C13 -> 0 | E26: ='FormF RI(2)'!D13 -> 0 | F26: ='FormF RI(2)'!E13 -> 0 | G26: ='FormF RI(2)'!F13 -> 0 | H26: ='FormF RI(2)'!G13 -> 0
A27: 1 | B27: (Surplus)/Deficit for the period | D27: ='FormF RI(2)'!C14 -> 0 | E27: ='FormF RI(2)'!D14 -> 0 | F27: ='FormF RI(2)'!E14 -> 0 | G27: ='FormF RI(2)'!F14 -> 0 | H27: ='FormF RI(2)'!G14 -> 0
A28: 1 | B28: Transfers (in)/out | D28: ='FormF RI(2)'!C15 -> 0 | E28: ='FormF RI(2)'!D15 -> 0 | F28: ='FormF RI(2)'!E15 -> 0 | G28: ='FormF RI(2)'!F15 -> 0 | H28: ='FormF RI(2)'!G15 -> 0
A29: 1 | B29: Closing Balance | D29: ='FormF RI(2)'!C16 -> 0 | E29: ='FormF RI(2)'!D16 -> 0 | F29: ='FormF RI(2)'!E16 -> 0 | G29: ='FormF RI(2)'!F16 -> 0 | H29: ='FormF RI(2)'!G16 -> 0
A30: 1
A31: =IF($B$31=" ",1,"") -> 1 | B31: =CONCATENATE('FormF RI(3)'!$B$5," ",'FormF RI(3)'!$B$6) -> 
A32: =IF($B$31=" ",1,"") -> 1 | B32: Opening Balance | D32: ='FormF RI(3)'!C12 -> 0 | E32: ='FormF RI(3)'!D12 -> 0 | F32: ='FormF RI(3)'!E12 -> 0 | G32: ='FormF RI(3)'!F12 -> 0 | H32: ='FormF RI(3)'!G12 -> 0
A33: 1 | B33: Grant | D33: ='FormF RI(3)'!C13 -> 0 | E33: ='FormF RI(3)'!D13 -> 0 | F33: ='FormF RI(3)'!E13 -> 0 | G33: ='FormF RI(3)'!F13 -> 0 | H33: ='FormF RI(3)'!G13 -> 0
A34: 1 | B34: (Surplus)/Deficit for the period | D34: ='FormF RI(3)'!C14 -> 0 | E34: ='FormF RI(3)'!D14 -> 0 | F34: ='FormF RI(3)'!E14 -> 0 | G34: ='FormF RI(3)'!F14 -> 0 | H34: ='FormF RI(3)'!G14 -> 0
A35: 1 | B35: Transfers (in)/out | D35: ='FormF RI(3)'!C15 -> 0 | E35: ='FormF RI(3)'!D15 -> 0 | F35: ='FormF RI(3)'!E15 -> 0 | G35: ='FormF RI(3)'!F15 -> 0 | H35: ='FormF RI(3)'!G15 -> 0
A36: 1 | B36: Closing Balance | D36: ='FormF RI(3)'!C16 -> 0 | E36: ='FormF RI(3)'!D16 -> 0 | F36: ='FormF RI(3)'!E16 -> 0 | G36: ='FormF RI(3)'!F16 -> 0 | H36: ='FormF RI(3)'!G16 -> 0
A37: 1
A38: =IF($B$38=" ",1,"") -> 1 | B38: =CONCATENATE('FormF RI(4)'!$B$5," ",'FormF RI(4)'!$B$6) -> 
A39: =IF($B$38=" ",1,"") -> 1 | B39: Opening Balance | D39: ='FormF RI(4)'!C12 -> 0 | E39: ='FormF RI(4)'!D12 -> 0 | F39: ='FormF RI(4)'!E12 -> 0 | G39: ='FormF RI(4)'!F12 -> 0 | H39: ='FormF RI(4)'!G12 -> 0
A40: 1 | B40: Grant | D40: ='FormF RI(4)'!C13 -> 0 | E40: ='FormF RI(4)'!D13 -> 0 | F40: ='FormF RI(4)'!E13 -> 0 | G40: ='FormF RI(4)'!F13 -> 0 | H40: ='FormF RI(4)'!G13 -> 0
A41: 1 | B41: (Surplus)/Deficit for the period | D41: ='FormF RI(4)'!C14 -> 0 | E41: ='FormF RI(4)'!D14 -> 0 | F41: ='FormF RI(4)'!E14 -> 0 | G41: ='FormF RI(4)'!F14 -> 0 | H41: ='FormF RI(4)'!G14 -> 0
A42: 1 | B42: Transfers (in)/out | D42: ='FormF RI(4)'!C15 -> 0 | E42: ='FormF RI(4)'!D15 -> 0 | F42: ='FormF RI(4)'!E15 -> 0 | G42: ='FormF RI(4)'!F15 -> 0 | H42: ='FormF RI(4)'!G15 -> 0
A43: 1 | B43: Closing Balance | D43: ='FormF RI(4)'!C16 -> 0 | E43: ='FormF RI(4)'!D16 -> 0 | F43: ='FormF RI(4)'!E16 -> 0 | G43: ='FormF RI(4)'!F16 -> 0 | H43: ='FormF RI(4)'!G16 -> 0
A44: 1
A45: =IF($B$45=" ",1,"") -> 1 | B45: =CONCATENATE('FormF RI(5)'!$B$5," ",'FormF RI(5)'!$B$6) -> 
A46: =IF($B$45=" ",1,"") -> 1 | B46: Opening Balance | D46: ='FormF RI(5)'!C12 -> 0 | E46: ='FormF RI(5)'!D12 -> 0 | F46: ='FormF RI(5)'!E12 -> 0 | G46: ='FormF RI(5)'!F12 -> 0 | H46: ='FormF RI(5)'!G12 -> 0
A47: =IF($B$45=" ",1,"") -> 1 | B47: Grant | D47: ='FormF RI(5)'!C13 -> 0 | E47: ='FormF RI(5)'!D13 -> 0 | F47: ='FormF RI(5)'!E13 -> 0 | G47: ='FormF RI(5)'!F13 -> 0 | H47: ='FormF RI(5)'!G13 -> 0
A48: 1 | B48: (Surplus)/Deficit for the period | D48: ='FormF RI(5)'!C14 -> 0 | E48: ='FormF RI(5)'!D14 -> 0 | F48: ='FormF RI(5)'!E14 -> 0 | G48: ='FormF RI(5)'!F14 -> 0 | H48: ='FormF RI(5)'!G14 -> 0
A49: 1 | B49: Transfers (in)/out | D49: ='FormF RI(5)'!C15 -> 0 | E49: ='FormF RI(5)'!D15 -> 0 | F49: ='FormF RI(5)'!E15 -> 0 | G49: ='FormF RI(5)'!F15 -> 0 | H49: ='FormF RI(5)'!G15 -> 0
A50: 1 | B50: Closing Balance | D50: ='FormF RI(5)'!C16 -> 0 | E50: ='FormF RI(5)'!D16 -> 0 | F50: ='FormF RI(5)'!E16 -> 0 | G50: ='FormF RI(5)'!F16 -> 0 | H50: ='FormF RI(5)'!G16 -> 0
A51: 1
B53: Confirmed by Director of unit | E53: Completed by:
B54: SIGNATURE | E54: NAME
B55: NAME | E55: DATE
B56: DATE | E56: TEL EXT:
B58: Please return to :
B59: Finance Division
B60: Mrs Sonia Kivitts
B61: e.mail | C61: s.kivitts@ru.ac.za
B62: Ext | C62: 8123

Sheet FormF RI(1)
A1: BUDGET 2014 : RETURN OF INFORMATION | D1: FormF RI(1)
A2: ='FormF Summary'!B3 -> RUNNING GRANT REQUEST
V3: GL ACCOUNT | W3: GL ACCOUNT DESCRIPTION | X3: ALT ACCOUNT | Y3: RI ACCOUNT | Z3: RI ACCOUNT DESCRIPTION | AA3: TYPE | AB3: BRANCH CODE | AC3: BRANCH | AD3: STATUS | AE3: FUNCTION | AF3: REPORTING | AG3: COST CENTRE | AI3: GL ACCOUNT | AJ3: GL ACCOUNT DESCRIPTION | AK3: ALT ACCOUNT | AL3: RI ACCOUNT | AM3: RI ACCOUNT DESCRIPTION | AN3: TYPE | AO3: BRANCH CODE | AP3: BRANCH | AQ3: STATUS | AR3: FUNCTION | AS3: REPORTING | AT3: COST CENTRE | AU3: CATEGORY | AV3: TRANSFERS
A4: Division: | B4: ='Main Menu'!D16 -> (All) | AA4: 3 | AG4: =$B$5 -> 0 | AN4: 4 | AT4: =$B$5 -> 0 | AU4: OTHER | AV4: OTHER
A5: Retained Income Acc:
A6: RI Acc Description: | B6: =IF(ISNA(TRIM(VLOOKUP($B$5,Accounts!$L:$O,4,FALSE))),"",TRIM(VLOOKUP($B$5,Accounts!$L:$O,4,FALSE))) ->  | V6: GL ACCOUNT | W6: GL ACCOUNT DESCRIPTION | X6: ALT ACCOUNT | Y6: RI ACCOUNT | Z6: RI ACCOUNT DESCRIPTION | AA6: TYPE | AB6: BRANCH CODE | AC6: BRANCH | AD6: STATUS | AE6: FUNCTION | AF6: REPORTING | AG6: COST CENTRE | AI6: GL ACCOUNT | AJ6: GL ACCOUNT DESCRIPTION | AK6: ALT ACCOUNT | AL6: RI ACCOUNT | AM6: RI ACCOUNT DESCRIPTION | AN6: TYPE | AO6: BRANCH CODE | AP6: BRANCH | AQ6: STATUS | AR6: FUNCTION | AS6: REPORTING | AT6: COST CENTRE | AU6: CATEGORY | AV6: TRANSFERS
A7: =IF(LEFT($A$27,5)=$B$5,"","ALERT: PREPARE SHEET!") -> ALERT: PREPARE SHEET!
C8: Actual | D8: Actual | E8: Actual YTD | F8: Forecast | G8: Total | H8: Month | I8: Month | J8: Month | K8: Month | L8: Month | M8: Month | N8: Month | O8: Month | P8: Month | Q8: Month | R8: Month | S8: Month
C9: 2011 | D9: 2012 | E9: 2013 | F9: 2013 | G9: 2014 | H9: Jan | I9: Feb | J9: Mar | K9: Apr | L9: May | M9: Jun | N9: Jul | O9: Aug | P9: Sep | Q9: Oct | R9: Nov | S9: Dec
A11: RETAINED INCOME
A12: OPENING BALANCE | B12: =TRIM(VLOOKUP($B$5,Accounts!$L:$P,5,FALSE)) ->  | C12: =IF(ISNA(VLOOKUP($B12,Actuals!$B:$T,18,FALSE)),0,VLOOKUP($B12,Actuals!$B:$T,18,FALSE)) -> 0 | D12: =C16 -> 0 | E12: =D16 -> 0 | F12: =E12 -> 0 | G12: =F16 -> 0 | H12: =F16 -> 0 | I12: =H16 -> 0 | J12: 0 | K12: 0 | L12: 0 | M12: 0 | N12: 0 | O12: 0 | P12: 0 | Q12: 0 | R12: 0 | S12: 0
A13: GRANT | B13: =TRIM(VLOOKUP(CONCATENATE($B$5,$A$13),Accounts!$Q:$R,2,FALSE)) ->  | C13: =IF(ISNA(VLOOKUP($B13,Actuals!$B:$T,18,FALSE)),0,VLOOKUP($B13,Actuals!$B:$T,18,FALSE)) -> 0 | D13: =IF(ISNA(VLOOKUP($B13,Actuals!$B:$T,18,FALSE)),0,VLOOKUP($B13,Actuals!$B:$T,17,FALSE)) -> 0 | E13: =IF(ISNA(VLOOKUP($B13,Actuals!$B:$T,18,FALSE)),0,VLOOKUP($B13,Actuals!$B:$T,16,FALSE)) -> 0 | F13: =IF(ISNA(VLOOKUP($B13,Actuals!$B:$T,18,FALSE)),0,VLOOKUP($B13,Actuals!$B:$T,16,FALSE)) -> 0 | G13: =SUM(H13:S13) -> 0
A14: (SURPLUS)/DEFICIT FOR THE PERIOD | C14: =C18+C26 -> 0 | D14: =D18+D26 -> 0 | E14: =E18+E26 -> 0 | F14: =F18+F26 -> 0 | G14: =SUM(H14:S14) -> 0 | H14: =H18+H26 -> 0 | I14: 0 | J14: 0 | K14: 0 | L14: 0 | M14: 0 | N14: 0 | O14: 0 | P14: 0 | Q14: 0 | R14: 0 | S14: 0
A15: TRANSFERS (IN)/OUT | C15: =SUMIF(Actuals!$AC:$AC,CONCATENATE($B$5,"TRANSFERS"),Actuals!$S:$S) -> 0 | D15: =SUMIF(Actuals!$AC:$AC,CONCATENATE($B$5,"TRANSFERS"),Actuals!$R:$R) -> 0 | E15: =SUMIF(Actuals!$AC:$AC,CONCATENATE($B$5,"TRANSFERS"),Actuals!$Q:$Q) -> 0 | G15: =SUM(H15:S15) -> 0
A16: CLOSING BALANCE | B16: =IF(MAX($C$16:$S$16)>0,"A red cell indicates Cost Centre in deficit","") ->  | C16: =SUM(C12:C15) -> 0 | D16: =SUM(D12:D15) -> 0 | E16: 0 | F16: 0 | G16: 0 | H16: 0 | I16: 0 | J16: 0 | K16: 0 | L16: 0 | M16: 0 | N16: 0 | O16: 0 | P16: 0 | Q16: 0 | R16: 0 | S16: 0
A18: INCOME | C18: =SUM(C19:C24) -> 0 | D18: 0 | E18: 0 | F18: 0 | G18: 0 | H18: =SUM(H19:H24) -> 0 | I18: 0 | J18: 0 | K18: 0 | L18: 0 | M18: 0 | N18: 0 | O18: 0 | P18: 0 | Q18: 0 | R18: 0 | S18: 0
A19: =V7 -> 0 | B19: =IF(OR($A19="",$A19=0),"",VLOOKUP($A19,Accounts!$A:$L,2,FALSE)) ->  | C19: =IF($A19=0,0,SUMIF(Actuals!$B:$B,$A19,Actuals!$S:$S)) -> 0 | D19: =IF($A19=0,0,SUMIF(Actuals!$B:$B,$A19,Actuals!$R:$R)) -> 0 | E19: =IF($A19=0,0,SUMIF(Actuals!$B:$B,$A19,Actuals!$Q:$Q)) -> 0 | G19: =SUM(H19:S19) -> 0 | T19: =IF(SUM(C19:S19)=0,0,A19) -> 0
A20: =V8 -> 0 | B20: =IF(OR($A20="",$A20=0),"",VLOOKUP($A20,Accounts!$A:$L,2,FALSE)) ->  | C20: =IF($A20=0,0,SUMIF(Actuals!$B:$B,$A20,Actuals!$S:$S)) -> 0 | D20: =IF($A20=0,0,SUMIF(Actuals!$B:$B,$A20,Actuals!$R:$R)) -> 0 | E20: =IF($A20=0,0,SUMIF(Actuals!$B:$B,$A20,Actuals!$Q:$Q)) -> 0 | G20: =SUM(H20:S20) -> 0 | T20: =IF(SUM(C20:S20)=0,0,A20) -> 0
A21: 0 | B21: =IF(OR($A21="",$A21=0),"",VLOOKUP($A21,Accounts!$A:$L,2,FALSE)) ->  | C21: =IF($A21=0,0,SUMIF(Actuals!$B:$B,$A21,Actuals!$S:$S)) -> 0 | D21: =IF($A21=0,0,SUMIF(Actuals!$B:$B,$A21,Actuals!$R:$R)) -> 0 | E21: =IF($A21=0,0,SUMIF(Actuals!$B:$B,$A21,Actuals!$Q:$Q)) -> 0 | G21: 0 | T21: 0
A22: 0 | B22: =IF(OR($A22="",$A22=0),"",VLOOKUP($A22,Accounts!$A:$L,2,FALSE)) ->  | C22: =IF($A22=0,0,SUMIF(Actuals!$B:$B,$A22,Actuals!$S:$S)) -> 0 | D22: =IF($A22=0,0,SUMIF(Actuals!$B:$B,$A22,Actuals!$R:$R)) -> 0 | E22: =IF($A22=0,0,SUMIF(Actuals!$B:$B,$A22,Actuals!$Q:$Q)) -> 0 | G22: 0 | T22: 0
A23: 0 | B23: =IF(OR($A23="",$A23=0),"",VLOOKUP($A23,Accounts!$A:$L,2,FALSE)) ->  | C23: =IF($A23=0,0,SUMIF(Actuals!$B:$B,$A23,Actuals!$S:$S)) -> 0 | D23: =IF($A23=0,0,SUMIF(Actuals!$B:$B,$A23,Actuals!$R:$R)) -> 0 | E23: =IF($A23=0,0,SUMIF(Actuals!$B:$B,$A23,Actuals!$Q:$Q)) -> 0 | G23: 0 | T23: 0
B24: OTHER | C24: =IF($A24=0,0,SUMIF(Actuals!$B:$B,$A24,Actuals!$S:$S)) -> 0 | D24: =IF($A24=0,0,SUMIF(Actuals!$A:$F,$A24,Actuals!$R:$R)) -> 0 | E24: =IF($A24=0,0,SUMIF(Actuals!$B:$B,$A24,Actuals!$Q:$Q)) -> 0 | G24: 0 | T24: =IF(SUM(C24:S24)=0,0,A24) -> 0
A26: EXPENDITURE | C26: =SUM(C27:C60) -> 0 | D26: =SUM(D27:D60) -> 0 | E26: 0 | F26: 0 | G26: 0 | H26: 0 | I26: 0 | J26: 0 | K26: 0 | L26: 0 | M26: 0 | N26: 0 | O26: 0 | P26: 0 | Q26: 0 | R26: 0 | S26: 0
A27: =AI7 -> 0 | B27: =IF(OR($A27="",$A27=0),"",VLOOKUP($A27,Accounts!$A:$L,2,FALSE)) ->  | C27: =IF($A27=0,0,SUMIF(Actuals!$B:$B,$A27,Actuals!$S:$S)) -> 0 | D27: =IF($A27=0,0,SUMIF(Actuals!$B:$B,$A27,Actuals!$R:$R)) -> 0 | E27: =IF($A27=0,0,SUMIF(Actuals!$B:$B,$A27,Actuals!$Q:$Q)) -> 0 | G27: =SUM(H27:S27) -> 0 | T27: =IF(SUM(C27:S27)=0,0,B27) -> 0
A28: 0 | B28: =IF(OR($A28="",$A28=0),"",VLOOKUP($A28,Accounts!$A:$L,2,FALSE)) ->  | C28: =IF($A28=0,0,SUMIF(Actuals!$B:$B,$A28,Actuals!$S:$S)) -> 0 | D28: =IF($A28=0,0,SUMIF(Actuals!$B:$B,$A28,Actuals!$R:$R)) -> 0 | E28: =IF($A28=0,0,SUMIF(Actuals!$B:$B,$A28,Actuals!$Q:$Q)) -> 0 | G28: =SUM(H28:S28) -> 0 | T28: =IF(SUM(C28:S28)=0,0,B28) -> 0
A29: 0 | B29: =IF(OR($A29="",$A29=0),"",VLOOKUP($A29,Accounts!$A:$L,2,FALSE)) ->  | C29: =IF($A29=0,0,SUMIF(Actuals!$B:$B,$A29,Actuals!$S:$S)) -> 0 | D29: =IF($A29=0,0,SUMIF(Actuals!$B:$B,$A29,Actuals!$R:$R)) -> 0 | E29: =IF($A29=0,0,SUMIF(Actuals!$B:$B,$A29,Actuals!$Q:$Q)) -> 0 | G29: 0 | T29: 0
A30: 0 | B30: =IF(OR($A30="",$A30=0),"",VLOOKUP($A30,Accounts!$A:$L,2,FALSE)) ->  | C30: =IF($A30=0,0,SUMIF(Actuals!$B:$B,$A30,Actuals!$S:$S)) -> 0 | D30: =IF($A30=0,0,SUMIF(Actuals!$B:$B,$A30,Actuals!$R:$R)) -> 0 | E30: =IF($A30=0,0,SUMIF(Actuals!$B:$B,$A30,Actuals!$Q:$Q)) -> 0 | G30: 0 | T30: 0
A31: 0 | B31: =IF(OR($A31="",$A31=0),"",VLOOKUP($A31,Accounts!$A:$L,2,FALSE)) ->  | C31: =IF($A31=0,0,SUMIF(Actuals!$B:$B,$A31,Actuals!$S:$S)) -> 0 | D31: =IF($A31=0,0,SUMIF(Actuals!$B:$B,$A31,Actuals!$R:$R)) -> 0 | E31: =IF($A31=0,0,SUMIF(Actuals!$B:$B,$A31,Actuals!$Q:$Q)) -> 0 | G31: 0 | T31: 0 | U31: =VLOOKUP($A27,Table!$A:$G,6,FALSE) -> 
A32: 0 | B32: =IF(OR($A32="",$A32=0),"",VLOOKUP($A32,Accounts!$A:$L,2,FALSE)) ->  | C32: =IF($A32=0,0,SUMIF(Actuals!$B:$B,$A32,Actuals!$S:$S)) -> 0 | D32: =IF($A32=0,0,SUMIF(Actuals!$B:$B,$A32,Actuals!$R:$R)) -> 0 | E32: =IF($A32=0,0,SUMIF(Actuals!$B:$B,$A32,Actuals!$Q:$Q)) -> 0 | G32: 0 | T32: 0 | U32: =VLOOKUP($A28,Table!$A:$G,6,FALSE) -> 
A33: 0 | B33: =IF(OR($A33="",$A33=0),"",VLOOKUP($A33,Accounts!$A:$L,2,FALSE)) ->  | C33: =IF($A33=0,0,SUMIF(Actuals!$B:$B,$A33,Actuals!$S:$S)) -> 0 | D33: =IF($A33=0,0,SUMIF(Actuals!$B:$B,$A33,Actuals!$R:$R)) -> 0 | E33: =IF($A33=0,0,SUMIF(Actuals!$B:$B,$A33,Actuals!$Q:$Q)) -> 0 | G33: 0 | T33: 0 | U33: =VLOOKUP($A29,Table!$A:$G,6,FALSE) -> 
A34: 0 | B34: =IF(OR($A34="",$A34=0),"",VLOOKUP($A34,Accounts!$A:$L,2,FALSE)) ->  | C34: =IF($A34=0,0,SUMIF(Actuals!$B:$B,$A34,Actuals!$S:$S)) -> 0 | D34: =IF($A34=0,0,SUMIF(Actuals!$B:$B,$A34,Actuals!$R:$R)) -> 0 | E34: =IF($A34=0,0,SUMIF(Actuals!$B:$B,$A34,Actuals!$Q:$Q)) -> 0 | G34: 0 | T34: 0 | U34: =VLOOKUP($A30,Table!$A:$G,6,FALSE) -> 
A35: 0 | B35: =IF(OR($A35="",$A35=0),"",VLOOKUP($A35,Accounts!$A:$L,2,FALSE)) ->  | C35: =IF($A35=0,0,SUMIF(Actuals!$B:$B,$A35,Actuals!$S:$S)) -> 0 | D35: =IF($A35=0,0,SUMIF(Actuals!$B:$B,$A35,Actuals!$R:$R)) -> 0 | E35: =IF($A35=0,0,SUMIF(Actuals!$B:$B,$A35,Actuals!$Q:$Q)) -> 0 | G35: 0 | T35: 0 | U35: =VLOOKUP($A31,Table!$A:$G,6,FALSE) -> 
A36: 0 | B36: =IF(OR($A36="",$A36=0),"",VLOOKUP($A36,Accounts!$A:$L,2,FALSE)) ->  | C36: =IF($A36=0,0,SUMIF(Actuals!$B:$B,$A36,Actuals!$S:$S)) -> 0 | D36: =IF($A36=0,0,SUMIF(Actuals!$B:$B,$A36,Actuals!$R:$R)) -> 0 | E36: =IF($A36=0,0,SUMIF(Actuals!$B:$B,$A36,Actuals!$Q:$Q)) -> 0 | G36: 0 | T36: 0 | U36: =VLOOKUP($A32,Table!$A:$G,6,FALSE) -> 
A37: 0 | B37: =IF(OR($A37="",$A37=0),"",VLOOKUP($A37,Accounts!$A:$L,2,FALSE)) ->  | C37: =IF($A37=0,0,SUMIF(Actuals!$B:$B,$A37,Actuals!$S:$S)) -> 0 | D37: =IF($A37=0,0,SUMIF(Actuals!$B:$B,$A37,Actuals!$R:$R)) -> 0 | E37: =IF($A37=0,0,SUMIF(Actuals!$B:$B,$A37,Actuals!$Q:$Q)) -> 0 | G37: 0 | T37: 0 | U37: =VLOOKUP($A33,Table!$A:$G,6,FALSE) -> 
A38: 0 | B38: =IF(OR($A38="",$A38=0),"",VLOOKUP($A38,Accounts!$A:$L,2,FALSE)) ->  | C38: =IF($A38=0,0,SUMIF(Actuals!$B:$B,$A38,Actuals!$S:$S)) -> 0 | D38: =IF($A38=0,0,SUMIF(Actuals!$B:$B,$A38,Actuals!$R:$R)) -> 0 | E38: =IF($A38=0,0,SUMIF(Actuals!$B:$B,$A38,Actuals!$Q:$Q)) -> 0 | G38: 0 | T38: 0 | U38: =VLOOKUP($A34,Table!$A:$G,6,FALSE) -> 
A39: 0 | B39: =IF(OR($A39="",$A39=0),"",VLOOKUP($A39,Accounts!$A:$L,2,FALSE)) ->  | C39: =IF($A39=0,0,SUMIF(Actuals!$B:$B,$A39,Actuals!$S:$S)) -> 0 | D39: =IF($A39=0,0,SUMIF(Actuals!$B:$B,$A39,Actuals!$R:$R)) -> 0 | E39: =IF($A39=0,0,SUMIF(Actuals!$B:$B,$A39,Actuals!$Q:$Q)) -> 0 | G39: 0 | T39: 0 | U39: =VLOOKUP($A35,Table!$A:$G,6,FALSE) -> 
A40: 0 | B40: =IF(OR($A40="",$A40=0),"",VLOOKUP($A40,Accounts!$A:$L,2,FALSE)) ->  | C40: =IF($A40=0,0,SUMIF(Actuals!$B:$B,$A40,Actuals!$S:$S)) -> 0 | D40: =IF($A40=0,0,SUMIF(Actuals!$B:$B,$A40,Actuals!$R:$R)) -> 0 | E40: =IF($A40=0,0,SUMIF(Actuals!$B:$B,$A40,Actuals!$Q:$Q)) -> 0 | G40: 0 | T40: 0 | U40: =VLOOKUP($A36,Table!$A:$G,6,FALSE) -> 
A41: 0 | B41: =IF(OR($A41="",$A41=0),"",VLOOKUP($A41,Accounts!$A:$L,2,FALSE)) ->  | C41: =IF($A41=0,0,SUMIF(Actuals!$B:$B,$A41,Actuals!$S:$S)) -> 0 | D41: =IF($A41=0,0,SUMIF(Actuals!$B:$B,$A41,Actuals!$R:$R)) -> 0 | E41: =IF($A41=0,0,SUMIF(Actuals!$B:$B,$A41,Actuals!$Q:$Q)) -> 0 | G41: 0 | T41: 0 | U41: =VLOOKUP($A37,Table!$A:$G,6,FALSE) -> 
A42: 0 | B42: =IF(OR($A42="",$A42=0),"",VLOOKUP($A42,Accounts!$A:$L,2,FALSE)) ->  | C42: =IF($A42=0,0,SUMIF(Actuals!$B:$B,$A42,Actuals!$S:$S)) -> 0 | D42: =IF($A42=0,0,SUMIF(Actuals!$B:$B,$A42,Actuals!$R:$R)) -> 0 | E42: =IF($A42=0,0,SUMIF(Actuals!$B:$B,$A42,Actuals!$Q:$Q)) -> 0 | G42: 0 | T42: 0 | U42: =VLOOKUP($A38,Table!$A:$G,6,FALSE) -> 
A43: 0 | B43: =IF(OR($A43="",$A43=0),"",VLOOKUP($A43,Accounts!$A:$L,2,FALSE)) ->  | C43: =IF($A43=0,0,SUMIF(Actuals!$B:$B,$A43,Actuals!$S:$S)) -> 0 | D43: =IF($A43=0,0,SUMIF(Actuals!$B:$B,$A43,Actuals!$R:$R)) -> 0 | E43: =IF($A43=0,0,SUMIF(Actuals!$B:$B,$A43,Actuals!$Q:$Q)) -> 0 | G43: 0 | T43: 0 | U43: =VLOOKUP($A39,Table!$A:$G,6,FALSE) -> 
A44: 0 | B44: =IF(OR($A44="",$A44=0),"",VLOOKUP($A44,Accounts!$A:$L,2,FALSE)) ->  | C44: =IF($A44=0,0,SUMIF(Actuals!$B:$B,$A44,Actuals!$S:$S)) -> 0 | D44: =IF($A44=0,0,SUMIF(Actuals!$B:$B,$A44,Actuals!$R:$R)) -> 0 | E44: =IF($A44=0,0,SUMIF(Actuals!$B:$B,$A44,Actuals!$Q:$Q)) -> 0 | G44: 0 | T44: 0 | U44: =VLOOKUP($A40,Table!$A:$G,6,FALSE) -> 
A45: 0 | B45: =IF(OR($A45="",$A45=0),"",VLOOKUP($A45,Accounts!$A:$L,2,FALSE)) ->  | C45: =IF($A45=0,0,SUMIF(Actuals!$B:$B,$A45,Actuals!$S:$S)) -> 0 | D45: =IF($A45=0,0,SUMIF(Actuals!$B:$B,$A45,Actuals!$R:$R)) -> 0 | E45: =IF($A45=0,0,SUMIF(Actuals!$B:$B,$A45,Actuals!$Q:$Q)) -> 0 | G45: 0 | T45: 0 | U45: =VLOOKUP($A41,Table!$A:$G,6,FALSE) -> 
A46: 0 | B46: =IF(OR($A46="",$A46=0),"",VLOOKUP($A46,Accounts!$A:$L,2,FALSE)) ->  | C46: =IF($A46=0,0,SUMIF(Actuals!$B:$B,$A46,Actuals!$S:$S)) -> 0 | D46: =IF($A46=0,0,SUMIF(Actuals!$B:$B,$A46,Actuals!$R:$R)) -> 0 | E46: =IF($A46=0,0,SUMIF(Actuals!$B:$B,$A46,Actuals!$Q:$Q)) -> 0 | G46: 0 | T46: 0 | U46: =VLOOKUP($A42,Table!$A:$G,6,FALSE) -> 
A47: 0 | B47: =IF(OR($A47="",$A47=0),"",VLOOKUP($A47,Accounts!$A:$L,2,FALSE)) ->  | C47: =IF($A47=0,0,SUMIF(Actuals!$B:$B,$A47,Actuals!$S:$S)) -> 0 | D47: =IF($A47=0,0,SUMIF(Actuals!$B:$B,$A47,Actuals!$R:$R)) -> 0 | E47: =IF($A47=0,0,SUMIF(Actuals!$B:$B,$A47,Actuals!$Q:$Q)) -> 0 | G47: 0 | T47: 0 | U47: =VLOOKUP($A43,Table!$A:$G,6,FALSE) -> 
A48: 0 | B48: =IF(OR($A48="",$A48=0),"",VLOOKUP($A48,Accounts!$A:$L,2,FALSE)) ->  | C48: =IF($A48=0,0,SUMIF(Actuals!$B:$B,$A48,Actuals!$S:$S)) -> 0 | D48: =IF($A48=0,0,SUMIF(Actuals!$B:$B,$A48,Actuals!$R:$R)) -> 0 | E48: =IF($A48=0,0,SUMIF(Actuals!$B:$B,$A48,Actuals!$Q:$Q)) -> 0 | G48: 0 | T48: 0 | U48: =VLOOKUP($A44,Table!$A:$G,6,FALSE) -> 
A49: 0 | B49: =IF(OR($A49="",$A49=0),"",VLOOKUP($A49,Accounts!$A:$L,2,FALSE)) ->  | C49: =IF($A49=0,0,SUMIF(Actuals!$B:$B,$A49,Actuals!$S:$S)) -> 0 | D49: =IF($A49=0,0,SUMIF(Actuals!$B:$B,$A49,Actuals!$R:$R)) -> 0 | E49: =IF($A49=0,0,SUMIF(Actuals!$B:$B,$A49,Actuals!$Q:$Q)) -> 0 | G49: 0 | T49: 0 | U49: =VLOOKUP($A45,Table!$A:$G,6,FALSE) -> 
A50: 0 | B50: =IF(OR($A50="",$A50=0),"",VLOOKUP($A50,Accounts!$A:$L,2,FALSE)) ->  | C50: =IF($A50=0,0,SUMIF(Actuals!$B:$B,$A50,Actuals!$S:$S)) -> 0 | D50: =IF($A50=0,0,SUMIF(Actuals!$B:$B,$A50,Actuals!$R:$R)) -> 0 | E50: =IF($A50=0,0,SUMIF(Actuals!$B:$B,$A50,Actuals!$Q:$Q)) -> 0 | G50: 0 | T50: 0 | U50: =VLOOKUP($A46,Table!$A:$G,6,FALSE) -> 
A51: 0 | B51: =IF(OR($A51="",$A51=0),"",VLOOKUP($A51,Accounts!$A:$L,2,FALSE)) ->  | C51: =IF($A51=0,0,SUMIF(Actuals!$B:$B,$A51,Actuals!$S:$S)) -> 0 | D51: =IF($A51=0,0,SUMIF(Actuals!$B:$B,$A51,Actuals!$R:$R)) -> 0 | E51: =IF($A51=0,0,SUMIF(Actuals!$B:$B,$A51,Actuals!$Q:$Q)) -> 0 | G51: 0 | T51: 0 | U51: =VLOOKUP($A47,Table!$A:$G,6,FALSE) -> 
A52: 0 | B52: =IF(OR($A52="",$A52=0),"",VLOOKUP($A52,Accounts!$A:$L,2,FALSE)) ->  | C52: =IF($A52=0,0,SUMIF(Actuals!$B:$B,$A52,Actuals!$S:$S)) -> 0 | D52: =IF($A52=0,0,SUMIF(Actuals!$B:$B,$A52,Actuals!$R:$R)) -> 0 | E52: =IF($A52=0,0,SUMIF(Actuals!$B:$B,$A52,Actuals!$Q:$Q)) -> 0 | G52: =SUM(H52:S52) -> 0 | T52: 0 | U52: =VLOOKUP($A48,Table!$A:$G,6,FALSE) -> 
A53: 0 | B53: =IF(OR($A53="",$A53=0),"",VLOOKUP($A53,Accounts!$A:$L,2,FALSE)) ->  | C53: =IF($A53=0,0,SUMIF(Actuals!$B:$B,$A53,Actuals!$S:$S)) -> 0 | D53: =IF($A53=0,0,SUMIF(Actuals!$B:$B,$A53,Actuals!$R:$R)) -> 0 | E53: =IF($A53=0,0,SUMIF(Actuals!$B:$B,$A53,Actuals!$Q:$Q)) -> 0 | G53: 0 | T53: 0 | U53: =VLOOKUP($A49,Table!$A:$G,6,FALSE) -> 
A54: 0 | B54: =IF(OR($A54="",$A54=0),"",VLOOKUP($A54,Accounts!$A:$L,2,FALSE)) ->  | C54: =IF($A54=0,0,SUMIF(Actuals!$B:$B,$A54,Actuals!$S:$S)) -> 0 | D54: =IF($A54=0,0,SUMIF(Actuals!$B:$B,$A54,Actuals!$R:$R)) -> 0 | E54: =IF($A54=0,0,SUMIF(Actuals!$B:$B,$A54,Actuals!$Q:$Q)) -> 0 | G54: 0 | T54: 0 | U54: =VLOOKUP($A50,Table!$A:$G,6,FALSE) -> 
A55: 0 | B55: =IF(OR($A55="",$A55=0),"",VLOOKUP($A55,Accounts!$A:$L,2,FALSE)) ->  | C55: =IF($A55=0,0,SUMIF(Actuals!$B:$B,$A55,Actuals!$S:$S)) -> 0 | D55: =IF($A55=0,0,SUMIF(Actuals!$B:$B,$A55,Actuals!$R:$R)) -> 0 | E55: =IF($A55=0,0,SUMIF(Actuals!$B:$B,$A55,Actuals!$Q:$Q)) -> 0 | G55: 0 | T55: 0 | U55: =VLOOKUP($A51,Table!$A:$G,6,FALSE) -> 
C56: =IF($A56=0,0,SUMIF(Actuals!$B:$B,$A56,Actuals!$S:$S)) -> 0 | D56: =IF($A56=0,0,SUMIF(Actuals!$B:$B,$A56,Actuals!$R:$R)) -> 0 | E56: =IF($A56=0,0,SUMIF(Actuals!$B:$B,$A56,Actuals!$Q:$Q)) -> 0 | G56: 0 | T56: 0 | U56: =VLOOKUP($A52,Table!$A:$G,6,FALSE) -> 
C57: =IF($A57=0,0,SUMIF(Actuals!$B:$B,$A57,Actuals!$S:$S)) -> 0 | D57: =IF($A57=0,0,SUMIF(Actuals!$B:$B,$A57,Actuals!$R:$R)) -> 0 | E57: =IF($A57=0,0,SUMIF(Actuals!$B:$B,$A57,Actuals!$Q:$Q)) -> 0 | G57: 0 | T57: 0 | U57: =VLOOKUP($A53,Table!$A:$G,6,FALSE) -> 
C58: =IF($A58=0,0,SUMIF(Actuals!$B:$B,$A58,Actuals!$S:$S)) -> 0 | D58: =IF($A58=0,0,SUMIF(Actuals!$B:$B,$A58,Actuals!$R:$R)) -> 0 | E58: =IF($A58=0,0,SUMIF(Actuals!$B:$B,$A58,Actuals!$Q:$Q)) -> 0 | G58: 0 | T58: 0 | U58: =VLOOKUP($A54,Table!$A:$G,6,FALSE) -> 
C59: =IF($A59=0,0,SUMIF(Actuals!$B:$B,$A59,Actuals!$S:$S)) -> 0 | D59: =IF($A59=0,0,SUMIF(Actuals!$B:$B,$A59,Actuals!$R:$R)) -> 0 | E59: =IF($A59=0,0,SUMIF(Actuals!$B:$B,$A59,Actuals!$Q:$Q)) -> 0 | G59: 0 | T59: 0 | U59: =VLOOKUP($A55,Table!$A:$G,6,FALSE) -> 
C60: =IF($A60=0,0,SUMIF(Actuals!$B:$B,$A60,Actuals!$S:$S)) -> 0 | D60: =IF($A60=0,0,SUMIF(Actuals!$B:$B,$A60,Actuals!$R:$R)) -> 0 | E60: =IF($A60=0,0,SUMIF(Actuals!$B:$B,$A60,Actuals!$Q:$Q)) -> 0 | G60: 0 | T60: 0 | U60: =VLOOKUP($A56,Table!$A:$G,6,FALSE) -> 
A62: Confirmed by Head of Department
A63: SIGNATURE
A64: NAME
A65: DATE
A67: Please return to :
A68: Finance Division
A69: Mrs Sonia Kivitts
A70: e.mail | B70: s.kivitts@ru.ac.za
A71: Ext | B71: 8123
A83: Include:
A84: Estimated general running costs incurred in the daily operation of the department and primaily in support of academic/teaching activities in the Department, e.g. Consumables,stationery, telephone and small items of teaching equipment costing less than R3,000
A85: Exclude:
A86: Salaries, furniture, office equipment, academic/teaching equipment costing more than R3,000, research activity costs, conference and related travel costs

Sheet FormF RI(2)
A1: BUDGET 2014 : RETURN OF INFORMATION | D1: FormF RI(2) | I1: Form B (2)
A2: ='FormF Summary'!B3 -> RUNNING GRANT REQUEST
V3: GL ACCOUNT | W3: GL ACCOUNT DESCRIPTION | X3: ALT ACCOUNT | Y3: RI ACCOUNT | Z3: RI ACCOUNT DESCRIPTION | AA3: TYPE | AB3: BRANCH CODE | AC3: BRANCH | AD3: STATUS | AE3: FUNCTION | AF3: REPORTING | AG3: COST CENTRE | AI3: GL ACCOUNT | AJ3: GL ACCOUNT DESCRIPTION | AK3: ALT ACCOUNT | AL3: RI ACCOUNT | AM3: RI ACCOUNT DESCRIPTION | AN3: TYPE | AO3: BRANCH CODE | AP3: BRANCH | AQ3: STATUS | AR3: FUNCTION | AS3: REPORTING | AT3: COST CENTRE | AU3: CATEGORY | AV3: TRANSFERS
A4: ='FormF RI(1)'!A4 -> Division: | B4: ='Main Menu'!D16 -> (All) | AA4: 3 | AG4: =$B$5 -> 0 | AN4: 4 | AT4: =$B$5 -> 0 | AU4: OTHER | AV4: OTHER
A5: ='FormF RI(1)'!A5 -> Retained Income Acc:
A6: ='FormF RI(1)'!A6 -> RI Acc Description: | B6: =IF(ISNA(TRIM(VLOOKUP($B$5,Accounts!$L:$O,4,FALSE))),"",TRIM(VLOOKUP($B$5,Accounts!$L:$O,4,FALSE))) ->  | V6: GL ACCOUNT | W6: GL ACCOUNT DESCRIPTION | X6: ALT ACCOUNT | Y6: RI ACCOUNT | Z6: RI ACCOUNT DESCRIPTION | AA6: TYPE | AB6: BRANCH CODE | AC6: BRANCH | AD6: STATUS | AE6: FUNCTION | AF6: REPORTING | AG6: COST CENTRE | AI6: GL ACCOUNT | AJ6: GL ACCOUNT DESCRIPTION | AK6: ALT ACCOUNT | AL6: RI ACCOUNT | AM6: RI ACCOUNT DESCRIPTION | AN6: TYPE | AO6: BRANCH CODE | AP6: BRANCH | AQ6: STATUS | AR6: FUNCTION | AS6: REPORTING | AT6: COST CENTRE | AU6: CATEGORY | AV6: TRANSFERS
A7: =IF(LEFT($A$27,5)=$B$5,"","ALERT: PREPARE SHEET!") -> ALERT: PREPARE SHEET!
C8: Actual | D8: Actual | E8: Actual YTD | F8: Forecast | G8: Total | H8: Month | I8: Month | J8: Month | K8: Month | L8: Month | M8: Month | N8: Month | O8: Month | P8: Month | Q8: Month | R8: Month | S8: Month
C9: 2011 | D9: 2012 | E9: 2013 | F9: 2013 | G9: 2014 | H9: Jan | I9: Feb | J9: Mar | K9: Apr | L9: May | M9: Jun | N9: Jul | O9: Aug | P9: Sep | Q9: Oct | R9: Nov | S9: Dec
A11: RETAINED INCOME
A12: OPENING BALANCE | B12: =TRIM(VLOOKUP($B$5,Accounts!$L:$P,5,FALSE)) ->  | C12: =IF(ISNA(VLOOKUP($B12,Actuals!$B:$T,18,FALSE)),0,VLOOKUP($B12,Actuals!$B:$T,18,FALSE)) -> 0 | D12: =C16 -> 0 | E12: =D16 -> 0 | F12: =E12 -> 0 | G12: =F16 -> 0 | H12: =F16 -> 0 | I12: =H16 -> 0 | J12: 0 | K12: 0 | L12: 0 | M12: 0 | N12: 0 | O12: 0 | P12: 0 | Q12: 0 | R12: 0 | S12: 0
A13: GRANT | B13: =TRIM(VLOOKUP(CONCATENATE($B$5,$A$13),Accounts!$Q:$R,2,FALSE)) ->  | C13: =IF(ISNA(VLOOKUP($B13,Actuals!$B:$T,18,FALSE)),0,VLOOKUP($B13,Actuals!$B:$T,18,FALSE)) -> 0 | D13: =IF(ISNA(VLOOKUP($B13,Actuals!$B:$T,18,FALSE)),0,VLOOKUP($B13,Actuals!$B:$T,17,FALSE)) -> 0 | E13: =IF(ISNA(VLOOKUP($B13,Actuals!$B:$T,18,FALSE)),0,VLOOKUP($B13,Actuals!$B:$T,16,FALSE)) -> 0 | F13: =IF(ISNA(VLOOKUP($B13,Actuals!$B:$T,18,FALSE)),0,VLOOKUP($B13,Actuals!$B:$T,16,FALSE)) -> 0 | G13: =SUM(H13:S13) -> 0
A14: (SURPLUS)/DEFICIT FOR THE PERIOD | C14: =C18+C26 -> 0 | D14: =D18+D26 -> 0 | E14: =E18+E26 -> 0 | F14: =F18+F26 -> 0 | G14: =SUM(H14:S14) -> 0 | H14: =H18+H26 -> 0 | I14: 0 | J14: 0 | K14: 0 | L14: 0 | M14: 0 | N14: 0 | O14: 0 | P14: 0 | Q14: 0 | R14: 0 | S14: 0
A15: TRANSFERS (IN)/OUT | C15: =SUMIF(Actuals!$AC:$AC,CONCATENATE($B$5,"TRANSFERS"),Actuals!$S:$S) -> 0 | D15: =SUMIF(Actuals!$AC:$AC,CONCATENATE($B$5,"TRANSFERS"),Actuals!$R:$R) -> 0 | E15: =SUMIF(Actuals!$AC:$AC,CONCATENATE($B$5,"TRANSFERS"),Actuals!$Q:$Q) -> 0 | G15: =SUM(H15:S15) -> 0
A16: CLOSING BALANCE | B16: =IF(MAX($C$16:$S$16)>0,"A red cell indicates Cost Centre in deficit","") ->  | C16: =SUM(C12:C15) -> 0 | D16: =SUM(D12:D15) -> 0 | E16: 0 | F16: 0 | G16: 0 | H16: 0 | I16: 0 | J16: 0 | K16: 0 | L16: 0 | M16: 0 | N16: 0 | O16: 0 | P16: 0 | Q16: 0 | R16: 0 | S16: 0
A18: INCOME | C18: =SUM(C19:C24) -> 0 | D18: 0 | E18: 0 | F18: 0 | G18: 0 | H18: =SUM(H19:H24) -> 0 | I18: 0 | J18: 0 | K18: 0 | L18: 0 | M18: 0 | N18: 0 | O18: 0 | P18: 0 | Q18: 0 | R18: 0 | S18: 0
A19: =V7 -> 0 | B19: =IF(OR($A19="",$A19=0),"",VLOOKUP($A19,Accounts!$A:$L,2,FALSE)) ->  | C19: =IF($A19=0,0,SUMIF(Actuals!$B:$B,$A19,Actuals!$S:$S)) -> 0 | D19: =IF($A19=0,0,SUMIF(Actuals!$B:$B,$A19,Actuals!$R:$R)) -> 0 | E19: =IF($A19=0,0,SUMIF(Actuals!$B:$B,$A19,Actuals!$Q:$Q)) -> 0 | G19: =SUM(H19:S19) -> 0 | T19: =IF(SUM(C19:S19)=0,0,A19) -> 0
A20: =V8 -> 0 | B20: =IF(OR($A20="",$A20=0),"",VLOOKUP($A20,Accounts!$A:$L,2,FALSE)) ->  | C20: =IF($A20=0,0,SUMIF(Actuals!$B:$B,$A20,Actuals!$S:$S)) -> 0 | D20: =IF($A20=0,0,SUMIF(Actuals!$B:$B,$A20,Actuals!$R:$R)) -> 0 | E20: =IF($A20=0,0,SUMIF(Actuals!$B:$B,$A20,Actuals!$Q:$Q)) -> 0 | G20: =SUM(H20:S20) -> 0 | T20: =IF(SUM(C20:S20)=0,0,A20) -> 0
A21: 0 | B21: =IF(OR($A21="",$A21=0),"",VLOOKUP($A21,Accounts!$A:$L,2,FALSE)) ->  | C21: =IF($A21=0,0,SUMIF(Actuals!$B:$B,$A21,Actuals!$S:$S)) -> 0 | D21: =IF($A21=0,0,SUMIF(Actuals!$B:$B,$A21,Actuals!$R:$R)) -> 0 | E21: =IF($A21=0,0,SUMIF(Actuals!$B:$B,$A21,Actuals!$Q:$Q)) -> 0 | G21: 0 | T21: 0
A22: 0 | B22: =IF(OR($A22="",$A22=0),"",VLOOKUP($A22,Accounts!$A:$L,2,FALSE)) ->  | C22: =IF($A22=0,0,SUMIF(Actuals!$B:$B,$A22,Actuals!$S:$S)) -> 0 | D22: =IF($A22=0,0,SUMIF(Actuals!$B:$B,$A22,Actuals!$R:$R)) -> 0 | E22: =IF($A22=0,0,SUMIF(Actuals!$B:$B,$A22,Actuals!$Q:$Q)) -> 0 | G22: 0 | T22: 0
A23: 0 | B23: =IF(OR($A23="",$A23=0),"",VLOOKUP($A23,Accounts!$A:$L,2,FALSE)) ->  | C23: =IF($A23=0,0,SUMIF(Actuals!$B:$B,$A23,Actuals!$S:$S)) -> 0 | D23: =IF($A23=0,0,SUMIF(Actuals!$B:$B,$A23,Actuals!$R:$R)) -> 0 | E23: =IF($A23=0,0,SUMIF(Actuals!$B:$B,$A23,Actuals!$Q:$Q)) -> 0 | G23: 0 | T23: 0
B24: OTHER | C24: =IF($A24=0,0,SUMIF(Actuals!$B:$B,$A24,Actuals!$S:$S)) -> 0 | D24: =IF($A24=0,0,SUMIF(Actuals!$A:$F,$A24,Actuals!$R:$R)) -> 0 | E24: =IF($A24=0,0,SUMIF(Actuals!$B:$B,$A24,Actuals!$Q:$Q)) -> 0 | G24: 0 | T24: =IF(SUM(C24:S24)=0,0,A24) -> 0
A26: EXPENDITURE | C26: =SUM(C27:C60) -> 0 | D26: =SUM(D27:D60) -> 0 | E26: 0 | F26: 0 | G26: 0 | H26: 0 | I26: 0 | J26: 0 | K26: 0 | L26: 0 | M26: 0 | N26: 0 | O26: 0 | P26: 0 | Q26: 0 | R26: 0 | S26: 0
A27: =AI7 -> 0 | B27: =IF(OR($A27="",$A27=0),"",VLOOKUP($A27,Accounts!$A:$L,2,FALSE)) ->  | C27: =IF($A27=0,0,SUMIF(Actuals!$B:$B,$A27,Actuals!$S:$S)) -> 0 | D27: =IF($A27=0,0,SUMIF(Actuals!$B:$B,$A27,Actuals!$R:$R)) -> 0 | E27: =IF($A27=0,0,SUMIF(Actuals!$B:$B,$A27,Actuals!$Q:$Q)) -> 0 | G27: =SUM(H27:S27) -> 0 | T27: =IF(SUM(C27:S27)=0,0,B27) -> 0
A28: 0 | B28: =IF(OR($A28="",$A28=0),"",VLOOKUP($A28,Accounts!$A:$L,2,FALSE)) ->  | C28: =IF($A28=0,0,SUMIF(Actuals!$B:$B,$A28,Actuals!$S:$S)) -> 0 | D28: =IF($A28=0,0,SUMIF(Actuals!$B:$B,$A28,Actuals!$R:$R)) -> 0 | E28: =IF($A28=0,0,SUMIF(Actuals!$B:$B,$A28,Actuals!$Q:$Q)) -> 0 | G28: =SUM(H28:S28) -> 0 | T28: =IF(SUM(C28:S28)=0,0,B28) -> 0
A29: 0 | B29: =IF(OR($A29="",$A29=0),"",VLOOKUP($A29,Accounts!$A:$L,2,FALSE)) ->  | C29: =IF($A29=0,0,SUMIF(Actuals!$B:$B,$A29,Actuals!$S:$S)) -> 0 | D29: =IF($A29=0,0,SUMIF(Actuals!$B:$B,$A29,Actuals!$R:$R)) -> 0 | E29: =IF($A29=0,0,SUMIF(Actuals!$B:$B,$A29,Actuals!$Q:$Q)) -> 0 | G29: 0 | T29: 0
A30: 0 | B30: =IF(OR($A30="",$A30=0),"",VLOOKUP($A30,Accounts!$A:$L,2,FALSE)) ->  | C30: =IF($A30=0,0,SUMIF(Actuals!$B:$B,$A30,Actuals!$S:$S)) -> 0 | D30: =IF($A30=0,0,SUMIF(Actuals!$B:$B,$A30,Actuals!$R:$R)) -> 0 | E30: =IF($A30=0,0,SUMIF(Actuals!$B:$B,$A30,Actuals!$Q:$Q)) -> 0 | G30: 0 | T30: 0
A31: 0 | B31: =IF(OR($A31="",$A31=0),"",VLOOKUP($A31,Accounts!$A:$L,2,FALSE)) ->  | C31: =IF($A31=0,0,SUMIF(Actuals!$B:$B,$A31,Actuals!$S:$S)) -> 0 | D31: =IF($A31=0,0,SUMIF(Actuals!$B:$B,$A31,Actuals!$R:$R)) -> 0 | E31: =IF($A31=0,0,SUMIF(Actuals!$B:$B,$A31,Actuals!$Q:$Q)) -> 0 | G31: 0 | T31: 0 | U31: =VLOOKUP($A27,Table!$A:$G,6,FALSE) -> 
A32: 0 | B32: =IF(OR($A32="",$A32=0),"",VLOOKUP($A32,Accounts!$A:$L,2,FALSE)) ->  | C32: =IF($A32=0,0,SUMIF(Actuals!$B:$B,$A32,Actuals!$S:$S)) -> 0 | D32: =IF($A32=0,0,SUMIF(Actuals!$B:$B,$A32,Actuals!$R:$R)) -> 0 | E32: =IF($A32=0,0,SUMIF(Actuals!$B:$B,$A32,Actuals!$Q:$Q)) -> 0 | G32: 0 | T32: 0 | U32: =VLOOKUP($A28,Table!$A:$G,6,FALSE) -> 
A33: 0 | B33: =IF(OR($A33="",$A33=0),"",VLOOKUP($A33,Accounts!$A:$L,2,FALSE)) ->  | C33: =IF($A33=0,0,SUMIF(Actuals!$B:$B,$A33,Actuals!$S:$S)) -> 0 | D33: =IF($A33=0,0,SUMIF(Actuals!$B:$B,$A33,Actuals!$R:$R)) -> 0 | E33: =IF($A33=0,0,SUMIF(Actuals!$B:$B,$A33,Actuals!$Q:$Q)) -> 0 | G33: 0 | T33: 0 | U33: =VLOOKUP($A29,Table!$A:$G,6,FALSE) -> 
A34: 0 | B34: =IF(OR($A34="",$A34=0),"",VLOOKUP($A34,Accounts!$A:$L,2,FALSE)) ->  | C34: =IF($A34=0,0,SUMIF(Actuals!$B:$B,$A34,Actuals!$S:$S)) -> 0 | D34: =IF($A34=0,0,SUMIF(Actuals!$B:$B,$A34,Actuals!$R:$R)) -> 0 | E34: =IF($A34=0,0,SUMIF(Actuals!$B:$B,$A34,Actuals!$Q:$Q)) -> 0 | G34: 0 | T34: 0 | U34: =VLOOKUP($A30,Table!$A:$G,6,FALSE) -> 
A35: 0 | B35: =IF(OR($A35="",$A35=0),"",VLOOKUP($A35,Accounts!$A:$L,2,FALSE)) ->  | C35: =IF($A35=0,0,SUMIF(Actuals!$B:$B,$A35,Actuals!$S:$S)) -> 0 | D35: =IF($A35=0,0,SUMIF(Actuals!$B:$B,$A35,Actuals!$R:$R)) -> 0 | E35: =IF($A35=0,0,SUMIF(Actuals!$B:$B,$A35,Actuals!$Q:$Q)) -> 0 | G35: 0 | T35: 0 | U35: =VLOOKUP($A31,Table!$A:$G,6,FALSE) -> 
A36: 0 | B36: =IF(OR($A36="",$A36=0),"",VLOOKUP($A36,Accounts!$A:$L,2,FALSE)) ->  | C36: =IF($A36=0,0,SUMIF(Actuals!$B:$B,$A36,Actuals!$S:$S)) -> 0 | D36: =IF($A36=0,0,SUMIF(Actuals!$B:$B,$A36,Actuals!$R:$R)) -> 0 | E36: =IF($A36=0,0,SUMIF(Actuals!$B:$B,$A36,Actuals!$Q:$Q)) -> 0 | G36: 0 | T36: 0 | U36: =VLOOKUP($A32,Table!$A:$G,6,FALSE) -> 
A37: 0 | B37: =IF(OR($A37="",$A37=0),"",VLOOKUP($A37,Accounts!$A:$L,2,FALSE)) ->  | C37: =IF($A37=0,0,SUMIF(Actuals!$B:$B,$A37,Actuals!$S:$S)) -> 0 | D37: =IF($A37=0,0,SUMIF(Actuals!$B:$B,$A37,Actuals!$R:$R)) -> 0 | E37: =IF($A37=0,0,SUMIF(Actuals!$B:$B,$A37,Actuals!$Q:$Q)) -> 0 | G37: 0 | T37: 0 | U37: =VLOOKUP($A33,Table!$A:$G,6,FALSE) -> 
A38: 0 | B38: =IF(OR($A38="",$A38=0),"",VLOOKUP($A38,Accounts!$A:$L,2,FALSE)) ->  | C38: =IF($A38=0,0,SUMIF(Actuals!$B:$B,$A38,Actuals!$S:$S)) -> 0 | D38: =IF($A38=0,0,SUMIF(Actuals!$B:$B,$A38,Actuals!$R:$R)) -> 0 | E38: =IF($A38=0,0,SUMIF(Actuals!$B:$B,$A38,Actuals!$Q:$Q)) -> 0 | G38: 0 | T38: 0 | U38: =VLOOKUP($A34,Table!$A:$G,6,FALSE) -> 
A39: 0 | B39: =IF(OR($A39="",$A39=0),"",VLOOKUP($A39,Accounts!$A:$L,2,FALSE)) ->  | C39: =IF($A39=0,0,SUMIF(Actuals!$B:$B,$A39,Actuals!$S:$S)) -> 0 | D39: =IF($A39=0,0,SUMIF(Actuals!$B:$B,$A39,Actuals!$R:$R)) -> 0 | E39: =IF($A39=0,0,SUMIF(Actuals!$B:$B,$A39,Actuals!$Q:$Q)) -> 0 | G39: 0 | T39: 0 | U39: =VLOOKUP($A35,Table!$A:$G,6,FALSE) -> 
A40: 0 | B40: =IF(OR($A40="",$A40=0),"",VLOOKUP($A40,Accounts!$A:$L,2,FALSE)) ->  | C40: =IF($A40=0,0,SUMIF(Actuals!$B:$B,$A40,Actuals!$S:$S)) -> 0 | D40: =IF($A40=0,0,SUMIF(Actuals!$B:$B,$A40,Actuals!$R:$R)) -> 0 | E40: =IF($A40=0,0,SUMIF(Actuals!$B:$B,$A40,Actuals!$Q:$Q)) -> 0 | G40: 0 | T40: 0 | U40: =VLOOKUP($A36,Table!$A:$G,6,FALSE) -> 
A41: 0 | B41: =IF(OR($A41="",$A41=0),"",VLOOKUP($A41,Accounts!$A:$L,2,FALSE)) ->  | C41: =IF($A41=0,0,SUMIF(Actuals!$B:$B,$A41,Actuals!$S:$S)) -> 0 | D41: =IF($A41=0,0,SUMIF(Actuals!$B:$B,$A41,Actuals!$R:$R)) -> 0 | E41: =IF($A41=0,0,SUMIF(Actuals!$B:$B,$A41,Actuals!$Q:$Q)) -> 0 | G41: 0 | T41: 0 | U41: =VLOOKUP($A37,Table!$A:$G,6,FALSE) -> 
A42: 0 | B42: =IF(OR($A42="",$A42=0),"",VLOOKUP($A42,Accounts!$A:$L,2,FALSE)) ->  | C42: =IF($A42=0,0,SUMIF(Actuals!$B:$B,$A42,Actuals!$S:$S)) -> 0 | D42: =IF($A42=0,0,SUMIF(Actuals!$B:$B,$A42,Actuals!$R:$R)) -> 0 | E42: =IF($A42=0,0,SUMIF(Actuals!$B:$B,$A42,Actuals!$Q:$Q)) -> 0 | G42: 0 | T42: 0 | U42: =VLOOKUP($A38,Table!$A:$G,6,FALSE) -> 
A43: 0 | B43: =IF(OR($A43="",$A43=0),"",VLOOKUP($A43,Accounts!$A:$L,2,FALSE)) ->  | C43: =IF($A43=0,0,SUMIF(Actuals!$B:$B,$A43,Actuals!$S:$S)) -> 0 | D43: =IF($A43=0,0,SUMIF(Actuals!$B:$B,$A43,Actuals!$R:$R)) -> 0 | E43: =IF($A43=0,0,SUMIF(Actuals!$B:$B,$A43,Actuals!$Q:$Q)) -> 0 | G43: 0 | T43: 0 | U43: =VLOOKUP($A39,Table!$A:$G,6,FALSE) -> 
A44: 0 | B44: =IF(OR($A44="",$A44=0),"",VLOOKUP($A44,Accounts!$A:$L,2,FALSE)) ->  | C44: =IF($A44=0,0,SUMIF(Actuals!$B:$B,$A44,Actuals!$S:$S)) -> 0 | D44: =IF($A44=0,0,SUMIF(Actuals!$B:$B,$A44,Actuals!$R:$R)) -> 0 | E44: =IF($A44=0,0,SUMIF(Actuals!$B:$B,$A44,Actuals!$Q:$Q)) -> 0 | G44: 0 | T44: 0 | U44: =VLOOKUP($A40,Table!$A:$G,6,FALSE) -> 
A45: 0 | B45: =IF(OR($A45="",$A45=0),"",VLOOKUP($A45,Accounts!$A:$L,2,FALSE)) ->  | C45: =IF($A45=0,0,SUMIF(Actuals!$B:$B,$A45,Actuals!$S:$S)) -> 0 | D45: =IF($A45=0,0,SUMIF(Actuals!$B:$B,$A45,Actuals!$R:$R)) -> 0 | E45: =IF($A45=0,0,SUMIF(Actuals!$B:$B,$A45,Actuals!$Q:$Q)) -> 0 | G45: 0 | T45: 0 | U45: =VLOOKUP($A41,Table!$A:$G,6,FALSE) -> 
A46: 0 | B46: =IF(OR($A46="",$A46=0),"",VLOOKUP($A46,Accounts!$A:$L,2,FALSE)) ->  | C46: =IF($A46=0,0,SUMIF(Actuals!$B:$B,$A46,Actuals!$S:$S)) -> 0 | D46: =IF($A46=0,0,SUMIF(Actuals!$B:$B,$A46,Actuals!$R:$R)) -> 0 | E46: =IF($A46=0,0,SUMIF(Actuals!$B:$B,$A46,Actuals!$Q:$Q)) -> 0 | G46: 0 | T46: 0 | U46: =VLOOKUP($A42,Table!$A:$G,6,FALSE) -> 
A47: 0 | B47: =IF(OR($A47="",$A47=0),"",VLOOKUP($A47,Accounts!$A:$L,2,FALSE)) ->  | C47: =IF($A47=0,0,SUMIF(Actuals!$B:$B,$A47,Actuals!$S:$S)) -> 0 | D47: =IF($A47=0,0,SUMIF(Actuals!$B:$B,$A47,Actuals!$R:$R)) -> 0 | E47: =IF($A47=0,0,SUMIF(Actuals!$B:$B,$A47,Actuals!$Q:$Q)) -> 0 | G47: 0 | T47: 0 | U47: =VLOOKUP($A43,Table!$A:$G,6,FALSE) -> 
A48: 0 | B48: =IF(OR($A48="",$A48=0),"",VLOOKUP($A48,Accounts!$A:$L,2,FALSE)) ->  | C48: =IF($A48=0,0,SUMIF(Actuals!$B:$B,$A48,Actuals!$S:$S)) -> 0 | D48: =IF($A48=0,0,SUMIF(Actuals!$B:$B,$A48,Actuals!$R:$R)) -> 0 | E48: =IF($A48=0,0,SUMIF(Actuals!$B:$B,$A48,Actuals!$Q:$Q)) -> 0 | G48: 0 | T48: 0 | U48: =VLOOKUP($A44,Table!$A:$G,6,FALSE) -> 
A49: 0 | B49: =IF(OR($A49="",$A49=0),"",VLOOKUP($A49,Accounts!$A:$L,2,FALSE)) ->  | C49: =IF($A49=0,0,SUMIF(Actuals!$B:$B,$A49,Actuals!$S:$S)) -> 0 | D49: =IF($A49=0,0,SUMIF(Actuals!$B:$B,$A49,Actuals!$R:$R)) -> 0 | E49: =IF($A49=0,0,SUMIF(Actuals!$B:$B,$A49,Actuals!$Q:$Q)) -> 0 | G49: 0 | T49: 0 | U49: =VLOOKUP($A45,Table!$A:$G,6,FALSE) -> 
A50: 0 | B50: =IF(OR($A50="",$A50=0),"",VLOOKUP($A50,Accounts!$A:$L,2,FALSE)) ->  | C50: =IF($A50=0,0,SUMIF(Actuals!$B:$B,$A50,Actuals!$S:$S)) -> 0 | D50: =IF($A50=0,0,SUMIF(Actuals!$B:$B,$A50,Actuals!$R:$R)) -> 0 | E50: =IF($A50=0,0,SUMIF(Actuals!$B:$B,$A50,Actuals!$Q:$Q)) -> 0 | G50: 0 | T50: 0 | U50: =VLOOKUP($A46,Table!$A:$G,6,FALSE) -> 
A51: 0 | B51: =IF(OR($A51="",$A51=0),"",VLOOKUP($A51,Accounts!$A:$L,2,FALSE)) ->  | C51: =IF($A51=0,0,SUMIF(Actuals!$B:$B,$A51,Actuals!$S:$S)) -> 0 | D51: =IF($A51=0,0,SUMIF(Actuals!$B:$B,$A51,Actuals!$R:$R)) -> 0 | E51: =IF($A51=0,0,SUMIF(Actuals!$B:$B,$A51,Actuals!$Q:$Q)) -> 0 | G51: 0 | T51: 0 | U51: =VLOOKUP($A47,Table!$A:$G,6,FALSE) -> 
A52: 0 | B52: =IF(OR($A52="",$A52=0),"",VLOOKUP($A52,Accounts!$A:$L,2,FALSE)) ->  | C52: =IF($A52=0,0,SUMIF(Actuals!$B:$B,$A52,Actuals!$S:$S)) -> 0 | D52: =IF($A52=0,0,SUMIF(Actuals!$B:$B,$A52,Actuals!$R:$R)) -> 0 | E52: =IF($A52=0,0,SUMIF(Actuals!$B:$B,$A52,Actuals!$Q:$Q)) -> 0 | G52: 0 | T52: 0 | U52: =VLOOKUP($A48,Table!$A:$G,6,FALSE) -> 
A53: 0 | B53: =IF(OR($A53="",$A53=0),"",VLOOKUP($A53,Accounts!$A:$L,2,FALSE)) ->  | C53: =IF($A53=0,0,SUMIF(Actuals!$B:$B,$A53,Actuals!$S:$S)) -> 0 | D53: =IF($A53=0,0,SUMIF(Actuals!$B:$B,$A53,Actuals!$R:$R)) -> 0 | E53: =IF($A53=0,0,SUMIF(Actuals!$B:$B,$A53,Actuals!$Q:$Q)) -> 0 | G53: 0 | T53: 0 | U53: =VLOOKUP($A49,Table!$A:$G,6,FALSE) -> 
A54: 0 | B54: =IF(OR($A54="",$A54=0),"",VLOOKUP($A54,Accounts!$A:$L,2,FALSE)) ->  | C54: =IF($A54=0,0,SUMIF(Actuals!$B:$B,$A54,Actuals!$S:$S)) -> 0 | D54: =IF($A54=0,0,SUMIF(Actuals!$B:$B,$A54,Actuals!$R:$R)) -> 0 | E54: =IF($A54=0,0,SUMIF(Actuals!$B:$B,$A54,Actuals!$Q:$Q)) -> 0 | G54: 0 | T54: 0 | U54: =VLOOKUP($A50,Table!$A:$G,6,FALSE) -> 
A55: 0 | B55: =IF(OR($A55="",$A55=0),"",VLOOKUP($A55,Accounts!$A:$L,2,FALSE)) ->  | C55: =IF($A55=0,0,SUMIF(Actuals!$B:$B,$A55,Actuals!$S:$S)) -> 0 | D55: =IF($A55=0,0,SUMIF(Actuals!$B:$B,$A55,Actuals!$R:$R)) -> 0 | E55: =IF($A55=0,0,SUMIF(Actuals!$B:$B,$A55,Actuals!$Q:$Q)) -> 0 | G55: 0 | T55: 0 | U55: =VLOOKUP($A51,Table!$A:$G,6,FALSE) -> 
C56: =IF($A56=0,0,SUMIF(Actuals!$B:$B,$A56,Actuals!$S:$S)) -> 0 | D56: =IF($A56=0,0,SUMIF(Actuals!$B:$B,$A56,Actuals!$R:$R)) -> 0 | E56: =IF($A56=0,0,SUMIF(Actuals!$B:$B,$A56,Actuals!$Q:$Q)) -> 0 | G56: 0 | T56: 0 | U56: =VLOOKUP($A52,Table!$A:$G,6,FALSE) -> 
C57: =IF($A57=0,0,SUMIF(Actuals!$B:$B,$A57,Actuals!$S:$S)) -> 0 | D57: =IF($A57=0,0,SUMIF(Actuals!$B:$B,$A57,Actuals!$R:$R)) -> 0 | E57: =IF($A57=0,0,SUMIF(Actuals!$B:$B,$A57,Actuals!$Q:$Q)) -> 0 | G57: 0 | T57: 0 | U57: =VLOOKUP($A53,Table!$A:$G,6,FALSE) -> 
C58: =IF($A58=0,0,SUMIF(Actuals!$B:$B,$A58,Actuals!$S:$S)) -> 0 | D58: =IF($A58=0,0,SUMIF(Actuals!$B:$B,$A58,Actuals!$R:$R)) -> 0 | E58: =IF($A58=0,0,SUMIF(Actuals!$B:$B,$A58,Actuals!$Q:$Q)) -> 0 | G58: 0 | T58: 0 | U58: =VLOOKUP($A54,Table!$A:$G,6,FALSE) -> 
C59: =IF($A59=0,0,SUMIF(Actuals!$B:$B,$A59,Actuals!$S:$S)) -> 0 | D59: =IF($A59=0,0,SUMIF(Actuals!$B:$B,$A59,Actuals!$R:$R)) -> 0 | E59: =IF($A59=0,0,SUMIF(Actuals!$B:$B,$A59,Actuals!$Q:$Q)) -> 0 | G59: 0 | T59: 0 | U59: =VLOOKUP($A55,Table!$A:$G,6,FALSE) -> 
C60: =IF($A60=0,0,SUMIF(Actuals!$B:$B,$A60,Actuals!$S:$S)) -> 0 | D60: =IF($A60=0,0,SUMIF(Actuals!$B:$B,$A60,Actuals!$R:$R)) -> 0 | E60: =IF($A60=0,0,SUMIF(Actuals!$B:$B,$A60,Actuals!$Q:$Q)) -> 0 | G60: 0 | T60: 0 | U60: =VLOOKUP($A56,Table!$A:$G,6,FALSE) -> 
A62: Confirmed by Head of Department
A63: SIGNATURE
A64: NAME
A65: DATE
A67: Please return to :
A68: Finance Division
A69: Mrs Sonia Kivits
A70: e.mail | B70: s.kivitts@ru.ac.za
A71: Ext | B71: 8123
A83: Include:
A84: Estimated general running costs incurred in the daily operation of the department and primaily in support of academic/teaching activities in the Department, e.g. Consumables,stationery, telephone and small items of teaching equipment costing less than R3,000
A85: Exclude:
A86: Salaries, furniture, office equipment, academic/teaching equipment costing more than R3,000, research activity costs, conference and related travel costs

Sheet FormF RI(3)
A1: BUDGET 2014 : RETURN OF INFORMATION | D1: FormF RI(3)
A2: ='FormF Summary'!B3 -> RUNNING GRANT REQUEST
V3: GL ACCOUNT | W3: GL ACCOUNT DESCRIPTION | X3: ALT ACCOUNT | Y3: RI ACCOUNT | Z3: RI ACCOUNT DESCRIPTION | AA3: TYPE | AB3: BRANCH CODE | AC3: BRANCH | AD3: STATUS | AE3: FUNCTION | AF3: REPORTING | AG3: COST CENTRE | AI3: GL ACCOUNT | AJ3: GL ACCOUNT DESCRIPTION | AK3: ALT ACCOUNT | AL3: RI ACCOUNT | AM3: RI ACCOUNT DESCRIPTION | AN3: TYPE | AO3: BRANCH CODE | AP3: BRANCH | AQ3: STATUS | AR3: FUNCTION | AS3: REPORTING | AT3: COST CENTRE | AU3: CATEGORY | AV3: TRANSFERS
A4: Department: | B4: ='Main Menu'!D16 -> (All) | AA4: 3 | AG4: =$B$5 -> 0 | AN4: 4 | AT4: =$B$5 -> 0 | AU4: OTHER | AV4: OTHER
A5: ='FormF RI(1)'!A5 -> Retained Income Acc:
A6: ='FormF RI(1)'!A6 -> RI Acc Description: | B6: =IF(ISNA(TRIM(VLOOKUP($B$5,Accounts!$L:$O,4,FALSE))),"",TRIM(VLOOKUP($B$5,Accounts!$L:$O,4,FALSE))) ->  | V6: GL ACCOUNT | W6: GL ACCOUNT DESCRIPTION | X6: ALT ACCOUNT | Y6: RI ACCOUNT | Z6: RI ACCOUNT DESCRIPTION | AA6: TYPE | AB6: BRANCH CODE | AC6: BRANCH | AD6: STATUS | AE6: FUNCTION | AF6: REPORTING | AG6: COST CENTRE | AI6: GL ACCOUNT | AJ6: GL ACCOUNT DESCRIPTION | AK6: ALT ACCOUNT | AL6: RI ACCOUNT | AM6: RI ACCOUNT DESCRIPTION | AN6: TYPE | AO6: BRANCH CODE | AP6: BRANCH | AQ6: STATUS | AR6: FUNCTION | AS6: REPORTING | AT6: COST CENTRE | AU6: CATEGORY | AV6: TRANSFERS
A7: =IF(LEFT($A$27,5)=$B$5,"","ALERT: PREPARE SHEET!") -> ALERT: PREPARE SHEET!
C8: Actual | D8: Actual | E8: Actual YTD | F8: Forecast | G8: Total | H8: Month | I8: Month | J8: Month | K8: Month | L8: Month | M8: Month | N8: Month | O8: Month | P8: Month | Q8: Month | R8: Month | S8: Month
C9: 2011 | D9: 2012 | E9: 2013 | F9: 2013 | G9: 2014 | H9: Jan | I9: Feb | J9: Mar | K9: Apr | L9: May | M9: Jun | N9: Jul | O9: Aug | P9: Sep | Q9: Oct | R9: Nov | S9: Dec
A11: RETAINED INCOME
A12: OPENING BALANCE | B12: =TRIM(VLOOKUP($B$5,Accounts!$L:$P,5,FALSE)) ->  | C12: =IF(ISNA(VLOOKUP($B12,Actuals!$B:$T,18,FALSE)),0,VLOOKUP($B12,Actuals!$B:$T,18,FALSE)) -> 0 | D12: =C16 -> 0 | E12: =D16 -> 0 | F12: =E12 -> 0 | G12: =F16 -> 0 | H12: =F16 -> 0 | I12: =H16 -> 0 | J12: 0 | K12: 0 | L12: 0 | M12: 0 | N12: 0 | O12: 0 | P12: 0 | Q12: 0 | R12: 0 | S12: 0
A13: GRANT | B13: =TRIM(VLOOKUP(CONCATENATE($B$5,$A$13),Accounts!$Q:$R,2,FALSE)) ->  | C13: =IF(ISNA(VLOOKUP($B13,Actuals!$B:$T,18,FALSE)),0,VLOOKUP($B13,Actuals!$B:$T,18,FALSE)) -> 0 | D13: =IF(ISNA(VLOOKUP($B13,Actuals!$B:$T,18,FALSE)),0,VLOOKUP($B13,Actuals!$B:$T,17,FALSE)) -> 0 | E13: =IF(ISNA(VLOOKUP($B13,Actuals!$B:$T,18,FALSE)),0,VLOOKUP($B13,Actuals!$B:$T,16,FALSE)) -> 0 | F13: =IF(ISNA(VLOOKUP($B13,Actuals!$B:$T,18,FALSE)),0,VLOOKUP($B13,Actuals!$B:$T,16,FALSE)) -> 0 | G13: =SUM(H13:S13) -> 0
A14: (SURPLUS)/DEFICIT FOR THE PERIOD | C14: =C18+C26 -> 0 | D14: =D18+D26 -> 0 | E14: =E18+E26 -> 0 | F14: =F18+F26 -> 0 | G14: =SUM(H14:S14) -> 0 | H14: =H18+H26 -> 0 | I14: 0 | J14: 0 | K14: 0 | L14: 0 | M14: 0 | N14: 0 | O14: 0 | P14: 0 | Q14: 0 | R14: 0 | S14: 0
A15: TRANSFERS (IN)/OUT | C15: =SUMIF(Actuals!$AC:$AC,CONCATENATE($B$5,"TRANSFERS"),Actuals!$S:$S) -> 0 | D15: =SUMIF(Actuals!$AC:$AC,CONCATENATE($B$5,"TRANSFERS"),Actuals!$R:$R) -> 0 | E15: =SUMIF(Actuals!$AC:$AC,CONCATENATE($B$5,"TRANSFERS"),Actuals!$Q:$Q) -> 0 | G15: =SUM(H15:S15) -> 0
A16: CLOSING BALANCE | B16: =IF(MAX($C$16:$S$16)>0,"A red cell indicates Cost Centre in deficit","") ->  | C16: =SUM(C12:C15) -> 0 | D16: =SUM(D12:D15) -> 0 | E16: 0 | F16: 0 | G16: 0 | H16: 0 | I16: 0 | J16: 0 | K16: 0 | L16: 0 | M16: 0 | N16: 0 | O16: 0 | P16: 0 | Q16: 0 | R16: 0 | S16: 0
A18: INCOME | C18: =SUM(C19:C24) -> 0 | D18: 0 | E18: 0 | F18: 0 | G18: 0 | H18: =SUM(H19:H24) -> 0 | I18: 0 | J18: 0 | K18: 0 | L18: 0 | M18: 0 | N18: 0 | O18: 0 | P18: 0 | Q18: 0 | R18: 0 | S18: 0
A19: =V7 -> 0 | B19: =IF(OR($A19="",$A19=0),"",VLOOKUP($A19,Accounts!$A:$L,2,FALSE)) ->  | C19: =IF($A19=0,0,SUMIF(Actuals!$B:$B,$A19,Actuals!$S:$S)) -> 0 | D19: =IF($A19=0,0,SUMIF(Actuals!$B:$B,$A19,Actuals!$R:$R)) -> 0 | E19: =IF($A19=0,0,SUMIF(Actuals!$B:$B,$A19,Actuals!$Q:$Q)) -> 0 | G19: =SUM(H19:S19) -> 0 | T19: =IF(SUM(C19:S19)=0,0,A19) -> 0
A20: =V8 -> 0 | B20: =IF(OR($A20="",$A20=0),"",VLOOKUP($A20,Accounts!$A:$L,2,FALSE)) ->  | C20: =IF($A20=0,0,SUMIF(Actuals!$B:$B,$A20,Actuals!$S:$S)) -> 0 | D20: =IF($A20=0,0,SUMIF(Actuals!$B:$B,$A20,Actuals!$R:$R)) -> 0 | E20: =IF($A20=0,0,SUMIF(Actuals!$B:$B,$A20,Actuals!$Q:$Q)) -> 0 | G20: =SUM(H20:S20) -> 0 | T20: =IF(SUM(C20:S20)=0,0,A20) -> 0
A21: 0 | B21: =IF(OR($A21="",$A21=0),"",VLOOKUP($A21,Accounts!$A:$L,2,FALSE)) ->  | C21: =IF($A21=0,0,SUMIF(Actuals!$B:$B,$A21,Actuals!$S:$S)) -> 0 | D21: =IF($A21=0,0,SUMIF(Actuals!$B:$B,$A21,Actuals!$R:$R)) -> 0 | E21: =IF($A21=0,0,SUMIF(Actuals!$B:$B,$A21,Actuals!$Q:$Q)) -> 0 | G21: 0 | T21: 0
A22: 0 | B22: =IF(OR($A22="",$A22=0),"",VLOOKUP($A22,Accounts!$A:$L,2,FALSE)) ->  | C22: =IF($A22=0,0,SUMIF(Actuals!$B:$B,$A22,Actuals!$S:$S)) -> 0 | D22: =IF($A22=0,0,SUMIF(Actuals!$B:$B,$A22,Actuals!$R:$R)) -> 0 | E22: =IF($A22=0,0,SUMIF(Actuals!$B:$B,$A22,Actuals!$Q:$Q)) -> 0 | G22: 0 | T22: 0
A23: 0 | B23: =IF(OR($A23="",$A23=0),"",VLOOKUP($A23,Accounts!$A:$L,2,FALSE)) ->  | C23: =IF($A23=0,0,SUMIF(Actuals!$B:$B,$A23,Actuals!$S:$S)) -> 0 | D23: =IF($A23=0,0,SUMIF(Actuals!$B:$B,$A23,Actuals!$R:$R)) -> 0 | E23: =IF($A23=0,0,SUMIF(Actuals!$B:$B,$A23,Actuals!$Q:$Q)) -> 0 | G23: 0 | T23: 0
B24: OTHER | C24: =IF($A24=0,0,SUMIF(Actuals!$B:$B,$A24,Actuals!$S:$S)) -> 0 | D24: =IF($A24=0,0,SUMIF(Actuals!$A:$F,$A24,Actuals!$R:$R)) -> 0 | E24: =IF($A24=0,0,SUMIF(Actuals!$B:$B,$A24,Actuals!$Q:$Q)) -> 0 | G24: 0 | T24: =IF(SUM(C24:S24)=0,0,A24) -> 0
A26: EXPENDITURE | C26: =SUM(C27:C60) -> 0 | D26: =SUM(D27:D60) -> 0 | E26: 0 | F26: 0 | G26: 0 | H26: 0 | I26: 0 | J26: 0 | K26: 0 | L26: 0 | M26: 0 | N26: 0 | O26: 0 | P26: 0 | Q26: 0 | R26: 0 | S26: 0
A27: =AI7 -> 0 | B27: =IF(OR($A27="",$A27=0),"",VLOOKUP($A27,Accounts!$A:$L,2,FALSE)) ->  | C27: =IF($A27=0,0,SUMIF(Actuals!$B:$B,$A27,Actuals!$S:$S)) -> 0 | D27: =IF($A27=0,0,SUMIF(Actuals!$B:$B,$A27,Actuals!$R:$R)) -> 0 | E27: =IF($A27=0,0,SUMIF(Actuals!$B:$B,$A27,Actuals!$Q:$Q)) -> 0 | G27: =SUM(H27:S27) -> 0 | T27: =IF(SUM(C27:S27)=0,0,B27) -> 0
A28: 0 | B28: =IF(OR($A28="",$A28=0),"",VLOOKUP($A28,Accounts!$A:$L,2,FALSE)) ->  | C28: =IF($A28=0,0,SUMIF(Actuals!$B:$B,$A28,Actuals!$S:$S)) -> 0 | D28: =IF($A28=0,0,SUMIF(Actuals!$B:$B,$A28,Actuals!$R:$R)) -> 0 | E28: =IF($A28=0,0,SUMIF(Actuals!$B:$B,$A28,Actuals!$Q:$Q)) -> 0 | G28: =SUM(H28:S28) -> 0 | T28: =IF(SUM(C28:S28)=0,0,B28) -> 0
A29: 0 | B29: =IF(OR($A29="",$A29=0),"",VLOOKUP($A29,Accounts!$A:$L,2,FALSE)) ->  | C29: =IF($A29=0,0,SUMIF(Actuals!$B:$B,$A29,Actuals!$S:$S)) -> 0 | D29: =IF($A29=0,0,SUMIF(Actuals!$B:$B,$A29,Actuals!$R:$R)) -> 0 | E29: =IF($A29=0,0,SUMIF(Actuals!$B:$B,$A29,Actuals!$Q:$Q)) -> 0 | G29: 0 | T29: 0
A30: 0 | B30: =IF(OR($A30="",$A30=0),"",VLOOKUP($A30,Accounts!$A:$L,2,FALSE)) ->  | C30: =IF($A30=0,0,SUMIF(Actuals!$B:$B,$A30,Actuals!$S:$S)) -> 0 | D30: =IF($A30=0,0,SUMIF(Actuals!$B:$B,$A30,Actuals!$R:$R)) -> 0 | E30: =IF($A30=0,0,SUMIF(Actuals!$B:$B,$A30,Actuals!$Q:$Q)) -> 0 | G30: 0 | T30: 0
A31: 0 | B31: =IF(OR($A31="",$A31=0),"",VLOOKUP($A31,Accounts!$A:$L,2,FALSE)) ->  | C31: =IF($A31=0,0,SUMIF(Actuals!$B:$B,$A31,Actuals!$S:$S)) -> 0 | D31: =IF($A31=0,0,SUMIF(Actuals!$B:$B,$A31,Actuals!$R:$R)) -> 0 | E31: =IF($A31=0,0,SUMIF(Actuals!$B:$B,$A31,Actuals!$Q:$Q)) -> 0 | G31: 0 | T31: 0 | U31: =VLOOKUP($A27,Table!$A:$G,6,FALSE) -> 
A32: 0 | B32: =IF(OR($A32="",$A32=0),"",VLOOKUP($A32,Accounts!$A:$L,2,FALSE)) ->  | C32: =IF($A32=0,0,SUMIF(Actuals!$B:$B,$A32,Actuals!$S:$S)) -> 0 | D32: =IF($A32=0,0,SUMIF(Actuals!$B:$B,$A32,Actuals!$R:$R)) -> 0 | E32: =IF($A32=0,0,SUMIF(Actuals!$B:$B,$A32,Actuals!$Q:$Q)) -> 0 | G32: 0 | T32: 0 | U32: =VLOOKUP($A28,Table!$A:$G,6,FALSE) -> 
A33: 0 | B33: =IF(OR($A33="",$A33=0),"",VLOOKUP($A33,Accounts!$A:$L,2,FALSE)) ->  | C33: =IF($A33=0,0,SUMIF(Actuals!$B:$B,$A33,Actuals!$S:$S)) -> 0 | D33: =IF($A33=0,0,SUMIF(Actuals!$B:$B,$A33,Actuals!$R:$R)) -> 0 | E33: =IF($A33=0,0,SUMIF(Actuals!$B:$B,$A33,Actuals!$Q:$Q)) -> 0 | G33: 0 | T33: 0 | U33: =VLOOKUP($A29,Table!$A:$G,6,FALSE) -> 
A34: 0 | B34: =IF(OR($A34="",$A34=0),"",VLOOKUP($A34,Accounts!$A:$L,2,FALSE)) ->  | C34: =IF($A34=0,0,SUMIF(Actuals!$B:$B,$A34,Actuals!$S:$S)) -> 0 | D34: =IF($A34=0,0,SUMIF(Actuals!$B:$B,$A34,Actuals!$R:$R)) -> 0 | E34: =IF($A34=0,0,SUMIF(Actuals!$B:$B,$A34,Actuals!$Q:$Q)) -> 0 | G34: 0 | T34: 0 | U34: =VLOOKUP($A30,Table!$A:$G,6,FALSE) -> 
A35: 0 | B35: =IF(OR($A35="",$A35=0),"",VLOOKUP($A35,Accounts!$A:$L,2,FALSE)) ->  | C35: =IF($A35=0,0,SUMIF(Actuals!$B:$B,$A35,Actuals!$S:$S)) -> 0 | D35: =IF($A35=0,0,SUMIF(Actuals!$B:$B,$A35,Actuals!$R:$R)) -> 0 | E35: =IF($A35=0,0,SUMIF(Actuals!$B:$B,$A35,Actuals!$Q:$Q)) -> 0 | G35: 0 | T35: 0 | U35: =VLOOKUP($A31,Table!$A:$G,6,FALSE) -> 
A36: 0 | B36: =IF(OR($A36="",$A36=0),"",VLOOKUP($A36,Accounts!$A:$L,2,FALSE)) ->  | C36: =IF($A36=0,0,SUMIF(Actuals!$B:$B,$A36,Actuals!$S:$S)) -> 0 | D36: =IF($A36=0,0,SUMIF(Actuals!$B:$B,$A36,Actuals!$R:$R)) -> 0 | E36: =IF($A36=0,0,SUMIF(Actuals!$B:$B,$A36,Actuals!$Q:$Q)) -> 0 | G36: 0 | T36: 0 | U36: =VLOOKUP($A32,Table!$A:$G,6,FALSE) -> 
A37: 0 | B37: =IF(OR($A37="",$A37=0),"",VLOOKUP($A37,Accounts!$A:$L,2,FALSE)) ->  | C37: =IF($A37=0,0,SUMIF(Actuals!$B:$B,$A37,Actuals!$S:$S)) -> 0 | D37: =IF($A37=0,0,SUMIF(Actuals!$B:$B,$A37,Actuals!$R:$R)) -> 0 | E37: =IF($A37=0,0,SUMIF(Actuals!$B:$B,$A37,Actuals!$Q:$Q)) -> 0 | G37: 0 | T37: 0 | U37: =VLOOKUP($A33,Table!$A:$G,6,FALSE) -> 
A38: 0 | B38: =IF(OR($A38="",$A38=0),"",VLOOKUP($A38,Accounts!$A:$L,2,FALSE)) ->  | C38: =IF($A38=0,0,SUMIF(Actuals!$B:$B,$A38,Actuals!$S:$S)) -> 0 | D38: =IF($A38=0,0,SUMIF(Actuals!$B:$B,$A38,Actuals!$R:$R)) -> 0 | E38: =IF($A38=0,0,SUMIF(Actuals!$B:$B,$A38,Actuals!$Q:$Q)) -> 0 | G38: 0 | T38: 0 | U38: =VLOOKUP($A34,Table!$A:$G,6,FALSE) -> 
A39: 0 | B39: =IF(OR($A39="",$A39=0),"",VLOOKUP($A39,Accounts!$A:$L,2,FALSE)) ->  | C39: =IF($A39=0,0,SUMIF(Actuals!$B:$B,$A39,Actuals!$S:$S)) -> 0 | D39: =IF($A39=0,0,SUMIF(Actuals!$B:$B,$A39,Actuals!$R:$R)) -> 0 | E39: =IF($A39=0,0,SUMIF(Actuals!$B:$B,$A39,Actuals!$Q:$Q)) -> 0 | G39: 0 | T39: 0 | U39: =VLOOKUP($A35,Table!$A:$G,6,FALSE) -> 
A40: 0 | B40: =IF(OR($A40="",$A40=0),"",VLOOKUP($A40,Accounts!$A:$L,2,FALSE)) ->  | C40: =IF($A40=0,0,SUMIF(Actuals!$B:$B,$A40,Actuals!$S:$S)) -> 0 | D40: =IF($A40=0,0,SUMIF(Actuals!$B:$B,$A40,Actuals!$R:$R)) -> 0 | E40: =IF($A40=0,0,SUMIF(Actuals!$B:$B,$A40,Actuals!$Q:$Q)) -> 0 | G40: 0 | T40: 0 | U40: =VLOOKUP($A36,Table!$A:$G,6,FALSE) -> 
A41: 0 | B41: =IF(OR($A41="",$A41=0),"",VLOOKUP($A41,Accounts!$A:$L,2,FALSE)) ->  | C41: =IF($A41=0,0,SUMIF(Actuals!$B:$B,$A41,Actuals!$S:$S)) -> 0 | D41: =IF($A41=0,0,SUMIF(Actuals!$B:$B,$A41,Actuals!$R:$R)) -> 0 | E41: =IF($A41=0,0,SUMIF(Actuals!$B:$B,$A41,Actuals!$Q:$Q)) -> 0 | G41: 0 | T41: 0 | U41: =VLOOKUP($A37,Table!$A:$G,6,FALSE) -> 
A42: 0 | B42: =IF(OR($A42="",$A42=0),"",VLOOKUP($A42,Accounts!$A:$L,2,FALSE)) ->  | C42: =IF($A42=0,0,SUMIF(Actuals!$B:$B,$A42,Actuals!$S:$S)) -> 0 | D42: =IF($A42=0,0,SUMIF(Actuals!$B:$B,$A42,Actuals!$R:$R)) -> 0 | E42: =IF($A42=0,0,SUMIF(Actuals!$B:$B,$A42,Actuals!$Q:$Q)) -> 0 | G42: 0 | T42: 0 | U42: =VLOOKUP($A38,Table!$A:$G,6,FALSE) -> 
A43: 0 | B43: =IF(OR($A43="",$A43=0),"",VLOOKUP($A43,Accounts!$A:$L,2,FALSE)) ->  | C43: =IF($A43=0,0,SUMIF(Actuals!$B:$B,$A43,Actuals!$S:$S)) -> 0 | D43: =IF($A43=0,0,SUMIF(Actuals!$B:$B,$A43,Actuals!$R:$R)) -> 0 | E43: =IF($A43=0,0,SUMIF(Actuals!$B:$B,$A43,Actuals!$Q:$Q)) -> 0 | G43: 0 | T43: 0 | U43: =VLOOKUP($A39,Table!$A:$G,6,FALSE) -> 
A44: 0 | B44: =IF(OR($A44="",$A44=0),"",VLOOKUP($A44,Accounts!$A:$L,2,FALSE)) ->  | C44: =IF($A44=0,0,SUMIF(Actuals!$B:$B,$A44,Actuals!$S:$S)) -> 0 | D44: =IF($A44=0,0,SUMIF(Actuals!$B:$B,$A44,Actuals!$R:$R)) -> 0 | E44: =IF($A44=0,0,SUMIF(Actuals!$B:$B,$A44,Actuals!$Q:$Q)) -> 0 | G44: 0 | T44: 0 | U44: =VLOOKUP($A40,Table!$A:$G,6,FALSE) -> 
A45: 0 | B45: =IF(OR($A45="",$A45=0),"",VLOOKUP($A45,Accounts!$A:$L,2,FALSE)) ->  | C45: =IF($A45=0,0,SUMIF(Actuals!$B:$B,$A45,Actuals!$S:$S)) -> 0 | D45: =IF($A45=0,0,SUMIF(Actuals!$B:$B,$A45,Actuals!$R:$R)) -> 0 | E45: =IF($A45=0,0,SUMIF(Actuals!$B:$B,$A45,Actuals!$Q:$Q)) -> 0 | G45: 0 | T45: 0 | U45: =VLOOKUP($A41,Table!$A:$G,6,FALSE) -> 
A46: 0 | B46: =IF(OR($A46="",$A46=0),"",VLOOKUP($A46,Accounts!$A:$L,2,FALSE)) ->  | C46: =IF($A46=0,0,SUMIF(Actuals!$B:$B,$A46,Actuals!$S:$S)) -> 0 | D46: =IF($A46=0,0,SUMIF(Actuals!$B:$B,$A46,Actuals!$R:$R)) -> 0 | E46: =IF($A46=0,0,SUMIF(Actuals!$B:$B,$A46,Actuals!$Q:$Q)) -> 0 | G46: 0 | T46: 0 | U46: =VLOOKUP($A42,Table!$A:$G,6,FALSE) -> 
A47: 0 | B47: =IF(OR($A47="",$A47=0),"",VLOOKUP($A47,Accounts!$A:$L,2,FALSE)) ->  | C47: =IF($A47=0,0,SUMIF(Actuals!$B:$B,$A47,Actuals!$S:$S)) -> 0 | D47: =IF($A47=0,0,SUMIF(Actuals!$B:$B,$A47,Actuals!$R:$R)) -> 0 | E47: =IF($A47=0,0,SUMIF(Actuals!$B:$B,$A47,Actuals!$Q:$Q)) -> 0 | G47: 0 | T47: 0 | U47: =VLOOKUP($A43,Table!$A:$G,6,FALSE) -> 
A48: 0 | B48: =IF(OR($A48="",$A48=0),"",VLOOKUP($A48,Accounts!$A:$L,2,FALSE)) ->  | C48: =IF($A48=0,0,SUMIF(Actuals!$B:$B,$A48,Actuals!$S:$S)) -> 0 | D48: =IF($A48=0,0,SUMIF(Actuals!$B:$B,$A48,Actuals!$R:$R)) -> 0 | E48: =IF($A48=0,0,SUMIF(Actuals!$B:$B,$A48,Actuals!$Q:$Q)) -> 0 | G48: 0 | T48: 0 | U48: =VLOOKUP($A44,Table!$A:$G,6,FALSE) -> 
A49: 0 | B49: =IF(OR($A49="",$A49=0),"",VLOOKUP($A49,Accounts!$A:$L,2,FALSE)) ->  | C49: =IF($A49=0,0,SUMIF(Actuals!$B:$B,$A49,Actuals!$S:$S)) -> 0 | D49: =IF($A49=0,0,SUMIF(Actuals!$B:$B,$A49,Actuals!$R:$R)) -> 0 | E49: =IF($A49=0,0,SUMIF(Actuals!$B:$B,$A49,Actuals!$Q:$Q)) -> 0 | G49: 0 | T49: 0 | U49: =VLOOKUP($A45,Table!$A:$G,6,FALSE) -> 
A50: 0 | B50: =IF(OR($A50="",$A50=0),"",VLOOKUP($A50,Accounts!$A:$L,2,FALSE)) ->  | C50: =IF($A50=0,0,SUMIF(Actuals!$B:$B,$A50,Actuals!$S:$S)) -> 0 | D50: =IF($A50=0,0,SUMIF(Actuals!$B:$B,$A50,Actuals!$R:$R)) -> 0 | E50: =IF($A50=0,0,SUMIF(Actuals!$B:$B,$A50,Actuals!$Q:$Q)) -> 0 | G50: 0 | T50: 0 | U50: =VLOOKUP($A46,Table!$A:$G,6,FALSE) -> 
A51: 0 | B51: =IF(OR($A51="",$A51=0),"",VLOOKUP($A51,Accounts!$A:$L,2,FALSE)) ->  | C51: =IF($A51=0,0,SUMIF(Actuals!$B:$B,$A51,Actuals!$S:$S)) -> 0 | D51: =IF($A51=0,0,SUMIF(Actuals!$B:$B,$A51,Actuals!$R:$R)) -> 0 | E51: =IF($A51=0,0,SUMIF(Actuals!$B:$B,$A51,Actuals!$Q:$Q)) -> 0 | G51: 0 | T51: 0 | U51: =VLOOKUP($A47,Table!$A:$G,6,FALSE) -> 
A52: 0 | B52: =IF(OR($A52="",$A52=0),"",VLOOKUP($A52,Accounts!$A:$L,2,FALSE)) ->  | C52: =IF($A52=0,0,SUMIF(Actuals!$B:$B,$A52,Actuals!$S:$S)) -> 0 | D52: =IF($A52=0,0,SUMIF(Actuals!$B:$B,$A52,Actuals!$R:$R)) -> 0 | E52: =IF($A52=0,0,SUMIF(Actuals!$B:$B,$A52,Actuals!$Q:$Q)) -> 0 | G52: 0 | T52: 0 | U52: =VLOOKUP($A48,Table!$A:$G,6,FALSE) -> 
A53: 0 | B53: =IF(OR($A53="",$A53=0),"",VLOOKUP($A53,Accounts!$A:$L,2,FALSE)) ->  | C53: =IF($A53=0,0,SUMIF(Actuals!$B:$B,$A53,Actuals!$S:$S)) -> 0 | D53: =IF($A53=0,0,SUMIF(Actuals!$B:$B,$A53,Actuals!$R:$R)) -> 0 | E53: =IF($A53=0,0,SUMIF(Actuals!$B:$B,$A53,Actuals!$Q:$Q)) -> 0 | G53: 0 | T53: 0 | U53: =VLOOKUP($A49,Table!$A:$G,6,FALSE) -> 
A54: 0 | B54: =IF(OR($A54="",$A54=0),"",VLOOKUP($A54,Accounts!$A:$L,2,FALSE)) ->  | C54: =IF($A54=0,0,SUMIF(Actuals!$B:$B,$A54,Actuals!$S:$S)) -> 0 | D54: =IF($A54=0,0,SUMIF(Actuals!$B:$B,$A54,Actuals!$R:$R)) -> 0 | E54: =IF($A54=0,0,SUMIF(Actuals!$B:$B,$A54,Actuals!$Q:$Q)) -> 0 | G54: 0 | T54: 0 | U54: =VLOOKUP($A50,Table!$A:$G,6,FALSE) -> 
A55: 0 | B55: =IF(OR($A55="",$A55=0),"",VLOOKUP($A55,Accounts!$A:$L,2,FALSE)) ->  | C55: =IF($A55=0,0,SUMIF(Actuals!$B:$B,$A55,Actuals!$S:$S)) -> 0 | D55: =IF($A55=0,0,SUMIF(Actuals!$B:$B,$A55,Actuals!$R:$R)) -> 0 | E55: =IF($A55=0,0,SUMIF(Actuals!$B:$B,$A55,Actuals!$Q:$Q)) -> 0 | G55: 0 | T55: 0 | U55: =VLOOKUP($A51,Table!$A:$G,6,FALSE) -> 
C56: =IF($A56=0,0,SUMIF(Actuals!$B:$B,$A56,Actuals!$S:$S)) -> 0 | D56: =IF($A56=0,0,SUMIF(Actuals!$B:$B,$A56,Actuals!$R:$R)) -> 0 | E56: =IF($A56=0,0,SUMIF(Actuals!$B:$B,$A56,Actuals!$Q:$Q)) -> 0 | G56: 0 | T56: 0 | U56: =VLOOKUP($A52,Table!$A:$G,6,FALSE) -> 
C57: =IF($A57=0,0,SUMIF(Actuals!$B:$B,$A57,Actuals!$S:$S)) -> 0 | D57: =IF($A57=0,0,SUMIF(Actuals!$B:$B,$A57,Actuals!$R:$R)) -> 0 | E57: =IF($A57=0,0,SUMIF(Actuals!$B:$B,$A57,Actuals!$Q:$Q)) -> 0 | G57: 0 | T57: 0 | U57: =VLOOKUP($A53,Table!$A:$G,6,FALSE) -> 
C58: =IF($A58=0,0,SUMIF(Actuals!$B:$B,$A58,Actuals!$S:$S)) -> 0 | D58: =IF($A58=0,0,SUMIF(Actuals!$B:$B,$A58,Actuals!$R:$R)) -> 0 | E58: =IF($A58=0,0,SUMIF(Actuals!$B:$B,$A58,Actuals!$Q:$Q)) -> 0 | G58: 0 | T58: 0 | U58: =VLOOKUP($A54,Table!$A:$G,6,FALSE) -> 
C59: =IF($A59=0,0,SUMIF(Actuals!$B:$B,$A59,Actuals!$S:$S)) -> 0 | D59: =IF($A59=0,0,SUMIF(Actuals!$B:$B,$A59,Actuals!$R:$R)) -> 0 | E59: =IF($A59=0,0,SUMIF(Actuals!$B:$B,$A59,Actuals!$Q:$Q)) -> 0 | G59: 0 | T59: 0 | U59: =VLOOKUP($A55,Table!$A:$G,6,FALSE) -> 
C60: =IF($A60=0,0,SUMIF(Actuals!$B:$B,$A60,Actuals!$S:$S)) -> 0 | D60: =IF($A60=0,0,SUMIF(Actuals!$B:$B,$A60,Actuals!$R:$R)) -> 0 | E60: =IF($A60=0,0,SUMIF(Actuals!$B:$B,$A60,Actuals!$Q:$Q)) -> 0 | G60: 0 | T60: 0 | U60: =VLOOKUP($A56,Table!$A:$G,6,FALSE) -> 
A62: Confirmed by Head of Department
A63: SIGNATURE
A64: NAME
A65: DATE
A67: Please return to :
A68: Finance Division
A69: Mrs Sonia Kivits
A70: e.mail | B70: s.kivitts@ru.ac.za
A71: Ext | B71: 8123
A83: Include:
A84: Estimated general running costs incurred in the daily operation of the department and primaily in support of academic/teaching activities in the Department, e.g. Consumables,stationery, telephone and small items of teaching equipment costing less than R3,000
A85: Exclude:
A86: Salaries, furniture, office equipment, academic/teaching equipment costing more than R3,000, research activity costs, conference and related travel costs

Sheet FormF RI(4)
A1: BUDGET 2014 : RETURN OF INFORMATION | D1: FormF RI(4)
A2: ='FormF Summary'!B3 -> RUNNING GRANT REQUEST
V3: GL ACCOUNT | W3: GL ACCOUNT DESCRIPTION | X3: ALT ACCOUNT | Y3: RI ACCOUNT | Z3: RI ACCOUNT DESCRIPTION | AA3: TYPE | AB3: BRANCH CODE | AC3: BRANCH | AD3: STATUS | AE3: FUNCTION | AF3: REPORTING | AG3: COST CENTRE | AI3: GL ACCOUNT | AJ3: GL ACCOUNT DESCRIPTION | AK3: ALT ACCOUNT | AL3: RI ACCOUNT | AM3: RI ACCOUNT DESCRIPTION | AN3: TYPE | AO3: BRANCH CODE | AP3: BRANCH | AQ3: STATUS | AR3: FUNCTION | AS3: REPORTING | AT3: COST CENTRE | AU3: CATEGORY | AV3: TRANSFERS
A4: ='FormF RI(1)'!A4 -> Division: | B4: ='Main Menu'!D16 -> (All) | AA4: 3 | AG4: =$B$5 -> 0 | AN4: 4 | AT4: =$B$5 -> 0 | AU4: OTHER | AV4: OTHER
A5: ='FormF RI(1)'!A5 -> Retained Income Acc:
A6: ='FormF RI(1)'!A6 -> RI Acc Description: | B6: =IF(ISNA(TRIM(VLOOKUP($B$5,Accounts!$L:$O,4,FALSE))),"",TRIM(VLOOKUP($B$5,Accounts!$L:$O,4,FALSE))) ->  | V6: GL ACCOUNT | W6: GL ACCOUNT DESCRIPTION | X6: ALT ACCOUNT | Y6: RI ACCOUNT | Z6: RI ACCOUNT DESCRIPTION | AA6: TYPE | AB6: BRANCH CODE | AC6: BRANCH | AD6: STATUS | AE6: FUNCTION | AF6: REPORTING | AG6: COST CENTRE | AI6: GL ACCOUNT | AJ6: GL ACCOUNT DESCRIPTION | AK6: ALT ACCOUNT | AL6: RI ACCOUNT | AM6: RI ACCOUNT DESCRIPTION | AN6: TYPE | AO6: BRANCH CODE | AP6: BRANCH | AQ6: STATUS | AR6: FUNCTION | AS6: REPORTING | AT6: COST CENTRE | AU6: CATEGORY | AV6: TRANSFERS
A7: =IF(LEFT($A$27,5)=$B$5,"","ALERT: PREPARE SHEET!") -> ALERT: PREPARE SHEET!
C8: Actual | D8: Actual | E8: Actual YTD | F8: Forecast | G8: Total | H8: Month | I8: Month | J8: Month | K8: Month | L8: Month | M8: Month | N8: Month | O8: Month | P8: Month | Q8: Month | R8: Month | S8: Month
C9: 2011 | D9: 2012 | E9: 2013 | F9: 2013 | G9: 2014 | H9: Jan | I9: Feb | J9: Mar | K9: Apr | L9: May | M9: Jun | N9: Jul | O9: Aug | P9: Sep | Q9: Oct | R9: Nov | S9: Dec
A11: RETAINED INCOME
A12: OPENING BALANCE | B12: =TRIM(VLOOKUP($B$5,Accounts!$L:$P,5,FALSE)) ->  | C12: =IF(ISNA(VLOOKUP($B12,Actuals!$B:$T,18,FALSE)),0,VLOOKUP($B12,Actuals!$B:$T,18,FALSE)) -> 0 | D12: =C16 -> 0 | E12: =D16 -> 0 | F12: =E12 -> 0 | G12: =F16 -> 0 | H12: =F16 -> 0 | I12: =H16 -> 0 | J12: 0 | K12: 0 | L12: 0 | M12: 0 | N12: 0 | O12: 0 | P12: 0 | Q12: 0 | R12: 0 | S12: 0
A13: GRANT | B13: =TRIM(VLOOKUP(CONCATENATE($B$5,$A$13),Accounts!$Q:$R,2,FALSE)) ->  | C13: =IF(ISNA(VLOOKUP($B13,Actuals!$B:$T,18,FALSE)),0,VLOOKUP($B13,Actuals!$B:$T,18,FALSE)) -> 0 | D13: =IF(ISNA(VLOOKUP($B13,Actuals!$B:$T,18,FALSE)),0,VLOOKUP($B13,Actuals!$B:$T,17,FALSE)) -> 0 | E13: =IF(ISNA(VLOOKUP($B13,Actuals!$B:$T,18,FALSE)),0,VLOOKUP($B13,Actuals!$B:$T,16,FALSE)) -> 0 | F13: =IF(ISNA(VLOOKUP($B13,Actuals!$B:$T,18,FALSE)),0,VLOOKUP($B13,Actuals!$B:$T,16,FALSE)) -> 0 | G13: =SUM(H13:S13) -> 0
A14: (SURPLUS)/DEFICIT FOR THE PERIOD | C14: =C18+C26 -> 0 | D14: =D18+D26 -> 0 | E14: =E18+E26 -> 0 | F14: =F18+F26 -> 0 | G14: =SUM(H14:S14) -> 0 | H14: =H18+H26 -> 0 | I14: 0 | J14: 0 | K14: 0 | L14: 0 | M14: 0 | N14: 0 | O14: 0 | P14: 0 | Q14: 0 | R14: 0 | S14: 0
A15: TRANSFERS (IN)/OUT | C15: =SUMIF(Actuals!$AC:$AC,CONCATENATE($B$5,"TRANSFERS"),Actuals!$S:$S) -> 0 | D15: =SUMIF(Actuals!$AC:$AC,CONCATENATE($B$5,"TRANSFERS"),Actuals!$R:$R) -> 0 | E15: =SUMIF(Actuals!$AC:$AC,CONCATENATE($B$5,"TRANSFERS"),Actuals!$Q:$Q) -> 0 | G15: =SUM(H15:S15) -> 0
A16: CLOSING BALANCE | B16: =IF(MAX($C$16:$S$16)>0,"A red cell indicates Cost Centre in deficit","") ->  | C16: =SUM(C12:C15) -> 0 | D16: =SUM(D12:D15) -> 0 | E16: 0 | F16: 0 | G16: 0 | H16: 0 | I16: 0 | J16: 0 | K16: 0 | L16: 0 | M16: 0 | N16: 0 | O16: 0 | P16: 0 | Q16: 0 | R16: 0 | S16: 0
A18: INCOME | C18: =SUM(C19:C24) -> 0 | D18: 0 | E18: 0 | F18: 0 | G18: 0 | H18: =SUM(H19:H24) -> 0 | I18: 0 | J18: 0 | K18: 0 | L18: 0 | M18: 0 | N18: 0 | O18: 0 | P18: 0 | Q18: 0 | R18: 0 | S18: 0
A19: =V7 -> 0 | B19: =IF(OR($A19="",$A19=0),"",VLOOKUP($A19,Accounts!$A:$L,2,FALSE)) ->  | C19: =IF($A19=0,0,SUMIF(Actuals!$B:$B,$A19,Actuals!$S:$S)) -> 0 | D19: =IF($A19=0,0,SUMIF(Actuals!$B:$B,$A19,Actuals!$R:$R)) -> 0 | E19: =IF($A19=0,0,SUMIF(Actuals!$B:$B,$A19,Actuals!$Q:$Q)) -> 0 | G19: =SUM(H19:S19) -> 0 | T19: =IF(SUM(C19:S19)=0,0,A19) -> 0
A20: =V8 -> 0 | B20: =IF(OR($A20="",$A20=0),"",VLOOKUP($A20,Accounts!$A:$L,2,FALSE)) ->  | C20: =IF($A20=0,0,SUMIF(Actuals!$B:$B,$A20,Actuals!$S:$S)) -> 0 | D20: =IF($A20=0,0,SUMIF(Actuals!$B:$B,$A20,Actuals!$R:$R)) -> 0 | E20: =IF($A20=0,0,SUMIF(Actuals!$B:$B,$A20,Actuals!$Q:$Q)) -> 0 | G20: =SUM(H20:S20) -> 0 | T20: =IF(SUM(C20:S20)=0,0,A20) -> 0
A21: 0 | B21: =IF(OR($A21="",$A21=0),"",VLOOKUP($A21,Accounts!$A:$L,2,FALSE)) ->  | C21: =IF($A21=0,0,SUMIF(Actuals!$B:$B,$A21,Actuals!$S:$S)) -> 0 | D21: =IF($A21=0,0,SUMIF(Actuals!$B:$B,$A21,Actuals!$R:$R)) -> 0 | E21: =IF($A21=0,0,SUMIF(Actuals!$B:$B,$A21,Actuals!$Q:$Q)) -> 0 | G21: 0 | T21: 0
A22: 0 | B22: =IF(OR($A22="",$A22=0),"",VLOOKUP($A22,Accounts!$A:$L,2,FALSE)) ->  | C22: =IF($A22=0,0,SUMIF(Actuals!$B:$B,$A22,Actuals!$S:$S)) -> 0 | D22: =IF($A22=0,0,SUMIF(Actuals!$B:$B,$A22,Actuals!$R:$R)) -> 0 | E22: =IF($A22=0,0,SUMIF(Actuals!$B:$B,$A22,Actuals!$Q:$Q)) -> 0 | G22: 0 | T22: 0
A23: 0 | B23: =IF(OR($A23="",$A23=0),"",VLOOKUP($A23,Accounts!$A:$L,2,FALSE)) ->  | C23: =IF($A23=0,0,SUMIF(Actuals!$B:$B,$A23,Actuals!$S:$S)) -> 0 | D23: =IF($A23=0,0,SUMIF(Actuals!$B:$B,$A23,Actuals!$R:$R)) -> 0 | E23: =IF($A23=0,0,SUMIF(Actuals!$B:$B,$A23,Actuals!$Q:$Q)) -> 0 | G23: 0 | T23: 0
B24: OTHER | C24: =IF($A24=0,0,SUMIF(Actuals!$B:$B,$A24,Actuals!$S:$S)) -> 0 | D24: =IF($A24=0,0,SUMIF(Actuals!$A:$F,$A24,Actuals!$R:$R)) -> 0 | E24: =IF($A24=0,0,SUMIF(Actuals!$B:$B,$A24,Actuals!$Q:$Q)) -> 0 | G24: 0 | T24: =IF(SUM(C24:S24)=0,0,A24) -> 0
A26: EXPENDITURE | C26: =SUM(C27:C60) -> 0 | D26: =SUM(D27:D60) -> 0 | E26: 0 | F26: 0 | G26: 0 | H26: 0 | I26: 0 | J26: 0 | K26: 0 | L26: 0 | M26: 0 | N26: 0 | O26: 0 | P26: 0 | Q26: 0 | R26: 0 | S26: 0
A27: =AI7 -> 0 | B27: =IF(OR($A27="",$A27=0),"",VLOOKUP($A27,Accounts!$A:$L,2,FALSE)) ->  | C27: =IF($A27=0,0,SUMIF(Actuals!$B:$B,$A27,Actuals!$S:$S)) -> 0 | D27: =IF($A27=0,0,SUMIF(Actuals!$B:$B,$A27,Actuals!$R:$R)) -> 0 | E27: =IF($A27=0,0,SUMIF(Actuals!$B:$B,$A27,Actuals!$Q:$Q)) -> 0 | G27: =SUM(H27:S27) -> 0 | T27: =IF(SUM(C27:S27)=0,0,B27) -> 0
A28: 0 | B28: =IF(OR($A28="",$A28=0),"",VLOOKUP($A28,Accounts!$A:$L,2,FALSE)) ->  | C28: =IF($A28=0,0,SUMIF(Actuals!$B:$B,$A28,Actuals!$S:$S)) -> 0 | D28: =IF($A28=0,0,SUMIF(Actuals!$B:$B,$A28,Actuals!$R:$R)) -> 0 | E28: =IF($A28=0,0,SUMIF(Actuals!$B:$B,$A28,Actuals!$Q:$Q)) -> 0 | G28: =SUM(H28:S28) -> 0 | T28: =IF(SUM(C28:S28)=0,0,B28) -> 0
A29: 0 | B29: =IF(OR($A29="",$A29=0),"",VLOOKUP($A29,Accounts!$A:$L,2,FALSE)) ->  | C29: =IF($A29=0,0,SUMIF(Actuals!$B:$B,$A29,Actuals!$S:$S)) -> 0 | D29: =IF($A29=0,0,SUMIF(Actuals!$B:$B,$A29,Actuals!$R:$R)) -> 0 | E29: =IF($A29=0,0,SUMIF(Actuals!$B:$B,$A29,Actuals!$Q:$Q)) -> 0 | G29: 0 | T29: 0
A30: 0 | B30: =IF(OR($A30="",$A30=0),"",VLOOKUP($A30,Accounts!$A:$L,2,FALSE)) ->  | C30: =IF($A30=0,0,SUMIF(Actuals!$B:$B,$A30,Actuals!$S:$S)) -> 0 | D30: =IF($A30=0,0,SUMIF(Actuals!$B:$B,$A30,Actuals!$R:$R)) -> 0 | E30: =IF($A30=0,0,SUMIF(Actuals!$B:$B,$A30,Actuals!$Q:$Q)) -> 0 | G30: 0 | T30: 0
A31: 0 | B31: =IF(OR($A31="",$A31=0),"",VLOOKUP($A31,Accounts!$A:$L,2,FALSE)) ->  | C31: =IF($A31=0,0,SUMIF(Actuals!$B:$B,$A31,Actuals!$S:$S)) -> 0 | D31: =IF($A31=0,0,SUMIF(Actuals!$B:$B,$A31,Actuals!$R:$R)) -> 0 | E31: =IF($A31=0,0,SUMIF(Actuals!$B:$B,$A31,Actuals!$Q:$Q)) -> 0 | G31: 0 | T31: 0 | U31: =VLOOKUP($A27,Table!$A:$G,6,FALSE) -> 
A32: 0 | B32: =IF(OR($A32="",$A32=0),"",VLOOKUP($A32,Accounts!$A:$L,2,FALSE)) ->  | C32: =IF($A32=0,0,SUMIF(Actuals!$B:$B,$A32,Actuals!$S:$S)) -> 0 | D32: =IF($A32=0,0,SUMIF(Actuals!$B:$B,$A32,Actuals!$R:$R)) -> 0 | E32: =IF($A32=0,0,SUMIF(Actuals!$B:$B,$A32,Actuals!$Q:$Q)) -> 0 | G32: 0 | T32: 0 | U32: =VLOOKUP($A28,Table!$A:$G,6,FALSE) -> 
A33: 0 | B33: =IF(OR($A33="",$A33=0),"",VLOOKUP($A33,Accounts!$A:$L,2,FALSE)) ->  | C33: =IF($A33=0,0,SUMIF(Actuals!$B:$B,$A33,Actuals!$S:$S)) -> 0 | D33: =IF($A33=0,0,SUMIF(Actuals!$B:$B,$A33,Actuals!$R:$R)) -> 0 | E33: =IF($A33=0,0,SUMIF(Actuals!$B:$B,$A33,Actuals!$Q:$Q)) -> 0 | G33: 0 | T33: 0 | U33: =VLOOKUP($A29,Table!$A:$G,6,FALSE) -> 
A34: 0 | B34: =IF(OR($A34="",$A34=0),"",VLOOKUP($A34,Accounts!$A:$L,2,FALSE)) ->  | C34: =IF($A34=0,0,SUMIF(Actuals!$B:$B,$A34,Actuals!$S:$S)) -> 0 | D34: =IF($A34=0,0,SUMIF(Actuals!$B:$B,$A34,Actuals!$R:$R)) -> 0 | E34: =IF($A34=0,0,SUMIF(Actuals!$B:$B,$A34,Actuals!$Q:$Q)) -> 0 | G34: 0 | T34: 0 | U34: =VLOOKUP($A30,Table!$A:$G,6,FALSE) -> 
A35: 0 | B35: =IF(OR($A35="",$A35=0),"",VLOOKUP($A35,Accounts!$A:$L,2,FALSE)) ->  | C35: =IF($A35=0,0,SUMIF(Actuals!$B:$B,$A35,Actuals!$S:$S)) -> 0 | D35: =IF($A35=0,0,SUMIF(Actuals!$B:$B,$A35,Actuals!$R:$R)) -> 0 | E35: =IF($A35=0,0,SUMIF(Actuals!$B:$B,$A35,Actuals!$Q:$Q)) -> 0 | G35: 0 | T35: 0 | U35: =VLOOKUP($A31,Table!$A:$G,6,FALSE) -> 
A36: 0 | B36: =IF(OR($A36="",$A36=0),"",VLOOKUP($A36,Accounts!$A:$L,2,FALSE)) ->  | C36: =IF($A36=0,0,SUMIF(Actuals!$B:$B,$A36,Actuals!$S:$S)) -> 0 | D36: =IF($A36=0,0,SUMIF(Actuals!$B:$B,$A36,Actuals!$R:$R)) -> 0 | E36: =IF($A36=0,0,SUMIF(Actuals!$B:$B,$A36,Actuals!$Q:$Q)) -> 0 | G36: 0 | T36: 0 | U36: =VLOOKUP($A32,Table!$A:$G,6,FALSE) -> 
A37: 0 | B37: =IF(OR($A37="",$A37=0),"",VLOOKUP($A37,Accounts!$A:$L,2,FALSE)) ->  | C37: =IF($A37=0,0,SUMIF(Actuals!$B:$B,$A37,Actuals!$S:$S)) -> 0 | D37: =IF($A37=0,0,SUMIF(Actuals!$B:$B,$A37,Actuals!$R:$R)) -> 0 | E37: =IF($A37=0,0,SUMIF(Actuals!$B:$B,$A37,Actuals!$Q:$Q)) -> 0 | G37: 0 | T37: 0 | U37: =VLOOKUP($A33,Table!$A:$G,6,FALSE) -> 
A38: 0 | B38: =IF(OR($A38="",$A38=0),"",VLOOKUP($A38,Accounts!$A:$L,2,FALSE)) ->  | C38: =IF($A38=0,0,SUMIF(Actuals!$B:$B,$A38,Actuals!$S:$S)) -> 0 | D38: =IF($A38=0,0,SUMIF(Actuals!$B:$B,$A38,Actuals!$R:$R)) -> 0 | E38: =IF($A38=0,0,SUMIF(Actuals!$B:$B,$A38,Actuals!$Q:$Q)) -> 0 | G38: 0 | T38: 0 | U38: =VLOOKUP($A34,Table!$A:$G,6,FALSE) -> 
A39: 0 | B39: =IF(OR($A39="",$A39=0),"",VLOOKUP($A39,Accounts!$A:$L,2,FALSE)) ->  | C39: =IF($A39=0,0,SUMIF(Actuals!$B:$B,$A39,Actuals!$S:$S)) -> 0 | D39: =IF($A39=0,0,SUMIF(Actuals!$B:$B,$A39,Actuals!$R:$R)) -> 0 | E39: =IF($A39=0,0,SUMIF(Actuals!$B:$B,$A39,Actuals!$Q:$Q)) -> 0 | G39: 0 | T39: 0 | U39: =VLOOKUP($A35,Table!$A:$G,6,FALSE) -> 
A40: 0 | B40: =IF(OR($A40="",$A40=0),"",VLOOKUP($A40,Accounts!$A:$L,2,FALSE)) ->  | C40: =IF($A40=0,0,SUMIF(Actuals!$B:$B,$A40,Actuals!$S:$S)) -> 0 | D40: =IF($A40=0,0,SUMIF(Actuals!$B:$B,$A40,Actuals!$R:$R)) -> 0 | E40: =IF($A40=0,0,SUMIF(Actuals!$B:$B,$A40,Actuals!$Q:$Q)) -> 0 | G40: 0 | T40: 0 | U40: =VLOOKUP($A36,Table!$A:$G,6,FALSE) -> 
A41: 0 | B41: =IF(OR($A41="",$A41=0),"",VLOOKUP($A41,Accounts!$A:$L,2,FALSE)) ->  | C41: =IF($A41=0,0,SUMIF(Actuals!$B:$B,$A41,Actuals!$S:$S)) -> 0 | D41: =IF($A41=0,0,SUMIF(Actuals!$B:$B,$A41,Actuals!$R:$R)) -> 0 | E41: =IF($A41=0,0,SUMIF(Actuals!$B:$B,$A41,Actuals!$Q:$Q)) -> 0 | G41: 0 | T41: 0 | U41: =VLOOKUP($A37,Table!$A:$G,6,FALSE) -> 
A42: 0 | B42: =IF(OR($A42="",$A42=0),"",VLOOKUP($A42,Accounts!$A:$L,2,FALSE)) ->  | C42: =IF($A42=0,0,SUMIF(Actuals!$B:$B,$A42,Actuals!$S:$S)) -> 0 | D42: =IF($A42=0,0,SUMIF(Actuals!$B:$B,$A42,Actuals!$R:$R)) -> 0 | E42: =IF($A42=0,0,SUMIF(Actuals!$B:$B,$A42,Actuals!$Q:$Q)) -> 0 | G42: 0 | T42: 0 | U42: =VLOOKUP($A38,Table!$A:$G,6,FALSE) -> 
A43: 0 | B43: =IF(OR($A43="",$A43=0),"",VLOOKUP($A43,Accounts!$A:$L,2,FALSE)) ->  | C43: =IF($A43=0,0,SUMIF(Actuals!$B:$B,$A43,Actuals!$S:$S)) -> 0 | D43: =IF($A43=0,0,SUMIF(Actuals!$B:$B,$A43,Actuals!$R:$R)) -> 0 | E43: =IF($A43=0,0,SUMIF(Actuals!$B:$B,$A43,Actuals!$Q:$Q)) -> 0 | G43: 0 | T43: 0 | U43: =VLOOKUP($A39,Table!$A:$G,6,FALSE) -> 
A44: 0 | B44: =IF(OR($A44="",$A44=0),"",VLOOKUP($A44,Accounts!$A:$L,2,FALSE)) ->  | C44: =IF($A44=0,0,SUMIF(Actuals!$B:$B,$A44,Actuals!$S:$S)) -> 0 | D44: =IF($A44=0,0,SUMIF(Actuals!$B:$B,$A44,Actuals!$R:$R)) -> 0 | E44: =IF($A44=0,0,SUMIF(Actuals!$B:$B,$A44,Actuals!$Q:$Q)) -> 0 | G44: 0 | T44: 0 | U44: =VLOOKUP($A40,Table!$A:$G,6,FALSE) -> 
A45: 0 | B45: =IF(OR($A45="",$A45=0),"",VLOOKUP($A45,Accounts!$A:$L,2,FALSE)) ->  | C45: =IF($A45=0,0,SUMIF(Actuals!$B:$B,$A45,Actuals!$S:$S)) -> 0 | D45: =IF($A45=0,0,SUMIF(Actuals!$B:$B,$A45,Actuals!$R:$R)) -> 0 | E45: =IF($A45=0,0,SUMIF(Actuals!$B:$B,$A45,Actuals!$Q:$Q)) -> 0 | G45: 0 | T45: 0 | U45: =VLOOKUP($A41,Table!$A:$G,6,FALSE) -> 
A46: 0 | B46: =IF(OR($A46="",$A46=0),"",VLOOKUP($A46,Accounts!$A:$L,2,FALSE)) ->  | C46: =IF($A46=0,0,SUMIF(Actuals!$B:$B,$A46,Actuals!$S:$S)) -> 0 | D46: =IF($A46=0,0,SUMIF(Actuals!$B:$B,$A46,Actuals!$R:$R)) -> 0 | E46: =IF($A46=0,0,SUMIF(Actuals!$B:$B,$A46,Actuals!$Q:$Q)) -> 0 | G46: 0 | T46: 0 | U46: =VLOOKUP($A42,Table!$A:$G,6,FALSE) -> 
A47: 0 | B47: =IF(OR($A47="",$A47=0),"",VLOOKUP($A47,Accounts!$A:$L,2,FALSE)) ->  | C47: =IF($A47=0,0,SUMIF(Actuals!$B:$B,$A47,Actuals!$S:$S)) -> 0 | D47: =IF($A47=0,0,SUMIF(Actuals!$B:$B,$A47,Actuals!$R:$R)) -> 0 | E47: =IF($A47=0,0,SUMIF(Actuals!$B:$B,$A47,Actuals!$Q:$Q)) -> 0 | G47: 0 | T47: 0 | U47: =VLOOKUP($A43,Table!$A:$G,6,FALSE) -> 
A48: 0 | B48: =IF(OR($A48="",$A48=0),"",VLOOKUP($A48,Accounts!$A:$L,2,FALSE)) ->  | C48: =IF($A48=0,0,SUMIF(Actuals!$B:$B,$A48,Actuals!$S:$S)) -> 0 | D48: =IF($A48=0,0,SUMIF(Actuals!$B:$B,$A48,Actuals!$R:$R)) -> 0 | E48: =IF($A48=0,0,SUMIF(Actuals!$B:$B,$A48,Actuals!$Q:$Q)) -> 0 | G48: 0 | T48: 0 | U48: =VLOOKUP($A44,Table!$A:$G,6,FALSE) -> 
A49: 0 | B49: =IF(OR($A49="",$A49=0),"",VLOOKUP($A49,Accounts!$A:$L,2,FALSE)) ->  | C49: =IF($A49=0,0,SUMIF(Actuals!$B:$B,$A49,Actuals!$S:$S)) -> 0 | D49: =IF($A49=0,0,SUMIF(Actuals!$B:$B,$A49,Actuals!$R:$R)) -> 0 | E49: =IF($A49=0,0,SUMIF(Actuals!$B:$B,$A49,Actuals!$Q:$Q)) -> 0 | G49: 0 | T49: 0 | U49: =VLOOKUP($A45,Table!$A:$G,6,FALSE) -> 
A50: 0 | B50: =IF(OR($A50="",$A50=0),"",VLOOKUP($A50,Accounts!$A:$L,2,FALSE)) ->  | C50: =IF($A50=0,0,SUMIF(Actuals!$B:$B,$A50,Actuals!$S:$S)) -> 0 | D50: =IF($A50=0,0,SUMIF(Actuals!$B:$B,$A50,Actuals!$R:$R)) -> 0 | E50: =IF($A50=0,0,SUMIF(Actuals!$B:$B,$A50,Actuals!$Q:$Q)) -> 0 | G50: 0 | T50: 0 | U50: =VLOOKUP($A46,Table!$A:$G,6,FALSE) -> 
A51: 0 | B51: =IF(OR($A51="",$A51=0),"",VLOOKUP($A51,Accounts!$A:$L,2,FALSE)) ->  | C51: =IF($A51=0,0,SUMIF(Actuals!$B:$B,$A51,Actuals!$S:$S)) -> 0 | D51: =IF($A51=0,0,SUMIF(Actuals!$B:$B,$A51,Actuals!$R:$R)) -> 0 | E51: =IF($A51=0,0,SUMIF(Actuals!$B:$B,$A51,Actuals!$Q:$Q)) -> 0 | G51: 0 | T51: 0 | U51: =VLOOKUP($A47,Table!$A:$G,6,FALSE) -> 
A52: 0 | B52: =IF(OR($A52="",$A52=0),"",VLOOKUP($A52,Accounts!$A:$L,2,FALSE)) ->  | C52: =IF($A52=0,0,SUMIF(Actuals!$B:$B,$A52,Actuals!$S:$S)) -> 0 | D52: =IF($A52=0,0,SUMIF(Actuals!$B:$B,$A52,Actuals!$R:$R)) -> 0 | E52: =IF($A52=0,0,SUMIF(Actuals!$B:$B,$A52,Actuals!$Q:$Q)) -> 0 | G52: 0 | T52: 0 | U52: =VLOOKUP($A48,Table!$A:$G,6,FALSE) -> 
A53: 0 | B53: =IF(OR($A53="",$A53=0),"",VLOOKUP($A53,Accounts!$A:$L,2,FALSE)) ->  | C53: =IF($A53=0,0,SUMIF(Actuals!$B:$B,$A53,Actuals!$S:$S)) -> 0 | D53: =IF($A53=0,0,SUMIF(Actuals!$B:$B,$A53,Actuals!$R:$R)) -> 0 | E53: =IF($A53=0,0,SUMIF(Actuals!$B:$B,$A53,Actuals!$Q:$Q)) -> 0 | G53: 0 | T53: 0 | U53: =VLOOKUP($A49,Table!$A:$G,6,FALSE) -> 
A54: 0 | B54: =IF(OR($A54="",$A54=0),"",VLOOKUP($A54,Accounts!$A:$L,2,FALSE)) ->  | C54: =IF($A54=0,0,SUMIF(Actuals!$B:$B,$A54,Actuals!$S:$S)) -> 0 | D54: =IF($A54=0,0,SUMIF(Actuals!$B:$B,$A54,Actuals!$R:$R)) -> 0 | E54: =IF($A54=0,0,SUMIF(Actuals!$B:$B,$A54,Actuals!$Q:$Q)) -> 0 | G54: 0 | T54: 0 | U54: =VLOOKUP($A50,Table!$A:$G,6,FALSE) -> 
A55: 0 | B55: =IF(OR($A55="",$A55=0),"",VLOOKUP($A55,Accounts!$A:$L,2,FALSE)) ->  | C55: =IF($A55=0,0,SUMIF(Actuals!$B:$B,$A55,Actuals!$S:$S)) -> 0 | D55: =IF($A55=0,0,SUMIF(Actuals!$B:$B,$A55,Actuals!$R:$R)) -> 0 | E55: =IF($A55=0,0,SUMIF(Actuals!$B:$B,$A55,Actuals!$Q:$Q)) -> 0 | G55: 0 | T55: 0 | U55: =VLOOKUP($A51,Table!$A:$G,6,FALSE) -> 
C56: =IF($A56=0,0,SUMIF(Actuals!$B:$B,$A56,Actuals!$S:$S)) -> 0 | D56: =IF($A56=0,0,SUMIF(Actuals!$B:$B,$A56,Actuals!$R:$R)) -> 0 | E56: =IF($A56=0,0,SUMIF(Actuals!$B:$B,$A56,Actuals!$Q:$Q)) -> 0 | G56: 0 | T56: 0 | U56: =VLOOKUP($A52,Table!$A:$G,6,FALSE) -> 
C57: =IF($A57=0,0,SUMIF(Actuals!$B:$B,$A57,Actuals!$S:$S)) -> 0 | D57: =IF($A57=0,0,SUMIF(Actuals!$B:$B,$A57,Actuals!$R:$R)) -> 0 | E57: =IF($A57=0,0,SUMIF(Actuals!$B:$B,$A57,Actuals!$Q:$Q)) -> 0 | G57: 0 | T57: 0 | U57: =VLOOKUP($A53,Table!$A:$G,6,FALSE) -> 
C58: =IF($A58=0,0,SUMIF(Actuals!$B:$B,$A58,Actuals!$S:$S)) -> 0 | D58: =IF($A58=0,0,SUMIF(Actuals!$B:$B,$A58,Actuals!$R:$R)) -> 0 | E58: =IF($A58=0,0,SUMIF(Actuals!$B:$B,$A58,Actuals!$Q:$Q)) -> 0 | G58: 0 | T58: 0 | U58: =VLOOKUP($A54,Table!$A:$G,6,FALSE) -> 
C59: =IF($A59=0,0,SUMIF(Actuals!$B:$B,$A59,Actuals!$S:$S)) -> 0 | D59: =IF($A59=0,0,SUMIF(Actuals!$B:$B,$A59,Actuals!$R:$R)) -> 0 | E59: =IF($A59=0,0,SUMIF(Actuals!$B:$B,$A59,Actuals!$Q:$Q)) -> 0 | G59: 0 | T59: 0 | U59: =VLOOKUP($A55,Table!$A:$G,6,FALSE) -> 
C60: =IF($A60=0,0,SUMIF(Actuals!$B:$B,$A60,Actuals!$S:$S)) -> 0 | D60: =IF($A60=0,0,SUMIF(Actuals!$B:$B,$A60,Actuals!$R:$R)) -> 0 | E60: =IF($A60=0,0,SUMIF(Actuals!$B:$B,$A60,Actuals!$Q:$Q)) -> 0 | G60: 0 | T60: 0 | U60: =VLOOKUP($A56,Table!$A:$G,6,FALSE) -> 
A62: Confirmed by Head of Department
A63: SIGNATURE
A64: NAME
A65: DATE
A67: Please return to :
A68: Finance Division
A69: Mrs Sonia Kivits
A70: e.mail | B70: s.kivitts@ru.ac.za
A71: Ext | B71: 8123
A83: Include:
A84: Estimated general running costs incurred in the daily operation of the department and primaily in support of academic/teaching activities in the Department, e.g. Consumables,stationery, telephone and small items of teaching equipment costing less than R3,000
A85: Exclude:
A86: Salaries, furniture, office equipment, academic/teaching equipment costing more than R3,000, research activity costs, conference and related travel costs

Sheet FormF RI(5)
A1: BUDGET 2014 : RETURN OF INFORMATION | D1: FormF RI(5)
A2: ='FormF Summary'!B3 -> RUNNING GRANT REQUEST
V3: GL ACCOUNT | W3: GL ACCOUNT DESCRIPTION | X3: ALT ACCOUNT | Y3: RI ACCOUNT | Z3: RI ACCOUNT DESCRIPTION | AA3: TYPE | AB3: BRANCH CODE | AC3: BRANCH | AD3: STATUS | AE3: FUNCTION | AF3: REPORTING | AG3: COST CENTRE | AI3: GL ACCOUNT | AJ3: GL ACCOUNT DESCRIPTION | AK3: ALT ACCOUNT | AL3: RI ACCOUNT | AM3: RI ACCOUNT DESCRIPTION | AN3: TYPE | AO3: BRANCH CODE | AP3: BRANCH | AQ3: STATUS | AR3: FUNCTION | AS3: REPORTING | AT3: COST CENTRE | AU3: CATEGORY | AV3: TRANSFERS
A4: ='FormF RI(1)'!A4 -> Division: | B4: ='Main Menu'!D16 -> (All) | AA4: 3 | AG4: =$B$5 -> 0 | AN4: 4 | AT4: =$B$5 -> 0 | AU4: OTHER | AV4: OTHER
A5: ='FormF RI(1)'!A5 -> Retained Income Acc:
A6: ='FormF RI(1)'!A6 -> RI Acc Description: | B6: =IF(ISNA(TRIM(VLOOKUP($B$5,Accounts!$L:$O,4,FALSE))),"",TRIM(VLOOKUP($B$5,Accounts!$L:$O,4,FALSE))) ->  | V6: GL ACCOUNT | W6: GL ACCOUNT DESCRIPTION | X6: ALT ACCOUNT | Y6: RI ACCOUNT | Z6: RI ACCOUNT DESCRIPTION | AA6: TYPE | AB6: BRANCH CODE | AC6: BRANCH | AD6: STATUS | AE6: FUNCTION | AF6: REPORTING | AG6: COST CENTRE | AI6: GL ACCOUNT | AJ6: GL ACCOUNT DESCRIPTION | AK6: ALT ACCOUNT | AL6: RI ACCOUNT | AM6: RI ACCOUNT DESCRIPTION | AN6: TYPE | AO6: BRANCH CODE | AP6: BRANCH | AQ6: STATUS | AR6: FUNCTION | AS6: REPORTING | AT6: COST CENTRE | AU6: CATEGORY | AV6: TRANSFERS
A7: =IF(LEFT($A$27,5)=$B$5,"","ALERT: PREPARE SHEET!") -> ALERT: PREPARE SHEET!
C8: Actual | D8: Actual | E8: Actual YTD | F8: Forecast | G8: Total | H8: Month | I8: Month | J8: Month | K8: Month | L8: Month | M8: Month | N8: Month | O8: Month | P8: Month | Q8: Month | R8: Month | S8: Month
C9: 2011 | D9: 2012 | E9: 2013 | F9: 2013 | G9: 2014 | H9: Jan | I9: Feb | J9: Mar | K9: Apr | L9: May | M9: Jun | N9: Jul | O9: Aug | P9: Sep | Q9: Oct | R9: Nov | S9: Dec
A11: RETAINED INCOME
A12: OPENING BALANCE | B12: =TRIM(VLOOKUP($B$5,Accounts!$L:$P,5,FALSE)) ->  | C12: =IF(ISNA(VLOOKUP($B12,Actuals!$B:$T,18,FALSE)),0,VLOOKUP($B12,Actuals!$B:$T,18,FALSE)) -> 0 | D12: =C16 -> 0 | E12: =D16 -> 0 | F12: =E12 -> 0 | G12: =F16 -> 0 | H12: =F16 -> 0 | I12: =H16 -> 0 | J12: 0 | K12: 0 | L12: 0 | M12: 0 | N12: 0 | O12: 0 | P12: 0 | Q12: 0 | R12: 0 | S12: 0
A13: GRANT | B13: =TRIM(VLOOKUP(CONCATENATE($B$5,$A$13),Accounts!$Q:$R,2,FALSE)) ->  | C13: =IF(ISNA(VLOOKUP($B13,Actuals!$B:$T,18,FALSE)),0,VLOOKUP($B13,Actuals!$B:$T,18,FALSE)) -> 0 | D13: =IF(ISNA(VLOOKUP($B13,Actuals!$B:$T,18,FALSE)),0,VLOOKUP($B13,Actuals!$B:$T,17,FALSE)) -> 0 | E13: =IF(ISNA(VLOOKUP($B13,Actuals!$B:$T,18,FALSE)),0,VLOOKUP($B13,Actuals!$B:$T,16,FALSE)) -> 0 | F13: =IF(ISNA(VLOOKUP($B13,Actuals!$B:$T,18,FALSE)),0,VLOOKUP($B13,Actuals!$B:$T,16,FALSE)) -> 0 | G13: =SUM(H13:S13) -> 0
A14: (SURPLUS)/DEFICIT FOR THE PERIOD | C14: =C18+C26 -> 0 | D14: =D18+D26 -> 0 | E14: =E18+E26 -> 0 | F14: =F18+F26 -> 0 | G14: =SUM(H14:S14) -> 0 | H14: =H18+H26 -> 0 | I14: 0 | J14: 0 | K14: 0 | L14: 0 | M14: 0 | N14: 0 | O14: 0 | P14: 0 | Q14: 0 | R14: 0 | S14: 0
A15: TRANSFERS (IN)/OUT | C15: =SUMIF(Actuals!$AC:$AC,CONCATENATE($B$5,"TRANSFERS"),Actuals!$S:$S) -> 0 | D15: =SUMIF(Actuals!$AC:$AC,CONCATENATE($B$5,"TRANSFERS"),Actuals!$R:$R) -> 0 | E15: =SUMIF(Actuals!$AC:$AC,CONCATENATE($B$5,"TRANSFERS"),Actuals!$Q:$Q) -> 0 | G15: =SUM(H15:S15) -> 0
A16: CLOSING BALANCE | B16: =IF(MAX($C$16:$S$16)>0,"A red cell indicates Cost Centre in deficit","") ->  | C16: =SUM(C12:C15) -> 0 | D16: =SUM(D12:D15) -> 0 | E16: 0 | F16: 0 | G16: 0 | H16: 0 | I16: 0 | J16: 0 | K16: 0 | L16: 0 | M16: 0 | N16: 0 | O16: 0 | P16: 0 | Q16: 0 | R16: 0 | S16: 0
A18: INCOME | C18: =SUM(C19:C24) -> 0 | D18: 0 | E18: 0 | F18: 0 | G18: 0 | H18: =SUM(H19:H24) -> 0 | I18: 0 | J18: 0 | K18: 0 | L18: 0 | M18: 0 | N18: 0 | O18: 0 | P18: 0 | Q18: 0 | R18: 0 | S18: 0
A19: =V7 -> 0 | B19: =IF(OR($A19="",$A19=0),"",VLOOKUP($A19,Accounts!$A:$L,2,FALSE)) ->  | C19: =IF($A19=0,0,SUMIF(Actuals!$B:$B,$A19,Actuals!$S:$S)) -> 0 | D19: =IF($A19=0,0,SUMIF(Actuals!$B:$B,$A19,Actuals!$R:$R)) -> 0 | E19: =IF($A19=0,0,SUMIF(Actuals!$B:$B,$A19,Actuals!$Q:$Q)) -> 0 | G19: =SUM(H19:S19) -> 0 | T19: =IF(SUM(C19:S19)=0,0,A19) -> 0
A20: =V8 -> 0 | B20: =IF(OR($A20="",$A20=0),"",VLOOKUP($A20,Accounts!$A:$L,2,FALSE)) ->  | C20: =IF($A20=0,0,SUMIF(Actuals!$B:$B,$A20,Actuals!$S:$S)) -> 0 | D20: =IF($A20=0,0,SUMIF(Actuals!$B:$B,$A20,Actuals!$R:$R)) -> 0 | E20: =IF($A20=0,0,SUMIF(Actuals!$B:$B,$A20,Actuals!$Q:$Q)) -> 0 | G20: =SUM(H20:S20) -> 0 | T20: =IF(SUM(C20:S20)=0,0,A20) -> 0
A21: 0 | B21: =IF(OR($A21="",$A21=0),"",VLOOKUP($A21,Accounts!$A:$L,2,FALSE)) ->  | C21: =IF($A21=0,0,SUMIF(Actuals!$B:$B,$A21,Actuals!$S:$S)) -> 0 | D21: =IF($A21=0,0,SUMIF(Actuals!$B:$B,$A21,Actuals!$R:$R)) -> 0 | E21: =IF($A21=0,0,SUMIF(Actuals!$B:$B,$A21,Actuals!$Q:$Q)) -> 0 | G21: 0 | T21: 0
A22: 0 | B22: =IF(OR($A22="",$A22=0),"",VLOOKUP($A22,Accounts!$A:$L,2,FALSE)) ->  | C22: =IF($A22=0,0,SUMIF(Actuals!$B:$B,$A22,Actuals!$S:$S)) -> 0 | D22: =IF($A22=0,0,SUMIF(Actuals!$B:$B,$A22,Actuals!$R:$R)) -> 0 | E22: =IF($A22=0,0,SUMIF(Actuals!$B:$B,$A22,Actuals!$Q:$Q)) -> 0 | G22: 0 | T22: 0
A23: 0 | B23: =IF(OR($A23="",$A23=0),"",VLOOKUP($A23,Accounts!$A:$L,2,FALSE)) ->  | C23: =IF($A23=0,0,SUMIF(Actuals!$B:$B,$A23,Actuals!$S:$S)) -> 0 | D23: =IF($A23=0,0,SUMIF(Actuals!$B:$B,$A23,Actuals!$R:$R)) -> 0 | E23: =IF($A23=0,0,SUMIF(Actuals!$B:$B,$A23,Actuals!$Q:$Q)) -> 0 | G23: 0 | T23: 0
B24: OTHER | C24: =IF($A24=0,0,SUMIF(Actuals!$B:$B,$A24,Actuals!$S:$S)) -> 0 | D24: =IF($A24=0,0,SUMIF(Actuals!$A:$F,$A24,Actuals!$R:$R)) -> 0 | E24: =IF($A24=0,0,SUMIF(Actuals!$B:$B,$A24,Actuals!$Q:$Q)) -> 0 | G24: 0 | T24: =IF(SUM(C24:S24)=0,0,A24) -> 0
A26: EXPENDITURE | C26: =SUM(C27:C60) -> 0 | D26: =SUM(D27:D60) -> 0 | E26: 0 | F26: 0 | G26: 0 | H26: 0 | I26: 0 | J26: 0 | K26: 0 | L26: 0 | M26: 0 | N26: 0 | O26: 0 | P26: 0 | Q26: 0 | R26: 0 | S26: 0
A27: =AI7 -> 0 | B27: =IF(OR($A27="",$A27=0),"",VLOOKUP($A27,Accounts!$A:$L,2,FALSE)) ->  | C27: =IF($A27=0,0,SUMIF(Actuals!$B:$B,$A27,Actuals!$S:$S)) -> 0 | D27: =IF($A27=0,0,SUMIF(Actuals!$B:$B,$A27,Actuals!$R:$R)) -> 0 | E27: =IF($A27=0,0,SUMIF(Actuals!$B:$B,$A27,Actuals!$Q:$Q)) -> 0 | G27: =SUM(H27:S27) -> 0 | T27: =IF(SUM(C27:S27)=0,0,B27) -> 0
A28: 0 | B28: =IF(OR($A28="",$A28=0),"",VLOOKUP($A28,Accounts!$A:$L,2,FALSE)) ->  | C28: =IF($A28=0,0,SUMIF(Actuals!$B:$B,$A28,Actuals!$S:$S)) -> 0 | D28: =IF($A28=0,0,SUMIF(Actuals!$B:$B,$A28,Actuals!$R:$R)) -> 0 | E28: =IF($A28=0,0,SUMIF(Actuals!$B:$B,$A28,Actuals!$Q:$Q)) -> 0 | G28: =SUM(H28:S28) -> 0 | T28: =IF(SUM(C28:S28)=0,0,B28) -> 0
A29: 0 | B29: =IF(OR($A29="",$A29=0),"",VLOOKUP($A29,Accounts!$A:$L,2,FALSE)) ->  | C29: =IF($A29=0,0,SUMIF(Actuals!$B:$B,$A29,Actuals!$S:$S)) -> 0 | D29: =IF($A29=0,0,SUMIF(Actuals!$B:$B,$A29,Actuals!$R:$R)) -> 0 | E29: =IF($A29=0,0,SUMIF(Actuals!$B:$B,$A29,Actuals!$Q:$Q)) -> 0 | G29: 0 | T29: 0
A30: 0 | B30: =IF(OR($A30="",$A30=0),"",VLOOKUP($A30,Accounts!$A:$L,2,FALSE)) ->  | C30: =IF($A30=0,0,SUMIF(Actuals!$B:$B,$A30,Actuals!$S:$S)) -> 0 | D30: =IF($A30=0,0,SUMIF(Actuals!$B:$B,$A30,Actuals!$R:$R)) -> 0 | E30: =IF($A30=0,0,SUMIF(Actuals!$B:$B,$A30,Actuals!$Q:$Q)) -> 0 | G30: 0 | T30: 0
A31: 0 | B31: =IF(OR($A31="",$A31=0),"",VLOOKUP($A31,Accounts!$A:$L,2,FALSE)) ->  | C31: =IF($A31=0,0,SUMIF(Actuals!$B:$B,$A31,Actuals!$S:$S)) -> 0 | D31: =IF($A31=0,0,SUMIF(Actuals!$B:$B,$A31,Actuals!$R:$R)) -> 0 | E31: =IF($A31=0,0,SUMIF(Actuals!$B:$B,$A31,Actuals!$Q:$Q)) -> 0 | G31: 0 | T31: 0 | U31: =VLOOKUP($A27,Table!$A:$G,6,FALSE) -> 
A32: 0 | B32: =IF(OR($A32="",$A32=0),"",VLOOKUP($A32,Accounts!$A:$L,2,FALSE)) ->  | C32: =IF($A32=0,0,SUMIF(Actuals!$B:$B,$A32,Actuals!$S:$S)) -> 0 | D32: =IF($A32=0,0,SUMIF(Actuals!$B:$B,$A32,Actuals!$R:$R)) -> 0 | E32: =IF($A32=0,0,SUMIF(Actuals!$B:$B,$A32,Actuals!$Q:$Q)) -> 0 | G32: 0 | T32: 0 | U32: =VLOOKUP($A28,Table!$A:$G,6,FALSE) -> 
A33: 0 | B33: =IF(OR($A33="",$A33=0),"",VLOOKUP($A33,Accounts!$A:$L,2,FALSE)) ->  | C33: =IF($A33=0,0,SUMIF(Actuals!$B:$B,$A33,Actuals!$S:$S)) -> 0 | D33: =IF($A33=0,0,SUMIF(Actuals!$B:$B,$A33,Actuals!$R:$R)) -> 0 | E33: =IF($A33=0,0,SUMIF(Actuals!$B:$B,$A33,Actuals!$Q:$Q)) -> 0 | G33: 0 | T33: 0 | U33: =VLOOKUP($A29,Table!$A:$G,6,FALSE) -> 
A34: 0 | B34: =IF(OR($A34="",$A34=0),"",VLOOKUP($A34,Accounts!$A:$L,2,FALSE)) ->  | C34: =IF($A34=0,0,SUMIF(Actuals!$B:$B,$A34,Actuals!$S:$S)) -> 0 | D34: =IF($A34=0,0,SUMIF(Actuals!$B:$B,$A34,Actuals!$R:$R)) -> 0 | E34: =IF($A34=0,0,SUMIF(Actuals!$B:$B,$A34,Actuals!$Q:$Q)) -> 0 | G34: 0 | T34: 0 | U34: =VLOOKUP($A30,Table!$A:$G,6,FALSE) -> 
A35: 0 | B35: =IF(OR($A35="",$A35=0),"",VLOOKUP($A35,Accounts!$A:$L,2,FALSE)) ->  | C35: =IF($A35=0,0,SUMIF(Actuals!$B:$B,$A35,Actuals!$S:$S)) -> 0 | D35: =IF($A35=0,0,SUMIF(Actuals!$B:$B,$A35,Actuals!$R:$R)) -> 0 | E35: =IF($A35=0,0,SUMIF(Actuals!$B:$B,$A35,Actuals!$Q:$Q)) -> 0 | G35: 0 | T35: 0 | U35: =VLOOKUP($A31,Table!$A:$G,6,FALSE) -> 
A36: 0 | B36: =IF(OR($A36="",$A36=0),"",VLOOKUP($A36,Accounts!$A:$L,2,FALSE)) ->  | C36: =IF($A36=0,0,SUMIF(Actuals!$B:$B,$A36,Actuals!$S:$S)) -> 0 | D36: =IF($A36=0,0,SUMIF(Actuals!$B:$B,$A36,Actuals!$R:$R)) -> 0 | E36: =IF($A36=0,0,SUMIF(Actuals!$B:$B,$A36,Actuals!$Q:$Q)) -> 0 | G36: 0 | T36: 0 | U36: =VLOOKUP($A32,Table!$A:$G,6,FALSE) -> 
A37: 0 | B37: =IF(OR($A37="",$A37=0),"",VLOOKUP($A37,Accounts!$A:$L,2,FALSE)) ->  | C37: =IF($A37=0,0,SUMIF(Actuals!$B:$B,$A37,Actuals!$S:$S)) -> 0 | D37: =IF($A37=0,0,SUMIF(Actuals!$B:$B,$A37,Actuals!$R:$R)) -> 0 | E37: =IF($A37=0,0,SUMIF(Actuals!$B:$B,$A37,Actuals!$Q:$Q)) -> 0 | G37: 0 | T37: 0 | U37: =VLOOKUP($A33,Table!$A:$G,6,FALSE) -> 
A38: 0 | B38: =IF(OR($A38="",$A38=0),"",VLOOKUP($A38,Accounts!$A:$L,2,FALSE)) ->  | C38: =IF($A38=0,0,SUMIF(Actuals!$B:$B,$A38,Actuals!$S:$S)) -> 0 | D38: =IF($A38=0,0,SUMIF(Actuals!$B:$B,$A38,Actuals!$R:$R)) -> 0 | E38: =IF($A38=0,0,SUMIF(Actuals!$B:$B,$A38,Actuals!$Q:$Q)) -> 0 | G38: 0 | T38: 0 | U38: =VLOOKUP($A34,Table!$A:$G,6,FALSE) -> 
A39: 0 | B39: =IF(OR($A39="",$A39=0),"",VLOOKUP($A39,Accounts!$A:$L,2,FALSE)) ->  | C39: =IF($A39=0,0,SUMIF(Actuals!$B:$B,$A39,Actuals!$S:$S)) -> 0 | D39: =IF($A39=0,0,SUMIF(Actuals!$B:$B,$A39,Actuals!$R:$R)) -> 0 | E39: =IF($A39=0,0,SUMIF(Actuals!$B:$B,$A39,Actuals!$Q:$Q)) -> 0 | G39: 0 | T39: 0 | U39: =VLOOKUP($A35,Table!$A:$G,6,FALSE) -> 
A40: 0 | B40: =IF(OR($A40="",$A40=0),"",VLOOKUP($A40,Accounts!$A:$L,2,FALSE)) ->  | C40: =IF($A40=0,0,SUMIF(Actuals!$B:$B,$A40,Actuals!$S:$S)) -> 0 | D40: =IF($A40=0,0,SUMIF(Actuals!$B:$B,$A40,Actuals!$R:$R)) -> 0 | E40: =IF($A40=0,0,SUMIF(Actuals!$B:$B,$A40,Actuals!$Q:$Q)) -> 0 | G40: 0 | T40: 0 | U40: =VLOOKUP($A36,Table!$A:$G,6,FALSE) -> 
A41: 0 | B41: =IF(OR($A41="",$A41=0),"",VLOOKUP($A41,Accounts!$A:$L,2,FALSE)) ->  | C41: =IF($A41=0,0,SUMIF(Actuals!$B:$B,$A41,Actuals!$S:$S)) -> 0 | D41: =IF($A41=0,0,SUMIF(Actuals!$B:$B,$A41,Actuals!$R:$R)) -> 0 | E41: =IF($A41=0,0,SUMIF(Actuals!$B:$B,$A41,Actuals!$Q:$Q)) -> 0 | G41: 0 | T41: 0 | U41: =VLOOKUP($A37,Table!$A:$G,6,FALSE) -> 
A42: 0 | B42: =IF(OR($A42="",$A42=0),"",VLOOKUP($A42,Accounts!$A:$L,2,FALSE)) ->  | C42: =IF($A42=0,0,SUMIF(Actuals!$B:$B,$A42,Actuals!$S:$S)) -> 0 | D42: =IF($A42=0,0,SUMIF(Actuals!$B:$B,$A42,Actuals!$R:$R)) -> 0 | E42: =IF($A42=0,0,SUMIF(Actuals!$B:$B,$A42,Actuals!$Q:$Q)) -> 0 | G42: 0 | T42: 0 | U42: =VLOOKUP($A38,Table!$A:$G,6,FALSE) -> 
A43: 0 | B43: =IF(OR($A43="",$A43=0),"",VLOOKUP($A43,Accounts!$A:$L,2,FALSE)) ->  | C43: =IF($A43=0,0,SUMIF(Actuals!$B:$B,$A43,Actuals!$S:$S)) -> 0 | D43: =IF($A43=0,0,SUMIF(Actuals!$B:$B,$A43,Actuals!$R:$R)) -> 0 | E43: =IF($A43=0,0,SUMIF(Actuals!$B:$B,$A43,Actuals!$Q:$Q)) -> 0 | G43: 0 | T43: 0 | U43: =VLOOKUP($A39,Table!$A:$G,6,FALSE) -> 
A44: 0 | B44: =IF(OR($A44="",$A44=0),"",VLOOKUP($A44,Accounts!$A:$L,2,FALSE)) ->  | C44: =IF($A44=0,0,SUMIF(Actuals!$B:$B,$A44,Actuals!$S:$S)) -> 0 | D44: =IF($A44=0,0,SUMIF(Actuals!$B:$B,$A44,Actuals!$R:$R)) -> 0 | E44: =IF($A44=0,0,SUMIF(Actuals!$B:$B,$A44,Actuals!$Q:$Q)) -> 0 | G44: 0 | T44: 0 | U44: =VLOOKUP($A40,Table!$A:$G,6,FALSE) -> 
A45: 0 | B45: =IF(OR($A45="",$A45=0),"",VLOOKUP($A45,Accounts!$A:$L,2,FALSE)) ->  | C45: =IF($A45=0,0,SUMIF(Actuals!$B:$B,$A45,Actuals!$S:$S)) -> 0 | D45: =IF($A45=0,0,SUMIF(Actuals!$B:$B,$A45,Actuals!$R:$R)) -> 0 | E45: =IF($A45=0,0,SUMIF(Actuals!$B:$B,$A45,Actuals!$Q:$Q)) -> 0 | G45: 0 | T45: 0 | U45: =VLOOKUP($A41,Table!$A:$G,6,FALSE) -> 
A46: 0 | B46: =IF(OR($A46="",$A46=0),"",VLOOKUP($A46,Accounts!$A:$L,2,FALSE)) ->  | C46: =IF($A46=0,0,SUMIF(Actuals!$B:$B,$A46,Actuals!$S:$S)) -> 0 | D46: =IF($A46=0,0,SUMIF(Actuals!$B:$B,$A46,Actuals!$R:$R)) -> 0 | E46: =IF($A46=0,0,SUMIF(Actuals!$B:$B,$A46,Actuals!$Q:$Q)) -> 0 | G46: 0 | T46: 0 | U46: =VLOOKUP($A42,Table!$A:$G,6,FALSE) -> 
A47: 0 | B47: =IF(OR($A47="",$A47=0),"",VLOOKUP($A47,Accounts!$A:$L,2,FALSE)) ->  | C47: =IF($A47=0,0,SUMIF(Actuals!$B:$B,$A47,Actuals!$S:$S)) -> 0 | D47: =IF($A47=0,0,SUMIF(Actuals!$B:$B,$A47,Actuals!$R:$R)) -> 0 | E47: =IF($A47=0,0,SUMIF(Actuals!$B:$B,$A47,Actuals!$Q:$Q)) -> 0 | G47: 0 | T47: 0 | U47: =VLOOKUP($A43,Table!$A:$G,6,FALSE) -> 
A48: 0 | B48: =IF(OR($A48="",$A48=0),"",VLOOKUP($A48,Accounts!$A:$L,2,FALSE)) ->  | C48: =IF($A48=0,0,SUMIF(Actuals!$B:$B,$A48,Actuals!$S:$S)) -> 0 | D48: =IF($A48=0,0,SUMIF(Actuals!$B:$B,$A48,Actuals!$R:$R)) -> 0 | E48: =IF($A48=0,0,SUMIF(Actuals!$B:$B,$A48,Actuals!$Q:$Q)) -> 0 | G48: 0 | T48: 0 | U48: =VLOOKUP($A44,Table!$A:$G,6,FALSE) -> 
A49: 0 | B49: =IF(OR($A49="",$A49=0),"",VLOOKUP($A49,Accounts!$A:$L,2,FALSE)) ->  | C49: =IF($A49=0,0,SUMIF(Actuals!$B:$B,$A49,Actuals!$S:$S)) -> 0 | D49: =IF($A49=0,0,SUMIF(Actuals!$B:$B,$A49,Actuals!$R:$R)) -> 0 | E49: =IF($A49=0,0,SUMIF(Actuals!$B:$B,$A49,Actuals!$Q:$Q)) -> 0 | G49: 0 | T49: 0 | U49: =VLOOKUP($A45,Table!$A:$G,6,FALSE) -> 
A50: 0 | B50: =IF(OR($A50="",$A50=0),"",VLOOKUP($A50,Accounts!$A:$L,2,FALSE)) ->  | C50: =IF($A50=0,0,SUMIF(Actuals!$B:$B,$A50,Actuals!$S:$S)) -> 0 | D50: =IF($A50=0,0,SUMIF(Actuals!$B:$B,$A50,Actuals!$R:$R)) -> 0 | E50: =IF($A50=0,0,SUMIF(Actuals!$B:$B,$A50,Actuals!$Q:$Q)) -> 0 | G50: 0 | T50: 0 | U50: =VLOOKUP($A46,Table!$A:$G,6,FALSE) -> 
A51: 0 | B51: =IF(OR($A51="",$A51=0),"",VLOOKUP($A51,Accounts!$A:$L,2,FALSE)) ->  | C51: =IF($A51=0,0,SUMIF(Actuals!$B:$B,$A51,Actuals!$S:$S)) -> 0 | D51: =IF($A51=0,0,SUMIF(Actuals!$B:$B,$A51,Actuals!$R:$R)) -> 0 | E51: =IF($A51=0,0,SUMIF(Actuals!$B:$B,$A51,Actuals!$Q:$Q)) -> 0 | G51: 0 | T51: 0 | U51: =VLOOKUP($A47,Table!$A:$G,6,FALSE) -> 
A52: 0 | B52: =IF(OR($A52="",$A52=0),"",VLOOKUP($A52,Accounts!$A:$L,2,FALSE)) ->  | C52: =IF($A52=0,0,SUMIF(Actuals!$B:$B,$A52,Actuals!$S:$S)) -> 0 | D52: =IF($A52=0,0,SUMIF(Actuals!$B:$B,$A52,Actuals!$R:$R)) -> 0 | E52: =IF($A52=0,0,SUMIF(Actuals!$B:$B,$A52,Actuals!$Q:$Q)) -> 0 | G52: 0 | T52: 0 | U52: =VLOOKUP($A48,Table!$A:$G,6,FALSE) -> 
A53: 0 | B53: =IF(OR($A53="",$A53=0),"",VLOOKUP($A53,Accounts!$A:$L,2,FALSE)) ->  | C53: =IF($A53=0,0,SUMIF(Actuals!$B:$B,$A53,Actuals!$S:$S)) -> 0 | D53: =IF($A53=0,0,SUMIF(Actuals!$B:$B,$A53,Actuals!$R:$R)) -> 0 | E53: =IF($A53=0,0,SUMIF(Actuals!$B:$B,$A53,Actuals!$Q:$Q)) -> 0 | G53: 0 | T53: 0 | U53: =VLOOKUP($A49,Table!$A:$G,6,FALSE) -> 
A54: 0 | B54: =IF(OR($A54="",$A54=0),"",VLOOKUP($A54,Accounts!$A:$L,2,FALSE)) ->  | C54: =IF($A54=0,0,SUMIF(Actuals!$B:$B,$A54,Actuals!$S:$S)) -> 0 | D54: =IF($A54=0,0,SUMIF(Actuals!$B:$B,$A54,Actuals!$R:$R)) -> 0 | E54: =IF($A54=0,0,SUMIF(Actuals!$B:$B,$A54,Actuals!$Q:$Q)) -> 0 | G54: 0 | T54: 0 | U54: =VLOOKUP($A50,Table!$A:$G,6,FALSE) -> 
A55: 0 | B55: =IF(OR($A55="",$A55=0),"",VLOOKUP($A55,Accounts!$A:$L,2,FALSE)) ->  | C55: =IF($A55=0,0,SUMIF(Actuals!$B:$B,$A55,Actuals!$S:$S)) -> 0 | D55: =IF($A55=0,0,SUMIF(Actuals!$B:$B,$A55,Actuals!$R:$R)) -> 0 | E55: =IF($A55=0,0,SUMIF(Actuals!$B:$B,$A55,Actuals!$Q:$Q)) -> 0 | G55: 0 | T55: 0 | U55: =VLOOKUP($A51,Table!$A:$G,6,FALSE) -> 
C56: =IF($A56=0,0,SUMIF(Actuals!$B:$B,$A56,Actuals!$S:$S)) -> 0 | D56: =IF($A56=0,0,SUMIF(Actuals!$B:$B,$A56,Actuals!$R:$R)) -> 0 | E56: =IF($A56=0,0,SUMIF(Actuals!$B:$B,$A56,Actuals!$Q:$Q)) -> 0 | G56: 0 | T56: 0 | U56: =VLOOKUP($A52,Table!$A:$G,6,FALSE) -> 
C57: =IF($A57=0,0,SUMIF(Actuals!$B:$B,$A57,Actuals!$S:$S)) -> 0 | D57: =IF($A57=0,0,SUMIF(Actuals!$B:$B,$A57,Actuals!$R:$R)) -> 0 | E57: =IF($A57=0,0,SUMIF(Actuals!$B:$B,$A57,Actuals!$Q:$Q)) -> 0 | G57: 0 | T57: 0 | U57: =VLOOKUP($A53,Table!$A:$G,6,FALSE) -> 
C58: =IF($A58=0,0,SUMIF(Actuals!$B:$B,$A58,Actuals!$S:$S)) -> 0 | D58: =IF($A58=0,0,SUMIF(Actuals!$B:$B,$A58,Actuals!$R:$R)) -> 0 | E58: =IF($A58=0,0,SUMIF(Actuals!$B:$B,$A58,Actuals!$Q:$Q)) -> 0 | G58: 0 | T58: 0 | U58: =VLOOKUP($A54,Table!$A:$G,6,FALSE) -> 
C59: =IF($A59=0,0,SUMIF(Actuals!$B:$B,$A59,Actuals!$S:$S)) -> 0 | D59: =IF($A59=0,0,SUMIF(Actuals!$B:$B,$A59,Actuals!$R:$R)) -> 0 | E59: =IF($A59=0,0,SUMIF(Actuals!$B:$B,$A59,Actuals!$Q:$Q)) -> 0 | G59: 0 | T59: 0 | U59: =VLOOKUP($A55,Table!$A:$G,6,FALSE) -> 
C60: =IF($A60=0,0,SUMIF(Actuals!$B:$B,$A60,Actuals!$S:$S)) -> 0 | D60: =IF($A60=0,0,SUMIF(Actuals!$B:$B,$A60,Actuals!$R:$R)) -> 0 | E60: =IF($A60=0,0,SUMIF(Actuals!$B:$B,$A60,Actuals!$Q:$Q)) -> 0 | G60: 0 | T60: 0 | U60: =VLOOKUP($A56,Table!$A:$G,6,FALSE) -> 
A62: Confirmed by Head of Department
A63: SIGNATURE
A64: NAME
A65: DATE
A67: Please return to :
A68: Finance Division
A69: Mrs Sonia Kivits
A70: e.mail | B70: s.kivitts@ru.ac.za
A71: Ext | B71: 8123
A83: Include:
A84: Estimated general running costs incurred in the daily operation of the department and primaily in support of academic/teaching activities in the Department, e.g. Consumables,stationery, telephone and small items of teaching equipment costing less than R3,000
A85: Exclude:
A86: Salaries, furniture, office equipment, academic/teaching equipment costing more than R3,000, research activity costs, conference and related travel costs

Sheet Budget2012 (hidden)
A3: BCS DEPARTMENT | B3: ACCOUNT NUMBER | C3: ACCOUNT DESCRIPTION | D3: 2012-01-01 | E3: 2012-02-01 | F3: 2012-03-01 | G3: 2012-04-01 | H3: 2012-05-01 | I3: 2012-06-01 | J3: 2012-07-01 | K3: 2012-08-01 | L3: 2012-09-01 | M3: 2012-10-01 | N3: 2012-11-01 | O3: 2012-12-01 | P3: TOTAL | Q3: BCS Account Category | S3: BCS DEPARTMENT | T3: ACCOUNT NUMBER | U3: ACCOUNT DESCRIPTION | V3: 2012-01-01 | W3: 2012-02-01 | X3: 2012-03-01 | Y3: 2012-04-01 | Z3: 2012-05-01 | AA3: 2012-06-01 | AB3: 2012-07-01 | AC3: 2012-08-01 | AD3: 2012-09-01 | AE3: 2012-10-01 | AF3: 2012-11-01 | AG3: 2012-12-01 | AH3: TOTAL | AI3: BCS Account Category
S4: Academic Departments | T4: 02150880168 | U4: EQUIPMENT GRANTS - ACADEMIC DEPTS | V4: 0 | W4: 3355000 | X4: 3021126 | Y4: 0 | Z4: 0 | AA4: 0 | AB4: 0 | AC4: 0 | AD4: 0 | AE4: 0 | AF4: 0 | AG4: 0 | AH4: 6376126 | AI4: Capital Equipment
S5: Academic Departments | T5: 02020880168 | U5: SCIENCE FACULTY EQUIP. REPAIRS GNT | V5: 50000 | W5: 0 | X5: 0 | Y5: 0 | Z5: 0 | AA5: 0 | AB5: 0 | AC5: 0 | AD5: 0 | AE5: 0 | AF5: 0 | AG5: 0 | AH5: 50000 | AI5: Department Running Grants
S6: Academic Departments | T6: 02020881168 | U6: ARTS FACULTY EQUIP REPAIR GRANT | V6: 10000 | W6: 0 | X6: 0 | Y6: 0 | Z6: 0 | AA6: 0 | AB6: 0 | AC6: 0 | AD6: 0 | AE6: 0 | AF6: 0 | AG6: 0 | AH6: 10000 | AI6: Department Running Grants
S7: Academic Departments | T7: 02020882168 | U7: PHARMACY FACULTY EQUIP REPAIR GRANT | V7: 70000 | W7: 0 | X7: 0 | Y7: 0 | Z7: 0 | AA7: 0 | AB7: 0 | AC7: 0 | AD7: 0 | AE7: 0 | AF7: 0 | AG7: 0 | AH7: 70000 | AI7: Department Running Grants
S8: Academic Departments | T8: 02040880168 | U8: HUMAN OPER EXP GRANT | V8: 3276700 | W8: 0 | X8: 0 | Y8: 0 | Z8: 0 | AA8: 0 | AB8: 0 | AC8: 0 | AD8: 0 | AE8: 0 | AF8: 0 | AG8: 0 | AH8: 3276700 | AI8: Department Running Grants
S9: Academic Departments | T9: 02050880168 | U9: SCIE OPER EXP GRANT | V9: 5381300 | W9: 0 | X9: 0 | Y9: 0 | Z9: 0 | AA9: 0 | AB9: 0 | AC9: 0 | AD9: 0 | AE9: 0 | AF9: 0 | AG9: 0 | AH9: 5381300 | AI9: Department Running Grants
S10: Academic Departments | T10: 02410880168 | U10: DEANS FUND GRANT | V10: 212000 | W10: 0 | X10: 0 | Y10: 0 | Z10: 0 | AA10: 0 | AB10: 0 | AC10: 0 | AD10: 0 | AE10: 0 | AF10: 0 | AG10: 0 | AH10: 212000 | AI10: Faculty Running Grants
S11: Academic Departments | T11: 00002021102 | U11: ANTHROPO ACAD SALS PERM | V11: 255196.16 | W11: 261383.4 | X11: 229699.6 | Y11: 229699.6 | Z11: 229699.6 | AA11: 229699.6 | AB11: 265370.19 | AC11: 229699.6 | AD11: 266182.65 | AE11: 268311.78 | AF11: 229699.6 | AG11: 229699.6 | AH11: 2924341.38 | AI11: Staff Costs
S12: Academic Departments | T12: 00004021102 | U12: DRAMA ACAD SALS PERM | V12: 374998.96 | W12: 414075.76 | X12: 365348.91 | Y12: 386864.23 | Z12: 355998.71 | AA12: 355998.71 | AB12: 355998.71 | AC12: 392582.12 | AD12: 389571.82 | AE12: 377929.79 | AF12: 371321.09 | AG12: 355998.71 | AH12: 4496687.52 | AI12: Staff Costs
S13: Academic Departments | T13: 00005021102 | U13: ENGLISH ACAD SALS PERM | V13: 382044.02 | W13: 382044.02 | X13: 397608.94 | Y13: 417713.6 | Z13: 417712.6 | AA13: 446491.68 | AB13: 403464.11 | AC13: 431284.97 | AD13: 403465.11 | AE13: 417713.6 | AF13: 382044.02 | AG13: 382044.02 | AH13: 4863630.69 | AI13: Staff Costs
S14: Academic Departments | T14: 00006021102 | U14: FINE ART ACAD SALS PERM | V14: 483607.66 | W14: 484020.13 | X14: 517938.17 | Y14: 444622.41 | Z14: 496172.77 | AA14: 500017.93 | AB14: 459316.74 | AC14: 470897.72 | AD14: 434432.61 | AE14: 429063.64 | AF14: 441819.5 | AG14: 445244.6 | AH14: 5607153.88 | AI14: Staff Costs
S15: Academic Departments | T15: 00009021102 | U15: HISTORY ACAD SALS PERM | V15: 237647.91 | W15: 237647.91 | X15: 237647.91 | Y15: 237647.91 | Z15: 237647.91 | AA15: 247799.39 | AB15: 237647.91 | AC15: 355958.85 | AD15: 261683.54 | AE15: 237647.91 | AF15: 269297.45 | AG15: 237647.91 | AH15: 3035922.51 | AI15: Staff Costs
S16: Academic Departments | T16: 00010021102 | U16: HKE ACAD SALS PERM | V16: 248463.25 | W16: 257397.78 | X16: 211940.3 | Y16: 211940.3 | Z16: 221731.56 | AA16: 211940.3 | AB16: 211940.3 | AC16: 250113.65 | AD16: 211940.3 | AE16: 211940.3 | AF16: 211940.3 | AG16: 237534.31 | AH16: 2698822.65 | AI16: Staff Costs
S17: Academic Departments | T17: 00011021102 | U17: JOURN ACAD SALS PERM | V17: 1032549.55 | W17: 940244.55 | X17: 940782.82 | Y17: 949355.75 | Z17: 926094.9 | AA17: 980453.67 | AB17: 1009675.56 | AC17: 997784.03 | AD17: 990725.81 | AE17: 946268.92 | AF17: 1010429.19 | AG17: 968812.29 | AH17: 11693177.04 | AI17: Staff Costs
S18: Academic Departments | T18: 00012021102 | U18: LING ACAD SALS PERM | V18: 264119.22 | W18: 264119.22 | X18: 264119.22 | Y18: 337792.91 | Z18: 264119.22 | AA18: 264119.22 | AB18: 298705.71 | AC18: 287380.07 | AD18: 287186.62 | AE18: 294372.32 | AF18: 264119.22 | AG18: 264119.22 | AH18: 3354272.17 | AI18: Staff Costs
S19: Academic Departments | T19: 00013021102 | U19: MUSIC ACAD SALS PERM | V19: 352062.11 | W19: 377558.66 | X19: 352062.11 | Y19: 405016.62 | Z19: 352062.11 | AA19: 359020.78 | AB19: 390507.24 | AC19: 357431.07 | AD19: 352062.11 | AE19: 376651.63 | AF19: 377558.43 | AG19: 352062.11 | AH19: 4404054.98 | AI19: Staff Costs
S20: Academic Departments | T20: 00014021102 | U20: PHILOSO ACAD SALS PERM | V20: 261713.56 | W20: 233191.39 | X20: 257229.04 | Y20: 233191.39 | Z20: 233191.39 | AA20: 241681.06 | AB20: 293137.83 | AC20: 233586.76 | AD20: 262108.93 | AE20: 233586.76 | AF20: 233586.76 | AG20: 257185.13 | AH20: 2973390 | AI20: Staff Costs
S21: Academic Departments | T21: 00015021102 | U21: SC OF LANG ACAD SALARIES PERM | V21: 630710.32 | W21: 648324.46 | X21: 694668.83 | Y21: 603642.52 | Z21: 700254.98 | AA21: 626903.37 | AB21: 603642.52 | AC21: 654077.46 | AD21: 623835.02 | AE21: 637263.83 | AF21: 603642.52 | AG21: 650558.91 | AH21: 7677524.74 | AI21: Staff Costs
S22: Academic Departments | T22: 00016021102 | U22: DEAN OF HUMANITIES ACAD SAL PERM ST | V22: 94677.44 | W22: 110858.41 | X22: 94677.44 | Y22: 94677.44 | Z22: 94677.44 | AA22: 94677.44 | AB22: 102406.27 | AC22: 102406.27 | AD22: 102406.27 | AE22: 140454.63 | AF22: 102406.27 | AG22: 222510.53 | AH22: 1356835.85 | AI22: Staff Costs
S23: Academic Departments | T23: 00019021102 | U23: DEAN OF COMMERCE ACAD SAL PERM STAF | V23: 90095.89 | W23: 90095.89 | X23: 90095.89 | Y23: 129038.84 | Z23: 90095.89 | AA23: 90095.89 | AB23: 90095.89 | AC23: 90095.89 | AD23: 90095.89 | AE23: 90095.89 | AF23: 90095.89 | AG23: 127870.74 | AH23: 1157868.48 | AI23: Staff Costs
S24: Academic Departments | T24: 00020021102 | U24: ACCOUNTING ACAD SALARIES PERM | V24: 785257.09 | W24: 791387.91 | X24: 812191.39 | Y24: 773436.32 | Z24: 766793.97 | AA24: 788940.2 | AB24: 772104.96 | AC24: 762243.09 | AD24: 855077.16 | AE24: 833813.99 | AF24: 783663.17 | AG24: 762243.09 | AH24: 9487152.34 | AI24: Staff Costs
S25: Academic Departments | T25: 00021021102 | U25: ECONOMIC ACAD SALS PERM | V25: 620858.09 | W25: 557696.04 | X25: 568921.93 | Y25: 557696.04 | Z25: 564654.22 | AA25: 606027.25 | AB25: 637888.37 | AC25: 618017.86 | AD25: 583301.4 | AE25: 557696.04 | AF25: 613418.49 | AG25: 609369.23 | AH25: 7095544.96 | AI25: Staff Costs
S26: Academic Departments | T26: 00022021102 | U26: INF SYS ACAD SALS PERM | V26: 392321.03 | W26: 392321.03 | X26: 459623.41 | Y26: 397486.6 | Z26: 416973.02 | AA26: 392321.03 | AB26: 392672.7 | AC26: 422154.06 | AD26: 392672.7 | AE26: 440548.58 | AF26: 448309.16 | AG26: 396734.94 | AH26: 4944138.26 | AI26: Staff Costs
S27: Academic Departments | T27: 00023021102 | U27: MANAGEMENT ACAD SALARIES PERM | V27: 393054.64 | W27: 397359.55 | X27: 371148.92 | Y27: 385398.42 | Z27: 349727.83 | AA27: 349727.83 | AB27: 349727.83 | AC27: 372795.23 | AD27: 349727.83 | AE27: 357341.44 | AF27: 349727.83 | AG27: 407483.48 | AH27: 4433220.83 | AI27: Staff Costs
S28: Academic Departments | T28: 00030021102 | U28: EDUCATION ACAD SALARIES PERM | V28: 831414.43 | W28: 861958.11 | X28: 825996.24 | Y28: 820830.67 | Z28: 929694.29 | AA28: 866522.16 | AB28: 864175.25 | AC28: 846981.11 | AD28: 842250.51 | AE28: 900591.2 | AF28: 881709.32 | AG28: 830867.16 | AH28: 10302990.45 | AI28: Staff Costs
S29: Academic Departments | T29: 00040021102 | U29: LAW ACAD SALS PERM | V29: 696959.88 | W29: 754167.43 | X29: 672922.22 | Y29: 698418.78 | Z29: 707906.94 | AA29: 719685.72 | AB29: 734826.88 | AC29: 714182.14 | AD29: 699073.02 | AE29: 700380.44 | AF29: 715879.34 | AG29: 759618.55 | AH29: 8574021.34 | AI29: Staff Costs
S30: Academic Departments | T30: 00050021102 | U30: PHARMACY ACAD SALS PERM | V30: 864713.51 | W30: 820226.02 | X30: 824770.05 | Y30: 890141.06 | Z30: 893753.97 | AA30: 878979.51 | AB30: 841646.11 | AC30: 888713.37 | AD30: 860993.7 | AE30: 862276.12 | AF30: 869637.31 | AG30: 914682.22 | AH30: 10410532.95 | AI30: Staff Costs
S31: Academic Departments | T31: 00059021102 | U31: DEAN OF SCIENCE ACAD SAL PERM STAFF | V31: 98544.75 | W31: 114846.47 | X31: 98544.75 | Y31: 138494.33 | Z31: 98544.75 | AA31: 98544.75 | AB31: 98544.75 | AC31: 98544.75 | AD31: 98544.75 | AE31: 98544.75 | AF31: 98544.75 | AG31: 258972.39 | AH31: 1399215.94 | AI31: Staff Costs
S32: Academic Departments | T32: 00061021102 | U32: MICROBIO ACAD SALS PERM | V32: 534863.62 | W32: 530112.8 | X32: 603328.15 | Y32: 568204.55 | Z32: 575029.21 | AA32: 576267.42 | AB32: 530112.8 | AC32: 565254.98 | AD32: 569576.01 | AE32: 547872.89 | AF32: 625435.77 | AG32: 538862.8 | AH32: 6764921 | AI32: Staff Costs
S33: Academic Departments | T33: 00062021102 | U33: BOTANY ACAD SALS PERM | V33: 306386.96 | W33: 336257.11 | X33: 301636.13 | Y33: 325673.78 | Z33: 307475.52 | AA33: 336820.84 | AB33: 307005.1 | AC33: 301636.13 | AD33: 317817.18 | AE33: 369024.11 | AF33: 301636.13 | AG33: 301636.13 | AH33: 3813005.12 | AI33: Staff Costs
S34: Academic Departments | T34: 00063021102 | U34: CHEMISTRY ACAD SALARIES PERM | V34: 655099.65 | W34: 598636.1 | X34: 552843.82 | Y34: 578340.37 | Z34: 564496.53 | AA34: 565078.81 | AB34: 570335.67 | AC34: 579015.74 | AD34: 557387.84 | AE34: 570865.33 | AF34: 583096.92 | AG34: 573760.06 | AH34: 6948956.84 | AI34: Staff Costs
S35: Academic Departments | T35: 00064021102 | U35: COMP SCI ACAD SALS PERM | V35: 588325.77 | W35: 637852.86 | X35: 538203.44 | Y35: 585813.53 | Z35: 538203.44 | AA35: 588352.24 | AB35: 559623.53 | AC35: 538203.44 | AD35: 576346.19 | AE35: 613925.52 | AF35: 538203.44 | AG35: 538203.44 | AH35: 6841256.84 | AI35: Staff Costs
S36: Academic Departments | T36: 00065021102 | U36: GEOGRAPHY ACAD SALARIES PERM | V36: 292984.28 | W36: 371129.31 | X36: 292984.28 | Y36: 302521.76 | Z36: 292984.28 | AA36: 292984.28 | AB36: 292984.28 | AC36: 366664.95 | AD36: 308552.27 | AE36: 314384.25 | AF36: 292984.28 | AG36: 292984.28 | AH36: 3714142.5 | AI36: Staff Costs
S37: Academic Departments | T37: 00066021102 | U37: GEOLOGY ACAD SALS PERM | V37: 373109.11 | W37: 345073.06 | X37: 397063.93 | Y37: 347460.08 | Z37: 340529.04 | AA37: 345190 | AB37: 340958.1 | AC37: 340958.1 | AD37: 340958.1 | AE37: 433002.61 | AF37: 340958.1 | AG37: 367213.33 | AH37: 4312473.56 | AI37: Staff Costs
S38: Academic Departments | T38: 00067021102 | U38: ICHTHY ACAD SALS PERM | V38: 354350.85 | W38: 345190.29 | X38: 368039.18 | Y38: 364769.32 | Z38: 368593.02 | AA38: 385050.37 | AB38: 365215.78 | AC38: 334963.68 | AD38: 334963.68 | AE38: 368593.02 | AF38: 334963.68 | AG38: 334963.68 | AH38: 4259656.55 | AI38: Staff Costs
S39: Academic Departments | T39: 00068021102 | U39: MATHS PA ACAD SALS PERM | V39: 308303.96 | W39: 329723.8 | X39: 308303.96 | Y39: 308303.96 | Z39: 328496.46 | AA39: 316306.44 | AB39: 308303.96 | AC39: 368010.19 | AD39: 379818.44 | AE39: 308303.96 | AF39: 308303.96 | AG39: 308303.96 | AH39: 3880483.05 | AI39: Staff Costs
S40: Academic Departments | T40: 00069021102 | U40: PHYSICS ACAD SALS PERM | V40: 319654.12 | W40: 287650.71 | X40: 318798.39 | Y40: 292194.73 | Z40: 313147.26 | AA40: 297098.69 | AB40: 305543.71 | AC40: 317903.81 | AD40: 313147.34 | AE40: 307845.64 | AF40: 295333.33 | AG40: 287650.71 | AH40: 3655968.44 | AI40: Staff Costs
S41: Academic Departments | T41: 00070021102 | U41: STATS ACAD SALS PERM | V41: 309190.15 | W41: 342979.15 | X41: 341770.65 | Y41: 309190.15 | Z41: 309190.15 | AA41: 330610.24 | AB41: 362048.59 | AC41: 330611.24 | AD41: 309190.15 | AE41: 309190.15 | AF41: 348759.88 | AG41: 336057.95 | AH41: 3938788.45 | AI41: Staff Costs
S42: Academic Departments | T42: 00071021102 | U42: ZOO/ENT ACAD SALS PERM | V42: 524612.49 | W42: 503805.57 | X42: 503735.16 | Y42: 482782.86 | Z42: 478238.83 | AA42: 493471.93 | AB42: 515018.28 | AC42: 478434.86 | AD42: 541395.86 | AE42: 514549.87 | AF42: 515018.28 | AG42: 515018.78 | AH42: 6066082.77 | AI42: Staff Costs
S43: Academic Departments | T43: 00072021102 | U43: ENV SCIENC ACAD SALARIES PERM | V43: 197980.81 | W43: 197980.81 | X43: 228644.98 | Y43: 197980.81 | Z43: 210216.82 | AA43: 223477.36 | AB43: 197980.81 | AC43: 197980.81 | AD43: 197980.81 | AE43: 197980.81 | AF43: 258452.76 | AG43: 209515.84 | AH43: 2516173.43 | AI43: Staff Costs
S44: Academic Departments | T44: 00081021102 | U44: POL STUD ACAD SALS PERM | V44: 400216.38 | W44: 372767.23 | X44: 364554.85 | Y44: 337096.64 | Z44: 337096.64 | AA44: 341663.78 | AB44: 337323.03 | AC44: 362819.59 | AD44: 337323.03 | AE44: 360009.25 | AF44: 337323.03 | AG44: 368055.27 | AH44: 4256248.72 | AI44: Staff Costs
S45: Academic Departments | T45: 00082021102 | U45: PSYCHO ACAD SALS PERM | V45: 776200.91 | W45: 719365.97 | X45: 718656.16 | Y45: 793576.75 | Z45: 719365.97 | AA45: 738376.26 | AB45: 761596.13 | AC45: 697945.88 | AD45: 735526.97 | AE45: 697945.88 | AF45: 697945.88 | AG45: 738795.77 | AH45: 8795298.53 | AI45: Staff Costs
S46: Academic Departments | T46: 00084021102 | U46: SOCIOLGY ACAD SALS PERM | V46: 402170.54 | W46: 426208.19 | X46: 402170.54 | Y46: 402170.54 | Z46: 422363.46 | AA46: 446025.55 | AB46: 423590.63 | AC46: 430690.69 | AD46: 402170.54 | AE46: 408034.25 | AF46: 402170.54 | AG46: 455684.49 | AH46: 5023449.96 | AI46: Staff Costs
S47: Academic Departments | T47: 00101024100 | U47: EM UNIT SALS PERM STAFF | V47: 36577.4 | W47: 36577.4 | X47: 36577.4 | Y47: 44891.99 | Z47: 36577.4 | AA47: 36577.4 | AB47: 36577.4 | AC47: 36577.4 | AD47: 36577.4 | AE47: 52458.53 | AF47: 36577.4 | AG47: 36577.4 | AH47: 463124.52 | AI47: Staff Costs
S48: Academic Departments | T48: 00102021104 | U48: CHERTL SALS PERM | V48: 580594.62 | W48: 580594.62 | X48: 606091.17 | Y48: 615982.68 | Z48: 580594.62 | AA48: 599372.96 | AB48: 395818.15 | AC48: 354608.02 | AD48: 312994.44 | AE48: 392384.25 | AF48: 389325.56 | AG48: 325972.24 | AH48: 5734333.33 | AI48: Staff Costs
S49: Academic Departments | T49: 02750021100 | U49: ACADEMIC GENERAL SALARIES PERM STAF | V49: 308738.5 | W49: 4879604.5 | X49: 267738.5 | Y49: 267738.5 | Z49: 327738.5 | AA49: 407738.5 | AB49: 347738.5 | AC49: 347738.5 | AD49: 267738.5 | AE49: 267738.5 | AF49: 267738.5 | AG49: 817738.5 | AH49: 8775728 | AI49: Staff Costs
S50: Academic Departments | T50: 02699553105 | U50: DVC A & SA TRAVEL FUND | V50: 3750 | W50: 3750 | X50: 3750 | Y50: 3750 | Z50: 3750 | AA50: 3750 | AB50: 3750 | AC50: 3750 | AD50: 3750 | AE50: 3750 | AF50: 3750 | AG50: 3750 | AH50: 45000 | AI50: Travel Grants
S51: Bursaries & Fee Rebates | T51: 16021626139 | U51: RU HONOURS SCHOLARSHIPS | V51: 0 | W51: 0 | X51: 2600000 | Y51: 0 | Z51: 0 | AA51: 0 | AB51: 0 | AC51: 0 | AD51: 0 | AE51: 0 | AF51: 0 | AG51: 0 | AH51: 2600000 | AI51: Bursaries awarded
S52: Bursaries & Fee Rebates | T52: 16060880168 | U52: JAKES GERWEL BURSARY TRANSFERS | V52: 0 | W52: 0 | X52: 450000 | Y52: 0 | Z52: 0 | AA52: 0 | AB52: 0 | AC52: 0 | AD52: 0 | AE52: 0 | AF52: 0 | AG52: 0 | AH52: 450000 | AI52: Jakes Gerwel bursary fund
S53: Bursaries & Fee Rebates | T53: 16005621138 | U53: SECOND CHILD ALLOWANCE EXP U/G | V53: 0 | W53: 0 | X53: 2597000 | Y53: 0 | Z53: 0 | AA53: 0 | AB53: 0 | AC53: 0 | AD53: 0 | AE53: 0 | AF53: 0 | AG53: 0 | AH53: 2597000 | AI53: Second child allowances
S54: Bursaries & Fee Rebates | T54: 16000311102 | U54: STAFF ALLOWANCE BURSARY CAT A | V54: 8000 | W54: 0 | X54: 3556000 | Y54: 0 | Z54: 0 | AA54: 0 | AB54: 0 | AC54: 0 | AD54: 0 | AE54: 0 | AF54: 0 | AG54: 0 | AH54: 3564000 | AI54: Staff allowances
S55: Bursaries & Fee Rebates | T55: 16018621138 | U55: RU MERIT AWARDS | V55: 0 | W55: 0 | X55: 4339000 | Y55: 0 | Z55: 0 | AA55: 0 | AB55: 0 | AC55: 0 | AD55: 0 | AE55: 0 | AF55: 0 | AG55: 0 | AH55: 4339000 | AI55: Undergrad awards
S56: Central Cleaning Services | T56: 10121426133 | U56: CCS UNIFORMS | V56: 6516.67 | W56: 6516.67 | X56: 6516.67 | Y56: 6516.67 | Z56: 6516.67 | AA56: 6516.67 | AB56: 6516.67 | AC56: 6516.67 | AD56: 6516.67 | AE56: 6516.67 | AF56: 6516.67 | AG56: 6516.63 | AH56: 78200 | AI56: Equipment & consumables
S57: Central Cleaning Services | T57: 10130426133 | U57: CENTRAL CLEANING | V57: 56833.33 | W57: 56833.33 | X57: 56833.33 | Y57: 56833.33 | Z57: 56833.33 | AA57: 56833.33 | AB57: 56833.33 | AC57: 56833.33 | AD57: 56833.33 | AE57: 56833.33 | AF57: 56833.33 | AG57: 56833.37 | AH57: 682000 | AI57: Equipment & consumables
S58: Central Cleaning Services | T58: 10140651133 | U58: DLL129EC KIA MAT | V58: 208.33 | W58: 208.33 | X58: 208.33 | Y58: 208.33 | Z58: 208.33 | AA58: 208.33 | AB58: 208.33 | AC58: 208.33 | AD58: 208.33 | AE58: 208.33 | AF58: 208.33 | AG58: 208.37 | AH58: 2500 | AI58: Equipment & consumables
S59: Central Cleaning Services | T59: 10140661133 | U59: DLL129EC KIA W/T ENG | V59: 1625 | W59: 1625 | X59: 1625 | Y59: 1625 | Z59: 1625 | AA59: 1625 | AB59: 1625 | AC59: 1625 | AD59: 1625 | AE59: 1625 | AF59: 1625 | AG59: 1625 | AH59: 19500 | AI59: Equipment & consumables
S60: Central Cleaning Services | T60: 10141656133 | U60: FLT473EC KIA PICKUP FUEL & OIL | V60: 541.67 | W60: 541.67 | X60: 541.67 | Y60: 541.67 | Z60: 541.67 | AA60: 541.67 | AB60: 541.67 | AC60: 541.67 | AD60: 541.67 | AE60: 541.67 | AF60: 541.67 | AG60: 541.63 | AH60: 6500 | AI60: Equipment & consumables
S61: Central Cleaning Services | T61: 10141661133 | U61: FLT473EC KIA W/T ENG | V61: 1316.67 | W61: 1316.67 | X61: 1316.67 | Y61: 1316.67 | Z61: 1316.67 | AA61: 1316.67 | AB61: 1316.67 | AC61: 1316.67 | AD61: 1316.67 | AE61: 1316.67 | AF61: 1316.67 | AG61: 1316.63 | AH61: 15800 | AI61: Equipment & consumables
S62: Central Cleaning Services | T62: 10150500133 | U62: ACADEMIC BUILDINGS CONTRACT CLEANIN | V62: 21666.67 | W62: 21666.67 | X62: 21666.67 | Y62: 21666.67 | Z62: 21666.67 | AA62: 21666.67 | AB62: 21666.67 | AC62: 21666.67 | AD62: 21666.67 | AE62: 21666.67 | AF62: 21666.67 | AG62: 21666.63 | AH62: 260000 | AI62: Equipment & consumables
S63: Central Cleaning Services | T63: 10150804157 | U63: CLEANING F&E | V63: 7231.25 | W63: 7231.25 | X63: 7231.25 | Y63: 7231.25 | Z63: 7231.25 | AA63: 7231.25 | AB63: 7231.25 | AC63: 7231.25 | AD63: 7231.25 | AE63: 7231.25 | AF63: 7231.25 | AG63: 7231.25 | AH63: 86775 | AI63: Equipment & consumables
S64: Central Cleaning Services | T64: 10165500133 | U64: CLEANING MISCELLANEOUS | V64: 291.67 | W64: 291.67 | X64: 291.67 | Y64: 291.67 | Z64: 291.67 | AA64: 291.67 | AB64: 291.67 | AC64: 291.67 | AD64: 291.67 | AE64: 291.67 | AF64: 291.67 | AG64: 291.63 | AH64: 3500 | AI64: Equipment & consumables
S65: Central Cleaning Services | T65: 10165546133 | U65: CLEANING STAFF TRAINING | V65: 2083.33 | W65: 2083.33 | X65: 2083.33 | Y65: 2083.33 | Z65: 2083.33 | AA65: 2083.33 | AB65: 2083.33 | AC65: 2083.33 | AD65: 2083.33 | AE65: 2083.33 | AF65: 2083.33 | AG65: 2083.37 | AH65: 25000 | AI65: Equipment & consumables
S66: Central Cleaning Services | T66: 10220426133 | U66: EDEN GROVE CLEANING | V66: 10833.33 | W66: 10833.33 | X66: 10833.33 | Y66: 10833.33 | Z66: 10833.33 | AA66: 10833.33 | AB66: 10833.33 | AC66: 10833.33 | AD66: 10833.33 | AE66: 10833.33 | AF66: 10833.33 | AG66: 10833.37 | AH66: 130000 | AI66: Equipment & consumables
S67: Central Cleaning Services | T67: 10000027100 | U67: CLEANING SALARIES G PERM STAFF | V67: 305485.84 | W67: 322260.83 | X67: 300055.06 | Y67: 290150.66 | Z67: 315002.2 | AA67: 310029.86 | AB67: 295105.36 | AC67: 318170.89 | AD67: 294904.23 | AE67: 309851.42 | AF67: 308744.24 | AG67: 308741.64 | AH67: 3678502.23 | AI67: Staff Costs
S68: Communication & Marketing | T68: 07430500128 | U68: COMM EXT PHOTOGRAPHY | V68: 7860 | W68: 7860 | X68: 1200 | Y68: 200 | Z68: 7860 | AA68: 7860 | AB68: 7860 | AC68: 7860 | AD68: 7860 | AE68: 7860 | AF68: 7860 | AG68: 7860 | AH68: 80000 | AI68: Collateral material
S69: Communication & Marketing | T69: 07006441128 | U69: COMM DIRECTOR ENTERTAIN | V69: 6241 | W69: 3125.26 | X69: 7191.9 | Y69: 3651.84 | Z69: 3690 | AA69: 3690 | AB69: 3960 | AC69: 3690 | AD69: 3690 | AE69: 3690 | AF69: 3690 | AG69: 3690 | AH69: 50000 | AI69: Directorate
S70: Communication & Marketing | T70: 07006546128 | U70: COMM DIRECTOR TELEPHONE | V70: 2372.65 | W70: 1638 | X70: 1635.5 | Y70: 2393.85 | Z70: 2370 | AA70: 2370 | AB70: 2370 | AC70: 2370 | AD70: 2370 | AE70: 2370 | AF70: 2370 | AG70: 2370 | AH70: 27000 | AI70: Directorate
S71: Communication & Marketing | T71: 07006551128 | U71: COMM DIRECTOR TRAVEL/SUBSISTENCE | V71: 6241.74 | W71: 3125.26 | X71: 7461.9 | Y71: 8131.1 | Z71: 3130 | AA71: 3130 | AB71: 3130 | AC71: 3130 | AD71: 3130 | AE71: 3130 | AF71: 3130 | AG71: 3130 | AH71: 50000 | AI71: Directorate
S72: Communication & Marketing | T72: 07400441128 | U72: COMM EXT ENTERTAIN | V72: 2166.67 | W72: 2166.67 | X72: 2166.66 | Y72: 2220 | Z72: 2160 | AA72: 2160 | AB72: 2160 | AC72: 2160 | AD72: 2160 | AE72: 2160 | AF72: 2160 | AG72: 2160 | AH72: 26000 | AI72: Directorate
S73: Communication & Marketing | T73: 07400551128 | U73: COMM EXT TRAV & SUBSISTENCE | V73: 936.57 | W73: 14595.66 | X73: 1316.57 | Y73: 5791.2 | Z73: 3420 | AA73: 3420 | AB73: 3420 | AC73: 3420 | AD73: 3420 | AE73: 3420 | AF73: 3420 | AG73: 3420 | AH73: 50000 | AI73: Directorate
S74: Communication & Marketing | T74: 07570441128 | U74: COMM INTERN ENTERTAINMENT | V74: 870 | W74: 830 | X74: 830 | Y74: 830 | Z74: 830 | AA74: 830 | AB74: 830 | AC74: 830 | AD74: 830 | AE74: 830 | AF74: 830 | AG74: 830 | AH74: 10000 | AI74: Directorate
S75: Communication & Marketing | T75: 07570551128 | U75: COMM INTERN TRAVEL & SUBSISTENCE | V75: 7405.57 | W75: 210 | X75: 4224.43 | Y75: 4240 | Z75: 4240 | AA75: 4240 | AB75: 4240 | AC75: 4240 | AD75: 4240 | AE75: 4240 | AF75: 4240 | AG75: 4240 | AH75: 50000 | AI75: Directorate
S76: Communication & Marketing | T76: 07051541128 | U76: COMM & MARKET GENERAL STATIONERY | V76: 737.38 | W76: 556.92 | X76: 104.4 | Y76: 2561.3 | Z76: 2630 | AA76: 2630 | AB76: 2630 | AC76: 2630 | AD76: 2630 | AE76: 2630 | AF76: 2630 | AG76: 2630 | AH76: 25000 | AI76: External Media
S77: Communication & Marketing | T77: 07410500128 | U77: COMM EXT MONITR SERVICE/MEDIA MONIT | V77: 6905.84 | W77: 6908.29 | X77: 8091.28 | Y77: 7374.59 | Z77: 11340 | AA77: 11340 | AB77: 11340 | AC77: 11340 | AD77: 11340 | AE77: 11340 | AF77: 11340 | AG77: 11340 | AH77: 120000 | AI77: External media
S78: Communication & Marketing | T78: 07440405128 | U78: COMM PUBLIC & ADV CORPORATE AD | V78: 8333.33 | W78: 8333.33 | X78: 8363.34 | Y78: 8330 | Z78: 8330 | AA78: 8330 | AB78: 8330 | AC78: 8330 | AD78: 8330 | AE78: 8330 | AF78: 8330 | AG78: 8330 | AH78: 100000 | AI78: External Media
S79: Communication & Marketing | T79: 07450035100 | U79: COMM PUBLIC & ADV FREELANCE SALARY | V79: 15000 | W79: 15000 | X79: 15000 | Y79: 15000 | Z79: 15000 | AA79: 15000 | AB79: 15000 | AC79: 15000 | AD79: 15000 | AE79: 15000 | AF79: 15000 | AG79: 15000 | AH79: 180000 | AI79: External Media
S80: Communication & Marketing | T80: 07450541128 | U80: COMM EXT SPECIAL PROJECTS | V80: 62177 | W80: 995 | X80: 16441 | Y80: 93547 | Z80: 23230 | AA80: 23230 | AB80: 23230 | AC80: 23230 | AD80: 23230 | AE80: 23230 | AF80: 23230 | AG80: 23230 | AH80: 359000 | AI80: External media
S81: Communication & Marketing | T81: 07560500128 | U81: COMM PUBLIC & ADVERT PUBLICATIONS | V81: 8370 | W81: 8330 | X81: 8330 | Y81: 8330 | Z81: 8330 | AA81: 8330 | AB81: 8330 | AC81: 8330 | AD81: 8330 | AE81: 8330 | AF81: 8330 | AG81: 8330 | AH81: 100000 | AI81: External Media
S82: Communication & Marketing | T82: 07850031128 | U82: COMM ACAD MARKET F/LANCE SALARIES | V82: 15848 | W82: 39584 | X82: 51621 | Y82: 14107 | Z82: 15230 | AA82: 15230 | AB82: 15230 | AC82: 15230 | AD82: 15230 | AE82: 15230 | AF82: 15230 | AG82: 15230 | AH82: 243000 | AI82: External Media
S83: Communication & Marketing | T83: 07850504128 | U83: COMM ACAD MARKET ADVERTISING | V83: 8370 | W83: 8330 | X83: 8330 | Y83: 8330 | Z83: 8330 | AA83: 8330 | AB83: 8330 | AC83: 8330 | AD83: 8330 | AE83: 8330 | AF83: 8330 | AG83: 8330 | AH83: 100000 | AI83: External Media
S84: Communication & Marketing | T84: 05620427129 | U84: SENIOR COMMON ROOM LAUNDRY EXP | V84: 250 | W84: 250 | X84: 250 | Y84: 250 | Z84: 250 | AA84: 250 | AB84: 250 | AC84: 250 | AD84: 250 | AE84: 250 | AF84: 250 | AG84: 250 | AH84: 3000 | AI84: Functions & events
S85: Communication & Marketing | T85: 05620500129 | U85: SENIOR COMMON ROOM - STAFF TEAS | V85: 21916.67 | W85: 21916.67 | X85: 21916.66 | Y85: 21916.67 | Z85: 21916.67 | AA85: 21916.67 | AB85: 21916.67 | AC85: 21916.67 | AD85: 21916.67 | AE85: 21916.67 | AF85: 21916.67 | AG85: 21916.64 | AH85: 263000 | AI85: Functions & events
S86: Communication & Marketing | T86: 05625031125 | U86: M & C ENTERTAINMENT TEMP SALS | V86: 333.33 | W86: 333.33 | X86: 333.33 | Y86: 333.33 | Z86: 333.33 | AA86: 333.33 | AB86: 333.33 | AC86: 333.33 | AD86: 333.33 | AE86: 333.33 | AF86: 333.33 | AG86: 333.37 | AH86: 4000 | AI86: Functions & events
S87: Communication & Marketing | T87: 05625441125 | U87: M&C FUNCTIONS & EVENTS | V87: 0 | W87: 0 | X87: 52000 | Y87: 10333.32 | Z87: 60583.33 | AA87: 60583.33 | AB87: 60583.33 | AC87: 60583.33 | AD87: 60583.33 | AE87: 60583.33 | AF87: 60583.33 | AG87: 60583.37 | AH87: 547000 | AI87: Functions & events
S88: Communication & Marketing | T88: 05625441128 | U88: DEANS FUNCTIONS & EVENTS | V88: 1000 | W88: 1000 | X88: 1000 | Y88: 1500 | Z88: 1000 | AA88: 12000 | AB88: 2000 | AC88: 2000 | AD88: 4500 | AE88: 2000 | AF88: 1000 | AG88: 1000 | AH88: 30000 | AI88: Functions & events
S89: Communication & Marketing | T89: 05625485112 | U89: FUNCTION/EVENT PRINT COST ENTERTAIN | V89: 500 | W89: 500 | X89: 0 | Y89: 0 | Z89: 0 | AA89: 0 | AB89: 220 | AC89: 220 | AD89: 740 | AE89: 320 | AF89: 2500 | AG89: 0 | AH89: 5000 | AI89: Functions & events
S90: Communication & Marketing | T90: 05625880168 | U90: RU ENVIRONMENTAL AWARDS GRANT | V90: 1000 | W90: 0 | X90: 0 | Y90: 0 | Z90: 0 | AA90: 0 | AB90: 0 | AC90: 0 | AD90: 0 | AE90: 0 | AF90: 0 | AG90: 0 | AH90: 1000 | AI90: Functions & events
S91: Communication & Marketing | T91: 07898881168 | U91: RHODOS INTERNAL GRANT | V91: 0 | W91: 0 | X91: 2600 | Y91: 0 | Z91: 0 | AA91: 68700 | AB91: 0 | AC91: 0 | AD91: 68700 | AE91: 0 | AF91: 0 | AG91: 0 | AH91: 140000 | AI91: Internal communications
S92: Communication & Marketing | T92: 07400541128 | U92: COMM EXT STATIONERY | V92: 2370 | W92: 2330 | X92: 2330 | Y92: 2330 | Z92: 2330 | AA92: 2330 | AB92: 2330 | AC92: 2330 | AD92: 2330 | AE92: 2330 | AF92: 2330 | AG92: 2330 | AH92: 28000 | AI92: Resources - running expenses
S93: Communication & Marketing | T93: 07400547128 | U93: COMM EXT TELEPHONE | V93: 1033.66 | W93: 804.59 | X93: 816.13 | Y93: 873.62 | Z93: 1434 | AA93: 1434 | AB93: 1434 | AC93: 1434 | AD93: 1434 | AE93: 1434 | AF93: 1434 | AG93: 1434 | AH93: 15000 | AI93: Resources - running expenses
S94: Communication & Marketing | T94: 07500485112 | U94: COMM INTERNAL PRINT UNIT | V94: 150 | W94: 5.3 | X94: 1943.7 | Y94: 1989 | Z94: 1989 | AA94: 1989 | AB94: 1989 | AC94: 1989 | AD94: 1989 | AE94: 1989 | AF94: 1989 | AG94: 1989 | AH94: 20000 | AI94: Resources - running expenses
S95: Communication & Marketing | T95: 07540441128 | U95: COMM INTERNAL GENERAL | V95: 431.8 | W95: 6722.76 | X95: 4306.39 | Y95: 3414.29 | Z95: 8640.56 | AA95: 8640.6 | AB95: 8640.6 | AC95: 8640.6 | AD95: 8640.6 | AE95: 8640.6 | AF95: 8640.6 | AG95: 8640.6 | AH95: 84000 | AI95: Resources - running expenses
S96: Communication & Marketing | T96: 07650546128 | U96: COMM EVENTS TELEPHONES | V96: 238.22 | W96: 343.3 | X96: 352.21 | Y96: 346.27 | Z96: 2340 | AA96: 2340 | AB96: 2340 | AC96: 2340 | AD96: 2340 | AE96: 2340 | AF96: 2340 | AG96: 2340 | AH96: 20000 | AI96: Resources - running expenses
S97: Communication & Marketing | T97: 05040022100 | U97: COMM & MARKET B SALS PERM STAFF | V97: 209592 | W97: 221827.32 | X97: 230422.4 | Y97: 209592 | Z97: 209592 | AA97: 209592 | AB97: 209592 | AC97: 209592 | AD97: 223661.82 | AE97: 209592 | AF97: 209592 | AG97: 209592 | AH97: 2562239.54 | AI97: Staff Costs
S98: Communication & Marketing | T98: 07410501128 | U98: COMM EXT NEWSPAPERS & SUBSCRIPTIONS | V98: 2252.49 | W98: 520 | X98: 5345.19 | Y98: 842.32 | Z98: 630 | AA98: 630 | AB98: 630 | AC98: 630 | AD98: 630 | AE98: 630 | AF98: 630 | AG98: 630 | AH98: 14000 | AI98: Subscriptions
S99: Communication & Marketing | T99: 07570546128 | U99: COMM INTERN STAFF DEVEL/TRAINING | V99: 19481.66 | W99: 8918.34 | X99: 8960 | Y99: 8960 | Z99: 8960 | AA99: 8960 | AB99: 8960 | AC99: 8960 | AD99: 8960 | AE99: 8960 | AF99: 8960 | AG99: 8960 | AH99: 118000 | AI99: Training & staff development
S100: Community Engagement | T100: 05250880168 | U100: COMMUNITY ENGAGEMENT GRANT EXPENSE | V100: 0 | W100: 768000 | X100: 0 | Y100: 0 | Z100: 0 | AA100: 0 | AB100: 0 | AC100: 0 | AD100: 0 | AE100: 0 | AF100: 0 | AG100: 0 | AH100: 768000 | AI100: Running Grants
S101: Community Engagement | T101: 19049022105 | U101: COMM ENGAGE PROJECT SALARIES UNIV | V101: 143038.89 | W101: 143038.89 | X101: 143038.89 | Y101: 143038.89 | Z101: 143038.89 | AA101: 167648.04 | AB101: 143038.89 | AC101: 143038.89 | AD101: 143038.89 | AE101: 143038.89 | AF101: 143038.89 | AG101: 143038.89 | AH101: 1741075.83 | AI101: Staff Costs
S102: Cory Library | T102: 04201501108 | U102: CORY LIBRARY MAINTENANCE | V102: 333.33 | W102: 333.33 | X102: 333.33 | Y102: 333.33 | Z102: 333.33 | AA102: 333.33 | AB102: 333.33 | AC102: 333.33 | AD102: 333.33 | AE102: 333.33 | AF102: 333.33 | AG102: 333.37 | AH102: 4000 | AI102: Maintenance
S103: Cory Library | T103: 04401484108 | U103: CORY LIBRARY POSTAGE | V103: 250 | W103: 250 | X103: 250 | Y103: 250 | Z103: 250 | AA103: 250 | AB103: 250 | AC103: 250 | AD103: 250 | AE103: 250 | AF103: 250 | AG103: 250 | AH103: 3000 | AI103: Postage & Telephone
S104: Cory Library | T104: 04401547108 | U104: CORY LIBRARY TELEPHONE | V104: 250 | W104: 250 | X104: 250 | Y104: 250 | Z104: 250 | AA104: 250 | AB104: 250 | AC104: 250 | AD104: 250 | AE104: 250 | AF104: 250 | AG104: 250 | AH104: 3000 | AI104: Postage & Telephone
S105: Cory Library | T105: 04201485112 | U105: CORY LIBRARY PRINT UNIT | V105: 583.33 | W105: 583.33 | X105: 583.33 | Y105: 583.33 | Z105: 583.33 | AA105: 583.33 | AB105: 583.33 | AC105: 583.33 | AD105: 583.33 | AE105: 583.33 | AF105: 583.33 | AG105: 583.37 | AH105: 7000 | AI105: Printing & Stationery
S106: Cory Library | T106: 04201541108 | U106: CORY LIBRARY STATIONERY COSTS | V106: 333.33 | W106: 333.33 | X106: 333.33 | Y106: 333.33 | Z106: 333.33 | AA106: 333.33 | AB106: 333.33 | AC106: 333.33 | AD106: 333.33 | AE106: 333.33 | AF106: 333.33 | AG106: 333.37 | AH106: 4000 | AI106: Printing & Stationery
S107: Cory Library | T107: 04202503108 | U107: CORY LIBRARY SOFTWARE | V107: 166.67 | W107: 166.67 | X107: 166.67 | Y107: 166.67 | Z107: 166.67 | AA107: 166.67 | AB107: 166.67 | AC107: 166.67 | AD107: 166.67 | AE107: 166.67 | AF107: 166.67 | AG107: 166.63 | AH107: 2000 | AI107: Software
S108: Cory Library | T108: 04050024100 | U108: CORY LIBRARY D SALARIES PERM STAFF | V108: 134783.15 | W108: 134783.15 | X108: 134783.15 | Y108: 134783.15 | Z108: 156183.12 | AA108: 141741.83 | AB108: 134783.15 | AC108: 134783.15 | AD108: 148852.98 | AE108: 134783.15 | AF108: 154956.9 | AG108: 134783.15 | AH108: 1680000.03 | AI108: Staff Costs
S109: Cory Library | T109: 04201500108 | U109: CORY LIBRARY SUNDRY | V109: 416.67 | W109: 416.67 | X109: 416.67 | Y109: 416.67 | Z109: 416.67 | AA109: 416.67 | AB109: 416.67 | AC109: 416.67 | AD109: 416.67 | AE109: 416.67 | AF109: 416.67 | AG109: 416.63 | AH109: 5000 | AI109: Sundry
S110: Cory Library | T110: 04203500108 | U110: CORY LIBRARY SUPPLIES AND SERVICES | V110: 666.67 | W110: 666.67 | X110: 666.67 | Y110: 666.67 | Z110: 666.67 | AA110: 666.67 | AB110: 666.67 | AC110: 666.67 | AD110: 666.67 | AE110: 666.67 | AF110: 666.67 | AG110: 666.63 | AH110: 8000 | AI110: Supplies & services
S111: Cory Library | T111: 04203501108 | U111: CORY LIBRARY CONSERVATION MATERIALS | V111: 500 | W111: 500 | X111: 500 | Y111: 500 | Z111: 500 | AA111: 500 | AB111: 500 | AC111: 500 | AD111: 500 | AE111: 500 | AF111: 500 | AG111: 500 | AH111: 6000 | AI111: Supplies & services
S112: Cory Library | T112: 04201880168 | U112: CORY LIBRARY STAFF TRAINING TRF | V112: 0 | W112: 0 | X112: 0 | Y112: 16000 | Z112: 0 | AA112: 0 | AB112: 0 | AC112: 0 | AD112: 0 | AE112: 0 | AF112: 0 | AG112: 0 | AH112: 16000 | AI112: Training
S113: Cory Library | T113: 04201502108 | U113: CORY LIBRARY TRAVEL | V113: 416.67 | W113: 416.67 | X113: 416.67 | Y113: 416.67 | Z113: 416.67 | AA113: 416.67 | AB113: 416.67 | AC113: 416.67 | AD113: 416.67 | AE113: 416.67 | AF113: 416.67 | AG113: 416.63 | AH113: 5000 | AI113: Travel
S114: Data Management Unit | T114: 05017881168 | U114: DISCRETIONARY FUNDS GRANT: DIR DMU | V114: 0 | W114: 0 | X114: 6000 | Y114: 0 | Z114: 0 | AA114: 0 | AB114: 0 | AC114: 0 | AD114: 0 | AE114: 0 | AF114: 0 | AG114: 0 | AH114: 6000 | AI114: Discretionary Grants
S115: Data Management Unit | T115: 05017515100 | U115: DMU NETWORK CONNECTION | V115: 1500 | W115: 1500 | X115: 1500 | Y115: 1500 | Z115: 1500 | AA115: 1500 | AB115: 1500 | AC115: 1500 | AD115: 1500 | AE115: 1500 | AF115: 1500 | AG115: 1500 | AH115: 18000 | AI115: Network connection costs
S116: Data Management Unit | T116: 05016025100 | U116: CENTRAL ADMIN DMU SALARIES | V116: 229743.25 | W116: 200606.54 | X116: 229447.18 | Y116: 200606.54 | Z116: 200606.54 | AA116: 200606.54 | AB116: 201151.29 | AC116: 201151.29 | AD116: 201151.29 | AE116: 220713.93 | AF116: 201151.29 | AG116: 201151.29 | AH116: 2488086.97 | AI116: Staff Costs
S117: Data Management Unit | T117: 05017541125 | U117: DMU STATIONERY | V117: 3500 | W117: 3500 | X117: 3500 | Y117: 3500 | Z117: 3500 | AA117: 3500 | AB117: 3500 | AC117: 3500 | AD117: 3500 | AE117: 3500 | AF117: 3500 | AG117: 3500 | AH117: 42000 | AI117: Stationery
S118: Data Management Unit | T118: 05017547125 | U118: DMU TELEPHONE | V118: 1250 | W118: 1250 | X118: 1250 | Y118: 1250 | Z118: 1250 | AA118: 1250 | AB118: 1250 | AC118: 1250 | AD118: 1250 | AE118: 1250 | AF118: 1250 | AG118: 1250 | AH118: 15000 | AI118: Telephones
S119: Data Management Unit | T119: 05017880168 | U119: DMU STAFF TRAINING DEV GRANT | V119: 0 | W119: 0 | X119: 51000 | Y119: 0 | Z119: 0 | AA119: 0 | AB119: 0 | AC119: 0 | AD119: 0 | AE119: 0 | AF119: 0 | AG119: 0 | AH119: 51000 | AI119: Training
S120: Dean of Students | T120: 05306485112 | U120: CAREERS OFFICE PRINT UNIT | V120: 160 | W120: 160 | X120: 160 | Y120: 160 | Z120: 160 | AA120: 160 | AB120: 160 | AC120: 160 | AD120: 160 | AE120: 160 | AF120: 160 | AG120: 240 | AH120: 2000 | AI120: Careers office
S121: Dean of Students | T121: 05306500119 | U121: CAREERS CENTRE GENERAL EXPENSES | V121: 833.33 | W121: 833.33 | X121: 833.33 | Y121: 833.33 | Z121: 833.33 | AA121: 833.33 | AB121: 833.33 | AC121: 833.33 | AD121: 833.33 | AE121: 833.33 | AF121: 833.33 | AG121: 833.37 | AH121: 10000 | AI121: Careers office
S122: Dean of Students | T122: 05306541119 | U122: CAREERS OFFICE STATIONERY | V122: 670 | W122: 670 | X122: 670 | Y122: 670 | Z122: 670 | AA122: 670 | AB122: 670 | AC122: 670 | AD122: 670 | AE122: 670 | AF122: 670 | AG122: 630 | AH122: 8000 | AI122: Careers office
S123: Dean of Students | T123: 05316485112 | U123: CAREERS CENTRE PRINT UNIT | V123: 580 | W123: 580 | X123: 580 | Y123: 580 | Z123: 580 | AA123: 580 | AB123: 580 | AC123: 580 | AD123: 580 | AE123: 580 | AF123: 580 | AG123: 620 | AH123: 7000 | AI123: Careers office
S124: Dean of Students | T124: 05337547119 | U124: CAREERS CENTRE TELEPHONE | V124: 670 | W124: 670 | X124: 670 | Y124: 670 | Z124: 670 | AA124: 670 | AB124: 670 | AC124: 670 | AD124: 670 | AE124: 670 | AF124: 670 | AG124: 630 | AH124: 8000 | AI124: Careers office
S125: Dean of Students | T125: 05625441126 | U125: DEAN OF STUDENTS FUNCTIONS & EVENTS | V125: 0 | W125: 675 | X125: 2500 | Y125: 0 | Z125: 3200 | AA125: 0 | AB125: 1200 | AC125: 350 | AD125: 1310 | AE125: 3310 | AF125: 33455 | AG125: 0 | AH125: 46000 | AI125: Functions & events
S126: Dean of Students | T126: 05308485112 | U126: DEAN OF STUDENTS PRINT UNIT | V126: 802.5 | W126: 802.5 | X126: 802.5 | Y126: 802.5 | Z126: 802.5 | AA126: 802.5 | AB126: 802.5 | AC126: 802.5 | AD126: 802.5 | AE126: 802.5 | AF126: 802.5 | AG126: 802.5 | AH126: 9630 | AI126: Running expenses
S127: Dean of Students | T127: 05308500119 | U127: DOS GENERAL EXPENSES | V127: 1908.33 | W127: 1908.33 | X127: 1908.33 | Y127: 1908.33 | Z127: 1908.33 | AA127: 11908.33 | AB127: 11908.33 | AC127: 11908.33 | AD127: 11908.33 | AE127: 11908.33 | AF127: 11908.33 | AG127: 15068.37 | AH127: 96060 | AI127: Running expenses
S128: Dean of Students | T128: 05308501119 | U128: DOS AWARENESS CAMPAIGNS | V128: 10700 | W128: 10700 | X128: 10700 | Y128: 10700 | Z128: 10700 | AA128: 10700 | AB128: 10700 | AC128: 10700 | AD128: 10700 | AE128: 10700 | AF128: 10700 | AG128: 10700 | AH128: 128400 | AI128: Running expenses
S129: Dean of Students | T129: 05308502119 | U129: DOS SPONSORSHIP | V129: 1426.67 | W129: 1426.67 | X129: 1426.67 | Y129: 1426.67 | Z129: 1426.67 | AA129: 1426.67 | AB129: 1426.67 | AC129: 1426.67 | AD129: 1426.67 | AE129: 1426.67 | AF129: 1426.67 | AG129: 1426.63 | AH129: 17120 | AI129: Running expenses
S130: Dean of Students | T130: 05308503119 | U130: DOS CONFERENCE REGISTRATION | V130: 891.67 | W130: 891.67 | X130: 891.67 | Y130: 891.67 | Z130: 891.67 | AA130: 891.67 | AB130: 891.67 | AC130: 891.67 | AD130: 891.67 | AE130: 891.67 | AF130: 891.67 | AG130: 891.63 | AH130: 10700 | AI130: Running expenses
S131: Dean of Students | T131: 05308504119 | U131: DOS HALL LEADERSHIP WEEKENDS | V131: 5358.33 | W131: 5358.33 | X131: 5358.33 | Y131: 5358.33 | Z131: 5358.33 | AA131: 5358.33 | AB131: 5358.33 | AC131: 5358.33 | AD131: 5358.33 | AE131: 5358.33 | AF131: 5358.33 | AG131: 5358.37 | AH131: 64300 | AI131: Running expenses
S132: Dean of Students | T132: 05308505119 | U132: DOS SRC TRAINING | V132: 2675 | W132: 2675 | X132: 2675 | Y132: 2675 | Z132: 2675 | AA132: 2675 | AB132: 2675 | AC132: 2675 | AD132: 2675 | AE132: 2675 | AF132: 2675 | AG132: 2675 | AH132: 32100 | AI132: Running expenses
S133: Dean of Students | T133: 05308506119 | U133: DOS ORIENTATION WEEK EXPENSES | V133: 60000 | W133: 150000 | X133: 0 | Y133: 0 | Z133: 40000 | AA133: 0 | AB133: 0 | AC133: 0 | AD133: 0 | AE133: 0 | AF133: 52850 | AG133: 0 | AH133: 302850 | AI133: Running expenses
S134: Dean of Students | T134: 05308507119 | U134: DOS STUDENT LIFE SURVEYS | V134: 1248.33 | W134: 1248.33 | X134: 1248.33 | Y134: 1248.33 | Z134: 1248.33 | AA134: 1248.33 | AB134: 1248.33 | AC134: 1248.33 | AD134: 1248.33 | AE134: 1248.33 | AF134: 1248.33 | AG134: 1248.37 | AH134: 14980 | AI134: Running expenses
S135: Dean of Students | T135: 05308508119 | U135: SRC STUDENT CRISES | V135: 1337.5 | W135: 1337.5 | X135: 1337.5 | Y135: 1337.5 | Z135: 1337.5 | AA135: 1337.5 | AB135: 1337.5 | AC135: 1337.5 | AD135: 1337.5 | AE135: 1337.5 | AF135: 1337.5 | AG135: 1337.5 | AH135: 16050 | AI135: Running expenses
S136: Dean of Students | T136: 05308541119 | U136: DEAN OF STUDENTS STATIONERY | V136: 1337.5 | W136: 1337.5 | X136: 1337.5 | Y136: 1337.5 | Z136: 1337.5 | AA136: 1337.5 | AB136: 1337.5 | AC136: 1337.5 | AD136: 1337.5 | AE136: 1337.5 | AF136: 1337.5 | AG136: 1337.5 | AH136: 16050 | AI136: Running expenses
S137: Dean of Students | T137: 05308551145 | U137: DOS STUDENT TRAVEL & SUBSISTENCE | V137: 3566.67 | W137: 3566.67 | X137: 3566.67 | Y137: 3566.67 | Z137: 3566.67 | AA137: 3566.67 | AB137: 3566.67 | AC137: 3566.67 | AD137: 3566.67 | AE137: 3566.67 | AF137: 3566.67 | AG137: 3566.63 | AH137: 42800 | AI137: Running expenses
S138: Dean of Students | T138: 05308804157 | U138: DOS CAPITAL EQUIPMENT | V138: 713.33 | W138: 713.33 | X138: 713.33 | Y138: 713.33 | Z138: 713.33 | AA138: 713.33 | AB138: 713.33 | AC138: 713.33 | AD138: 713.33 | AE138: 713.33 | AF138: 713.33 | AG138: 713.37 | AH138: 8560 | AI138: Running expenses
S139: Dean of Students | T139: 05308881168 | U139: DOS TRF TO OPPIDAN BUS 93299 | V139: 5350 | W139: 5350 | X139: 5350 | Y139: 5350 | Z139: 5350 | AA139: 5350 | AB139: 5350 | AC139: 5350 | AD139: 5350 | AE139: 5350 | AF139: 5350 | AG139: 5350 | AH139: 64200 | AI139: Running expenses
S140: Dean of Students | T140: 05337547125 | U140: DEAN OF STUDENTS TELEPHONE | V140: 1183.33 | W140: 1183.33 | X140: 1183.33 | Y140: 1183.33 | Z140: 1183.33 | AA140: 1183.33 | AB140: 1183.33 | AC140: 1183.33 | AD140: 1183.33 | AE140: 1183.33 | AF140: 1183.33 | AG140: 1183.37 | AH140: 14200 | AI140: Running expenses
S141: Dean of Students | T141: 05060022100 | U141: DEAN OF STUDENTS B SALS PERM STAFF | V141: 83120.41 | W141: 95414.83 | X141: 83120.41 | Y141: 83120.41 | Z141: 83120.41 | AA141: 83120.41 | AB141: 83120.41 | AC141: 98718.58 | AD141: 83120.41 | AE141: 90436.72 | AF141: 83120.41 | AG141: 123054.33 | AH141: 1072587.74 | AI141: Staff Costs
S142: Dean of Students | T142: 05062025100 | U142: CENTRAL ADMIN OPPIDAN UNION SALARIE | V142: 16900.53 | W142: 16900.53 | X142: 16900.53 | Y142: 16900.53 | Z142: 16900.53 | AA142: 16900.53 | AB142: 16900.53 | AC142: 16900.53 | AD142: 16900.53 | AE142: 23642.26 | AF142: 16900.53 | AG142: 16900.53 | AH142: 209548.09 | AI142: Staff Costs
S143: Dean of Students | T143: 05064022119 | U143: DOS CAREER CENTRE GENERAL SALARIES | V143: 53207.43 | W143: 53207.43 | X143: 53207.43 | Y143: 53207.43 | Z143: 53207.43 | AA143: 53207.43 | AB143: 53207.43 | AC143: 77759.27 | AD143: 53207.43 | AE143: 53207.43 | AF143: 53207.43 | AG143: 53207.43 | AH143: 663041 | AI143: Staff Costs
S144: Development & Alumni | T144: 07120031102 | U144: DEV ALUMNI TEMP SALS | V144: 0 | W144: 1425 | X144: 2120 | Y144: 4328 | Z144: 1515 | AA144: 1516 | AB144: 1516 | AC144: 1516 | AD144: 1516 | AE144: 1516 | AF144: 1516 | AG144: 1516 | AH144: 20000 | AI144: Alumni
S145: Development & Alumni | T145: 07120484128 | U145: DEV ALUMNI POSTAGE | V145: 60 | W145: 3 | X145: 0 | Y145: 210 | Z145: 591 | AA145: 591 | AB145: 591 | AC145: 591 | AD145: 591 | AE145: 591 | AF145: 591 | AG145: 590 | AH145: 5000 | AI145: Alumni
S146: Development & Alumni | T146: 07120485112 | U146: DEV ALUMNI PRINT UNIT | V146: 440 | W146: 2528 | X146: 800 | Y146: 4827 | Z146: 801 | AA146: 801 | AB146: 801 | AC146: 801 | AD146: 801 | AE146: 801 | AF146: 801 | AG146: 798 | AH146: 15000 | AI146: Alumni
S147: Development & Alumni | T147: 07120488128 | U147: DEV ALUMNI SPEC PROJ | V147: 3523 | W147: 3403 | X147: 12230 | Y147: 12057 | Z147: 473 | AA147: 473 | AB147: 473 | AC147: 473 | AD147: 473 | AE147: 473 | AF147: 473 | AG147: 476 | AH147: 35000 | AI147: Alumni
S148: Development & Alumni | T148: 07120496128 | U148: DEV ALUMNI ORU | V148: 0 | W148: 0 | X148: 0 | Y148: 0 | Z148: 1500 | AA148: 1500 | AB148: 1500 | AC148: 1500 | AD148: 1500 | AE148: 1500 | AF148: 1500 | AG148: 1500 | AH148: 12000 | AI148: Alumni
S149: Development & Alumni | T149: 07120497128 | U149: DEV ALUMNI ORU CENTENARY | V149: 0 | W149: 0 | X149: 0 | Y149: 0 | Z149: 1875 | AA149: 1875 | AB149: 1875 | AC149: 1875 | AD149: 1875 | AE149: 1875 | AF149: 1875 | AG149: 1875 | AH149: 15000 | AI149: Alumni
S150: Development & Alumni | T150: 07120500128 | U150: DEV OLD RHODIAN AWARDS EXP | V150: 0 | W150: 0 | X150: 0 | Y150: 0 | Z150: 0 | AA150: 20000 | AB150: 20000 | AC150: 0 | AD150: 0 | AE150: 0 | AF150: 0 | AG150: 0 | AH150: 40000 | AI150: Alumni
S151: Development & Alumni | T151: 07120509128 | U151: DEV ALUMNI CONVOCATION | V151: 0 | W151: 0 | X151: 0 | Y151: 0 | Z151: 0 | AA151: 0 | AB151: 20000 | AC151: 0 | AD151: 0 | AE151: 0 | AF151: 0 | AG151: 0 | AH151: 20000 | AI151: Alumni
S152: Development & Alumni | T152: 07120510128 | U152: DEV ALUMNI GIVE 5 CAMPAIGN | V152: 0 | W152: 1200 | X152: 1030 | Y152: 27770 | Z152: 0 | AA152: 0 | AB152: 0 | AC152: 0 | AD152: 0 | AE152: 0 | AF152: 0 | AG152: 0 | AH152: 30000 | AI152: Alumni
S153: Development & Alumni | T153: 07120542128 | U153: DEV ALUMNI STATIONERY | V153: 0 | W153: 0 | X153: 0 | Y153: 80 | Z153: 240 | AA153: 240 | AB153: 240 | AC153: 240 | AD153: 240 | AE153: 240 | AF153: 240 | AG153: 240 | AH153: 2000 | AI153: Alumni
S154: Development & Alumni | T154: 07120547128 | U154: DEV ALUMNI TELEPHONES | V154: 0 | W154: 17 | X154: 16 | Y154: 0 | Z154: 246 | AA154: 246 | AB154: 246 | AC154: 246 | AD154: 246 | AE154: 246 | AF154: 246 | AG154: 245 | AH154: 2000 | AI154: Alumni
S155: Development & Alumni | T155: 07120442128 | U155: DEV BEQUESTS ENTERTAINMENT/FUNCTION | V155: 177 | W155: 0 | X155: 203 | Y155: 0 | Z155: 0 | AA155: 0 | AB155: 0 | AC155: 0 | AD155: 19874 | AE155: 19874 | AF155: 19872 | AG155: 0 | AH155: 60000 | AI155: Bequests
S156: Development & Alumni | T156: 07120483128 | U156: DEV BEQUESTS POSTAGE | V156: 880 | W156: 701 | X156: 1348 | Y156: 637 | Z156: 1429 | AA156: 1429 | AB156: 1429 | AC156: 1429 | AD156: 1429 | AE156: 1429 | AF156: 1429 | AG156: 1431 | AH156: 15000 | AI156: Bequests
S157: Development & Alumni | T157: 07120487112 | U157: DEV BEQUESTS PRINT UNIT | V157: 0 | W157: 0 | X157: 0 | Y157: 5000 | Z157: 0 | AA157: 0 | AB157: 0 | AC157: 0 | AD157: 0 | AE157: 0 | AF157: 0 | AG157: 0 | AH157: 5000 | AI157: Bequests
S158: Development & Alumni | T158: 07120503128 | U158: DEV BEQUESTS BROCHURS/RHODOS INSERT | V158: 0 | W158: 0 | X158: 0 | Y158: 0 | Z158: 0 | AA158: 0 | AB158: 2000 | AC158: 0 | AD158: 0 | AE158: 0 | AF158: 0 | AG158: 0 | AH158: 2000 | AI158: Bequests
S159: Development & Alumni | T159: 07120541128 | U159: DEV BEQUESTS STATIONERY | V159: 0 | W159: 877 | X159: 0 | Y159: 0 | Z159: 265 | AA159: 265 | AB159: 265 | AC159: 265 | AD159: 265 | AE159: 265 | AF159: 265 | AG159: 268 | AH159: 3000 | AI159: Bequests
S160: Development & Alumni | T160: 07120548128 | U160: DEV BEQUESTS TELEPHONES | V160: 0 | W160: 145 | X160: 304 | Y160: 15 | Z160: 67 | AA160: 67 | AB160: 67 | AC160: 67 | AD160: 67 | AE160: 67 | AF160: 67 | AG160: 67 | AH160: 1000 | AI160: Bequests
S161: Development & Alumni | T161: 07120552128 | U161: DEV BEQUESTS TRAVEL | V161: 0 | W161: 0 | X161: 0 | Y161: 0 | Z161: 0 | AA161: 0 | AB161: 0 | AC161: 1500 | AD161: 1500 | AE161: 1500 | AF161: 1500 | AG161: 0 | AH161: 6000 | AI161: Bequests
S162: Development & Alumni | T162: 07015031128 | U162: DEV DATABASE TEMP SALARIES | V162: 0 | W162: 1950 | X162: 265 | Y162: 117 | Z162: 0 | AA162: 0 | AB162: 0 | AC162: 0 | AD162: 0 | AE162: 0 | AF162: 0 | AG162: 0 | AH162: 2332 | AI162: Database
S163: Development & Alumni | T163: 07015500128 | U163: DEV DATABASE CONSULTANCY FEE | V163: 7957 | W163: 0 | X163: 7957 | Y163: 16734 | Z163: 4619 | AA163: 4619 | AB163: 4619 | AC163: 4619 | AD163: 4619 | AE163: 4619 | AF163: 4619 | AG163: 4619 | AH163: 69600 | AI163: Database
S164: Development & Alumni | T164: 07015501128 | U164: DEV DATABASE RELATIONAL DEV | V164: 0 | W164: 0 | X164: 0 | Y164: 75068 | Z164: 0 | AA164: 0 | AB164: 0 | AC164: 0 | AD164: 0 | AE164: 0 | AF164: 0 | AG164: 0 | AH164: 75068 | AI164: Database
S165: Development & Alumni | T165: 07007031128 | U165: DEV DIRECTOR DISC TEMP SALS | V165: 10521 | W165: 42000 | X165: 42000 | Y165: 2000 | Z165: 7934 | AA165: 7935 | AB165: 7935 | AC165: 7935 | AD165: 7935 | AE165: 7935 | AF165: 7935 | AG165: 7935 | AH165: 160000 | AI165: Directorate
S166: Development & Alumni | T166: 07007441128 | U166: DEV DIRECTOR ENTERTAINMENT | V166: 0 | W166: 450 | X166: 400 | Y166: 585 | Z166: 821 | AA166: 821 | AB166: 821 | AC166: 821 | AD166: 821 | AE166: 820 | AF166: 820 | AG166: 820 | AH166: 8000 | AI166: Directorate
S167: Development & Alumni | T167: 07007500128 | U167: DEV DIRECTOR DISCRECTIONARY BUDGET | V167: 80 | W167: 0 | X167: 0 | Y167: 0 | Z167: 26865 | AA167: 26865 | AB167: 26865 | AC167: 26865 | AD167: 26865 | AE167: 26865 | AF167: 26865 | AG167: 26865 | AH167: 215000 | AI167: Directorate
S168: Development & Alumni | T168: 07007546128 | U168: DEV DIRECTOR TELEPHONE | V168: 474 | W168: 510 | X168: 544 | Y168: 464 | Z168: 1626 | AA168: 1626 | AB168: 1626 | AC168: 1626 | AD168: 1626 | AE168: 1626 | AF168: 1626 | AG168: 1626 | AH168: 15000 | AI168: Directorate
S169: Development & Alumni | T169: 07007551128 | U169: DEV DIRECTOR TRAVEL/SUBSISTENCE | V169: 3175 | W169: 4021 | X169: 1690 | Y169: 11984 | Z169: 8642 | AA169: 8642 | AB169: 8641 | AC169: 8641 | AD169: 8641 | AE169: 8641 | AF169: 8641 | AG169: 8641 | AH169: 90000 | AI169: Directorate
S170: Development & Alumni | T170: 07200031128 | U170: DEV DONOR CONTACT TEMP ASS | V170: 0 | W170: 0 | X170: 186 | Y170: 1487 | Z170: 1666 | AA170: 1666 | AB170: 1666 | AC170: 1666 | AD170: 1666 | AE170: 1666 | AF170: 1666 | AG170: 1665 | AH170: 15000 | AI170: Donor contact
S171: Development & Alumni | T171: 07200032128 | U171: DEV DONOR CONTACT SP PROJ A/FUND | V171: 0 | W171: 0 | X171: 0 | Y171: 0 | Z171: 10380 | AA171: 0 | AB171: 0 | AC171: 9620 | AD171: 0 | AE171: 0 | AF171: 0 | AG171: 0 | AH171: 20000 | AI171: Donor contact
S172: Development & Alumni | T172: 07200033128 | U172: DEV DONOR CONTACT FREELANCE DESIGN | V172: 0 | W172: 0 | X172: 0 | Y172: 0 | Z172: 11488 | AA172: 0 | AB172: 0 | AC172: 0 | AD172: 8512 | AE172: 0 | AF172: 0 | AG172: 0 | AH172: 20000 | AI172: Donor contact
S173: Development & Alumni | T173: 07200034128 | U173: DEV DONOR CONTACT FREESLNCE WRITING | V173: 0 | W173: 0 | X173: 0 | Y173: 0 | Z173: 0 | AA173: 0 | AB173: 0 | AC173: 0 | AD173: 9650 | AE173: 0 | AF173: 0 | AG173: 0 | AH173: 9650 | AI173: Donor contact
S174: Development & Alumni | T174: 07200441128 | U174: DEV DONOR CONTACT FUNCTIONS | V174: 0 | W174: 0 | X174: 0 | Y174: 0 | Z174: 0 | AA174: 0 | AB174: 0 | AC174: 0 | AD174: 10000 | AE174: 0 | AF174: 10000 | AG174: 0 | AH174: 20000 | AI174: Donor contact
S175: Development & Alumni | T175: 07200442128 | U175: DEV DONOR CONTACT ENT GTN GENERAL | V175: 0 | W175: 0 | X175: 0 | Y175: 0 | Z175: 0 | AA175: 0 | AB175: 0 | AC175: 0 | AD175: 5000 | AE175: 5000 | AF175: 0 | AG175: 0 | AH175: 10000 | AI175: Donor contact
S176: Development & Alumni | T176: 07200485112 | U176: DEV DONOR CONTACT PRINT UNIT | V176: 0 | W176: 0 | X176: 470 | Y176: 0 | Z176: 441 | AA176: 441 | AB176: 441 | AC176: 441 | AD176: 441 | AE176: 441 | AF176: 441 | AG176: 443 | AH176: 4000 | AI176: Donor contact
S177: Development & Alumni | T177: 07200486112 | U177: DEV DONOR CONTACT POSTAGE | V177: 283 | W177: 2468 | X177: 260 | Y177: 713 | Z177: 785 | AA177: 785 | AB177: 785 | AC177: 785 | AD177: 785 | AE177: 785 | AF177: 785 | AG177: 781 | AH177: 10000 | AI177: Donor contact
S178: Development & Alumni | T178: 07200503128 | U178: DEV DONOR CONTACT SP PROJ A/FUND | V178: 3267 | W178: 9224 | X178: 14900 | Y178: 7266 | Z178: 0 | AA178: 164948 | AB178: 0 | AC178: 30395 | AD178: 0 | AE178: 0 | AF178: 0 | AG178: 0 | AH178: 230000 | AI178: Donor contact
S179: Development & Alumni | T179: 07200505128 | U179: DEV DONOR CONTACT FREELANCE WRITING | V179: 350 | W179: 0 | X179: 0 | Y179: 0 | Z179: 0 | AA179: 0 | AB179: 0 | AC179: 0 | AD179: 0 | AE179: 0 | AF179: 0 | AG179: 0 | AH179: 350 | AI179: Donor contact
S180: Development & Alumni | T180: 07200506128 | U180: DEV DONOR CONTACT PROJ PROMO MATERI | V180: 0 | W180: 0 | X180: 0 | Y180: 0 | Z180: 1875 | AA180: 1875 | AB180: 1875 | AC180: 1875 | AD180: 1875 | AE180: 1875 | AF180: 1875 | AG180: 1875 | AH180: 15000 | AI180: Donor contact
S181: Development & Alumni | T181: 07200508128 | U181: DEV DONOR CONTACT PROV JHB FUNDRAIS | V181: 693 | W181: 528 | X181: 1038 | Y181: 0 | Z181: 2218 | AA181: 2218 | AB181: 2218 | AC181: 2218 | AD181: 2218 | AE181: 2218 | AF181: 2218 | AG181: 2215 | AH181: 20000 | AI181: Donor contact
S182: Development & Alumni | T182: 07200541128 | U182: DEV DONOR CONTACT STATIONERY | V182: 0 | W182: 552 | X182: 0 | Y182: 0 | Z182: 1181 | AA182: 1181 | AB182: 1181 | AC182: 1181 | AD182: 1181 | AE182: 1181 | AF182: 1181 | AG182: 1181 | AH182: 10000 | AI182: Donor contact
S183: Development & Alumni | T183: 07200546128 | U183: DEV DONOR CONTACT TELEPHONE | V183: 0 | W183: 444 | X183: 477 | Y183: 31 | Z183: 881 | AA183: 881 | AB183: 881 | AC183: 881 | AD183: 881 | AE183: 881 | AF183: 881 | AG183: 881 | AH183: 8000 | AI183: Donor contact
S184: Development & Alumni | T184: 07200551128 | U184: DEV DONOR CONTACT TRAVEL DONORS | V184: 0 | W184: 0 | X184: 0 | Y184: 18700 | Z184: 663 | AA184: 663 | AB184: 663 | AC184: 663 | AD184: 663 | AE184: 663 | AF184: 663 | AG184: 659 | AH184: 24000 | AI184: Donor contact
S185: Development & Alumni | T185: 07020500128 | U185: DEV GENERAL GENERAL EXPENSE | V185: 184 | W185: 1286 | X185: 203 | Y185: 355 | Z185: 747 | AA185: 747 | AB185: 747 | AC185: 747 | AD185: 746 | AE185: 746 | AF185: 746 | AG185: 746 | AH185: 8000 | AI185: General
S186: Development & Alumni | T186: 07020501128 | U186: DEV GENERAL PHOTOCOPYING | V186: 234 | W186: 124 | X186: 76 | Y186: 6566 | Z186: 0 | AA186: 0 | AB186: 0 | AC186: 0 | AD186: 0 | AE186: 0 | AF186: 0 | AG186: 0 | AH186: 7000 | AI186: General
S187: Development & Alumni | T187: 07035547128 | U187: DEV & COMM GENERAL TELEPHONE & FAX | V187: 0 | W187: 3 | X187: 0 | Y187: 0 | Z187: 250 | AA187: 250 | AB187: 250 | AC187: 250 | AD187: 250 | AE187: 250 | AF187: 250 | AG187: 247 | AH187: 2000 | AI187: General
S188: Development & Alumni | T188: 07040484128 | U188: DEV GENERAL POSTAGES | V188: 8 | W188: 132 | X188: 100 | Y188: 0 | Z188: 595 | AA188: 595 | AB188: 595 | AC188: 595 | AD188: 595 | AE188: 595 | AF188: 595 | AG188: 595 | AH188: 5000 | AI188: General
S189: Development & Alumni | T189: 07050485112 | U189: DEV GENERAL PRINT UNIT | V189: 500 | W189: 0 | X189: 0 | Y189: 500 | Z189: 500 | AA189: 500 | AB189: 500 | AC189: 500 | AD189: 500 | AE189: 500 | AF189: 500 | AG189: 500 | AH189: 5000 | AI189: General
S190: Development & Alumni | T190: 07050541128 | U190: DEV GENERAL STATIONERY | V190: 504 | W190: 4013 | X190: 530 | Y190: 0 | Z190: 2120 | AA190: 2119 | AB190: 2119 | AC190: 2119 | AD190: 2119 | AE190: 2119 | AF190: 2119 | AG190: 2119 | AH190: 22000 | AI190: General
S191: Development & Alumni | T191: 07070500128 | U191: DEV GENERAL NON-ASSET PURCH | V191: 0 | W191: 0 | X191: 0 | Y191: 0 | Z191: 625 | AA191: 625 | AB191: 625 | AC191: 625 | AD191: 625 | AE191: 625 | AF191: 625 | AG191: 625 | AH191: 5000 | AI191: General
S192: Development & Alumni | T192: 07070804157 | U192: DEV GENERAL CAP EQUIP - ASSETS | V192: 0 | W192: 0 | X192: 0 | Y192: 0 | Z192: 1250 | AA192: 1250 | AB192: 1250 | AC192: 1250 | AD192: 1250 | AE192: 1250 | AF192: 1250 | AG192: 1250 | AH192: 10000 | AI192: General
S193: Development & Alumni | T193: 07080536128 | U193: DEV GENERAL MEMBERSHIP FEES | V193: 0 | W193: 0 | X193: 1120 | Y193: 1900 | Z193: 873 | AA193: 873 | AB193: 873 | AC193: 873 | AD193: 873 | AE193: 873 | AF193: 873 | AG193: 869 | AH193: 10000 | AI193: General
S194: Development & Alumni | T194: 07120441128 | U194: DEV REUNION W/END ENTERTAINMENT | V194: 0 | W194: 10786 | X194: 45 | Y194: 1089 | Z194: 13510 | AA194: 13510 | AB194: 13510 | AC194: 13510 | AD194: 13510 | AE194: 13510 | AF194: 13510 | AG194: 13510 | AH194: 120000 | AI194: Reunions
S195: Development & Alumni | T195: 07120484112 | U195: DEV REUNION W/END POSTAGE | V195: 0 | W195: 0 | X195: 0 | Y195: 2760 | Z195: 405 | AA195: 405 | AB195: 405 | AC195: 405 | AD195: 405 | AE195: 405 | AF195: 405 | AG195: 405 | AH195: 6000 | AI195: Reunions
S196: Development & Alumni | T196: 07120505128 | U196: DEV REUNION W/END ADVERTISING | V196: 0 | W196: 0 | X196: 0 | Y196: 0 | Z196: 0 | AA196: 0 | AB196: 0 | AC196: 2500 | AD196: 2500 | AE196: 0 | AF196: 0 | AG196: 0 | AH196: 5000 | AI196: Reunions
S197: Development & Alumni | T197: 07120507128 | U197: DEV REUNION W/END PRIZES | V197: 0 | W197: 0 | X197: 0 | Y197: 0 | Z197: 0 | AA197: 0 | AB197: 0 | AC197: 2500 | AD197: 2500 | AE197: 0 | AF197: 0 | AG197: 0 | AH197: 5000 | AI197: Reunions
S198: Development & Alumni | T198: 07120521128 | U198: DEV REUNION W/END STATIONERY | V198: 0 | W198: 34 | X198: 0 | Y198: 0 | Z198: 871 | AA198: 871 | AB198: 871 | AC198: 871 | AD198: 871 | AE198: 871 | AF198: 870 | AG198: 870 | AH198: 7000 | AI198: Reunions
S199: Development & Alumni | T199: 07120550128 | U199: DEV REUNION OVERSEAS EXP | V199: 0 | W199: 0 | X199: 0 | Y199: 0 | Z199: 0 | AA199: 0 | AB199: 0 | AC199: 0 | AD199: 0 | AE199: 30000 | AF199: 0 | AG199: 0 | AH199: 30000 | AI199: Reunions
S200: Development & Alumni | T200: 07120551128 | U200: DEV REUNION W/END TRAVEL & SUBSIST | V200: 0 | W200: 0 | X200: 0 | Y200: 0 | Z200: 5000 | AA200: 5000 | AB200: 5000 | AC200: 5000 | AD200: 5000 | AE200: 5000 | AF200: 5000 | AG200: 5000 | AH200: 40000 | AI200: Reunions
S201: Development & Alumni | T201: 07898880168 | U201: RHODOS SPECIAL EDITION GRANT | V201: 0 | W201: 420000 | X201: 0 | Y201: 0 | Z201: 0 | AA201: 0 | AB201: 0 | AC201: 0 | AD201: 0 | AE201: 0 | AF201: 0 | AG201: 0 | AH201: 420000 | AI201: Special Edition Rhodos
S202: Development & Alumni | T202: 05041022100 | U202: DEVELOP & ALUMNI B SALS PERM STAFF | V202: 292479.71 | W202: 292479.71 | X202: 302456.62 | Y202: 300609.08 | Z202: 292479.71 | AA202: 343037.44 | AB202: 305063.66 | AC202: 319336.02 | AD202: 292479.71 | AE202: 313879.69 | AF202: 292479.71 | AG202: 311088.03 | AH202: 3657869.09 | AI202: Staff Costs
... 328 more rows

Sheet Actual2011 (hidden)
A3: BCS DEPARTMENT | B3: ACCOUNT NUMBER | C3: ACCOUNT DESCRIPTION | D3: 2011-01-01 | E3: 2011-02-01 | F3: 2011-03-01 | G3: 2011-04-01 | H3: 2011-05-01 | I3: 2011-06-01 | J3: 2011-07-01 | K3: 2011-08-01 | L3: 2011-09-01 | M3: 2011-10-01 | N3: 2011-11-01 | O3: 2011-12-01 | P3: TOTAL | Q3: BCS Account Category | S3: BCS DEPARTMENT | T3: ACCOUNT NUMBER | U3: ACCOUNT DESCRIPTION | V3: 2011-01-01 | W3: 2011-02-01 | X3: 2011-03-01 | Y3: 2011-04-01 | Z3: 2011-05-01 | AA3: 2011-06-01 | AB3: 2011-07-01 | AC3: 2011-08-01 | AD3: 2011-09-01 | AE3: 2011-10-01 | AF3: 2011-11-01 | AG3: 2011-12-01 | AH3: TOTAL | AI3: BCS Account Category
S4: International Office | T4: 05055025100 | U4: INTERNATIONAL OFFICE SALS | V4: 17648 | W4: 118484.02 | X4: 67764.06 | Y4: 67764.06 | Z4: 67764.06 | AA4: 67764.06 | AB4: 67764.06 | AC4: 67764.06 | AD4: 67764.06 | AE4: 67764.06 | AF4: 67764.06 | AG4: 67764.06 | AH4: =SUM(V4:AG4) -> 813772.62 | AI4: Staff Costs
S5: International Office | T5: 05055055100 | U5: INTERNATIONAL OFFICE BONU | V5: 0 | W5: 0 | X5: 18184 | Y5: 0 | Z5: 0 | AA5: 0 | AB5: 0 | AC5: 0 | AD5: 0 | AE5: 0 | AF5: 0 | AG5: 0 | AH5: =SUM(V5:AG5) -> 18184 | AI5: Staff Costs
S6: International Office | T6: 05055105100 | U6: INTERNATIONAL OFFICE BONU | V6: 124.78 | W6: 321.65 | X6: 325.42 | Y6: 325.42 | Z6: 325.42 | AA6: 325.42 | AB6: 325.42 | AC6: 325.42 | AD6: 325.42 | AE6: 325.42 | AF6: 325.42 | AG6: 325.42 | AH6: 3700.63 | AI6: Staff Costs
S7: International Office | T7: 05055115100 | U7: INTERNATIONAL OFFICE PROV | V7: 0 | W7: 388.64 | X7: 172.93 | Y7: 172.93 | Z7: 172.93 | AA7: 172.93 | AB7: 172.93 | AC7: 172.93 | AD7: 172.93 | AE7: 172.93 | AF7: 172.93 | AG7: 172.93 | AH7: 2117.94 | AI7: Staff Costs
S8: International Office | T8: 05055155100 | U8: INTERNATIONAL OFFICE PROV | V8: 2552.7 | W8: 11861.36 | X8: 11861.36 | Y8: 11861.36 | Z8: 11861.36 | AA8: 11861.36 | AB8: 11861.36 | AC8: 11861.36 | AD8: 11861.36 | AE8: 11861.36 | AF8: 11861.36 | AG8: 11861.36 | AH8: 133027.66 | AI8: Staff Costs
S9: International Office | T9: 05055500100 | U9: INTERNATIONAL OFFICE RENT | V9: 0 | W9: 0 | X9: 0 | Y9: 0 | Z9: 0 | AA9: 0 | AB9: 0 | AC9: 0 | AD9: 0 | AE9: 0 | AF9: 0 | AG9: 0 | AH9: 0 | AI9: Staff Costs
S10: International Office | T10: 02725880168 | U10: VISITING LECTURERS -REGIS | V10: 0 | W10: 175000 | X10: 0 | Y10: 0 | Z10: 0 | AA10: 0 | AB10: 0 | AC10: 0 | AD10: 0 | AE10: 0 | AF10: 0 | AG10: 0 | AH10: 175000 | AI10: Running Grants
S11: International Office | T11: 05390880168 | U11: INTERNATIONAL OFFICE GRNT | V11: 0 | W11: 925000 | X11: 0 | Y11: 0 | Z11: 0 | AA11: 0 | AB11: 0 | AC11: 0 | AD11: 0 | AE11: 0 | AF11: 0 | AG11: 0 | AH11: 925000 | AI11: Running Grants
S12: Research & Development | T12: 02260021102 | U12: RESEARCH OFFICE ACAD SALS | V12: 105236.05 | W12: 120186.31 | X12: 100111.98 | Y12: 9664.26 | Z12: 90462.26 | AA12: 83379.26 | AB12: 65350.49 | AC12: 65350.49 | AD12: 65350.49 | AE12: 65350.49 | AF12: 65350.49 | AG12: 65350.49 | AH12: 901143.06 | AI12: Staff Costs
S13: Research & Development | T13: 02260024113 | U13: RESEARCH OFFICE TECH PERM | V13: 19604.91 | W13: 22565.49 | X13: 20922 | Y13: 20922 | Z13: 20922 | AA13: 20922 | AB13: 20922 | AC13: 20922 | AD13: 20922 | AE13: 20922 | AF13: 20922 | AG13: 29229.59 | AH13: 259697.99 | AI13: Staff Costs
S14: Research & Development | T14: 02260025113 | U14: RESEARCH OFFICE SECR PERM | V14: 25764.37 | W14: 29711.52 | X14: 27607.88 | Y14: 27607.88 | Z14: 27607.88 | AA14: 27607.88 | AB14: 42973.26 | AC14: 34802 | AD14: 41961.75 | AE14: 41961.75 | AF14: 41961.75 | AG14: 41961.75 | AH14: 411529.67 | AI14: Staff Costs
S15: Research & Development | T15: 02260031102 | U15: RESEARCH OFFICE SALS OTHE | V15: 22098.34 | W15: 10776.36 | X15: 9413 | Y15: 17112 | Z15: 24811 | AA15: 17112 | AB15: 17112 | AC15: 17112 | AD15: 17112 | AE15: 17112 | AF15: 17112 | AG15: 12058.46 | AH15: 198941.16 | AI15: Staff Costs
S16: Research & Development | T16: 02260045113 | U16: RESEARCH OFFICE TEMP ASSI | V16: 0 | W16: 0 | X16: 0 | Y16: 0 | Z16: 2190 | AA16: 0 | AB16: 0 | AC16: 0 | AD16: 0 | AE16: 0 | AF16: 0 | AG16: 0 | AH16: 2190 | AI16: Staff Costs
S17: Research & Development | T17: 02260051102 | U17: RESEARCH OFFICE ACAD BONU | V17: 8135 | W17: 0 | X17: 0 | Y17: 0 | Z17: 0 | AA17: 0 | AB17: 0 | AC17: 0 | AD17: 0 | AE17: 0 | AF17: 0 | AG17: 0 | AH17: 8135 | AI17: Staff Costs
S18: Research & Development | T18: 02260054113 | U18: RESEARCH OFFICE TECH BONU | V18: 400 | W18: 400 | X18: 400 | Y18: 400 | Z18: 21022 | AA18: 400 | AB18: 400 | AC18: 400 | AD18: 400 | AE18: 400 | AF18: 400 | AG18: 400 | AH18: 25422 | AI18: Staff Costs
S19: Research & Development | T19: 02260055113 | U19: RESEARCH OFFICE SECR BONU | V19: 0 | W19: 0 | X19: 0 | Y19: 0 | Z19: 0 | AA19: 0 | AB19: 0 | AC19: 10343 | AD19: 0 | AE19: 0 | AF19: 0 | AG19: 27371.75 | AH19: 37714.75 | AI19: Staff Costs
S20: Research & Development | T20: 02260061102 | U20: RESEARCH OFFICE ACAD HSE | V20: 0 | W20: 0 | X20: 0 | Y20: 0 | Z20: 0 | AA20: 0 | AB20: 0 | AC20: 0 | AD20: 0 | AE20: 0 | AF20: 0 | AG20: 0 | AH20: 0 | AI20: Staff Costs
S21: Research & Development | T21: 02260071102 | U21: RESEARCH OFFICE ACAD MED | V21: 2621.5 | W21: 2621.5 | X21: 2621.5 | Y21: 2621.5 | Z21: 2621.5 | AA21: 2621.5 | AB21: 2621.5 | AC21: 2621.5 | AD21: 2621.5 | AE21: 2621.5 | AF21: 2621.5 | AG21: 2621.5 | AH21: 31458 | AI21: Staff Costs
S22: Research & Development | T22: 02260074113 | U22: RESEARCH OFFICE TECH MED | V22: 1718.25 | W22: 1765.75 | X22: 1765.75 | Y22: 1765.75 | Z22: 1765.75 | AA22: 1765.75 | AB22: 1765.75 | AC22: 1765.75 | AD22: 1765.75 | AE22: 1765.75 | AF22: 1765.75 | AG22: 1765.75 | AH22: 21141.5 | AI22: Staff Costs
S23: Research & Development | T23: 02260075113 | U23: RESEARCH OFFICE SECR MEDI | V23: 1015.75 | W23: 1015.75 | X23: 1015.75 | Y23: 1015.75 | Z23: 1015.75 | AA23: 1015.75 | AB23: 1080.75 | AC23: 1080.75 | AD23: 1871.5 | AE23: 1871.5 | AF23: 1871.5 | AG23: 1871.5 | AH23: 15742 | AI23: Staff Costs
S24: Research & Development | T24: 02260101102 | U24: RESEARCH OFFICE ACAD UIF | V24: 942.46 | W24: 692.9 | X24: 532.49 | Y24: 619.48 | Z24: 695.13 | AA24: 516.75 | AB24: 437.76 | AC24: 485.55 | AD24: 437.76 | AE24: 437.76 | AF24: 437.76 | AG24: 326.55 | AH24: 6562.35 | AI24: Staff Costs
S25: Research & Development | T25: 02260104113 | U25: RESEARCH OFFICE TECH UIF | V25: 124.78 | W25: 124.78 | X25: 124.78 | Y25: 124.78 | Z25: 124.78 | AA25: 124.78 | AB25: 124.78 | AC25: 124.78 | AD25: 124.78 | AE25: 124.78 | AF25: 124.78 | AG25: 124.78 | AH25: 1497.36 | AI25: Staff Costs
S26: Research & Development | T26: 02260105113 | U26: RESEARCH OFFICE SECR UIF | V26: 228.09 | W26: 244.33 | X26: 235.65 | Y26: 235.65 | Z26: 235.65 | AA26: 235.65 | AB26: 235.65 | AC26: 249.56 | AD26: 315.43 | AE26: 315.43 | AF26: 315.43 | AG26: 374.34 | AH26: 3220.86 | AI26: Staff Costs
S27: Research & Development | T27: 02260111102 | U27: RESEARCH OFFICE ACAD GROU | V27: 495.13 | W27: 394.55 | X27: 329.57 | Y27: 329.57 | Z27: 329.57 | AA27: 329.57 | AB27: 329.57 | AC27: 329.57 | AD27: 329.57 | AE27: 329.57 | AF27: 329.57 | AG27: 329.57 | AH27: 4185.38 | AI27: Staff Costs
S28: Research & Development | T28: 02260114113 | U28: RESEARCH OFFICE TECH GROU | V28: 88.01 | W28: 87.85 | X28: 87.85 | Y28: 87.85 | Z28: 87.85 | AA28: 87.85 | AB28: 87.85 | AC28: 87.85 | AD28: 87.85 | AE28: 87.85 | AF28: 87.85 | AG28: 87.85 | AH28: 1054.36 | AI28: Staff Costs
S29: Research & Development | T29: 02260115113 | U29: RESEARCH OFFICE SECR GROU | V29: 108.05 | W29: 107.96 | X29: 107.96 | Y29: 107.96 | Z29: 107.96 | AA29: 107.96 | AB29: 133.15 | AC29: 133.15 | AD29: 160.67 | AE29: 160.67 | AF29: 160.67 | AG29: 160.67 | AH29: 1556.83 | AI29: Staff Costs
S30: Research & Development | T30: 02260151102 | U30: RESEARCH OFFICE ACAD PENS | V30: 19901.89 | W30: 16055.93 | X30: 12258 | Y30: 12258 | Z30: 12258 | AA30: 12258 | AB30: 12258 | AC30: 12258 | AD30: 12258 | AE30: 12258 | AF30: 12258 | AG30: 12258 | AH30: 158537.82 | AI30: Staff Costs
S31: Research & Development | T31: 02260154113 | U31: RESEARCH OFFICE TECH PENS | V31: 2895 | W31: 3093.3 | X31: 3093.3 | Y31: 3093.3 | Z31: 3093.3 | AA31: 3093.3 | AB31: 3093.3 | AC31: 3093.3 | AD31: 3093.3 | AE31: 3093.3 | AF31: 3093.3 | AG31: 3093.3 | AH31: 36921.3 | AI31: Staff Costs
S32: Research & Development | T32: 02260155113 | U32: RESEARCH OFFICE SECR PENS | V32: 3554.1 | W32: 3801.3 | X32: 3801.3 | Y32: 3801.3 | Z32: 3801.3 | AA32: 3801.3 | AB32: 4688.25 | AC32: 4688.25 | AD32: 5657.21 | AE32: 5657.21 | AF32: 5657.21 | AG32: 5657.21 | AH32: 54565.94 | AI32: Staff Costs
S33: Research & Development | T33: 02260301102 | U33: RESEARCH OFFICE ACAD TRAV | V33: 4000 | W33: 4000 | X33: 4000 | Y33: 4000 | Z33: 4000 | AA33: 4000 | AB33: 4000 | AC33: 4000 | AD33: 4000 | AE33: 4000 | AF33: 4000 | AG33: 4000 | AH33: 48000 | AI33: Staff Costs
S34: Research & Development | T34: 02260551102 | U34: RESEARCH OFFICE ACAD TRAV | V34: 0 | W34: 0 | X34: 0 | Y34: 0 | Z34: 0 | AA34: 0 | AB34: 0 | AC34: 0 | AD34: 0 | AE34: 0 | AF34: 0 | AG34: 0 | AH34: 0 | AI34: Staff Costs
S35: Research & Development | T35: 02260880168 | U35: RESEARCH OFFICE SALS TRAN | V35: 0 | W35: -90450 | X35: 0 | Y35: 0 | Z35: 0 | AA35: 0 | AB35: 0 | AC35: 0 | AD35: 0 | AE35: 0 | AF35: 0 | AG35: 0 | AH35: -90450 | AI35: Staff Costs
S36: Research & Development | T36: 02200880168 | U36: RESEARCH GRANTS - UNIVERS | V36: 0 | W36: 0 | X36: 0 | Y36: 0 | Z36: 0 | AA36: 0 | AB36: 0 | AC36: 0 | AD36: 3120000 | AE36: 0 | AF36: 0 | AG36: 0 | AH36: 3120000 | AI36: Joint Research Committee grant
S37: Research & Development | T37: 02200881168 | U37: RESEARCH GRANTS - CONTING | V37: 0 | W37: 0 | X37: 0 | Y37: 0 | Z37: 0 | AA37: 161250 | AB37: 0 | AC37: 0 | AD37: 0 | AE37: 0 | AF37: 0 | AG37: 0 | AH37: 161250 | AI37: Joint Research Committee grant
S38: Research & Development | T38: 02210880168 | U38: RESEARCH PUBLICATIONS GRA | V38: 0 | W38: 0 | X38: 0 | Y38: 0 | Z38: 0 | AA38: 200000 | AB38: 0 | AC38: 0 | AD38: 0 | AE38: 0 | AF38: 0 | AG38: 0 | AH38: 200000 | AI38: Joint Research Committee grant
S39: Research & Development | T39: 02230880168 | U39: ARTS FAC LIB GRANT | V39: 0 | W39: 0 | X39: 0 | Y39: 0 | Z39: 0 | AA39: 25000 | AB39: 0 | AC39: 0 | AD39: 0 | AE39: 0 | AF39: 0 | AG39: 0 | AH39: 25000 | AI39: Joint Research Committee grant
S40: Research & Development | T40: 02240880168 | U40: STUDENT RESEARCH TRAVEL | V40: 0 | W40: 0 | X40: 0 | Y40: 0 | Z40: 0 | AA40: 677250 | AB40: 0 | AC40: 0 | AD40: 0 | AE40: 0 | AF40: 0 | AG40: 0 | AH40: 677250 | AI40: Joint Research Committee grant
S41: Research & Development | T41: 02236880168 | U41: RESEARCH DIVISION RUNNING | V41: 0 | W41: 0 | X41: 0 | Y41: 0 | Z41: 0 | AA41: 266600 | AB41: 0 | AC41: 0 | AD41: 0 | AE41: 0 | AF41: 0 | AG41: 0 | AH41: 266600 | AI41: Running expenses
S42: Research & Development | T42: 02236881168 | U42: RESEARCH DIVISION RIMS CO | V42: 0 | W42: 0 | X42: 0 | Y42: 0 | Z42: 0 | AA42: 50000 | AB42: 0 | AC42: 0 | AD42: 0 | AE42: 0 | AF42: 0 | AG42: 0 | AH42: 50000 | AI42: RIMS consortium fee
S43: Research & Development | T43: 02200885168 | U43: CHAIR SUPPORT & ACHIEVER | V43: 0 | W43: 0 | X43: 0 | Y43: 0 | Z43: 0 | AA43: 500000 | AB43: 0 | AC43: 0 | AD43: 0 | AE43: 0 | AF43: 0 | AG43: 0 | AH43: 500000 | AI43: Chair Support and Achiever Grants
S44: Research & Development | T44: 02200884168 | U44: DEVELOPMENT GRANTS GRANT | V44: 0 | W44: 0 | X44: 0 | Y44: 0 | Z44: 0 | AA44: 500000 | AB44: 0 | AC44: 0 | AD44: 0 | AE44: 0 | AF44: 0 | AG44: 0 | AH44: 500000 | AI44: Development grants
S45: Research & Development | T45: 02200883168 | U45: DEAN RESEARCH DISCRETIONA | V45: 1400000 | W45: 0 | X45: 0 | Y45: 0 | Z45: 0 | AA45: 0 | AB45: 0 | AC45: 0 | AD45: 0 | AE45: 0 | AF45: 0 | AG45: 0 | AH45: 1400000 | AI45: Discretionary grants
S46: Research & Development | T46: 02200886168 | U46: HIGH PRODUCTIVITY FUNDING | V46: 0 | W46: 0 | X46: 0 | Y46: 0 | Z46: 0 | AA46: 2700000 | AB46: 0 | AC46: 0 | AD46: 0 | AE46: 0 | AF46: 0 | AG46: 0 | AH46: 2700000 | AI46: High Productivity Funding
S47: Research & Development | T47: 02200889168 | U47: RESEARCH DIVISION NEW FOC | V47: 0 | W47: 0 | X47: 0 | Y47: 0 | Z47: 0 | AA47: 1160000 | AB47: 0 | AC47: 0 | AD47: 0 | AE47: 0 | AF47: 0 | AG47: 0 | AH47: 1160000 | AI47: New Focus Areas
S48: Research & Development | T48: 02305880168 | U48: POSTDOC RESEARCH FELLOWS | V48: 0 | W48: 0 | X48: 0 | Y48: 0 | Z48: 0 | AA48: 2100000 | AB48: 0 | AC48: 0 | AD48: 0 | AE48: 0 | AF48: 0 | AG48: 0 | AH48: 2100000 | AI48: Post doctoral fellows
S49: Research & Development | T49: 02200882168 | U49: DEAN RESEARCH STAFF/PG DE | V49: 0 | W49: 0 | X49: 0 | Y49: 0 | Z49: 0 | AA49: 200000 | AB49: 0 | AC49: 0 | AD49: 0 | AE49: 0 | AF49: 0 | AG49: 0 | AH49: 200000 | AI49: Staff / PG development
S50: Research & Development | T50: 02200888168 | U50: RO STAFF RECRUITMENT GRAN | V50: 0 | W50: 0 | X50: 0 | Y50: 0 | Z50: 0 | AA50: 0 | AB50: 0 | AC50: 0 | AD50: 0 | AE50: 0 | AF50: 0 | AG50: 0 | AH50: 0 | AI50: Staff recruitment
S51: Research & Development | T51: 02699880168 | U51: ACADEMIC TRAVEL LOCAL | V51: 0 | W51: 6000 | X51: 0 | Y51: 0 | Z51: 0 | AA51: 3550000 | AB51: 0 | AC51: -6000 | AD51: 0 | AE51: 0 | AF51: 0 | AG51: 0 | AH51: 3550000 | AI51: Travel grants
S52: Research & Development | T52: 02305881168 | U52: POSTDOC RESEARCH TRAVEL | V52: 0 | W52: 0 | X52: 0 | Y52: 0 | Z52: 0 | AA52: 250000 | AB52: 0 | AC52: 0 | AD52: 0 | AE52: 0 | AF52: 0 | AG52: 0 | AH52: 250000 | AI52: Post Doctoral Travel
S53: Library Services | T53: 04000022100 | U53: LIBRARY B SALARIES PERMAN | V53: 160248.2 | W53: 181659.89 | X53: 169798.5 | Y53: 169798.5 | Z53: 170631.39 | AA53: 170631.39 | AB53: 169798.5 | AC53: 169798.5 | AD53: 169798.5 | AE53: 170948.68 | AF53: 184976.75 | AG53: 121447.75 | AH53: 2009536.55 | AI53: Staff Costs
S54: Library Services | T54: 04000023100 | U54: LIBRARY C SALARIES PERMAN | V54: 188994.06 | W54: 218231.7 | X54: 202994.98 | Y54: 202994.98 | Z54: 202780.95 | AA54: 202868.71 | AB54: 199914.98 | AC54: 199914.98 | AD54: 199914.98 | AE54: 200321.64 | AF54: 199914.98 | AG54: 330644.97 | AH54: 2549491.91 | AI54: Staff Costs
S55: Library Services | T55: 04000024100 | U55: LIBRARY D SALARIES PERMAN | V55: 34746.62 | W55: 39668 | X55: 36781 | Y55: 36781 | Z55: 36781 | AA55: 36781 | AB55: 36781 | AC55: 54068.08 | AD55: 39684.08 | AE55: 40611.95 | AF55: 39684.08 | AG55: 57238.19 | AH55: 489606 | AI55: Staff Costs
S56: Library Services | T56: 04000025100 | U56: LIBRARY E SALARIES PERMAN | V56: 290061.18 | W56: 328209.18 | X56: 340499.29 | Y56: 330546 | Z56: 335579.02 | AA56: 348825.39 | AB56: 335538.58 | AC56: 331537.58 | AD56: 328139.39 | AE56: 329278.96 | AF56: 335672.35 | AG56: 369015.77 | AH56: 4002902.69 | AI56: Staff Costs
S57: Library Services | T57: 04000027100 | U57: LIBRARY G SALARIES PERMAN | V57: 6358 | W57: 7378.49 | X57: 6835 | Y57: 6835 | Z57: 6994.28 | AA57: 7339.38 | AB57: 6835 | AC57: 6835 | AD57: 6835 | AE57: 7047.37 | AF57: 6835 | AG57: 6835 | AH57: 82962.52 | AI57: Staff Costs
S58: Library Services | T58: 04000033100 | U58: LIBRARY C SALARIES OTHER | V58: 0 | W58: 2499 | X58: 0 | Y58: 0 | Z58: 0 | AA58: 0 | AB58: 0 | AC58: 0 | AD58: 0 | AE58: 0 | AF58: 0 | AG58: 0 | AH58: 2499 | AI58: Staff Costs
S59: Library Services | T59: 04000035100 | U59: LIBRARY E SALARIES OTHER | V59: 49677.25 | W59: 49666.47 | X59: 74835.25 | Y59: 105244.5 | Z59: 57705.25 | AA59: 44631.27 | AB59: 52353 | AC59: 36306.75 | AD59: 56561.75 | AE59: 62003.87 | AF59: 48378 | AG59: 46836.75 | AH59: 684200.11 | AI59: Staff Costs
S60: Library Services | T60: 04000037100 | U60: LIBRARY G SALARIES OTHER | V60: 3790 | W60: 3790 | X60: 3843 | Y60: 3843 | Z60: 4262.12 | AA60: 4052.56 | AB60: 3843 | AC60: 3843 | AD60: 3843 | AE60: 3843 | AF60: 3843 | AG60: 3843 | AH60: 46638.68 | AI60: Staff Costs
S61: Library Services | T61: 04000044100 | U61: LIBRARY TEMP ASSISTANCE T | V61: 0 | W61: 0 | X61: 9723.88 | Y61: 17873.45 | Z61: 0 | AA61: 2171.65 | AB61: 29894.89 | AC61: 20535.63 | AD61: 34112.9 | AE61: 13445.3 | AF61: 37578.36 | AG61: 39187.35 | AH61: 204523.41 | AI61: Staff Costs
S62: Library Services | T62: 04000045100 | U62: LIBRARY TEMP ASSISTANCE | V62: 0 | W62: 8581.25 | X62: 16191 | Y62: 14553.75 | Z62: 48008.7 | AA62: 70357.75 | AB62: 57374.25 | AC62: 34254.25 | AD62: 59345.25 | AE62: 41029.75 | AF62: 65923.75 | AG62: 64624 | AH62: 480243.7 | AI62: Staff Costs
S63: Library Services | T63: 04000047100 | U63: LIBRARY TEMP ASSISTANCE G | V63: 0 | W63: 0 | X63: 0 | Y63: 0 | Z63: 0 | AA63: 640 | AB63: 0 | AC63: 0 | AD63: 0 | AE63: 0 | AF63: 0 | AG63: 0 | AH63: 640 | AI63: Staff Costs
S64: Library Services | T64: 04000052100 | U64: LIBRARY B SERVICE BONUS | V64: 0 | W64: 0 | X64: 51581 | Y64: 0 | Z64: 0 | AA64: 0 | AB64: 23992 | AC64: 48685.5 | AD64: 27591 | AE64: 0 | AF64: 13749 | AG64: 0 | AH64: 165598.5 | AI64: Staff Costs
S65: Library Services | T65: 04000053100 | U65: LIBRARY C SERVICE BONUS | V65: 21722 | W65: 1290 | X65: 1290 | Y65: 23073 | Z65: 21429 | AA65: 1290 | AB65: 16263 | AC65: 21429 | AD65: 48708 | AE65: 1290 | AF65: 1290 | AG65: 47498 | AH65: 206572 | AI65: Staff Costs
S66: Library Services | T66: 04000054100 | U66: LIBRARY D SERVICE BONUS | V66: 0 | W66: 0 | X66: 0 | Y66: 0 | Z66: 0 | AA66: 15317 | AB66: 0 | AC66: 22617.08 | AD66: 0 | AE66: 0 | AF66: 0 | AG66: 0 | AH66: 37934.08 | AI66: Staff Costs
S67: Library Services | T67: 04000055100 | U67: LIBRARY E SERVICE BONUS | V67: 0 | W67: 14442.15 | X67: 41824 | Y67: 58062.41 | Z67: 0 | AA67: 0 | AB67: 13941.33 | AC67: 0 | AD67: 20525 | AE67: 23846 | AF67: 34598 | AG67: 62588 | AH67: 269826.89 | AI67: Staff Costs
S68: Library Services | T68: 04000057100 | U68: LIBRARY G SERVICE BONUS | V68: 0 | W68: 0 | X68: 6135 | Y68: 0 | Z68: 0 | AA68: 0 | AB68: 0 | AC68: 0 | AD68: 0 | AE68: 0 | AF68: 0 | AG68: 0 | AH68: 6135 | AI68: Staff Costs
S69: Library Services | T69: 04000064100 | U69: LIBRARY D HOUSING SUBSIDY | V69: 0 | W69: 0 | X69: 0 | Y69: 0 | Z69: 0 | AA69: 0 | AB69: 0 | AC69: 0 | AD69: 0 | AE69: 0 | AF69: 0 | AG69: 0 | AH69: =SUM(V69:AG69) -> 0 | AI69: Staff Costs
S70: Library Services | T70: 04000065100 | U70: LIBRARY E HOUSING SUBSIDY | V70: 0 | W70: 0 | X70: 0 | Y70: 0 | Z70: 0 | AA70: 0 | AB70: 0 | AC70: 0 | AD70: 0 | AE70: 0 | AF70: 0 | AG70: 0 | AH70: 0 | AI70: Staff Costs
S71: Library Services | T71: 04000067100 | U71: LIBRARY G HOUSING SUBSIDY | V71: 0 | W71: 0 | X71: 0 | Y71: 0 | Z71: 0 | AA71: 0 | AB71: 0 | AC71: 0 | AD71: 0 | AE71: 0 | AF71: 0 | AG71: 0 | AH71: 0 | AI71: Staff Costs
S72: Library Services | T72: 04000072100 | U72: LIBRARY B MEDICAL AID | V72: 4568 | W72: 4568 | X72: 4568 | Y72: 4568 | Z72: 4568 | AA72: 4568 | AB72: 4568 | AC72: 4568 | AD72: 4568 | AE72: 4568 | AF72: 3747.25 | AG72: 3747.25 | AH72: 53174.5 | AI72: Staff Costs
S73: Library Services | T73: 04000073100 | U73: LIBRARY C MEDICAL AID | V73: 2564 | W73: 2716.5 | X73: 2716.5 | Y73: 2326.5 | Z73: 2586.5 | AA73: 2586.5 | AB73: 2586.5 | AC73: 2586.5 | AD73: 2586.5 | AE73: 2586.5 | AF73: 2586.5 | AG73: 2586.5 | AH73: 31015.5 | AI73: Staff Costs
S74: Library Services | T74: 04000074100 | U74: LIBRARY D MEDICAL AID | V74: 2711.5 | W74: 2771.5 | X74: 2771.5 | Y74: 2771.5 | Z74: 2771.5 | AA74: 2644 | AB74: 2644 | AC74: 2671.5 | AD74: 2671.5 | AE74: 2671.5 | AF74: 2671.5 | AG74: 2671.5 | AH74: 32443 | AI74: Staff Costs
S75: Library Services | T75: 04000075100 | U75: LIBRARY E MEDICAL AID | V75: 13232.25 | W75: 15888 | X75: 17625.5 | Y75: 15995.5 | Z75: 15995.5 | AA75: 15873 | AB75: 16551.25 | AC75: 16551.25 | AD75: 15413 | AE75: 15413 | AF75: 15413 | AG75: 15413 | AH75: 189364.25 | AI75: Staff Costs
S76: Library Services | T76: 04000077100 | U76: LIBRARY G MEDICAL AID | V76: 680 | W76: 680 | X76: 680 | Y76: 680 | Z76: 680 | AA76: 680 | AB76: 680 | AC76: 680 | AD76: 680 | AE76: 680 | AF76: 680 | AG76: 680 | AH76: 8160 | AI76: Staff Costs
S77: Library Services | T77: 04000102100 | U77: LIBRARY B UIF | V77: 748.68 | W77: 748.68 | X77: 748.68 | Y77: 748.68 | Z77: 748.68 | AA77: 748.68 | AB77: 748.68 | AC77: 748.68 | AD77: 748.68 | AE77: 748.68 | AF77: 623.9 | AG77: 623.9 | AH77: 8734.6 | AI77: Staff Costs
S78: Library Services | T78: 04000103100 | U78: LIBRARY C UIF | V78: 1123.02 | W78: 1123.02 | X78: 1123.02 | Y78: 1123.02 | Z78: 1123.02 | AA78: 1123.02 | AB78: 1123.02 | AC78: 1123.02 | AD78: 1123.02 | AE78: 1123.02 | AF78: 1123.02 | AG78: 1123.02 | AH78: 13476.24 | AI78: Staff Costs
S79: Library Services | T79: 04000104100 | U79: LIBRARY D UIF | V79: 249.56 | W79: 249.56 | X79: 249.56 | Y79: 249.56 | Z79: 249.56 | AA79: 249.56 | AB79: 374.34 | AC79: 374.34 | AD79: 374.34 | AE79: 374.34 | AF79: 374.34 | AG79: 374.34 | AH79: 3743.4 | AI79: Staff Costs
S80: Library Services | T80: 04000105100 | U80: LIBRARY E UIF | V80: 2371.65 | W80: 2461.82 | X80: 2460.61 | Y80: 2525.15 | Z80: 2540.27 | AA80: 2555.26 | AB80: 2562.04 | AC80: 2572.37 | AD80: 2507.76 | AE80: 2437.26 | AF80: 2538.2 | AG80: 2499.78 | AH80: 30032.17 | AI80: Staff Costs
S81: Library Services | T81: 04000107100 | U81: LIBRARY G UIF | V81: 108.54 | W81: 118.75 | X81: 165.31 | Y81: 124.44 | Z81: 119.62 | AA81: 120.99 | AB81: 133.78 | AC81: 113.84 | AD81: 122.34 | AE81: 120.16 | AF81: 131.4 | AG81: 118.8 | AH81: 1497.97 | AI81: Staff Costs
S82: Library Services | T82: 04000112100 | U82: LIBRARY B GROUP LIFE | V82: 711.54 | W82: 705.45 | X82: 705.45 | Y82: 705.45 | Z82: 705.45 | AA82: 705.45 | AB82: 705.45 | AC82: 705.45 | AD82: 705.45 | AE82: 705.45 | AF82: 498.05 | AG82: 498.05 | AH82: 8056.69 | AI82: Staff Costs
S83: Library Services | T83: 04000113100 | U83: LIBRARY C GROUP LIFE | V83: 822.65 | W83: 816.14 | X83: 816.14 | Y83: 816.14 | Z83: 816.14 | AA83: 816.14 | AB83: 819.79 | AC83: 819.79 | AD83: 819.79 | AE83: 819.79 | AF83: 819.79 | AG83: 819.79 | AH83: 9822.09 | AI83: Staff Costs
S84: Library Services | T84: 04000114100 | U84: LIBRARY D GROUP LIFE | V84: 149.5 | W84: 148.31 | X84: 148.31 | Y84: 148.31 | Z84: 148.31 | AA84: 148.31 | AB84: 149.23 | AC84: 161.6 | AD84: 161.6 | AE84: 161.6 | AF84: 161.6 | AG84: 161.6 | AH84: 1848.28 | AI84: Staff Costs
S85: Library Services | T85: 04000115100 | U85: LIBRARY E GROUP LIFE | V85: 1195.73 | W85: 1139.79 | X85: 1233.86 | Y85: 1233.86 | Z85: 1233.86 | AA85: 1265.27 | AB85: 1265.27 | AC85: 1265.27 | AD85: 1206.7 | AE85: 1206.7 | AF85: 1206.7 | AG85: 1206.7 | AH85: 14659.71 | AI85: Staff Costs
S86: Library Services | T86: 04000117100 | U86: LIBRARY G GROUP LIFE | V86: 26.12 | W86: 26.14 | X86: 26.14 | Y86: 26.14 | Z86: 26.14 | AA86: 26.14 | AB86: 26.14 | AC86: 26.14 | AD86: 26.14 | AE86: 26.14 | AF86: 26.14 | AG86: 26.14 | AH86: 313.66 | AI86: Staff Costs
S87: Library Services | T87: 04000152100 | U87: LIBRARY B PENSION CONTRIB | V87: 26885.75 | W87: 28491.19 | X87: 28491.19 | Y87: 28491.19 | Z87: 28491.19 | AA87: 28491.19 | AB87: 28491.19 | AC87: 28491.19 | AD87: 28491.19 | AE87: 28491.19 | AF87: 17536.95 | AG87: 17536.95 | AH87: 318380.36 | AI87: Staff Costs
S88: Library Services | T88: 04000153100 | U88: LIBRARY C PENSION CONTRIB | V88: 33461.9 | W88: 35689.81 | X88: 35689.81 | Y88: 35689.81 | Z88: 35689.81 | AA88: 35689.81 | AB88: 35689.81 | AC88: 35689.81 | AD88: 35689.81 | AE88: 35689.81 | AF88: 35689.81 | AG88: 35689.81 | AH88: 426049.81 | AI88: Staff Costs
S89: Library Services | T89: 04000154100 | U89: LIBRARY D PENSION CONTRIB | V89: 6301.52 | W89: 6733.2 | X89: 6733.2 | Y89: 6733.2 | Z89: 6733.2 | AA89: 6733.2 | AB89: 6733.2 | AC89: 7386.39 | AD89: 7386.39 | AE89: 7386.39 | AF89: 7386.39 | AG89: 7386.39 | AH89: 83632.67 | AI89: Staff Costs
S90: Library Services | T90: 04000155100 | U90: LIBRARY E PENSION CONTRIB | V90: 49962.8 | W90: 51498.05 | X90: 55229.53 | Y90: 55229.53 | Z90: 55229.53 | AA90: 56888.36 | AB90: 56888.36 | AC90: 56888.36 | AD90: 54825.95 | AE90: 54825.95 | AF90: 54825.95 | AG90: 54825.95 | AH90: 657118.32 | AI90: Staff Costs
S91: Library Services | T91: 04000157100 | U91: LIBRARY G PENSION CONTRIB | V91: 859.2 | W91: 920.25 | X91: 920.25 | Y91: 920.25 | Z91: 920.25 | AA91: 920.25 | AB91: 920.25 | AC91: 920.25 | AD91: 920.25 | AE91: 920.25 | AF91: 920.25 | AG91: 920.25 | AH91: 10981.95 | AI91: Staff Costs
S92: Library Services | T92: 04000880168 | U92: LIBRARY SALARIES PERM STA | V92: 0 | W92: 0 | X92: 0 | Y92: 0 | Z92: 0 | AA92: 0 | AB92: 0 | AC92: 0 | AD92: 0 | AE92: 0 | AF92: 0 | AG92: 0 | AH92: 0 | AI92: Staff Costs
S93: Library Services | T93: 05210880168 | U93: LIBRARY BOOKS / PERIODICA | V93: 0 | W93: 0 | X93: 0 | Y93: 0 | Z93: 0 | AA93: 9231000 | AB93: 0 | AC93: 0 | AD93: 0 | AE93: 0 | AF93: 0 | AG93: 0 | AH93: 9231000 | AI93: Books & Periodicals & Electronic Resources
S94: Library Services | T94: 05210416108 | U94: LIBRARY BANK CHARGES | V94: 479.54 | W94: 2761.89 | X94: 1300 | Y94: 2548.24 | Z94: 4323.47 | AA94: 1840.55 | AB94: 2885.67 | AC94: 2891.87 | AD94: 1872.33 | AE94: 1814.33 | AF94: 1125 | AG94: 5262.85 | AH94: 29105.74 | AI94: Bank Charges
S95: Library Services | T95: 04300420108 | U95: LIBRARY BINDING COSTS | V95: 9700.69 | W95: 0 | X95: 5932.72 | Y95: 13699.17 | Z95: 15511.46 | AA95: 8137.32 | AB95: 13809.5 | AC95: 33260.06 | AD95: 18921.31 | AE95: 25965.97 | AF95: 5733.38 | AG95: 18467.72 | AH95: 169139.3 | AI95: Binding
S96: Library Services | T96: 04300422108 | U96: LIBRARY DETECTION STRIPS | V96: 0 | W96: 0 | X96: 0 | Y96: 0 | Z96: 34200 | AA96: 0 | AB96: 0 | AC96: 0 | AD96: 0 | AE96: 0 | AF96: 0 | AG96: 0 | AH96: 34200 | AI96: Binding
S97: Library Services | T97: 05240881168 | U97: LIBRARY EQUIPMENT GRANT | V97: 0 | W97: 0 | X97: 0 | Y97: 0 | Z97: 0 | AA97: 663000 | AB97: 0 | AC97: 0 | AD97: 0 | AE97: 0 | AF97: 0 | AG97: 0 | AH97: 663000 | AI97: Equipment
S98: Library Services | T98: 05210415108 | U98: LIBRARY FREIGHT CHARGES O | V98: 0 | W98: 0 | X98: 0 | Y98: 0 | Z98: 0 | AA98: 0 | AB98: 0 | AC98: 0 | AD98: 0 | AE98: 0 | AF98: 0 | AG98: 0 | AH98: 0 | AI98: Freight Charges
S99: Library Services | T99: 04600500108 | U99: LIBRARY COMPUTER MAINTENA | V99: 410.4 | W99: 2648.1 | X99: 100 | Y99: 0 | Z99: 0 | AA99: 790.46 | AB99: 2424.2 | AC99: 79.8 | AD99: 700 | AE99: 1482 | AF99: 1023.16 | AG99: 0 | AH99: 9658.12 | AI99: Information Technology
S100: Library Services | T100: 04600501108 | U100: LIBRARY SABINET RUNNING E | V100: 0 | W100: 0 | X100: 0 | Y100: 0 | Z100: 439571.15 | AA100: 0 | AB100: 0 | AC100: 0 | AD100: -14868.75 | AE100: 0 | AF100: 0 | AG100: 0 | AH100: 424702.4 | AI100: Information Technology
S101: Library Services | T101: 04600502108 | U101: LIBRARY S/WARE LIC (INTEG | V101: 269765.57 | W101: 0 | X101: 0 | Y101: 0 | Z101: 0 | AA101: 0 | AB101: 0 | AC101: 0 | AD101: 26954.28 | AE101: 0 | AF101: 0 | AG101: 0 | AH101: 296719.85 | AI101: Information Technology
S102: Library Services | T102: 04600503108 | U102: LIBRARY SOFTWARE | V102: 0 | W102: 1127.96 | X102: 0 | Y102: 0 | Z102: 0 | AA102: 0 | AB102: 0 | AC102: 0 | AD102: 0 | AE102: 0 | AF102: 6779.99 | AG102: 77061.07 | AH102: 84969.02 | AI102: Information Technology
S103: Library Services | T103: 04600504108 | U103: LIBRARY SEALS MEMBERSHIP | V103: 152273.09 | W103: 0 | X103: 0 | Y103: 0 | Z103: 3000 | AA103: 250 | AB103: 0 | AC103: 2400 | AD103: 0 | AE103: 0 | AF103: 0 | AG103: 0 | AH103: 157923.09 | AI103: Information Technology
S104: Library Services | T104: 04600505108 | U104: LIBRARY MAINTENANCE CONTR | V104: 0 | W104: 0 | X104: 0 | Y104: 0 | Z104: 0 | AA104: 0 | AB104: 0 | AC104: 52907.4 | AD104: 11790.45 | AE104: 0 | AF104: 0 | AG104: 0 | AH104: 64697.85 | AI104: Maintenance
S105: Library Services | T105: 04500503108 | U105: LIBRARY COMMITTEE TRAVEL | V105: 6006.93 | W105: 5381.97 | X105: -5778.04 | Y105: 70 | Z105: 1025.75 | AA105: 1008.47 | AB105: 1586.52 | AC105: 3897.66 | AD105: 460 | AE105: 3690 | AF105: 1482.28 | AG105: -3405.22 | AH105: 15426.32 | AI105: Professional organisation representation
S106: Library Services | T106: 04200485112 | U106: LIBRARY PRINTING COSTS - | V106: 388 | W106: 5293.93 | X106: 14.6 | Y106: 0 | Z106: 28 | AA106: 780 | AB106: 260 | AC106: 200 | AD106: 9569.72 | AE106: 60 | AF106: 856.8 | AG106: 2525 | AH106: 19976.05 | AI106: Stationery & Printing
S107: Library Services | T107: 04200541108 | U107: LIBRARY STATIONERY COSTS | V107: 2174.66 | W107: 3498.14 | X107: 13997.39 | Y107: 8787.94 | Z107: 1143.71 | AA107: 1064.26 | AB107: 4636.48 | AC107: 9481.69 | AD107: -6082.01 | AE107: 1682.8 | AF107: 4251.09 | AG107: 3558.85 | AH107: 48195 | AI107: Stationery & Printing
S108: Library Services | T108: 04400484108 | U108: LIBRARY POSTAGE COSTS | V108: 1392.29 | W108: 2841.37 | X108: 4193.65 | Y108: 584.5 | Z108: 2203.69 | AA108: 2291.17 | AB108: 1690.4 | AC108: 2513.9 | AD108: 1996.38 | AE108: 1316 | AF108: 0 | AG108: 1493 | AH108: 22516.35 | AI108: Telephone & Postage
S109: Library Services | T109: 04400547108 | U109: LIBRARY TELEPHONE / FAX | V109: 0 | W109: 1478.65 | X109: 1521.66 | Y109: 836.68 | Z109: 145.14 | AA109: 723.1 | AB109: 1871.5 | AC109: 1589.48 | AD109: 2954.75 | AE109: 1729.63 | AF109: 1510.61 | AG109: 2134.32 | AH109: 16495.52 | AI109: Telephone & Postage
S110: Library Services | T110: 04400611108 | U110: LIBRARY COSTS DATALINE RE | V110: 598 | W110: 438 | X110: 438 | Y110: 249 | Z110: 249 | AA110: 249 | AB110: 1294.53 | AC110: 249 | AD110: 220 | AE110: 769.62 | AF110: 0 | AG110: 0 | AH110: 4754.15 | AI110: Telephone & Postage
S111: Library Services | T111: 04500500108 | U111: LIBRARY R/EXP MISCELLANEO | V111: 1942.39 | W111: 1271 | X111: 5682.18 | Y111: 2152.45 | Z111: 3624.09 | AA111: 691 | AB111: 491 | AC111: 3744.65 | AD111: 1981.35 | AE111: 2224.64 | AF111: 6252.5 | AG111: 12026.25 | AH111: 42083.5 | AI111: Sundry
S112: Library Services | T112: 04500502108 | U112: LIBRARY TRAVEL EXP | V112: 65112 | W112: -57387.05 | X112: 8359.91 | Y112: 3228.52 | Z112: 3802.77 | AA112: 7800.23 | AB112: 6053.69 | AC112: 6796.69 | AD112: 730.19 | AE112: 12635 | AF112: 3578.74 | AG112: 761.18 | AH112: 61471.87 | AI112: Sundry
S113: Library Services | T113: 04500880168 | U113: LIBRARY TRANSFER | V113: 0 | W113: 0 | X113: 0 | Y113: 0 | Z113: 0 | AA113: 0 | AB113: 0 | AC113: 0 | AD113: 0 | AE113: 0 | AF113: 0 | AG113: 0 | AH113: 0 | AI113: Sundry
S114: Cory Library | T114: 04050024100 | U114: CORY LIBRARY D SALARIES P | V114: 17459 | W114: 20082.62 | X114: 18682 | Y114: 18682 | Z114: 18682 | AA114: 18682 | AB114: 18682 | AC114: 18682 | AD114: 18682 | AE114: 18682 | AF114: 18682 | AG114: 39289.99 | AH114: 244969.61 | AI114: Staff Costs
S115: Cory Library | T115: 04050025100 | U115: CORY LIBRARY E SALARIES P | V115: 39904 | W115: 37471.29 | X115: 26578 | Y115: 26578 | Z115: 26578 | AA115: 26578 | AB115: 26578 | AC115: 26578 | AD115: 26578 | AE115: 26578 | AF115: 26578 | AG115: 36881.99 | AH115: 353459.28 | AI115: Staff Costs
S116: Cory Library | T116: 04050027100 | U116: CORY LIBRARY G SALARIES P | V116: 5769 | W116: 5839 | X116: 7188.61 | Y116: 6224.43 | Z116: 6224.43 | AA116: 6224.43 | AB116: 6224.43 | AC116: 6224.43 | AD116: 6224.43 | AE116: 6224.43 | AF116: 6224.43 | AG116: 6224.43 | AH116: 74816.48 | AI116: Staff Costs
S117: Cory Library | T117: 04050033100 | U117: CORY LIBRARY C SALARIES O | V117: 22554 | W117: 22554 | X117: 26337.92 | Y117: 26337.92 | Z117: 26337.92 | AA117: 26337.92 | AB117: 26337.92 | AC117: 26337.92 | AD117: 26337.92 | AE117: 26337.92 | AF117: 26337.92 | AG117: 26337.92 | AH117: 308487.2 | AI117: Staff Costs
S118: Cory Library | T118: 04050054100 | U118: CORY LIBRARY D SERVICE BO | V118: 0 | W118: 0 | X118: 0 | Y118: 0 | Z118: 17982 | AA118: 0 | AB118: 0 | AC118: 0 | AD118: 0 | AE118: 0 | AF118: 0 | AG118: 0 | AH118: 17982 | AI118: Staff Costs
S119: Cory Library | T119: 04050055100 | U119: CORY LIBRARY BONUS | V119: 0 | W119: 0 | X119: 0 | Y119: 0 | Z119: 0 | AA119: 0 | AB119: 0 | AC119: 0 | AD119: 6836 | AE119: 0 | AF119: 18342 | AG119: 0 | AH119: 25178 | AI119: Staff Costs
S120: Cory Library | T120: 04050057100 | U120: CORY LIBRARY BONUS | V120: 0 | W120: 0 | X120: 0 | Y120: 0 | Z120: 0 | AA120: 5524.43 | AB120: 0 | AC120: 0 | AD120: 0 | AE120: 0 | AF120: 0 | AG120: 0 | AH120: 5524.43 | AI120: Staff Costs
S121: Cory Library | T121: 04050064100 | U121: CORY LIBRARY D HOUSING SU | V121: 0 | W121: 0 | X121: 0 | Y121: 0 | Z121: 0 | AA121: 0 | AB121: 0 | AC121: 0 | AD121: 0 | AE121: 0 | AF121: 0 | AG121: 0 | AH121: 0 | AI121: Staff Costs
S122: Cory Library | T122: 04050075100 | U122: CORY LIBRARY MEDICAL AID | V122: 2224 | W122: 633.25 | X122: 678.25 | Y122: 678.25 | Z122: 678.25 | AA122: 678.25 | AB122: 678.25 | AC122: 678.25 | AD122: 678.25 | AE122: 678.25 | AF122: 678.25 | AG122: 678.25 | AH122: 9639.75 | AI122: Staff Costs
S123: Cory Library | T123: 04050103100 | U123: CORY LIBRARY C UIF | V123: 124.78 | W123: 124.78 | X123: 124.78 | Y123: 124.78 | Z123: 124.78 | AA123: 124.78 | AB123: 124.78 | AC123: 124.78 | AD123: 124.78 | AE123: 124.78 | AF123: 124.78 | AG123: 124.78 | AH123: 1497.36 | AI123: Staff Costs
S124: Cory Library | T124: 04050104100 | U124: CORY LIBRARY D UIF | V124: 124.78 | W124: 124.78 | X124: 124.78 | Y124: 124.78 | Z124: 124.78 | AA124: 124.78 | AB124: 124.78 | AC124: 124.78 | AD124: 124.78 | AE124: 124.78 | AF124: 124.78 | AG124: 124.78 | AH124: 1497.36 | AI124: Staff Costs
S125: Cory Library | T125: 04050105100 | U125: CORY LIBRARY UIF | V125: 317 | W125: 301.32 | X125: 207.21 | Y125: 207.21 | Z125: 207.21 | AA125: 207.21 | AB125: 207.21 | AC125: 207.21 | AD125: 249.56 | AE125: 207.21 | AF125: 207.21 | AG125: 207.21 | AH125: 2732.77 | AI125: Staff Costs
S126: Cory Library | T126: 04050107100 | U126: CORY LIBRARY UIF | V126: 57.69 | W126: 58.39 | X126: 71.89 | Y126: 62.24 | Z126: 62.24 | AA126: 117.49 | AB126: 62.24 | AC126: 62.24 | AD126: 62.24 | AE126: 62.24 | AF126: 62.24 | AG126: 95.58 | AH126: 836.72 | AI126: Staff Costs
S127: Cory Library | T127: 04050114100 | U127: CORY LIBRARY D GROUP LIFE | V127: 76.74 | W127: 76.6 | X127: 76.6 | Y127: 76.6 | Z127: 76.6 | AA127: 76.6 | AB127: 76.6 | AC127: 76.6 | AD127: 76.6 | AE127: 76.6 | AF127: 76.6 | AG127: 76.6 | AH127: 919.34 | AI127: Staff Costs
S128: Cory Library | T128: 04050115100 | U128: CORY LIBRARY GROUP LIFE | V128: 173.35 | W128: 96.48 | X128: 107.26 | Y128: 107.26 | Z128: 107.26 | AA128: 107.26 | AB128: 107.26 | AC128: 107.26 | AD128: 107.26 | AE128: 107.26 | AF128: 107.26 | AG128: 107.26 | AH128: 1342.43 | AI128: Staff Costs
S129: Cory Library | T129: 04050154100 | U129: CORY LIBRARY D PENSION CO | V129: 2524.35 | W129: 2697.3 | X129: 2697.3 | Y129: 2697.3 | Z129: 2697.3 | AA129: 2697.3 | AB129: 2697.3 | AC129: 2697.3 | AD129: 2697.3 | AE129: 2697.3 | AF129: 2697.3 | AG129: 2697.3 | AH129: 32194.65 | AI129: Staff Costs
S130: Cory Library | T130: 04050155100 | U130: CORY LIBRARY PENSION/PROV | V130: 5702.1 | W130: 3396.9 | X130: 3776.7 | Y130: 3776.7 | Z130: 3776.7 | AA130: 3776.7 | AB130: 3776.7 | AC130: 3776.7 | AD130: 3776.7 | AE130: 3776.7 | AF130: 3776.7 | AG130: 3776.7 | AH130: 46866 | AI130: Staff Costs
S131: Cory Library | T131: 04050157100 | U131: CORY LIBRARY PENSION/PROV | V131: 770.85 | W131: 770.85 | X131: 828.66 | Y131: 828.66 | Z131: 828.66 | AA131: 828.66 | AB131: 828.66 | AC131: 828.66 | AD131: 828.66 | AE131: 828.66 | AF131: 828.66 | AG131: 828.66 | AH131: 9828.3 | AI131: Staff Costs
S132: Cory Library | T132: 04201501108 | U132: CORY LIBRARY MAINTENANCE | V132: 0 | W132: 0 | X132: 0 | Y132: 0 | Z132: 0 | AA132: 0 | AB132: 0 | AC132: 0 | AD132: 0 | AE132: 0 | AF132: 0 | AG132: 0 | AH132: 0 | AI132: Maintenance
S133: Cory Library | T133: 04201485112 | U133: CORY LIBRARY PRINT UNIT | V133: 0 | W133: 0 | X133: 0 | Y133: 0 | Z133: 0 | AA133: 0 | AB133: 100 | AC133: 0 | AD133: 0 | AE133: 0 | AF133: 780 | AG133: 0 | AH133: =SUM(V133:AG133) -> 880 | AI133: Printing & Stationery
S134: Cory Library | T134: 04201541108 | U134: CORY LIBRARY STATIONERY C | V134: 823 | W134: 593.64 | X134: 1936.53 | Y134: 150.69 | Z134: 252.81 | AA134: 773.54 | AB134: 0 | AC134: 2.75 | AD134: 0 | AE134: 679.38 | AF134: 2257.72 | AG134: 1313.95 | AH134: 8784.01 | AI134: Printing & Stationery
S135: Cory Library | T135: 04401484108 | U135: CORY LIBRARY POSTAGE | V135: 6 | W135: 85.1 | X135: -175.5 | Y135: 130.8 | Z135: 62.6 | AA135: 317.15 | AB135: 30.75 | AC135: 369.2 | AD135: 76.75 | AE135: 450.45 | AF135: 81.75 | AG135: 58.45 | AH135: 1493.5 | AI135: Postage & Telephone
S136: Cory Library | T136: 04401547108 | U136: CORY LIBRARY TELEPHONE | V136: 0 | W136: 149.78 | X136: 158.54 | Y136: 123.95 | Z136: 11.99 | AA136: 0 | AB136: 401.18 | AC136: 0 | AD136: 394.24 | AE136: 220.44 | AF136: 161.3 | AG136: 275.15 | AH136: 1896.57 | AI136: Postage & Telephone
S137: Cory Library | T137: 04202503108 | U137: CORY LIBRARY SOFTWARE | V137: 0 | W137: 0 | X137: 0 | Y137: 0 | Z137: 0 | AA137: 0 | AB137: 0 | AC137: 0 | AD137: 0 | AE137: 0 | AF137: 0 | AG137: 0 | AH137: 0 | AI137: Software
S138: Cory Library | T138: 04201500108 | U138: CORY LIBRARY SUNDRY | V138: 292 | W138: 0 | X138: 438 | Y138: 0 | Z138: 0 | AA138: 0 | AB138: 0 | AC138: 0 | AD138: 55.5 | AE138: 0 | AF138: 783.9 | AG138: 0 | AH138: 1569.4 | AI138: Sundry
S139: Cory Library | T139: 04203500108 | U139: CORY LIBRARY SUPPLIES AND | V139: 0 | W139: 0 | X139: 0 | Y139: 0 | Z139: 0 | AA139: 0 | AB139: 0 | AC139: 0 | AD139: 0 | AE139: 0 | AF139: 4500 | AG139: 0 | AH139: 4500 | AI139: Supplies & services
S140: Cory Library | T140: 04201502108 | U140: CORY LIBRARY TRAVEL | V140: 0 | W140: 0 | X140: 0 | Y140: 0 | Z140: 0 | AA140: 0 | AB140: 690.99 | AC140: 0 | AD140: 1378.61 | AE140: 140 | AF140: 1274.73 | AG140: 566.37 | AH140: 4050.7 | AI140: Travel
S141: Graphic Services | T141: 00103022100 | U141: GRAPHICS SERVS SAL PERM | V141: 0 | W141: 0 | X141: 0 | Y141: 0 | Z141: 0 | AA141: 0 | AB141: 0 | AC141: 0 | AD141: 0 | AE141: 0 | AF141: 0 | AG141: 0 | AH141: 0 | AI141: 0
S142: Graphic Services | T142: 00103024100 | U142: GRAPHICS SERVS SAL PERM | V142: 0 | W142: 0 | X142: 0 | Y142: 0 | Z142: 0 | AA142: 0 | AB142: 0 | AC142: 0 | AD142: 0 | AE142: 0 | AF142: 0 | AG142: 0 | AH142: 0 | AI142: 0
S143: Graphic Services | T143: 00103025100 | U143: GRAPHICS SERVS SAL PERM | V143: 593.84 | W143: 0 | X143: 0 | Y143: 0 | Z143: 0 | AA143: 0 | AB143: 0 | AC143: -593.84 | AD143: 0 | AE143: 0 | AF143: 0 | AG143: 0 | AH143: 0 | AI143: 0
S144: Graphic Services | T144: 00103052100 | U144: GRAPHICS SERVS SERVICE BO | V144: 0 | W144: 0 | X144: 0 | Y144: 0 | Z144: 0 | AA144: 0 | AB144: 0 | AC144: 0 | AD144: 0 | AE144: 0 | AF144: 0 | AG144: 0 | AH144: 0 | AI144: 0
S145: Graphic Services | T145: 00103055100 | U145: GRAPHICS SERVS SERVICE BO | V145: 0 | W145: 0 | X145: 0 | Y145: 0 | Z145: 0 | AA145: 0 | AB145: 0 | AC145: 0 | AD145: 0 | AE145: 0 | AF145: 0 | AG145: 0 | AH145: 0 | AI145: 0
S146: Graphic Services | T146: 00103074100 | U146: GRAPHICS SERVS MEDICAL AI | V146: 0 | W146: 0 | X146: 0 | Y146: 0 | Z146: 0 | AA146: 0 | AB146: 0 | AC146: 0 | AD146: 0 | AE146: 0 | AF146: 0 | AG146: 0 | AH146: 0 | AI146: 0
S147: Graphic Services | T147: 00103075100 | U147: GRAPHICS SERVS MEDICAL AI | V147: 0 | W147: 0 | X147: 0 | Y147: 0 | Z147: 0 | AA147: 0 | AB147: 0 | AC147: 0 | AD147: 0 | AE147: 0 | AF147: 0 | AG147: 0 | AH147: 0 | AI147: 0
S148: Graphic Services | T148: 00103102100 | U148: GRAPHICS SERVS UIF | V148: 0 | W148: 0 | X148: 0 | Y148: 0 | Z148: 0 | AA148: 0 | AB148: 0 | AC148: 0 | AD148: 0 | AE148: 0 | AF148: 0 | AG148: 0 | AH148: 0 | AI148: 0
S149: Graphic Services | T149: 00103104100 | U149: GRAPHICS SERVS UIF | V149: 0 | W149: 0 | X149: 0 | Y149: 0 | Z149: 0 | AA149: 0 | AB149: 0 | AC149: 0 | AD149: 0 | AE149: 0 | AF149: 0 | AG149: 0 | AH149: 0 | AI149: 0
S150: Graphic Services | T150: 00103105100 | U150: GRAPHICS SERVS UIF | V150: 0 | W150: 0 | X150: 0 | Y150: 0 | Z150: 0 | AA150: 0 | AB150: 0 | AC150: 0 | AD150: 0 | AE150: 0 | AF150: 0 | AG150: 0 | AH150: 0 | AI150: 0
S151: Graphic Services | T151: 00103112100 | U151: GRAPHICS SERVS B GROUP AS | V151: 0 | W151: 0 | X151: 0 | Y151: 0 | Z151: 0 | AA151: 0 | AB151: 0 | AC151: 0 | AD151: 0 | AE151: 0 | AF151: 0 | AG151: 0 | AH151: 0 | AI151: 0
S152: Graphic Services | T152: 00103114100 | U152: GRAPHICS SERVS D GROUP AS | V152: 0 | W152: 0 | X152: 0 | Y152: 0 | Z152: 0 | AA152: 0 | AB152: 0 | AC152: 0 | AD152: 0 | AE152: 0 | AF152: 0 | AG152: 0 | AH152: 0 | AI152: 0
S153: Graphic Services | T153: 00103115100 | U153: GRAPHICS SERVS E GROUP AS | V153: 0 | W153: 0 | X153: 0 | Y153: 0 | Z153: 0 | AA153: 0 | AB153: 0 | AC153: 0 | AD153: 0 | AE153: 0 | AF153: 0 | AG153: 0 | AH153: 0 | AI153: 0
S154: Graphic Services | T154: 00103152100 | U154: GRAPHICS SERVS PENSION CO | V154: 0 | W154: 0 | X154: 0 | Y154: 0 | Z154: 0 | AA154: 0 | AB154: 0 | AC154: 0 | AD154: 0 | AE154: 0 | AF154: 0 | AG154: 0 | AH154: 0 | AI154: 0
S155: Graphic Services | T155: 00103154100 | U155: GRAPHICS SERVS PENSION CO | V155: 0 | W155: 0 | X155: 0 | Y155: 0 | Z155: 0 | AA155: 0 | AB155: 0 | AC155: 0 | AD155: 0 | AE155: 0 | AF155: 0 | AG155: 0 | AH155: 0 | AI155: 0
S156: Graphic Services | T156: 00103155100 | U156: GRAPHICS SERVS PENSION CO | V156: 0 | W156: 0 | X156: 0 | Y156: 0 | Z156: 0 | AA156: 0 | AB156: 0 | AC156: 0 | AD156: 0 | AE156: 0 | AF156: 0 | AG156: 0 | AH156: 0 | AI156: 0
S157: Student Activities | T157: 05061025100 | U157: DOS SRC SALARIES | V157: 27819 | W157: 33352.78 | X157: 29802 | Y157: 37210 | Z157: 31022.37 | AA157: 29802 | AB157: 29802 | AC157: 29802 | AD157: 29802 | AE157: 29802 | AF157: 29802 | AG157: 29802 | AH157: 367820.15 | AI157: Staff Costs
S158: Student Activities | T158: 05061055100 | U158: DOS SRC BONUS | V158: 17018 | W158: 0 | X158: 0 | Y158: 0 | Z158: 0 | AA158: 0 | AB158: 0 | AC158: 10218 | AD158: 0 | AE158: 0 | AF158: 0 | AG158: 0 | AH158: 27236 | AI158: Staff Costs
S159: Student Activities | T159: 05061075100 | U159: DOS SRC MEDICAL AID | V159: 1754 | W159: 1814 | X159: 1814 | Y159: 1814 | Z159: 1814 | AA159: 1814 | AB159: 1814 | AC159: 1814 | AD159: 1814 | AE159: 1814 | AF159: 1814 | AG159: 1814 | AH159: 21708 | AI159: Staff Costs
S160: Student Activities | T160: 05061105100 | U160: DOS SRC UIF | V160: 236.48 | W160: 249.56 | X160: 244.55 | Y160: 318.63 | Z160: 256.75 | AA160: 244.55 | AB160: 244.55 | AC160: 249.56 | AD160: 244.55 | AE160: 244.55 | AF160: 244.55 | AG160: 244.55 | AH160: 3022.83 | AI160: Staff Costs
S161: Student Activities | T161: 05061115100 | U161: DOS SRC GROUP LIFE | V161: 121.11 | W161: 120.99 | X161: 120.99 | Y161: 120.99 | Z161: 120.99 | AA161: 120.99 | AB161: 120.99 | AC161: 120.99 | AD161: 120.99 | AE161: 120.99 | AF161: 120.99 | AG161: 120.99 | AH161: 1452 | AI161: Staff Costs
S162: Student Activities | T162: 05061155100 | U162: DOS SRC PENSION | V162: 4699.43 | W162: 5026.65 | X162: 5026.65 | Y162: 5026.65 | Z162: 5026.65 | AA162: 5026.65 | AB162: 5026.65 | AC162: 5026.65 | AD162: 5026.65 | AE162: 5026.65 | AF162: 5026.65 | AG162: 5026.65 | AH162: 59992.58 | AI162: Staff Costs
S163: Student Activities | T163: 91800025218 | U163: SPORTS UNION SECR SALS PE | V163: 82344.45 | W163: 103093.05 | X163: 92188 | Y163: 92188 | Z163: 92188 | AA163: 94692.75 | AB163: 81579.75 | AC163: 78375.59 | AD163: 78375.59 | AE163: 78375.59 | AF163: 78375.59 | AG163: 89510.25 | AH163: 1041286.61 | AI163: Staff Costs
S164: Student Activities | T164: 91800027218 | U164: SPORTS UNION SERV SALS PE | V164: 14869.79 | W164: 17864.78 | X164: 20078.26 | Y164: 16546.11 | Z164: 17481.93 | AA164: 24694.31 | AB164: 21840.74 | AC164: 15267.34 | AD164: 28500.95 | AE164: 21450.11 | AF164: 22615.8 | AG164: 13934.23 | AH164: 235144.35 | AI164: Staff Costs
S165: Student Activities | T165: 91800035218 | U165: SPORTS UNION SECR SALS OT | V165: 14262 | W165: 10035.87 | X165: 15087 | Y165: 12087 | Z165: 9087 | AA165: 15087 | AB165: 20990.64 | AC165: 23990.64 | AD165: 23990.64 | AE165: 23990.64 | AF165: 23990.64 | AG165: 102651.84 | AH165: 295250.91 | AI165: Staff Costs
S166: Student Activities | T166: 91800037218 | U166: SPORTS UNION SERV SALS OT | V166: 29864.37 | W166: 31292.77 | X166: 27553.64 | Y166: 40530.9 | Z166: 36075.34 | AA166: 42901.33 | AB166: 38393.53 | AC166: 33302.5 | AD166: 33191.83 | AE166: 30815.68 | AF166: 32629.78 | AG166: 31950.93 | AH166: 408502.6 | AI166: Staff Costs
S167: Student Activities | T167: 91800038218 | U167: SPORTS ADMIN TEMP ASSISTS | V167: 0 | W167: 0 | X167: 0 | Y167: 0 | Z167: 0 | AA167: 0 | AB167: 0 | AC167: 0 | AD167: 0 | AE167: 0 | AF167: 0 | AG167: 0 | AH167: 0 | AI167: Staff Costs
S168: Student Activities | T168: 91800044218 | U168: SPORTS ADMIN TEMP COACHIN | V168: 0 | W168: 0 | X168: 8163 | Y168: 89854.31 | Z168: 28221.16 | AA168: -15102.67 | AB168: 18417.45 | AC168: 26217.49 | AD168: 24086.93 | AE168: 9721.21 | AF168: 9237.54 | AG168: 6765.62 | AH168: 205582.04 | AI168: Staff Costs
S169: Student Activities | T169: 91800045218 | U169: SPORTS UNION SALS TEMP ST | V169: 0 | W169: 0 | X169: 0 | Y169: 0 | Z169: 0 | AA169: 0 | AB169: 0 | AC169: 0 | AD169: 0 | AE169: 0 | AF169: 0 | AG169: 0 | AH169: 0 | AI169: Staff Costs
S170: Student Activities | T170: 91800055218 | U170: SPORTS UNION SECR SERVICE | V170: 0 | W170: 12800 | X170: 10703 | Y170: 18010 | Z170: 9167 | AA170: 0 | AB170: 0 | AC170: 0 | AD170: 26982.17 | AE170: 0 | AF170: 0 | AG170: 0 | AH170: 77662.17 | AI170: Staff Costs
S171: Student Activities | T171: 91800057218 | U171: SPORTS UNION SERV SERVICE | V171: 0 | W171: 0 | X171: 13092.44 | Y171: 0 | Z171: 0 | AA171: 0 | AB171: 0 | AC171: 0 | AD171: 9378.3 | AE171: 0 | AF171: 0 | AG171: 0 | AH171: 22470.74 | AI171: Staff Costs
S172: Student Activities | T172: 91800075218 | U172: SPORTS UNION SECR MEDICAL | V172: 9467 | W172: 9572 | X172: 9572 | Y172: 9699.5 | Z172: 9699.5 | AA172: 9699.5 | AB172: 7313.75 | AC172: 7688.75 | AD172: 7688.75 | AE172: 7688.75 | AF172: 7688.75 | AG172: 7688.75 | AH172: 103467 | AI172: Staff Costs
S173: Student Activities | T173: 91800077218 | U173: SPORTS UNION SERV MEDICAL | V173: 233 | W173: 233 | X173: 233 | Y173: 233 | Z173: 233 | AA173: 233 | AB173: 233 | AC173: 233 | AD173: 233 | AE173: 233 | AF173: 233 | AG173: 233 | AH173: 2796 | AI173: Staff Costs
S174: Student Activities | T174: 91800104218 | U174: SPORTS UNION SECR UIF | V174: 0 | W174: 0 | X174: 0 | Y174: 849.32 | Z174: 169.14 | AA174: -238.5 | AB174: 132.52 | AC174: 179.19 | AD174: 189.11 | AE174: 79.53 | AF174: 49.55 | AG174: 40.41 | AH174: 1450.27 | AI174: Staff Costs
S175: Student Activities | T175: 91800105218 | U175: SPORTS UNION SECR UIF | V175: 849.53 | W175: 843.46 | X175: 895.14 | Y175: 865.14 | Z175: 840.03 | AA175: 901.99 | AB175: 832.83 | AC175: 862.83 | AD175: 866.25 | AE175: 862.83 | AF175: 862.83 | AG175: 1652.86 | AH175: 11135.72 | AI175: Staff Costs
S176: Student Activities | T176: 91800107218 | U176: SPORTS UNION SERV UIF | V176: 449.68 | W176: 493.91 | X176: 632.21 | Y176: 512.16 | Z176: 510.92 | AA176: 617.31 | AB176: 598.06 | AC176: 466.79 | AD176: 635.57 | AE176: 526.42 | AF176: 537.62 | AG176: 478.18 | AH176: 6458.83 | AI176: Staff Costs
S177: Student Activities | T177: 91800108218 | U177: SPORTS UNION COACH UIF | V177: 0 | W177: 0 | X177: 0 | Y177: 0 | Z177: 0 | AA177: 0 | AB177: 0 | AC177: 0 | AD177: 0 | AE177: 0 | AF177: 0 | AG177: 0 | AH177: 0 | AI177: Staff Costs
S178: Student Activities | T178: 91800115218 | U178: SPORTS UNION SECR GROUP L | V178: 413.51 | W178: 412.93 | X178: 412.93 | Y178: 412.93 | Z178: 412.93 | AA178: 416.97 | AB178: 308.21 | AC178: 375.7 | AD178: 375.7 | AE178: 375.7 | AF178: 375.7 | AG178: 375.7 | AH178: 4668.91 | AI178: Staff Costs
S179: Student Activities | T179: 91800117218 | U179: SPORTS UNION SERV GROUP L | V179: 0 | W179: 0 | X179: 0 | Y179: 0 | Z179: 0 | AA179: 0 | AB179: 0 | AC179: 0 | AD179: 0 | AE179: 0 | AF179: 0 | AG179: 0 | AH179: 0 | AI179: Staff Costs
S180: Student Activities | T180: 91800155218 | U180: SPORTS UNION SECR PENSION | V180: 16297.09 | W180: 17414.55 | X180: 17414.55 | Y180: 17414.55 | Z180: 17414.55 | AA180: 17628.08 | AB180: 11883.83 | AC180: 14259.96 | AD180: 14259.96 | AE180: 14259.96 | AF180: 14259.96 | AG180: 14259.96 | AH180: 186767 | AI180: Staff Costs
S181: Student Activities | T181: 91800157218 | U181: SPORTS UNION SERV PENSION | V181: 3135.45 | W181: 3135.45 | X181: 3370.61 | Y181: 3370.61 | Z181: 3370.61 | AA181: 3370.61 | AB181: 3370.61 | AC181: 3370.61 | AD181: 3370.61 | AE181: 3370.61 | AF181: 3370.61 | AG181: 3370.61 | AH181: 39977 | AI181: Staff Costs
S182: Student Activities | T182: 91800880268 | U182: SPORTS ADMIN SALARIES TRF | V182: 0 | W182: 0 | X182: 0 | Y182: 0 | Z182: 0 | AA182: 0 | AB182: 0 | AC182: 0 | AD182: 0 | AE182: 0 | AF182: 0 | AG182: 0 | AH182: 0 | AI182: Staff Costs
S183: Student Activities | T183: 05560401218 | U183: SPORTS ADMIN CONTRIBUTION | V183: 0 | W183: 0 | X183: 2738.41 | Y183: 0 | Z183: 111762.51 | AA183: 200000 | AB183: 48373.92 | AC183: 433028.87 | AD183: 35980.38 | AE183: 200000 | AF183: 587829.59 | AG183: 1604592.35 | AH183: 3224306.03 | AI183: Sports Council
S184: Student Activities | T184: 55520035118 | U184: SPORTS COUNCIL SPEC SALAR | V184: 0 | W184: 0 | X184: 14460.22 | Y184: 11659.02 | Z184: 11659.02 | AA184: 11659.02 | AB184: 11659.02 | AC184: 11659.02 | AD184: 11659.02 | AE184: -17137.23 | AF184: 3979.69 | AG184: -66250 | AH184: 5006.8 | AI184: Sports Council
S185: Student Activities | T185: 55520105118 | U185: SPORTS COUNCIL SPEC UIF | V185: 0 | W185: 0 | X185: 144.6 | Y185: 120.77 | Z185: 116.59 | AA185: 116.59 | AB185: 116.59 | AC185: 116.59 | AD185: 116.59 | AE185: 116.59 | AF185: 327.76 | AG185: -662.5 | AH185: 630.17 | AI185: Sports Council
S186: Student Activities | T186: 05560400218 | U186: SRC CONTRIBUTION(R380K EX | V186: 0 | W186: 0 | X186: 300000 | Y186: 0 | Z186: 0 | AA186: 0 | AB186: 0 | AC186: 150000 | AD186: 0 | AE186: 150000 | AF186: 118685.54 | AG186: 0 | AH186: 718685.54 | AI186: Student Representative Council
S187: Student Activities | T187: 05560883268 | U187: CAPITAL EQUIP GRANT SRC | V187: 0 | W187: 0 | X187: 0 | Y187: 0 | Z187: 0 | AA187: 0 | AB187: 0 | AC187: 0 | AD187: 0 | AE187: 0 | AF187: 0 | AG187: 0 | AH187: 0 | AI187: Sports Council
S188: Student Activities | T188: 05580500218 | U188: ORIENTATION GRANT - SRC | V188: 331314.46 | W188: 0 | X188: 0 | Y188: 0 | Z188: 0 | AA188: 0 | AB188: 0 | AC188: 0 | AD188: 0 | AE188: 0 | AF188: 0 | AG188: 0 | AH188: 331314.46 | AI188: Student Representative Council
S189: Student Activities | T189: 05560885168 | U189: RHODES MUSIC RADIO GRANT | V189: 0 | W189: 0 | X189: 0 | Y189: 0 | Z189: 0 | AA189: 219000 | AB189: 0 | AC189: 0 | AD189: 0 | AE189: 0 | AF189: 0 | AG189: 0 | AH189: 219000 | AI189: Rhodes Music Radio grant
S190: IT Division | T190: 09000022100 | U190: COMP SERV B SALARIES PERM | V190: 56546.47 | W190: 64636.6 | X190: 60335.39 | Y190: 60335.39 | Z190: 60335.39 | AA190: 60335.39 | AB190: 60335.39 | AC190: 60335.39 | AD190: 60335.39 | AE190: 60335.39 | AF190: 60335.39 | AG190: 120037.93 | AH190: 784239.51 | AI190: Staff Costs
S191: IT Division | T191: 09000023100 | U191: COMP SERV C SALARIES PERM | V191: 116049.78 | W191: 135514.34 | X191: 127199.15 | Y191: 127199.15 | Z191: 127199.15 | AA191: 127199.15 | AB191: 127199.15 | AC191: 127199.15 | AD191: 127199.15 | AE191: 127199.15 | AF191: 127199.15 | AG191: 157271.7 | AH191: 1553628.17 | AI191: Staff Costs
S192: IT Division | T192: 09000024100 | U192: COMP SERV D SALARIES PERM | V192: 202278.66 | W192: 232881.71 | X192: 215411.5 | Y192: 215655.1 | Z192: 215709.14 | AA192: 215843.74 | AB192: 216258.84 | AC192: 216505.84 | AD192: 215908.1 | AE192: 224015.92 | AF192: 204784.34 | AG192: 242723.33 | AH192: 2617976.22 | AI192: Staff Costs
S193: IT Division | T193: 09000025100 | U193: COMP SERV E SALARIES PERM | V193: 189509.1 | W193: 214017.35 | X193: 189807.47 | Y193: 188461.73 | Z193: 188461.73 | AA193: 180793.55 | AB193: 179438.68 | AC193: 179438.68 | AD193: 180793.55 | AE193: 188461.73 | AF193: 188461.73 | AG193: 233007.53 | AH193: 2300652.83 | AI193: Staff Costs
S194: IT Division | T194: 09000031100 | U194: COMP SERV SALARIES | V194: 0 | W194: 0 | X194: 0 | Y194: 0 | Z194: 0 | AA194: 0 | AB194: 0 | AC194: 0 | AD194: 0 | AE194: 0 | AF194: 0 | AG194: 0 | AH194: 0 | AI194: Staff Costs
S195: IT Division | T195: 09000033100 | U195: COMP SERV C SALARIES OTHE | V195: 0 | W195: 0 | X195: 0 | Y195: 0 | Z195: 0 | AA195: 0 | AB195: 0 | AC195: 0 | AD195: 0 | AE195: 0 | AF195: 0 | AG195: 0 | AH195: 0 | AI195: Staff Costs
S196: IT Division | T196: 09000035100 | U196: COMP SERV E SALARIES OTHE | V196: 38382.5 | W196: 47229.56 | X196: 62602.81 | Y196: 79786.87 | Z196: 71405.45 | AA196: 74835 | AB196: 68023.31 | AC196: 35734.6 | AD196: 33448.6 | AE196: 71078.8 | AF196: 30610 | AG196: 34628 | AH196: 647765.5 | AI196: Staff Costs
S197: IT Division | T197: 09000052100 | U197: COMP SERV B BONUS | V197: 0 | W197: 0 | X197: 23083 | Y197: 0 | Z197: 30556 | AA197: 0 | AB197: 0 | AC197: 0 | AD197: 0 | AE197: 0 | AF197: 0 | AG197: 0 | AH197: =SUM(V197:AG197) -> 53639 | AI197: Staff Costs
S198: IT Division | T198: 09000053100 | U198: COMP SERV C BONUS | V198: 0 | W198: 0 | X198: 17485 | Y198: 0 | Z198: 0 | AA198: 0 | AB198: 0 | AC198: 37867.7 | AD198: 6745.31 | AE198: 22820 | AF198: 26570 | AG198: 0 | AH198: 111488.01 | AI198: Staff Costs
S199: IT Division | T199: 09000054100 | U199: COMP SERV D BONUS | V199: 13739 | W199: 13088 | X199: 42532 | Y199: 10521 | Z199: 16444 | AA199: 17683 | AB199: 7820 | AC199: 10703 | AD199: 0 | AE199: 0 | AF199: 12962 | AG199: 33883 | AH199: 179375 | AI199: Staff Costs
S200: IT Division | T200: 09000055100 | U200: COMP SERV E BONUS | V200: 28135 | W200: 0 | X200: 25337.88 | Y200: 7788 | Z200: 51272 | AA200: 8993 | AB200: 0 | AC200: 14680 | AD200: 0 | AE200: 14680 | AF200: 0 | AG200: 8789 | AH200: 159674.88 | AI200: Staff Costs
S201: IT Division | T201: 09000072100 | U201: COMP SERV B MEDICAL AID | V201: 2025.75 | W201: 2025.75 | X201: 2025.75 | Y201: 2025.75 | Z201: 2025.75 | AA201: 2025.75 | AB201: 2025.75 | AC201: 2025.75 | AD201: 2025.75 | AE201: 2025.75 | AF201: 2025.75 | AG201: 2025.75 | AH201: 24309 | AI201: Staff Costs
S202: IT Division | T202: 09000073100 | U202: COMP SERV C MEDICAL AID | V202: 5333 | W202: 5333 | X202: 5333 | Y202: 5333 | Z202: 5333 | AA202: 5333 | AB202: 5203 | AC202: 5203 | AD202: 3573 | AE202: 4388 | AF202: 4388 | AG202: 4388 | AH202: 59141 | AI202: Staff Costs
... 636 more rows

Sheet AccCat (hidden)
A3: BCS Division | B3: BCS Account Category | D3: BCS Division | E3: BCS Account Category
A4: Academic Departments | B4: Capital Equipment
A5: Academic Departments | B5: Department Running Grants
A6: Academic Departments | B6: Faculty Running Grants
A7: Academic Departments | B7: Travel Grants
A8: Bursaries & Fee Rebates | B8: Bursaries awarded
A9: Bursaries & Fee Rebates | B9: Jakes Gerwel bursary fund
A10: Bursaries & Fee Rebates | B10: Second child allowances
A11: Bursaries & Fee Rebates | B11: Staff allowances
A12: Bursaries & Fee Rebates | B12: Undergrad awards
A13: Central Cleaning Services | B13: Equipment & consumables
A14: Communication & Marketing | B14: Collateral material
A15: Communication & Marketing | B15: Directorate
A16: Communication & Marketing | B16: External media
A17: Communication & Marketing | B17: Functions & Events
A18: Communication & Marketing | B18: Internal communications
A19: Communication & Marketing | B19: Resources - running expenses
A20: Communication & Marketing | B20: Subscriptions
A21: Communication & Marketing | B21: Training & staff development
A22: Community Engagement | B22: Running Grants
A23: Cory Library | B23: Maintenance
A24: Cory Library | B24: Postage & Telephone
A25: Cory Library | B25: Printing & Stationery
A26: Cory Library | B26: Software
A27: Cory Library | B27: Sundry
A28: Cory Library | B28: Supplies & services
A29: Cory Library | B29: Training
A30: Cory Library | B30: Travel
A31: Data Management Unit | B31: Discretionary grants
A32: Data Management Unit | B32: Network connection costs
A33: Data Management Unit | B33: Stationery
A34: Data Management Unit | B34: Telephones
A35: Data Management Unit | B35: Training
A36: Dean of Students | B36: Careers office
A37: Dean of Students | B37: Functions & Events
A38: Dean of Students | B38: Running expenses
A39: Development & Alumni | B39: Alumni
A40: Development & Alumni | B40: Bequests
A41: Development & Alumni | B41: Database
A42: Development & Alumni | B42: Directorate
A43: Development & Alumni | B43: Donor contact
A44: Development & Alumni | B44: General
A45: Development & Alumni | B45: Reunions
A46: Development & Alumni | B46: Special Edition Rhodos
A47: Estates Division | B47: Botanical gardens
A48: Estates Division | B48: Capital Equipment
A49: Estates Division | B49: Electricity & water
A50: Estates Division | B50: Equipment
A51: Estates Division | B51: Insurance - buildings
A52: Estates Division | B52: Labour costs allocated
A53: Estates Division | B53: Labour costs recovered
A54: Estates Division | B54: Maintenance & capital works
A55: Estates Division | B55: Maintenance contracts
A56: Estates Division | B56: Materials
A57: Estates Division | B57: Municipal rates
A58: Estates Division | B58: Outside contractors
A59: Estates Division | B59: Protective clothing & uniforms
A60: Estates Division | B60: Running expenses
A61: Estates Division | B61: Security contracts & improvements
A62: Estates Division | B62: Stationery & Printing
A63: Estates Division | B63: Telephone
A64: Estates Division | B64: Toxic waste removal
A65: Estates Division | B65: Uniforms
A66: Estates Division | B66: Vehicles leases
A67: Estates Division | B67: Vehicles maintenance
A68: Finance Costs | B68: Interest on fixed period loans
A69: Finance Costs | B69: Redemption on fixed period loans
A70: Finance Division | B70: Audit Fees
A71: Finance Division | B71: Bad Debt Provision
A72: Finance Division | B72: Bank Charges
A73: Finance Division | B73: Consulting Fees
A74: Finance Division | B74: Discretionary grants
A75: Finance Division | B75: Functions & Events
A76: Finance Division | B76: Insurance - Unallocated
A77: Finance Division | B77: Postage
A78: Finance Division | B78: Stationery & Printing
A79: Finance Division | B79: Subscriptions
A80: Finance Division | B80: Sundries - central
A81: Finance Division | B81: Telephones & datalines
A82: Finance Division | B82: Travel
A83: Graphic Services | B83: (blank)
A84: Health Care Centre | B84: Counselling centre running expenses
A85: Health Care Centre | B85: Emergency Transport
A86: Health Care Centre | B86: Health Care Centre running expenses
A87: Human Resources | B87: Advertising
A88: Human Resources | B88: Consulting Fees
A89: Human Resources | B89: Day care centre
A90: Human Resources | B90: Discretionary grant
A91: Human Resources | B91: Functions & Events
A92: Human Resources | B92: General
A93: Human Resources | B93: Medical aid pensioners
A94: Human Resources | B94: SDL contributions
A95: Human Resources | B95: Staff appointments
A96: Human Resources | B96: Staff development
A97: Human Resources | B97: Stationery & Printing
A98: Human Resources | B98: Sundry
A99: Human Resources | B99: Supplementary pensions
A100: Human Resources | B100: Telephones & datalines
A101: Institutes and Units | B101: Running Grants
A102: International Office | B102: Running Grants
A103: IT Division | B103: Equipment
A104: IT Division | B104: Internet costs
A105: IT Division | B105: Rent & maintenance of equipment
A106: IT Division | B106: Running Expense Grant
A107: IT Division | B107: Software
A108: IT Division | B108: Telephone & datalines - central
A109: IT Division | B109: Video-conferencing
A110: IT Division | B110: Faculty Maintenance
A111: Library Services | B111: Bank Charges
A112: Library Services | B112: Bibliometric Tools
A113: Library Services | B113: Binding
A114: Library Services | B114: Books & Periodicals & Electronic Resources
A115: Library Services | B115: Equipment
A116: Library Services | B116: Freight Charges
A117: Library Services | B117: Information Technology
A118: Library Services | B118: Maintenance
A119: Library Services | B119: Professional organisation representation
A120: Library Services | B120: Stationery & Printing
A121: Library Services | B121: Sundry
A122: Library Services | B122: Telephone & Postage
A123: Own Funding | B123: Conference Income
A124: Own Funding | B124: Cost recovery levy received
A125: Own Funding | B125: Interest Income
A126: Own Funding | B126: Less: allocated for additional resourcing
A127: Own Funding | B127: Rent
A128: Own Funding | B128: RUF: Academic Capital Equipment
A129: Own Funding | B129: Student Fees
A130: Own Funding | B130: Sundry revenue and VAT recoveries
A131: Own Funding | B131: Trf: Sandiswa Imbewu Fund
A132: Registrar's Division | B132: Discretionary grant
A133: Registrar's Division | B133: Exam office/courier
A134: Registrar's Division | B134: Examiners fees
A135: Registrar's Division | B135: Functions & Events
A136: Registrar's Division | B136: Johannesburg student bureau
A137: Registrar's Division | B137: Legal expenses
A138: Registrar's Division | B138: Science festival grant
A139: Registrar's Division | B139: Stationery & Printing
A140: Registrar's Division | B140: Student card
A141: Registrar's Division | B141: Student handbook
A142: Registrar's Division | B142: Student recruitment
A143: Registrar's Division | B143: Sundry, incl discipline
A144: Registrar's Division | B144: Telephones & datalines
A145: Research & Development | B145: Chair Support and Achiever Grants
A146: Research & Development | B146: Development grants
A147: Research & Development | B147: Discretionary grants
A148: Research & Development | B148: High Productivity Funding
A149: Research & Development | B149: Joint Research Committee grant
A150: Research & Development | B150: New Focus Areas
A151: Research & Development | B151: Post doctoral fellows
A152: Research & Development | B152: Post Doctoral Travel
A153: Research & Development | B153: RIMS consortium fee
A154: Research & Development | B154: Running expenses
A155: Research & Development | B155: Staff / PG development
A156: Research & Development | B156: Staff recruitment
A157: Research & Development | B157: Travel Grants
A158: Rhodes Council Loan cost apportioned to: | B158: Residences
A159: RU Council | B159: Capital expenditure - support activities
A160: Student Activities | B160: Rhodes Music Radio grant
A161: Student Activities | B161: Sports Council
A162: Student Activities | B162: Student Representative Council
A163: Student Financial Aid | B163: Bursary portion of loans
A164: Student Financial Aid | B164: Provision for non-recovery of loans
A165: Subsidy | B165: Education & General
A166: Vice-Chancellorate | B166: Discretionary grants
A167: Vice-Chancellorate | B167: Equity & Institutional Culture
A168: Vice-Chancellorate | B168: Functions & Events
A169: Vice-Chancellorate | B169: Institutional Planning Unit
A170: Vice-Chancellorate | B170: Stationery & Printing
A171: Vice-Chancellorate | B171: Telephone
A172: Vice-Chancellorate | B172: Visiting lecturers grants
A173: (blank) | B173: (blank)
A174: Grand Total

Sheet Table (hidden)
B1: Rhodes University
B2: UNIVERSITY BCS AS AT 31.3.2012
B3: Report name : univ bcs 3
A5: Account Number | B5: Description | C5: BCS Division | D5: Department | E5: Sub-department | F5: BCS Account Category | G5: BCS Reference | I5: Account Number | J5: Description | K5: BCS Division | L5: Department | M5: Sub-department | N5: BCS Account Category | O5: BCS Reference
A6: 05120880168 | B6: SUBSIDY TRANSFER TO RUMEP | C6: Subsidy | F6: Education & General | G6: =CONCATENATE(C6,F6) -> SubsidyEducation & General | K6: Own Funding
A7: 05120754170 | B7: SUBSIDY FOR GENERAL PURPO | C7: Subsidy | F7: Education & General | G7: =CONCATENATE(C7,F7) -> SubsidyEducation & General
A8: 05120754870 | B8: SUBSIDY - LOAN INTEREST | C8: Subsidy | F8: Education & General | G8: SubsidyEducation & General
A9: 05121754870 | B9: SUBSIDY - LOAN REDEMPTION | C9: Subsidy | F9: Education & General | G9: SubsidyEducation & General | I9: Account Number | J9: Description | K9: BCS Division | L9: Department | M9: Sub-department | N9: BCS Account Category | O9: BCS Reference
A10: 05100750169 | B10: TUITION FEES | C10: Own Funding | F10: Student Fees | G10: Own FundingStudent Fees
A11: 05101750169 | B11: APPLICATION FEES | C11: Own Funding | F11: Student Fees | G11: Own FundingStudent Fees
A12: 05102750169 | B12: DEPOSITS FORFEITED | C12: Own Funding | F12: Student Fees | G12: Own FundingStudent Fees
A13: 05104750169 | B13: FOREIGN STUDENTS LEVY | C13: Own Funding | F13: Student Fees | G13: Own FundingStudent Fees
A14: 05635500125 | B14: STUDENT IDENTITY CARDS EX | C14: Own Funding | F14: Student Fees | G14: Own FundingStudent Fees
A15: 05635750169 | B15: STUDENT IDENTITY CARDS RE | C15: Own Funding | F15: Student Fees | G15: Own FundingStudent Fees
A16: 05102797183 | B16: CREDIT BALANCES WRITTEN O | C16: Own Funding | F16: Student Fees | G16: Own FundingStudent Fees
A17: 02450771173 | B17: INTEREST TRANSFERS DEPTS/ | C17: Own Funding | F17: Interest Income | G17: Own FundingInterest Income
A18: 02450771273 | B18: INT TFR SRC SPA OPP UNION | C18: Own Funding | F18: Interest Income | G18: Own FundingInterest Income
A19: 05110771173 | B19: INTEREST OWN FUNDS GENERA | C19: Own Funding | F19: Interest Income | G19: Own FundingInterest Income
A20: 05110772173 | B20: INTEREST FIXED DEPOSITS G | C20: Own Funding | F20: Interest Income | G20: Own FundingInterest Income
A21: 05110773173 | B21: INTEREST CALL/NOTICE ACCO | C21: Own Funding | F21: Interest Income | G21: Own FundingInterest Income
A22: 05110774173 | B22: INTEREST RUFIN LOANS | C22: Own Funding | F22: Interest Income | G22: Own FundingInterest Income
A23: 05380461123 | B23: INTEREST PAID | C23: Own Funding | F23: Interest Income | G23: Own FundingInterest Income
A24: 05755881168 | B24: INT TRF EX RESIDENCE LOAN | C24: Own Funding | F24: Interest Income | G24: Own FundingInterest Income
A25: 13001798183 | B25: RENT SHOP 2 STD BANK | C25: Own Funding | F25: Rent | G25: Own FundingRent
A26: 13066798183 | B26: AFRICAN ST 28B RENT RECEI | C26: Own Funding | F26: Rent | G26: Own FundingRent
A27: 13067798183 | B27: AFRICAN ST 70B RENT RECEI | C27: Own Funding | F27: Rent | G27: Own FundingRent
A28: 13014797183 | B28: CHESSINGTON 1 RENT REC | C28: Own Funding | F28: Rent | G28: Own FundingRent
A29: 13015797183 | B29: CHESSINGTON 2 RENT REC | C29: Own Funding | F29: Rent | G29: Own FundingRent
A30: 13016797183 | B30: CHESSINGTON 3 RENT REC | C30: Own Funding | F30: Rent | G30: Own FundingRent
A31: 13017797183 | B31: CHESSINGTON 4 RENT REC | C31: Own Funding | F31: Rent | G31: Own FundingRent
A32: 13018797183 | B32: CHESSINGTON 5 RENT REC | C32: Own Funding | F32: Rent | G32: Own FundingRent
A33: 13019797183 | B33: CHESSINGTON 6 RENT REC | C33: Own Funding | F33: Rent | G33: Own FundingRent
A34: 13020797183 | B34: CHESSINGTON 7 RENT REC | C34: Own Funding | F34: Rent | G34: Own FundingRent
A35: 13021797183 | B35: CHESSINGTON 8 RENT REC | C35: Own Funding | F35: Rent | G35: Own FundingRent
A36: 13022797183 | B36: CHESSINGTON 9 RENT REC | C36: Own Funding | F36: Rent | G36: Own FundingRent
A37: 13023797183 | B37: CHESSINGTON 10 RENT REC | C37: Own Funding | F37: Rent | G37: Own FundingRent
A38: 13024797183 | B38: CHESSINGTON 11 RENT REC | C38: Own Funding | F38: Rent | G38: Own FundingRent
A39: 13025797183 | B39: CHESSINGTON 12 RENT REC | C39: Own Funding | F39: Rent | G39: Own FundingRent
A40: 13050797183 | B40: CROFT ST 7 RENT RECEIVED | C40: Own Funding | F40: Rent | G40: Own FundingRent
A41: 13051797183 | B41: GILBERT ST 4 RENT RECEIVE | C41: Own Funding | F41: Rent | G41: Own FundingRent
A42: 13053797183 | B42: GILBERT ST 7 RENT RECEIVE | C42: Own Funding | F42: Rent | G42: Own FundingRent
A43: 13058797183 | B43: WARREN ST 3 RENT RECEIVED | C43: Own Funding | F43: Rent | G43: Own FundingRent
A44: 13063797183 | B44: CROFT ST 3 RENT RECEIVED | C44: Own Funding | F44: Rent | G44: Own FundingRent
A45: 13064797183 | B45: TEMLETT COTTAGE RENT RECE | C45: Own Funding | F45: Rent | G45: Own FundingRent
A46: 13066797183 | B46: AFRICAN ST 28A RENT RECEI | C46: Own Funding | F46: Rent | G46: Own FundingRent
A47: 13067797183 | B47: AFRICAN ST 70A RENT RECEI | C47: Own Funding | F47: Rent | G47: Own FundingRent
A48: 13069797183 | B48: AFRICAN ST 75 RENT RECEIV | C48: Own Funding | F48: Rent | G48: Own FundingRent
A49: 13070797183 | B49: PRINCE ALF ST 17 RENT REC | C49: Own Funding | F49: Rent | G49: Own FundingRent
A50: 13079797183 | B50: GILBERT ST 3 RENT RECEIVE | C50: Own Funding | F50: Rent | G50: Own FundingRent
A51: 13080797183 | B51: CROFT ST 2 RENT RECEIVED | C51: Own Funding | F51: Rent | G51: Own FundingRent
A52: 13093797183 | B52: 1 DROSTDY FLAT RENTAL INC | C52: Own Funding | F52: Rent | G52: Own FundingRent
A53: 13095797183 | B53: 1 GAVIN RELLY RENTAL INCO | C53: Own Funding | F53: Rent | G53: Own FundingRent
A54: 13096797183 | B54: 2 GAVIN RELLY RENTAL INCO | C54: Own Funding | F54: Rent | G54: Own FundingRent
A55: 13108797183 | B55: SOUTH STREET 23 RENT REC | C55: Own Funding | F55: Rent | G55: Own FundingRent
A56: 13109797183 | B56: SOUTH STREET 25 RENT REC | C56: Own Funding | F56: Rent | G56: Own FundingRent
A57: 13017547125 | B57: CHESSINGTON 4 TELEPHONE | C57: Own Funding | F57: Rent | G57: Own FundingRent
A58: 13066547125 | B58: AFRICAN ST 28A TELEPHONE | C58: Own Funding | F58: Rent | G58: Own FundingRent
A59: 13067547125 | B59: AFRICAN ST 70A TELEPHONE | C59: Own Funding | F59: Rent | G59: Own FundingRent
A60: 13066548125 | B60: AFRICAN ST 28B TELEPHONE | C60: Own Funding | F60: Rent | G60: Own FundingRent
A61: 13067548125 | B61: AFRICAN AT 70B TELEPHONE | C61: Own Funding | F61: Rent | G61: Own FundingRent
A62: 05135880668 | B62: RUF ACADEMIC CAPITAL EQUI | C62: Own Funding | F62: RUF: Academic Capital Equipment | G62: Own FundingRUF: Academic Capital Equipment
A63: 05150880168 | B63: CONFERENCES TFR EX RESIDE | C63: Own Funding | F63: Conference Income | G63: Own FundingConference Income
A64: 05160770172 | B64: ADMIN FEE INCOME | C64: Own Funding | F64: Cost recovery levy received | G64: Own FundingCost recovery levy received
A65: 05160881168 | B65: ADMIN FEE INCOME TRANSFER | C65: Own Funding | F65: Cost recovery levy received | G65: Own FundingCost recovery levy received
A66: 05160882168 | B66: ADMIN LEVIES GOVERNMENT G | C66: Own Funding | F66: Cost recovery levy received | G66: Own FundingCost recovery levy received
A67: 05160883168 | B67: ADMIN FEE SHORT COURSES | C67: Own Funding | F67: Cost recovery levy received | G67: Own FundingCost recovery levy received
A68: 05160884168 | B68: ADMIN LEVIES CONTRACTS | C68: Own Funding | F68: Cost recovery levy received | G68: Own FundingCost recovery levy received
A69: 05160885168 | B69: ADMIN FEE O/S CONSULTANCY | C69: Own Funding | F69: Cost recovery levy received | G69: Own FundingCost recovery levy received
A70: 05160886168 | B70: ADMIN LEVIES INSTITUTES | C70: Own Funding | F70: Cost recovery levy received | G70: Own FundingCost recovery levy received
A71: 05160887168 | B71: ADMIN LEVIES CONFERENCES | C71: Own Funding | F71: Cost recovery levy received | G71: Own FundingCost recovery levy received
A72: 05160888168 | B72: ADMIN LEVIES NON GOV GRAN | C72: Own Funding | F72: Cost recovery levy received | G72: =CONCATENATE(C72,F72) -> Own FundingCost recovery levy received
A73: 05160889168 | B73: EXTERNAL FUNDS LEVY TRF [ | C73: Own Funding | F73: Less: allocated for additional resourcing | G73: Own FundingLess: allocated for additional resourcing
A74: 05131768672 | B74: GIFTS FIXED ASSETS S18A D | C74: Own Funding | F74: Sundry revenue and VAT recoveries | G74: Own FundingSundry revenue and VAT recoveries
A75: 05131769672 | B75: GIFTS FIXED ASSETS | C75: Own Funding | F75: Sundry revenue and VAT recoveries | G75: Own FundingSundry revenue and VAT recoveries
A76: 05131781675 | B76: SALE OF FIXED ASSETS | C76: Own Funding | F76: Sundry revenue and VAT recoveries | G76: Own FundingSundry revenue and VAT recoveries
A77: 05131804657 | B77: GIFTS FIXED ASSETS | C77: Own Funding | F77: Sundry revenue and VAT recoveries | G77: Own FundingSundry revenue and VAT recoveries
A78: 05140797183 | B78: SUNDRY REVENUE EXEMPT | C78: Own Funding | F78: Sundry revenue and VAT recoveries | G78: Own FundingSundry revenue and VAT recoveries
A79: 05140798183 | B79: SUNDRY REVENUE VATABLE | C79: Own Funding | F79: Sundry revenue and VAT recoveries | G79: Own FundingSundry revenue and VAT recoveries
A80: 05160797183 | B80: KEY DEPOSITS FORFEITED | C80: Own Funding | F80: Sundry revenue and VAT recoveries | G80: Own FundingSundry revenue and VAT recoveries
A81: 53010885168 | B81: TRF TO STRATEGIC INITIATI | C81: Own Funding | F81: Trf: Sandiswa Imbewu Fund | G81: Own FundingTrf: Sandiswa Imbewu Fund
A82: 00002021102 | B82: ANTHROPO ACAD SALS PERM | C82: Academic Departments | D82: Anthropology | F82: Staff Costs | G82: Academic DepartmentsStaff Costs
A83: 00002031102 | B83: ANTHROPO ACAD SALS OTHER | C83: Academic Departments | D83: Anthropology | F83: Staff Costs | G83: Academic DepartmentsStaff Costs
A84: 00002035113 | B84: ANTHROPO SECR SALS OTHER | C84: Academic Departments | D84: Anthropology | F84: Staff Costs | G84: Academic DepartmentsStaff Costs
A85: 00002051102 | B85: ANTHROPO ACAD SERVICE BON | C85: Academic Departments | D85: Anthropology | F85: Staff Costs | G85: Academic DepartmentsStaff Costs
A86: 00002071102 | B86: ANTHROPO ACAD MEDICAL AID | C86: Academic Departments | D86: Anthropology | F86: Staff Costs | G86: Academic DepartmentsStaff Costs
A87: 00002101102 | B87: ANTHROPO ACAD UIF | C87: Academic Departments | D87: Anthropology | F87: Staff Costs | G87: Academic DepartmentsStaff Costs
A88: 00002105113 | B88: ANTHROPO SECR UIF | C88: Academic Departments | D88: Anthropology | F88: Staff Costs | G88: Academic DepartmentsStaff Costs
A89: 00002111102 | B89: ANTHROPO ACAD GROUP LIFE | C89: Academic Departments | D89: Anthropology | F89: Staff Costs | G89: Academic DepartmentsStaff Costs
A90: 00002115113 | B90: ANTHROPO SECR GROUP LIFE | C90: Academic Departments | D90: Anthropology | F90: Staff Costs | G90: Academic DepartmentsStaff Costs
A91: 00002151102 | B91: ANTHROPO ACAD PENSION CON | C91: Academic Departments | D91: Anthropology | F91: Staff Costs | G91: Academic DepartmentsStaff Costs
A92: 00002155113 | B92: ANTHROPO SECR PENSION CON | C92: Academic Departments | D92: Anthropology | F92: Staff Costs | G92: Academic DepartmentsStaff Costs
A93: 00002880168 | B93: ANTHROPO ACAD SALS TRANSF | C93: Academic Departments | D93: Anthropology | F93: Staff Costs | G93: Academic DepartmentsStaff Costs
A94: 00004021102 | B94: DRAMA ACAD SALS PERM | C94: Academic Departments | D94: Drama | F94: Staff Costs | G94: Academic DepartmentsStaff Costs
A95: 00004024113 | B95: DRAMA TECH SALS PERM | C95: Academic Departments | D95: Drama | F95: Staff Costs | G95: Academic DepartmentsStaff Costs
A96: 00004025113 | B96: DRAMA SECR SALS PERM | C96: Academic Departments | D96: Drama | F96: Staff Costs | G96: Academic DepartmentsStaff Costs
A97: 00004031102 | B97: DRAMA ACAD SALS OTHER | C97: Academic Departments | D97: Drama | F97: Staff Costs | G97: Academic DepartmentsStaff Costs
A98: 00004034113 | B98: DRAMA TECH SALS OTHER | C98: Academic Departments | D98: Drama | F98: Staff Costs | G98: Academic DepartmentsStaff Costs
A99: 00004035113 | B99: DRAMA SECR SALS OTHER | C99: Academic Departments | D99: Drama | F99: Staff Costs | G99: Academic DepartmentsStaff Costs
A100: 00004051102 | B100: DRAMA ACAD SERVICE BONUS | C100: Academic Departments | D100: Drama | F100: Staff Costs | G100: Academic DepartmentsStaff Costs
A101: 00004054113 | B101: DRAMA TECH SERVICE BONUS | C101: Academic Departments | D101: Drama | F101: Staff Costs | G101: Academic DepartmentsStaff Costs
A102: 00004055113 | B102: DRAMA SECR SERVICE BONUS | C102: Academic Departments | D102: Drama | F102: Staff Costs | G102: Academic DepartmentsStaff Costs
A103: 00004071102 | B103: DRAMA ACAD MEDICAL AID | C103: Academic Departments | D103: Drama | F103: Staff Costs | G103: Academic DepartmentsStaff Costs
A104: 00004074113 | B104: DRAMA TECH MEDICAL AID | C104: Academic Departments | D104: Drama | F104: Staff Costs | G104: Academic DepartmentsStaff Costs
A105: 00004075113 | B105: DRAMA SECR MEDICAL AID | C105: Academic Departments | D105: Drama | F105: Staff Costs | G105: Academic DepartmentsStaff Costs
A106: 00004101102 | B106: DRAMA ACAD UIF | C106: Academic Departments | D106: Drama | F106: Staff Costs | G106: Academic DepartmentsStaff Costs
A107: 00004104113 | B107: DRAMA TECH UIF | C107: Academic Departments | D107: Drama | F107: Staff Costs | G107: Academic DepartmentsStaff Costs
A108: 00004105113 | B108: DRAMA SECR UIF | C108: Academic Departments | D108: Drama | F108: Staff Costs | G108: Academic DepartmentsStaff Costs
A109: 00004111102 | B109: DRAMA ACAD GROUP LIFE | C109: Academic Departments | D109: Drama | F109: Staff Costs | G109: Academic DepartmentsStaff Costs
A110: 00004114113 | B110: DRAMA TECH GROUP LIFE | C110: Academic Departments | D110: Drama | F110: Staff Costs | G110: Academic DepartmentsStaff Costs
A111: 00004115113 | B111: DRAMA SECR GROUP LIFE | C111: Academic Departments | D111: Drama | F111: Staff Costs | G111: Academic DepartmentsStaff Costs
A112: 00004151102 | B112: DRAMA ACAD PENSION CONTRI | C112: Academic Departments | D112: Drama | F112: Staff Costs | G112: Academic DepartmentsStaff Costs
A113: 00004154113 | B113: DRAMA TECH PENSION CONTRI | C113: Academic Departments | D113: Drama | F113: Staff Costs | G113: Academic DepartmentsStaff Costs
A114: 00004155113 | B114: DRAMA SECR PENSION CONTRI | C114: Academic Departments | D114: Drama | F114: Staff Costs | G114: Academic DepartmentsStaff Costs
A115: 00004880168 | B115: DRAMA ACAD SALS TRANSFERS | C115: Academic Departments | D115: Drama | F115: Staff Costs | G115: Academic DepartmentsStaff Costs
A116: 00005021102 | B116: ENGLISH ACAD SALS PERM | C116: Academic Departments | D116: English | F116: Staff Costs | G116: Academic DepartmentsStaff Costs
A117: 00005025113 | B117: ENGLISH SECR SALS PERM | C117: Academic Departments | D117: English | F117: Staff Costs | G117: Academic DepartmentsStaff Costs
A118: 00005031102 | B118: ENGLISH ACAD SALS OTHER | C118: Academic Departments | D118: English | F118: Staff Costs | G118: Academic DepartmentsStaff Costs
A119: 00005035113 | B119: ENGLISH SECR SALS OTHER | C119: Academic Departments | D119: English | F119: Staff Costs | G119: Academic DepartmentsStaff Costs
A120: 00005051102 | B120: ENGLISH ACAD SERVICE BONU | C120: Academic Departments | D120: English | F120: Staff Costs | G120: Academic DepartmentsStaff Costs
A121: 00005055113 | B121: ENGLISH SECR SERVICE BONU | C121: Academic Departments | D121: English | F121: Staff Costs | G121: Academic DepartmentsStaff Costs
A122: 00005071102 | B122: ENGLISH ACAD MEDICAL AID | C122: Academic Departments | D122: English | F122: Staff Costs | G122: Academic DepartmentsStaff Costs
A123: 00005075113 | B123: ENGLISH SECR MEDICAL AID | C123: Academic Departments | D123: English | F123: Staff Costs | G123: Academic DepartmentsStaff Costs
A124: 00005101102 | B124: ENGLISH ACAD UIF | C124: Academic Departments | D124: English | F124: Staff Costs | G124: Academic DepartmentsStaff Costs
A125: 00005105113 | B125: ENGLISH SECR UIF | C125: Academic Departments | D125: English | F125: Staff Costs | G125: Academic DepartmentsStaff Costs
A126: 00005111102 | B126: ENGLISH ACAD GROUP LIFE | C126: Academic Departments | D126: English | F126: Staff Costs | G126: Academic DepartmentsStaff Costs
A127: 00005115113 | B127: ENGLISH SECR GROUP LIFE | C127: Academic Departments | D127: English | F127: Staff Costs | G127: Academic DepartmentsStaff Costs
A128: 00005151102 | B128: ENGLISH ACAD PENSION CONT | C128: Academic Departments | D128: English | F128: Staff Costs | G128: Academic DepartmentsStaff Costs
A129: 00005155113 | B129: ENGLISH SECR PENSION CONT | C129: Academic Departments | D129: English | F129: Staff Costs | G129: Academic DepartmentsStaff Costs
A130: 00005880168 | B130: ENGLISH ACAD SALS TRANSFE | C130: Academic Departments | D130: English | F130: Staff Costs | G130: Academic DepartmentsStaff Costs
A131: 00006021102 | B131: FINE ART ACAD SALS PERM | C131: Academic Departments | D131: Fine Art | F131: Staff Costs | G131: Academic DepartmentsStaff Costs
A132: 00006024113 | B132: FINE ART TECH SALS PERM | C132: Academic Departments | D132: Fine Art | F132: Staff Costs | G132: Academic DepartmentsStaff Costs
A133: 00006025113 | B133: FINE ART SECR SALS PERM | C133: Academic Departments | D133: Fine Art | F133: Staff Costs | G133: Academic DepartmentsStaff Costs
A134: 00006031102 | B134: FINE ART ACAD SALS OTHER | C134: Academic Departments | D134: Fine Art | F134: Staff Costs | G134: Academic DepartmentsStaff Costs
A135: 00006034113 | B135: FINE ART TECH SALS OTHER | C135: Academic Departments | D135: Fine Art | F135: Staff Costs | G135: Academic DepartmentsStaff Costs
A136: 00006035113 | B136: FINE ART SECR SALS OTHER | C136: Academic Departments | D136: Fine Art | F136: Staff Costs | G136: Academic DepartmentsStaff Costs
A137: 00006047113 | B137: FINE ART TEMP ASSISTANCE | C137: Academic Departments | D137: Fine Art | F137: Staff Costs | G137: Academic DepartmentsStaff Costs
A138: 00006045113 | B138: FINE ART TEMP ASSISTANCE | C138: Academic Departments | D138: Fine Art | F138: Staff Costs | G138: Academic DepartmentsStaff Costs
A139: 00006051102 | B139: FINE ART ACAD SERVICE BON | C139: Academic Departments | D139: Fine Art | F139: Staff Costs | G139: Academic DepartmentsStaff Costs
A140: 00006054113 | B140: FINE ART TECH SERVICE BON | C140: Academic Departments | D140: Fine Art | F140: Staff Costs | G140: =CONCATENATE(C140,F140) -> Academic DepartmentsStaff Costs
A141: 00006071102 | B141: FINE ART ACAD MEDICAL AID | C141: Academic Departments | D141: Fine Art | F141: Staff Costs | G141: Academic DepartmentsStaff Costs
A142: 00006074113 | B142: FINE ART TECH MEDICAL AID | C142: Academic Departments | D142: Fine Art | F142: Staff Costs | G142: Academic DepartmentsStaff Costs
A143: 00006075113 | B143: FINE ART SECR MEDICAL AID | C143: Academic Departments | D143: Fine Art | F143: Staff Costs | G143: Academic DepartmentsStaff Costs
A144: 00006101102 | B144: FINE ART ACAD UIF | C144: Academic Departments | D144: Fine Art | F144: Staff Costs | G144: Academic DepartmentsStaff Costs
A145: 00006104113 | B145: FINE ART TECH UIF | C145: Academic Departments | D145: Fine Art | F145: Staff Costs | G145: Academic DepartmentsStaff Costs
A146: 00006105113 | B146: FINE ART SECR UIF | C146: Academic Departments | D146: Fine Art | F146: Staff Costs | G146: Academic DepartmentsStaff Costs
A147: 00006111102 | B147: FINE ART ACAD GROUP LIFE | C147: Academic Departments | D147: Fine Art | F147: Staff Costs | G147: Academic DepartmentsStaff Costs
A148: 00006114113 | B148: FINE ART TECH GROUP LIFE | C148: Academic Departments | D148: Fine Art | F148: Staff Costs | G148: Academic DepartmentsStaff Costs
A149: 00006115113 | B149: FINE ART SECR GROUP LIFE | C149: Academic Departments | D149: Fine Art | F149: Staff Costs | G149: Academic DepartmentsStaff Costs
A150: 00006151102 | B150: FINE ART ACAD PENSION CON | C150: Academic Departments | D150: Fine Art | F150: Staff Costs | G150: Academic DepartmentsStaff Costs
A151: 00006154113 | B151: FINE ART TECH PENSION CON | C151: Academic Departments | D151: Fine Art | F151: Staff Costs | G151: Academic DepartmentsStaff Costs
A152: 00006155113 | B152: FINE ART SECR PENSION CON | C152: Academic Departments | D152: Fine Art | F152: Staff Costs | G152: Academic DepartmentsStaff Costs
A153: 00006301102 | B153: FINE ART ACAD TRAVEL ALLO | C153: Academic Departments | D153: Fine Art | F153: Staff Costs | G153: Academic DepartmentsStaff Costs
A154: 00006880168 | B154: FINE ART ACAD SALS TRANSF | C154: Academic Departments | D154: Fine Art | F154: Staff Costs | G154: Academic DepartmentsStaff Costs
A155: 00009021102 | B155: HISTORY ACAD SALS PERM | C155: Academic Departments | D155: History | F155: Staff Costs | G155: Academic DepartmentsStaff Costs
A156: 00009025113 | B156: HISTORY SECR SALS PERM | C156: Academic Departments | D156: History | F156: Staff Costs | G156: Academic DepartmentsStaff Costs
A157: 00009031102 | B157: HISTORY ACAD SALS OTHER | C157: Academic Departments | D157: History | F157: Staff Costs | G157: Academic DepartmentsStaff Costs
A158: 00009051102 | B158: HISTORY ACAD SERVICE BONU | C158: Academic Departments | D158: History | F158: Staff Costs | G158: Academic DepartmentsStaff Costs
A159: 00009055113 | B159: HISTORY SECR SERVICE BONU | C159: Academic Departments | D159: History | F159: Staff Costs | G159: Academic DepartmentsStaff Costs
A160: 00009071102 | B160: HISTORY ACAD MEDICAL AID | C160: Academic Departments | D160: History | F160: Staff Costs | G160: Academic DepartmentsStaff Costs
A161: 00009101102 | B161: HISTORY ACAD UIF | C161: Academic Departments | D161: History | F161: Staff Costs | G161: Academic DepartmentsStaff Costs
A162: 00009105113 | B162: HISTORY SECR UIF | C162: Academic Departments | D162: History | F162: Staff Costs | G162: Academic DepartmentsStaff Costs
A163: 00009111102 | B163: HISTORY ACAD GROUP LIFE | C163: Academic Departments | D163: History | F163: Staff Costs | G163: Academic DepartmentsStaff Costs
A164: 00009115113 | B164: HISTORY SECR GROUP LIFE | C164: Academic Departments | D164: History | F164: Staff Costs | G164: Academic DepartmentsStaff Costs
A165: 00009151102 | B165: HISTORY ACAD PENSION CONT | C165: Academic Departments | D165: History | F165: Staff Costs | G165: Academic DepartmentsStaff Costs
A166: 00009155113 | B166: HISTORY SECR PENSION CONT | C166: Academic Departments | D166: History | F166: Staff Costs | G166: Academic DepartmentsStaff Costs
A167: 00009880168 | B167: HISTORY ACAD SALS TRANSFE | C167: Academic Departments | D167: History | F167: Staff Costs | G167: Academic DepartmentsStaff Costs
A168: 00010021102 | B168: HKE ACAD SALS PERM | C168: Academic Departments | D168: HKE | F168: Staff Costs | G168: Academic DepartmentsStaff Costs
A169: 00010024113 | B169: HKE TECH SALS PERM | C169: Academic Departments | D169: HKE | F169: Staff Costs | G169: Academic DepartmentsStaff Costs
A170: 00010025113 | B170: HKE SECR SALS PERM | C170: Academic Departments | D170: HKE | F170: Staff Costs | G170: Academic DepartmentsStaff Costs
A171: 00010031102 | B171: HKE ACAD SALS OTHER | C171: Academic Departments | D171: HKE | F171: Staff Costs | G171: Academic DepartmentsStaff Costs
A172: 00010035113 | B172: HKE SECR SALS OTHER | C172: Academic Departments | D172: HKE | F172: Staff Costs | G172: Academic DepartmentsStaff Costs
A173: 00010051102 | B173: HKE ACAD SERVICE BONUS | C173: Academic Departments | D173: HKE | F173: Staff Costs | G173: Academic DepartmentsStaff Costs
A174: 00010054113 | B174: HKE TECH SERVICE BONUS | C174: Academic Departments | D174: HKE | F174: Staff Costs | G174: Academic DepartmentsStaff Costs
A175: 00010055113 | B175: HKE SECR SERVICE BONUS | C175: Academic Departments | D175: HKE | F175: Staff Costs | G175: Academic DepartmentsStaff Costs
A176: 00010071102 | B176: HKE ACAD MEDICAL AID | C176: Academic Departments | D176: HKE | F176: Staff Costs | G176: Academic DepartmentsStaff Costs
A177: 00010074113 | B177: HKE TECH MEDICAL AID | C177: Academic Departments | D177: HKE | F177: Staff Costs | G177: Academic DepartmentsStaff Costs
A178: 00010075113 | B178: HKE SECR MEDICAL AID | C178: Academic Departments | D178: HKE | F178: Staff Costs | G178: Academic DepartmentsStaff Costs
A179: 00010101102 | B179: HKE ACAD UIF | C179: Academic Departments | D179: HKE | F179: Staff Costs | G179: Academic DepartmentsStaff Costs
A180: 00010104113 | B180: HKE TECH UIF | C180: Academic Departments | D180: HKE | F180: Staff Costs | G180: Academic DepartmentsStaff Costs
A181: 00010105113 | B181: HKE SECR UIF | C181: Academic Departments | D181: HKE | F181: Staff Costs | G181: Academic DepartmentsStaff Costs
A182: 00010111102 | B182: HKE ACAD GROUP LIFE | C182: Academic Departments | D182: HKE | F182: Staff Costs | G182: Academic DepartmentsStaff Costs
A183: 00010114113 | B183: HKE TECH GROUP LIFE | C183: Academic Departments | D183: HKE | F183: Staff Costs | G183: Academic DepartmentsStaff Costs
A184: 00010115113 | B184: HKE SECR GROUP LIFE | C184: Academic Departments | D184: HKE | F184: Staff Costs | G184: Academic DepartmentsStaff Costs
A185: 00010151102 | B185: HKE ACAD PENSION CONTRIBU | C185: Academic Departments | D185: HKE | F185: Staff Costs | G185: Academic DepartmentsStaff Costs
A186: 00010154113 | B186: HKE TECH PENSION CONTRIBU | C186: Academic Departments | D186: HKE | F186: Staff Costs | G186: Academic DepartmentsStaff Costs
A187: 00010155113 | B187: HKE SECR PENSION CONTRIBU | C187: Academic Departments | D187: HKE | F187: Staff Costs | G187: Academic DepartmentsStaff Costs
A188: 00010880168 | B188: HKE ACAD SALS TRANSFERS | C188: Academic Departments | D188: HKE | F188: Staff Costs | G188: Academic DepartmentsStaff Costs
A189: 00011021102 | B189: JOURN ACAD SALS PERM | C189: Academic Departments | D189: Journalism | F189: Staff Costs | G189: Academic DepartmentsStaff Costs
A190: 00011024113 | B190: JOURN TECH SALS PERM | C190: Academic Departments | D190: Journalism | F190: Staff Costs | G190: Academic DepartmentsStaff Costs
A191: 00011025113 | B191: JOURN SECR SALS PERM | C191: Academic Departments | D191: Journalism | F191: Staff Costs | G191: Academic DepartmentsStaff Costs
A192: 00011031102 | B192: JOURN ACAD SALS OTHER | C192: Academic Departments | D192: Journalism | F192: Staff Costs | G192: Academic DepartmentsStaff Costs
A193: 00011034113 | B193: JOURN TECH SALS OTHER | C193: Academic Departments | D193: Journalism | F193: Staff Costs | G193: Academic DepartmentsStaff Costs
A194: 00011051102 | B194: JOURN ACAD SERVICE BONUS | C194: Academic Departments | D194: Journalism | F194: Staff Costs | G194: Academic DepartmentsStaff Costs
A195: 00011055113 | B195: JOURN SECR SERVICE BONUS | C195: Academic Departments | D195: Journalism | F195: Staff Costs | G195: Academic DepartmentsStaff Costs
A196: 00011071102 | B196: JOURN ACAD MEDICAL AID | C196: Academic Departments | D196: Journalism | F196: Staff Costs | G196: Academic DepartmentsStaff Costs
A197: 00011074113 | B197: JOURN TECH MEDICAL AID | C197: Academic Departments | D197: Journalism | F197: Staff Costs | G197: Academic DepartmentsStaff Costs
A198: 00011075113 | B198: JOURN SECR MEDICAL AID | C198: Academic Departments | D198: Journalism | F198: Staff Costs | G198: Academic DepartmentsStaff Costs
A199: 00011101102 | B199: JOURN ACAD UIF | C199: Academic Departments | D199: Journalism | F199: Staff Costs | G199: Academic DepartmentsStaff Costs
A200: 00011104113 | B200: JOURN TECH UIF | C200: Academic Departments | D200: Journalism | F200: Staff Costs | G200: Academic DepartmentsStaff Costs
A201: 00011105113 | B201: JOURN SECR UIF | C201: Academic Departments | D201: Journalism | F201: Staff Costs | G201: Academic DepartmentsStaff Costs
... 3347 more rows

Sheet Tables (hidden)
C1: Department | D1: (All)
A3: Row Labels
A4: Academic General | C4: Account Number | D4: Description
A5: Accounting | C5: 00002021102 | D5: ANTHROPO ACAD SALS PERM
A6: Anthropology | C6: 00002031102 | D6: ANTHROPO ACAD SALS OTHER
A7: Biochem and Micro | C7: 00002035113 | D7: ANTHROPO SECR SALS OTHER
A8: Botany | C8: 00002051102 | D8: ANTHROPO ACAD SERVICE BON
A9: Bursaries and Fee Rebates | C9: 00002071102 | D9: ANTHROPO ACAD MEDICAL AID
A10: Central Cleaning Services | C10: 00002101102 | D10: ANTHROPO ACAD UIF
A11: Centre for Entrepreneurship | C11: 00002105113 | D11: ANTHROPO SECR UIF
A12: Chemistry | C12: 00002111102 | D12: ANTHROPO ACAD GROUP LIFE
A13: Chertl | C13: 00002115113 | D13: ANTHROPO SECR GROUP LIFE
A14: Communication & Marketing | C14: 00002151102 | D14: ANTHROPO ACAD PENSION CON
A15: Community Engagement | C15: 00002155113 | D15: ANTHROPO SECR PENSION CON
A16: Computer Science | C16: 00002880168 | D16: ANTHROPO ACAD SALS TRANSF
A17: Cory Library | C17: 00004021102 | D17: DRAMA ACAD SALS PERM
A18: Dean of Commerce | C18: 00004024113 | D18: DRAMA TECH SALS PERM
A19: Dean of Humanities | C19: 00004025113 | D19: DRAMA SECR SALS PERM
A20: Dean of Science | C20: 00004031102 | D20: DRAMA ACAD SALS OTHER
A21: Dean of Students | C21: 00004034113 | D21: DRAMA TECH SALS OTHER
A22: Development & Alumni | C22: 00004035113 | D22: DRAMA SECR SALS OTHER
A23: Drama | C23: 00004051102 | D23: DRAMA ACAD SERVICE BONUS
A24: Economics | C24: 00004054113 | D24: DRAMA TECH SERVICE BONUS
A25: Education | C25: 00004055113 | D25: DRAMA SECR SERVICE BONUS
A26: EM Unit | C26: 00004071102 | D26: DRAMA ACAD MEDICAL AID
A27: English | C27: 00004074113 | D27: DRAMA TECH MEDICAL AID
A28: Environmental Science | C28: 00004075113 | D28: DRAMA SECR MEDICAL AID
A29: Estates Division | C29: 00004101102 | D29: DRAMA ACAD UIF
A30: Finance Costs | C30: 00004104113 | D30: DRAMA TECH UIF
A31: Finance Division | C31: 00004105113 | D31: DRAMA SECR UIF
A32: Fine Art | C32: 00004111102 | D32: DRAMA ACAD GROUP LIFE
A33: Geography | C33: 00004114113 | D33: DRAMA TECH GROUP LIFE
A34: Geology | C34: 00004115113 | D34: DRAMA SECR GROUP LIFE
A35: Graphic Services | C35: 00004151102 | D35: DRAMA ACAD PENSION CONTRI
A36: History | C36: 00004154113 | D36: DRAMA TECH PENSION CONTRI
A37: HKE | C37: 00004155113 | D37: DRAMA SECR PENSION CONTRI
A38: Human Resources | C38: 00004880168 | D38: DRAMA ACAD SALS TRANSFERS
A39: Ichthyology | C39: 00005021102 | D39: ENGLISH ACAD SALS PERM
A40: ILAM | C40: 00005025113 | D40: ENGLISH SECR SALS PERM
A41: Information Systems | C41: 00005031102 | D41: ENGLISH ACAD SALS OTHER
A42: Institutes Running Grants | C42: 00005035113 | D42: ENGLISH SECR SALS OTHER
A43: International Office | C43: 00005051102 | D43: ENGLISH ACAD SERVICE BONU
A44: International Office Running Grant | C44: 00005055113 | D44: ENGLISH SECR SERVICE BONU
A45: ISEA | C45: 00005071102 | D45: ENGLISH ACAD MEDICAL AID
A46: ISER | C46: 00005075113 | D46: ENGLISH SECR MEDICAL AID
A47: IT Division | C47: 00005101102 | D47: ENGLISH ACAD UIF
A48: IWR | C48: 00005105113 | D48: ENGLISH SECR UIF
A49: Journalism | C49: 00005111102 | D49: ENGLISH ACAD GROUP LIFE
A50: Law | C50: 00005115113 | D50: ENGLISH SECR GROUP LIFE
A51: Leave Gratuity Academic | C51: 00005151102 | D51: ENGLISH ACAD PENSION CONT
A52: Legal Aid Clinic | C52: 00005155113 | D52: ENGLISH SECR PENSION CONT
A53: Library Services | C53: 00005880168 | D53: ENGLISH ACAD SALS TRANSFE
A54: Linguistics | C54: 00006021102 | D54: FINE ART ACAD SALS PERM
A55: Management | C55: 00006024113 | D55: FINE ART TECH SALS PERM
A56: Mathematics | C56: 00006025113 | D56: FINE ART SECR SALS PERM
A57: Molteno | C57: 00006031102 | D57: FINE ART ACAD SALS OTHER
A58: Music | C58: 00006034113 | D58: FINE ART TECH SALS OTHER
A59: Pharmacy | C59: 00006035113 | D59: FINE ART SECR SALS OTHER
A60: Philosophy | C60: 00006045113 | D60: FINE ART TEMP ASSISTANCE
A61: Physics | C61: 00006047113 | D61: FINE ART TEMP ASSISTANCE
A62: Political Studies | C62: 00006051102 | D62: FINE ART ACAD SERVICE BON
A63: Psychology | C63: 00006054113 | D63: FINE ART TECH SERVICE BON
A64: Registrar | C64: 00006071102 | D64: FINE ART ACAD MEDICAL AID
A65: Rhodes Music Radio | C65: 00006074113 | D65: FINE ART TECH MEDICAL AID
A66: RU Council | C66: 00006075113 | D66: FINE ART SECR MEDICAL AID
A67: School of Languages | C67: 00006101102 | D67: FINE ART ACAD UIF
A68: Sociology | C68: 00006104113 | D68: FINE ART TECH UIF
A69: Sports Council | C69: 00006105113 | D69: FINE ART SECR UIF
A70: SRC | C70: 00006111102 | D70: FINE ART ACAD GROUP LIFE
A71: Statistics | C71: 00006114113 | D71: FINE ART TECH GROUP LIFE
A72: Student Activities | C72: 00006115113 | D72: FINE ART SECR GROUP LIFE
A73: Student Financial Aid | C73: 00006151102 | D73: FINE ART ACAD PENSION CON
A74: VC's Award | C74: 00006154113 | D74: FINE ART TECH PENSION CON
A75: Vice-Chancellorate | C75: 00006155113 | D75: FINE ART SECR PENSION CON
A76: Zoology and Entomology | C76: 00006301102 | D76: FINE ART ACAD TRAVEL ALLO
A77: Faculty of Science | C77: 00006880168 | D77: FINE ART ACAD SALS TRANSF
A78: Arts Faculty | C78: 00009021102 | D78: HISTORY ACAD SALS PERM
A79: Deans Fund | C79: 00009025113 | D79: HISTORY SECR SALS PERM
A80: DVC A & SA | C80: 00009031102 | D80: HISTORY ACAD SALS OTHER
A81: Grand Total | C81: 00009051102 | D81: HISTORY ACAD SERVICE BONU
C82: 00009055113 | D82: HISTORY SECR SERVICE BONU
C83: 00009071102 | D83: HISTORY ACAD MEDICAL AID
C84: 00009101102 | D84: HISTORY ACAD UIF
C85: 00009105113 | D85: HISTORY SECR UIF
C86: 00009111102 | D86: HISTORY ACAD GROUP LIFE
C87: 00009115113 | D87: HISTORY SECR GROUP LIFE
C88: 00009151102 | D88: HISTORY ACAD PENSION CONT
C89: 00009155113 | D89: HISTORY SECR PENSION CONT
C90: 00009880168 | D90: HISTORY ACAD SALS TRANSFE
C91: 00010021102 | D91: HKE ACAD SALS PERM
C92: 00010024113 | D92: HKE TECH SALS PERM
C93: 00010025113 | D93: HKE SECR SALS PERM
C94: 00010031102 | D94: HKE ACAD SALS OTHER
C95: 00010035113 | D95: HKE SECR SALS OTHER
C96: 00010051102 | D96: HKE ACAD SERVICE BONUS
C97: 00010054113 | D97: HKE TECH SERVICE BONUS
C98: 00010055113 | D98: HKE SECR SERVICE BONUS
C99: 00010071102 | D99: HKE ACAD MEDICAL AID
C100: 00010074113 | D100: HKE TECH MEDICAL AID
C101: 00010075113 | D101: HKE SECR MEDICAL AID
C102: 00010101102 | D102: HKE ACAD UIF
C103: 00010104113 | D103: HKE TECH UIF
C104: 00010105113 | D104: HKE SECR UIF
C105: 00010111102 | D105: HKE ACAD GROUP LIFE
C106: 00010114113 | D106: HKE TECH GROUP LIFE
C107: 00010115113 | D107: HKE SECR GROUP LIFE
C108: 00010151102 | D108: HKE ACAD PENSION CONTRIBU
C109: 00010154113 | D109: HKE TECH PENSION CONTRIBU
C110: 00010155113 | D110: HKE SECR PENSION CONTRIBU
C111: 00010880168 | D111: HKE ACAD SALS TRANSFERS
C112: 00011021102 | D112: JOURN ACAD SALS PERM
C113: 00011024113 | D113: JOURN TECH SALS PERM
C114: 00011025113 | D114: JOURN SECR SALS PERM
C115: 00011031102 | D115: JOURN ACAD SALS OTHER
C116: 00011034113 | D116: JOURN TECH SALS OTHER
C117: 00011051102 | D117: JOURN ACAD SERVICE BONUS
C118: 00011055113 | D118: JOURN SECR SERVICE BONUS
C119: 00011071102 | D119: JOURN ACAD MEDICAL AID
C120: 00011074113 | D120: JOURN TECH MEDICAL AID
C121: 00011075113 | D121: JOURN SECR MEDICAL AID
C122: 00011101102 | D122: JOURN ACAD UIF
C123: 00011104113 | D123: JOURN TECH UIF
C124: 00011105113 | D124: JOURN SECR UIF
C125: 00011111102 | D125: JOURN ACAD GROUP LIFE
C126: 00011114113 | D126: JOURN TECH GROUP LIFE
C127: 00011115113 | D127: JOURN SECR GROUP LIFE
C128: 00011151102 | D128: JOURN ACAD PENSION CONTRI
C129: 00011154113 | D129: JOURN TECH PENSION CONTRI
C130: 00011155113 | D130: JOURN SECR PENSION CONTRI
C131: 00011880168 | D131: JOURN ACAD SALS TRANSFERS
C132: 00012021102 | D132: LING ACAD SALS PERM
C133: 00012025113 | D133: LING SECR SALS PERM
C134: 00012035113 | D134: LING SECR SALS OTHER
C135: 00012051102 | D135: LING ACAD SERVICE BONUS
C136: 00012055113 | D136: LING SECR SERVICE BONUS
C137: 00012071102 | D137: LING ACAD MEDICAL AID
C138: 00012075113 | D138: LING SECR MEDICAL AID
C139: 00012101102 | D139: LING ACAD UIF
C140: 00012105113 | D140: LING SECR UIF
C141: 00012111102 | D141: LING ACAD GROUP LIFE
C142: 00012115113 | D142: LING SECR GROUP LIFE
C143: 00012151102 | D143: LING ACAD PENSION CONTRIB
C144: 00012155113 | D144: LING SECR PENSION CONTRIB
C145: 00012880168 | D145: LING ACAD SALS TRANSFERS
C146: 00013021102 | D146: MUSIC ACAD SALS PERM
C147: 00013025113 | D147: MUSIC SECR SALS PERM
C148: 00013031102 | D148: MUSIC ACAD SALS OTHER
C149: 00013035113 | D149: MUSIC SECR SALS OTHER
C150: 00013051102 | D150: MUSIC ACAD SERVICE BONUS
C151: 00013055113 | D151: MUSIC SECR SERVICE BONUS
C152: 00013071102 | D152: MUSIC ACAD MEDICAL AID
C153: 00013075113 | D153: MUSIC SECR MEDICAL AID
C154: 00013101102 | D154: MUSIC ACAD UIF
C155: 00013105113 | D155: MUSIC SECR UIF
C156: 00013111102 | D156: MUSIC ACAD GROUP LIFE
C157: 00013115113 | D157: MUSIC SECR GROUP LIFE
C158: 00013151102 | D158: MUSIC ACAD PENSION CONTRI
C159: 00013155113 | D159: MUSIC SECR PENSION CONTRI
C160: 00013301102 | D160: MUSIC TRAVEL ALLOWANCE
C161: 00013880168 | D161: MUSIC ACAD SALS TRANSFERS
C162: 00014021102 | D162: PHILOSO ACAD SALS PERM
C163: 00014025113 | D163: PHILOSO SECR SALS PERM
C164: 00014031102 | D164: PHILOSO ACAD SALS OTHER
C165: 00014035113 | D165: PHILOSO SECR SALS OTHER
C166: 00014051102 | D166: PHILOSO ACAD SERVICE BONU
C167: 00014055113 | D167: PHILOSO SECR SERVICE BONU
C168: 00014071102 | D168: PHILOSO ACAD MEDICAL AID
C169: 00014075113 | D169: PHILOSO SECR MEDICAL AID
C170: 00014101102 | D170: PHILOSO ACAD UIF
C171: 00014105113 | D171: PHILOSO SECR UIF
C172: 00014111102 | D172: PHILOSO ACAD GROUP LIFE
C173: 00014115113 | D173: PHILOSO SECR GROUP LIFE
C174: 00014151102 | D174: PHILOSO ACAD PENSION CONT
C175: 00014155113 | D175: PHILOSO SECR PENSION CONT
C176: 00014551102 | D176: PHILOSO ACAD TRAVEL & SUB
C177: 00014880168 | D177: PHILOSO ACAD SALS TRANSFE
C178: 00015021102 | D178: SC OF LANG ACAD SALARIES
C179: 00015025113 | D179: SC OF LANG SECRETARY SALA
C180: 00015031102 | D180: SC OF LANG ACAD SALARIES
C181: 00015035113 | D181: SC OF LANG SECRETARY SALA
C182: 00015045113 | D182: SC OF LANG TEMP ASSISTANC
C183: 00015051102 | D183: SC OF LANG ACAD BONUS
C184: 00015055113 | D184: SC OF LANG SECRETARY BONU
C185: 00015071102 | D185: SC OF LANG ACAD MEDICAL A
C186: 00015075113 | D186: SC OF LANG SECRETARY MEDI
C187: 00015101102 | D187: SC OF LANG ACAD UIF
C188: 00015105113 | D188: SC OF LANG SECRETARY UIF
C189: 00015111102 | D189: SC OF LANG ACAD GROUP LIF
C190: 00015115113 | D190: SC OF LANG SECRETARY GROU
C191: 00015151102 | D191: SC OF LANG ACAD PENSION C
C192: 00015155113 | D192: SC OF LANG SECRETARY PENS
C193: 00015500102 | D193: SC OF LANG ACAD EXPENSES
C194: 00015880168 | D194: SC OF LANG ACAD SALARY TR
C195: 00016021102 | D195: DEAN OF HUMANITIES ACAD S
C196: 00016025113 | D196: DEAN OF HUMANITIES NON PR
C197: 00016051102 | D197: DEAN OF HUMANITIES ACAD B
C198: 00016055113 | D198: DEAN OF HUMANITIES NON PR
C199: 00016071102 | D199: DEAN OF HUMANITIES ACAD M
C200: 00016075113 | D200: DEAN OF HUMANITIES NON PR
C201: 00016101102 | D201: DEAN OF HUMANITIES ACAD S
... 3347 more rows

Sheet Accounts (hidden)
A1: GL ACCOUNT | B1: GL ACCOUNT DESCRIPTION | C1: ALT ACCOUNT | D1: RI ACCOUNT | E1: RI ACCOUNT DESCRIPTION | F1: TYPE | G1: BRANCH CODE | H1: BRANCH | I1: STATUS | J1: FUNCTION | K1: REPORTING | L1: COST CENTRE | M1: CATEGORY | N1: TRANSFERS | O1: RI ACCOUNT DESCRIPTION | P1: RI ACCOUNT | Q1: GRANT REF | R1: GL ACCOUNT | S1: TRANSFERS | T1: TRANSFER REF
A2: 20805031302 | B2: CHINESE RESALE TEMP SALS | C2: 14211020101 | D2: 20805000384 | E2: CHINESE RESALE R/I | F2: 4 | G2: IO | H2: International Office | I2: Enabled | K2: Departmental | L2: =LEFT($A2,5) -> 20805 | M2: =IF(AND(RIGHT(TRIM($B2),5)="GRANT",RIGHT(TRIM($B2),10)<>"ASST GRANT",RIGHT(TRIM($A2),4)="0368"),"GRANT","OTHER") -> OTHER | N2: =S2 -> OTHER | O2: CHINESE RESALE R/I | P2: 20805000384 | Q2: =CONCATENATE($L2,$M2) -> 20805OTHER | R2: =TRIM(A2) -> 20805031302 | S2: =IF(AND(RIGHT(TRIM($A2),3)="168",$M2="OTHER"),"TRANSFERS","OTHER") -> OTHER | T2: =CONCATENATE($L2,$S2) -> 20805OTHER
A3: 20805631302 | B3: CHINESE RESALE EXPENSES | C3: 14212000101 | D3: 20805000384 | E3: CHINESE RESALE R/I | F3: 4 | G3: IO | H3: International Office | I3: Enabled | K3: Departmental | L3: 20805 | M3: OTHER | N3: OTHER | O3: CHINESE RESALE R/I | P3: 20805000384 | Q3: 20805OTHER | R3: 20805631302 | S3: OTHER | T3: 20805OTHER
A4: 20805640302 | B4: CHINESE RESALE VATABLE PURCHASES | C4: 14212000101 | D4: 20805000384 | E4: CHINESE RESALE R/I | F4: 4 | G4: IO | H4: International Office | I4: Enabled | K4: Departmental | L4: 20805 | M4: OTHER | N4: OTHER | O4: CHINESE RESALE R/I | P4: 20805000384 | Q4: 20805OTHER | R4: 20805640302 | S4: OTHER | T4: 20805OTHER
A5: 20805641312 | B5: CHINESE RESALE PRINT UNIT | C5: 14212000101 | D5: 20805000384 | E5: CHINESE RESALE R/I | F5: 4 | G5: IO | H5: International Office | I5: Enabled | K5: Departmental | L5: 20805 | M5: OTHER | N5: OTHER | O5: CHINESE RESALE R/I | P5: 20805000384 | Q5: 20805OTHER | R5: 20805641312 | S5: OTHER | T5: 20805OTHER
A6: 20805752369 | B6: CHINESE RESALE HANDOUT INCOME | C6: 13202000101 | D6: 20805000384 | E6: CHINESE RESALE R/I | F6: 3 | G6: IO | H6: International Office | I6: Enabled | K6: Departmental | L6: 20805 | M6: OTHER | N6: OTHER | O6: CHINESE RESALE R/I | P6: 20805000384 | Q6: 20805OTHER | R6: 20805752369 | S6: OTHER | T6: 20805OTHER
A7: 20805753369 | B7: CHINESE RESALE VATABLE SALES | C7: 13202000101 | D7: 20805000384 | E7: CHINESE RESALE R/I | F7: 3 | G7: IO | H7: International Office | I7: Enabled | K7: Departmental | L7: 20805 | M7: OTHER | N7: OTHER | O7: CHINESE RESALE R/I | P7: 20805000384 | Q7: 20805OTHER | R7: 20805753369 | S7: OTHER | T7: 20805OTHER
A8: 20805804357 | B8: CHINESE RESALE CAP EQUIPMENT | C8: 14216000101 | D8: 20805000384 | E8: CHINESE RESALE R/I | F8: 4 | G8: IO | H8: International Office | I8: Enabled | K8: Departmental | L8: 20805 | M8: OTHER | N8: OTHER | O8: CHINESE RESALE R/I | P8: 20805000384 | Q8: 20805OTHER | R8: 20805804357 | S8: OTHER | T8: 20805OTHER
A9: 20805824357 | B9: CHINESE RESALE BOOKS | C9: 14216000101 | D9: 20805000384 | E9: CHINESE RESALE R/I | F9: 4 | G9: IO | H9: International Office | I9: Enabled | K9: Departmental | L9: 20805 | M9: OTHER | N9: OTHER | O9: CHINESE RESALE R/I | P9: 20805000384 | Q9: 20805OTHER | R9: 20805824357 | S9: OTHER | T9: 20805OTHER
A10: 20805882368 | B10: CHINESE RESALE TRANSFERS | C10: 14212000100 | D10: 20805000384 | E10: CHINESE RESALE R/I | F10: 4 | G10: IO | H10: International Office | I10: Enabled | K10: Departmental | L10: 20805 | M10: OTHER | N10: OTHER | O10: CHINESE RESALE R/I | P10: 20805000384 | Q10: 20805OTHER | R10: 20805882368 | S10: OTHER | T10: 20805OTHER
A11: 55212031306 | B11: COMMUNITY ENGAGE TEMP SALS | C11: 14210015700 | D11: 55212000384 | E11: COMMUNITY ENGAGEMENT RET INCOME | F11: 4 | G11: CO | H11: COMMUNITY ENGAGEMENT | I11: Enabled | J11: Academic Support | L11: =LEFT($A11,5) -> 55212 | M11: OTHER | N11: =S11 -> OTHER | O11: COMMUNITY ENGAGEMENT RET INCOME | P11: 55212000384 | Q11: =CONCATENATE($L11,$M11) -> 55212OTHER | R11: =TRIM(A11) -> 55212031306 | S11: =IF(AND(RIGHT(TRIM($A11),3)="168",$M11="OTHER"),"TRANSFERS","OTHER") -> OTHER | T11: =CONCATENATE($L11,$S11) -> 55212OTHER
A12: 55212051306 | B12: COMMUNITY ENGAGE BONUS | C12: 14211015700 | D12: 55212000384 | E12: COMMUNITY ENGAGEMENT RET INCOME | F12: 4 | G12: CO | H12: COMMUNITY ENGAGEMENT | I12: Enabled | J12: Academic Support | L12: 55212 | M12: OTHER | N12: OTHER | O12: COMMUNITY ENGAGEMENT RET INCOME | P12: 55212000384 | Q12: 55212OTHER | R12: 55212051306 | S12: OTHER | T12: 55212OTHER
A13: 55212071306 | B13: COMMUNITY ENGAGE MEDICAL AID | C13: 14210015700 | D13: 55212000384 | E13: COMMUNITY ENGAGEMENT RET INCOME | F13: 4 | G13: CO | H13: COMMUNITY ENGAGEMENT | I13: Enabled | J13: Academic Support | L13: 55212 | M13: OTHER | N13: OTHER | O13: COMMUNITY ENGAGEMENT RET INCOME | P13: 55212000384 | Q13: 55212OTHER | R13: 55212071306 | S13: OTHER | T13: 55212OTHER
A14: 55212101306 | B14: COMMUNITY ENGAGE UIF | C14: 14210015700 | D14: 55212000384 | E14: COMMUNITY ENGAGEMENT RET INCOME | F14: 4 | G14: CO | H14: COMMUNITY ENGAGEMENT | I14: Enabled | J14: Academic Support | L14: 55212 | M14: OTHER | N14: OTHER | O14: COMMUNITY ENGAGEMENT RET INCOME | P14: 55212000384 | Q14: 55212OTHER | R14: 55212101306 | S14: OTHER | T14: 55212OTHER
A15: 55212111306 | B15: COMMUNITY ENGAGE GROUPLIFE | C15: 14210015700 | D15: 55212000384 | E15: COMMUNITY ENGAGEMENT RET INCOME | F15: 4 | G15: CO | H15: COMMUNITY ENGAGEMENT | I15: Enabled | J15: Academic Support | L15: 55212 | M15: OTHER | N15: OTHER | O15: COMMUNITY ENGAGEMENT RET INCOME | P15: 55212000384 | Q15: 55212OTHER | R15: 55212111306 | S15: OTHER | T15: 55212OTHER
A16: 55212151306 | B16: COMMUNITY ENGAGE PENSION/PROV | C16: 14210015700 | D16: 55212000384 | E16: COMMUNITY ENGAGEMENT RET INCOME | F16: 4 | G16: CO | H16: COMMUNITY ENGAGEMENT | I16: Enabled | J16: Academic Support | L16: 55212 | M16: OTHER | N16: OTHER | O16: COMMUNITY ENGAGEMENT RET INCOME | P16: 55212000384 | Q16: 55212OTHER | R16: 55212151306 | S16: OTHER | T16: 55212OTHER
A17: 55212400306 | B17: COMMUNITY ENGAGE PRINTING(EXTERNAL) | C17: 14212005700 | D17: 55212000384 | E17: COMMUNITY ENGAGEMENT RET INCOME | F17: 4 | G17: CO | H17: COMMUNITY ENGAGEMENT | I17: Enabled | J17: Academic Support | L17: 55212 | M17: OTHER | N17: OTHER | O17: COMMUNITY ENGAGEMENT RET INCOME | P17: 55212000384 | Q17: 55212OTHER | R17: 55212400306 | S17: OTHER | T17: 55212OTHER
A18: 55212441306 | B18: COMMUNITY ENGAGE FUNCTION EXPENSES | C18: 14212005700 | D18: 55212000384 | E18: COMMUNITY ENGAGEMENT RET INCOME | F18: 4 | G18: CO | H18: COMMUNITY ENGAGEMENT | I18: Enabled | J18: Academic Support | L18: 55212 | M18: OTHER | N18: OTHER | O18: COMMUNITY ENGAGEMENT RET INCOME | P18: 55212000384 | Q18: 55212OTHER | R18: 55212441306 | S18: OTHER | T18: =CONCATENATE($L18,$S18) -> 55212OTHER
A19: 55212484306 | B19: COMMUNITY ENGAGE POSTAGES | C19: 14212005700 | D19: 55212000384 | E19: COMMUNITY ENGAGEMENT RET INCOME | F19: 4 | G19: CO | H19: COMMUNITY ENGAGEMENT | I19: Enabled | J19: Academic Support | L19: 55212 | M19: OTHER | N19: OTHER | O19: COMMUNITY ENGAGEMENT RET INCOME | P19: 55212000384 | Q19: 55212OTHER | R19: =TRIM(A19) -> 55212484306 | S19: =IF(AND(RIGHT(TRIM($A19),3)="168",$M19="OTHER"),"TRANSFERS","OTHER") -> OTHER | T19: 55212OTHER
A20: 55212485306 | B20: COMMUNITY ENGAGE PRINTING INTERNAL | C20: 14212005700 | D20: 55212000384 | E20: COMMUNITY ENGAGEMENT RET INCOME | F20: 4 | G20: CO | H20: COMMUNITY ENGAGEMENT | I20: Enabled | J20: Academic Support | L20: 55212 | M20: OTHER | N20: OTHER | O20: COMMUNITY ENGAGEMENT RET INCOME | P20: 55212000384 | Q20: =CONCATENATE($L20,$M20) -> 55212OTHER | R20: 55212485306 | S20: OTHER | T20: 55212OTHER
A21: 55212500306 | B21: COMMUNITY ENGAGE GENERAL EXPENSES | C21: 14212005700 | D21: 55212000384 | E21: COMMUNITY ENGAGEMENT RET INCOME | F21: 4 | G21: CO | H21: COMMUNITY ENGAGEMENT | I21: Enabled | J21: Academic Support | L21: 55212 | M21: OTHER | N21: OTHER | O21: COMMUNITY ENGAGEMENT RET INCOME | P21: 55212000384 | Q21: 55212OTHER | R21: 55212500306 | S21: OTHER | T21: 55212OTHER
A22: 55212501306 | B22: COMMUNITY ENGAGE STU VOLTR TRANSPOR | C22: 14212005700 | D22: 55212000384 | E22: COMMUNITY ENGAGEMENT RET INCOME | F22: 4 | G22: CO | H22: COMMUNITY ENGAGEMENT | I22: Enabled | J22: Academic Support | L22: 55212 | M22: OTHER | N22: OTHER | O22: COMMUNITY ENGAGEMENT RET INCOME | P22: 55212000384 | Q22: 55212OTHER | R22: 55212501306 | S22: OTHER | T22: 55212OTHER
A23: 55212502306 | B23: COMMUNITY ENGAGE PROGRAMME EXPENSES | C23: 14212005700 | D23: 55212000384 | E23: COMMUNITY ENGAGEMENT RET INCOME | F23: 4 | G23: CO | H23: COMMUNITY ENGAGEMENT | I23: Enabled | J23: Academic Support | L23: 55212 | M23: OTHER | N23: OTHER | O23: COMMUNITY ENGAGEMENT RET INCOME | P23: 55212000384 | Q23: 55212OTHER | R23: 55212502306 | S23: OTHER | T23: 55212OTHER
A24: 55212503306 | B24: COMMUNITY ENGAGE SPONS PROJ EXPENSE | C24: 14212005700 | D24: 55212000384 | E24: COMMUNITY ENGAGEMENT RET INCOME | F24: 4 | G24: CO | H24: COMMUNITY ENGAGEMENT | I24: Enabled | J24: Academic Support | L24: 55212 | M24: OTHER | N24: OTHER | O24: COMMUNITY ENGAGEMENT RET INCOME | P24: 55212000384 | Q24: 55212OTHER | R24: 55212503306 | S24: OTHER | T24: 55212OTHER
A25: 55212504306 | B25: COMMUNITY ENGAGE SCHOOL PRTN EXPEN | C25: 14212005700 | D25: 55212000384 | E25: COMMUNITY ENGAGEMENT RET INCOME | F25: 4 | G25: CO | H25: COMMUNITY ENGAGEMENT | I25: Enabled | J25: Academic Support | L25: 55212 | M25: OTHER | N25: OTHER | O25: COMMUNITY ENGAGEMENT RET INCOME | P25: 55212000384 | Q25: 55212OTHER | R25: 55212504306 | S25: OTHER | T25: 55212OTHER
A26: 55212515306 | B26: COMMUNITY ENGAGE TRAVEL & SUBSISTE | C26: 14212005700 | D26: 55212000384 | E26: COMMUNITY ENGAGEMENT RET INCOME | F26: 4 | G26: CO | H26: COMMUNITY ENGAGEMENT | I26: Enabled | J26: Academic Support | L26: 55212 | M26: OTHER | N26: OTHER | O26: COMMUNITY ENGAGEMENT RET INCOME | P26: 55212000384 | Q26: 55212OTHER | R26: 55212515306 | S26: OTHER | T26: 55212OTHER
A27: 55212536306 | B27: COMMUNITY ENGAGE SUBS & MEMBERSHIPS | C27: 14212005700 | D27: 55212000384 | E27: COMMUNITY ENGAGEMENT RET INCOME | F27: 4 | G27: CO | H27: COMMUNITY ENGAGEMENT | I27: Enabled | J27: Academic Support | L27: 55212 | M27: OTHER | N27: OTHER | O27: COMMUNITY ENGAGEMENT RET INCOME | P27: 55212000384 | Q27: 55212OTHER | R27: 55212536306 | S27: OTHER | T27: 55212OTHER
A28: 55212541306 | B28: COMMUNITY ENGAGE STATIONERY | C28: 14212005700 | D28: 55212000384 | E28: COMMUNITY ENGAGEMENT RET INCOME | F28: 4 | G28: CO | H28: COMMUNITY ENGAGEMENT | I28: Enabled | J28: Academic Support | L28: 55212 | M28: OTHER | N28: OTHER | O28: COMMUNITY ENGAGEMENT RET INCOME | P28: 55212000384 | Q28: 55212OTHER | R28: 55212541306 | S28: OTHER | T28: 55212OTHER
A29: 55212542306 | B29: COMMUNITY ENGAGE PHOTOCOPYING | C29: 14212005700 | D29: 55212000384 | E29: COMMUNITY ENGAGEMENT RET INCOME | F29: 4 | G29: CO | H29: COMMUNITY ENGAGEMENT | I29: Enabled | J29: Academic Support | L29: 55212 | M29: =IF(AND(RIGHT(TRIM($B29),5)="GRANT",RIGHT(TRIM($B29),10)<>"ASST GRANT",RIGHT(TRIM($A29),4)="0368"),"GRANT","OTHER") -> OTHER | N29: OTHER | O29: COMMUNITY ENGAGEMENT RET INCOME | P29: 55212000384 | Q29: =CONCATENATE($L29,$M29) | R29: 55212542306 | S29: OTHER | T29: 55212OTHER
A30: 55212546306 | B30: COMMUNITY ENGAGE STAFF PROF DEVELOP | C30: 14212005700 | D30: 55212000384 | E30: COMMUNITY ENGAGEMENT RET INCOME | F30: 4 | G30: CO | H30: COMMUNITY ENGAGEMENT | I30: Enabled | J30: Academic Support | L30: 55212 | M30: =IF(AND(RIGHT(TRIM($B30),5)="GRANT",RIGHT(TRIM($B30),10)<>"ASST GRANT",RIGHT(TRIM($A30),4)="0368"),"GRANT","OTHER") -> OTHER | N30: OTHER | O30: COMMUNITY ENGAGEMENT RET INCOME | P30: 55212000384 | Q30: 55212OTHER | R30: 55212546306 | S30: OTHER | T30: 55212OTHER
A31: 55212547306 | B31: COMMUNITY ENGAGE TELEPHONE | C31: 14212005700 | D31: 55212000384 | E31: COMMUNITY ENGAGEMENT RET INCOME | F31: 4 | G31: CO | H31: COMMUNITY ENGAGEMENT | I31: Enabled | J31: Academic Support | L31: 55212 | M31: OTHER | N31: OTHER | O31: COMMUNITY ENGAGEMENT RET INCOME | P31: 55212000384 | Q31: 55212OTHER | R31: 55212547306 | S31: OTHER | T31: 55212OTHER
A32: 55212651306 | B32: COMMUNITY ENGAGE VEHICLE MAINTENANC | C32: 14212005700 | D32: 55212000384 | E32: COMMUNITY ENGAGEMENT RET INCOME | F32: 4 | G32: CO | H32: COMMUNITY ENGAGEMENT | I32: Enabled | J32: Academic Support | L32: 55212 | M32: OTHER | N32: OTHER | O32: COMMUNITY ENGAGEMENT RET INCOME | P32: 55212000384 | Q32: 55212OTHER | R32: 55212651306 | S32: OTHER | T32: 55212OTHER
A33: 55212655306 | B33: COMMUNITY ENGAGE VEHICLE PARTS | C33: 14212005700 | D33: 55212000384 | E33: COMMUNITY ENGAGEMENT RET INCOME | F33: 4 | G33: CO | H33: COMMUNITY ENGAGEMENT | I33: Enabled | J33: Academic Support | L33: 55212 | M33: OTHER | N33: OTHER | O33: COMMUNITY ENGAGEMENT RET INCOME | P33: 55212000384 | Q33: 55212OTHER | R33: 55212655306 | S33: OTHER | T33: 55212OTHER
A34: 55212656306 | B34: COMMUNITY ENGAGE VEHICLE FUEL | C34: 14212005700 | D34: 55212000384 | E34: COMMUNITY ENGAGEMENT RET INCOME | F34: 4 | G34: CO | H34: COMMUNITY ENGAGEMENT | I34: Enabled | J34: Academic Support | L34: 55212 | M34: OTHER | N34: OTHER | O34: COMMUNITY ENGAGEMENT RET INCOME | P34: 55212000384 | Q34: 55212OTHER | R34: 55212656306 | S34: OTHER | T34: 55212OTHER
A35: 55212768372 | B35: COMMUNITY ENGAGE PROJ SPON DON S18A | C35: 13205005700 | D35: 55212000384 | E35: COMMUNITY ENGAGEMENT RET INCOME | F35: 3 | G35: CO | H35: COMMUNITY ENGAGEMENT | I35: Enabled | J35: Academic Support | L35: 55212 | M35: OTHER | N35: OTHER | O35: COMMUNITY ENGAGEMENT RET INCOME | P35: 55212000384 | Q35: 55212OTHER | R35: 55212768372 | S35: OTHER | T35: 55212OTHER
A36: 55212769372 | B36: COMMUNITY ENGAGE PROJ SPONS DON OTH | C36: 13205005700 | D36: 55212000384 | E36: COMMUNITY ENGAGEMENT RET INCOME | F36: 3 | G36: CO | H36: COMMUNITY ENGAGEMENT | I36: Enabled | J36: Academic Support | L36: 55212 | M36: OTHER | N36: OTHER | O36: COMMUNITY ENGAGEMENT RET INCOME | P36: 55212000384 | Q36: 55212OTHER | R36: 55212769372 | S36: OTHER | T36: 55212OTHER
A37: 55212783376 | B37: COMMUNITY ENGAGE INCOME ACC | C37: 13202005700 | D37: 55212000384 | E37: COMMUNITY ENGAGEMENT RET INCOME | F37: 3 | G37: CO | H37: COMMUNITY ENGAGEMENT | I37: Enabled | J37: Academic Support | L37: 55212 | M37: OTHER | N37: OTHER | O37: COMMUNITY ENGAGEMENT RET INCOME | P37: 55212000384 | Q37: 55212OTHER | R37: 55212783376 | S37: OTHER | T37: 55212OTHER
A38: 55212799369 | B38: COMMUNITY ENGAGE T-SHIRT SALES | C38: 13202005700 | D38: 55212000384 | E38: COMMUNITY ENGAGEMENT RET INCOME | F38: 3 | G38: CO | H38: COMMUNITY ENGAGEMENT | I38: Enabled | J38: Academic Support | L38: 55212 | M38: OTHER | N38: OTHER | O38: COMMUNITY ENGAGEMENT RET INCOME | P38: 55212000384 | Q38: 55212OTHER | R38: 55212799369 | S38: OTHER | T38: 55212OTHER
A39: 55212804357 | B39: COMMUNITY ENGAGE F&E AND VEHICLES | C39: 14216005700 | D39: 55212000384 | E39: COMMUNITY ENGAGEMENT RET INCOME | F39: 4 | G39: CO | H39: COMMUNITY ENGAGEMENT | I39: Enabled | J39: Academic Support | L39: 55212 | M39: OTHER | N39: OTHER | O39: COMMUNITY ENGAGEMENT RET INCOME | P39: 55212000384 | Q39: 55212OTHER | R39: 55212804357 | S39: OTHER | T39: 55212OTHER
A40: 55212814357 | B40: COMMUNITY ENGAGE COMPUTER EQUIP | C40: 14216005700 | D40: 55212000384 | E40: COMMUNITY ENGAGEMENT RET INCOME | F40: 4 | G40: CO | H40: COMMUNITY ENGAGEMENT | I40: Enabled | J40: Academic Support | L40: 55212 | M40: OTHER | N40: OTHER | O40: COMMUNITY ENGAGEMENT RET INCOME | P40: 55212000384 | Q40: 55212OTHER | R40: 55212814357 | S40: OTHER | T40: 55212OTHER
A41: 55212880368 | B41: COMMUNITY ENGAGE GRANT | C41: 14212005700 | D41: 55212000384 | E41: COMMUNITY ENGAGEMENT RET INCOME | F41: 4 | G41: CO | H41: COMMUNITY ENGAGEMENT | I41: Enabled | J41: Academic Support | L41: 55212 | M41: GRANT | N41: OTHER | O41: COMMUNITY ENGAGEMENT RET INCOME | P41: 55212000384 | Q41: 55212GRANT | R41: 55212880368 | S41: OTHER | T41: 55212OTHER
A42: 55212881368 | B42: COMMUNITY ENGAGE TRF TO CSD | C42: 14212005700 | D42: 55212000384 | E42: COMMUNITY ENGAGEMENT RET INCOME | F42: 4 | G42: CO | H42: COMMUNITY ENGAGEMENT | I42: Enabled | J42: Academic Support | L42: 55212 | M42: OTHER | N42: OTHER | O42: COMMUNITY ENGAGEMENT RET INCOME | P42: 55212000384 | Q42: 55212OTHER | R42: 55212881368 | S42: OTHER | T42: 55212OTHER
A43: 55212882368 | B43: COMM ENGAGE SERVICE LEARNING TRFS | C43: 14212005700 | D43: 55212000384 | E43: COMMUNITY ENGAGEMENT RET INCOME | F43: 4 | G43: CO | H43: COMMUNITY ENGAGEMENT | I43: Enabled | J43: Academic Support | L43: 55212 | M43: OTHER | N43: OTHER | O43: COMMUNITY ENGAGEMENT RET INCOME | P43: 55212000384 | Q43: 55212OTHER | R43: 55212882368 | S43: OTHER | T43: 55212OTHER
A44: 55227441313 | B44: COMMUNITY ENG SIFE ENTERTAINMENT | C44: 14212005700 | D44: 55227000384 | E44: COMMUNITY ENGAGEMENT SIFE RET INC | F44: 4 | G44: CO | H44: COMMUNITY ENGAGEMENT | I44: Enabled | J44: Academic Support | L44: 55227 | M44: OTHER | N44: OTHER | O44: COMMUNITY ENGAGEMENT SIFE RET INC | P44: 55227000384 | Q44: 55227OTHER | R44: 55227441313 | S44: OTHER | T44: 55227OTHER
A45: 55227551313 | B45: COMMUNITY ENGAGEMENT SIFE TRAVEL | C45: 14212045700 | D45: 55227000384 | E45: COMMUNITY ENGAGEMENT SIFE RET INC | F45: 4 | G45: CO | H45: COMMUNITY ENGAGEMENT | I45: Enabled | J45: Academic Support | L45: 55227 | M45: OTHER | N45: OTHER | O45: COMMUNITY ENGAGEMENT SIFE RET INC | P45: 55227000384 | Q45: 55227OTHER | R45: 55227551313 | S45: OTHER | T45: 55227OTHER
A46: 55227797383 | B46: COMMUNITY ENGAGE SIFE NON VAT INC | C46: 13209005700 | D46: 55227000384 | E46: COMMUNITY ENGAGEMENT SIFE RET INC | F46: 3 | G46: CO | H46: COMMUNITY ENGAGEMENT | I46: Enabled | J46: Academic Support | L46: 55227 | M46: OTHER | N46: OTHER | O46: COMMUNITY ENGAGEMENT SIFE RET INC | P46: 55227000384 | Q46: 55227OTHER | R46: 55227797383 | S46: OTHER | T46: 55227OTHER
A47: 55227798383 | B47: COMMUNITY ENGAGEMENT SIFE INCOME | C47: 13209005700 | D47: 55227000384 | E47: COMMUNITY ENGAGEMENT SIFE RET INC | F47: 3 | G47: CO | H47: COMMUNITY ENGAGEMENT | I47: Enabled | J47: Academic Support | L47: 55227 | M47: OTHER | N47: OTHER | O47: COMMUNITY ENGAGEMENT SIFE RET INC | P47: 55227000384 | Q47: 55227OTHER | R47: 55227798383 | S47: OTHER | T47: 55227OTHER
A48: 55227880368 | B48: COMMUNITY ENGAGEMENT SIFE TRF | C48: 14212005700 | D48: 55227000384 | E48: COMMUNITY ENGAGEMENT SIFE RET INC | F48: 4 | G48: CO | H48: COMMUNITY ENGAGEMENT | I48: Enabled | J48: Academic Support | L48: 55227 | M48: OTHER | N48: OTHER | O48: COMMUNITY ENGAGEMENT SIFE RET INC | P48: 55227000384 | Q48: 55227OTHER | R48: 55227880368 | S48: OTHER | T48: 55227OTHER
A49: 55067550105 | B49: INT OFF VISIT LECT EXPENSES | C49: 14212005100 | D49: 55067000184 | E49: INT OFF VISIT LECT RET INCOME | F49: 4 | G49: IO | H49: International Office | I49: Enabled | J49: Academic Support | L49: 55067 | M49: OTHER | N49: OTHER | O49: INT OFF VISIT LECT RET INCOME | P49: 55067000184 | Q49: 55067OTHER | R49: =TRIM(A49) -> 55067550105 | S49: OTHER | T49: 55067OTHER
A50: 55067804157 | B50: INT OFF VISIT LECT CAPITAL EXPS | C50: 14116000000 | D50: 55067000184 | E50: INT OFF VISIT LECT RET INCOME | F50: 4 | G50: IO | H50: International Office | I50: Enabled | J50: Academic Support | K50: General or Unallocated | L50: 55067 | M50: OTHER | N50: OTHER | O50: INT OFF VISIT LECT RET INCOME | P50: 55067000184 | Q50: 55067OTHER | R50: 55067804157 | S50: OTHER | T50: 55067OTHER
A51: 55067880168 | B51: INT OFF VISIT LECT GRANT | C51: 14212005100 | D51: 55067000184 | E51: INT OFF VISIT LECT RET INCOME | F51: 4 | G51: IO | H51: International Office | I51: Enabled | J51: Academic Support | L51: 55067 | M51: OTHER | N51: TRANSFERS | O51: INT OFF VISIT LECT RET INCOME | P51: 55067000184 | Q51: 55067OTHER | R51: 55067880168 | S51: TRANSFERS | T51: 55067TRANSFERS
A52: 55205031113 | B52: INTERN OFF MISC EXPENSES TEM SAL | C52: 14212009800 | D52: 55205000184 | E52: INTERNATIONAL OFFICE RET INCOME | F52: 4 | G52: IO | H52: International Office | I52: Enabled | J52: Academic Support | L52: 55205 | M52: OTHER | N52: OTHER | O52: INTERNATIONAL OFFICE RET INCOME | P52: 55205000184 | Q52: 55205OTHER | R52: 55205031113 | S52: OTHER | T52: 55205OTHER
A53: 55205035113 | B53: INTERN OFF TEMP SALARIES | C53: 14211029800 | D53: 55205000184 | E53: INTERNATIONAL OFFICE RET INCOME | F53: 4 | G53: IO | H53: International Office | I53: Enabled | J53: Academic Support | L53: 55205 | M53: OTHER | N53: OTHER | O53: INTERNATIONAL OFFICE RET INCOME | P53: 55205000184 | Q53: 55205OTHER | R53: 55205035113 | S53: OTHER | T53: 55205OTHER
A54: 55205055113 | B54: INTERN OFFICE BONUS | C54: 14211029800 | D54: 55205000184 | E54: INTERNATIONAL OFFICE RET INCOME | F54: 4 | G54: IO | H54: International Office | I54: Enabled | J54: Academic Support | L54: 55205 | M54: OTHER | N54: OTHER | O54: INTERNATIONAL OFFICE RET INCOME | P54: 55205000184 | Q54: 55205OTHER | R54: 55205055113 | S54: OTHER | T54: 55205OTHER
A55: 55205101113 | B55: INTERN OFFICE UIF | C55: 14211029800 | D55: 55205000184 | E55: INTERNATIONAL OFFICE RET INCOME | F55: 4 | G55: IO | H55: International Office | I55: Enabled | J55: Academic Support | L55: 55205 | M55: OTHER | N55: OTHER | O55: INTERNATIONAL OFFICE RET INCOME | P55: 55205000184 | Q55: 55205OTHER | R55: 55205101113 | S55: OTHER | T55: 55205OTHER
A56: 55205105113 | B56: INTERN OFF UIF | C56: 14211029800 | D56: 55205000184 | E56: INTERNATIONAL OFFICE RET INCOME | F56: 4 | G56: IO | H56: International Office | I56: Enabled | J56: Academic Support | L56: 55205 | M56: OTHER | N56: OTHER | O56: INTERNATIONAL OFFICE RET INCOME | P56: 55205000184 | Q56: 55205OTHER | R56: 55205105113 | S56: OTHER | T56: 55205OTHER
A57: 55205441113 | B57: INTERN OFF ENTERTAINMENT | C57: 14212009800 | D57: 55205000184 | E57: INTERNATIONAL OFFICE RET INCOME | F57: 4 | G57: IO | H57: International Office | I57: Enabled | J57: Academic Support | L57: 55205 | M57: OTHER | N57: OTHER | O57: INTERNATIONAL OFFICE RET INCOME | P57: 55205000184 | Q57: 55205OTHER | R57: 55205441113 | S57: OTHER | T57: 55205OTHER
A58: 55205485112 | B58: INTERN OFFICE PRINTING | C58: 14212009800 | D58: 55205000184 | E58: INTERNATIONAL OFFICE RET INCOME | F58: 4 | G58: IO | H58: International Office | I58: Enabled | J58: Academic Support | L58: 55205 | M58: OTHER | N58: OTHER | O58: INTERNATIONAL OFFICE RET INCOME | P58: 55205000184 | Q58: 55205OTHER | R58: 55205485112 | S58: OTHER | T58: 55205OTHER
A59: 55205500113 | B59: INTERN OFF IEASA CONFERENCE | C59: 14212009800 | D59: 55205000184 | E59: INTERNATIONAL OFFICE RET INCOME | F59: 4 | G59: IO | H59: International Office | I59: Enabled | J59: Academic Support | L59: 55205 | M59: OTHER | N59: OTHER | O59: INTERNATIONAL OFFICE RET INCOME | P59: 55205000184 | Q59: 55205OTHER | R59: 55205500113 | S59: OTHER | T59: 55205OTHER
A60: 55205501113 | B60: INTERN OFF IDP CONFERENCE | C60: 14212009800 | D60: 55205000184 | E60: INTERNATIONAL OFFICE RET INCOME | F60: 4 | G60: IO | H60: International Office | I60: Enabled | J60: Academic Support | L60: 55205 | M60: OTHER | N60: OTHER | O60: INTERNATIONAL OFFICE RET INCOME | P60: 55205000184 | Q60: 55205OTHER | R60: 55205501113 | S60: OTHER | T60: 55205OTHER
A61: 55205502113 | B61: INTERN OFF MISCELLANEOUS EXPENSES | C61: 14212009800 | D61: 55205000184 | E61: INTERNATIONAL OFFICE RET INCOME | F61: 4 | G61: IO | H61: International Office | I61: Enabled | J61: Academic Support | L61: 55205 | M61: OTHER | N61: OTHER | O61: INTERNATIONAL OFFICE RET INCOME | P61: 55205000184 | Q61: 55205OTHER | R61: 55205502113 | S61: OTHER | T61: 55205OTHER
A62: 55205503113 | B62: INTERN OFF STAFF ASSISTANCE | C62: 14212009800 | D62: 55205000184 | E62: INTERNATIONAL OFFICE RET INCOME | F62: 4 | G62: IO | H62: International Office | I62: Enabled | J62: Academic Support | L62: 55205 | M62: OTHER | N62: OTHER | O62: INTERNATIONAL OFFICE RET INCOME | P62: 55205000184 | Q62: 55205OTHER | R62: 55205503113 | S62: OTHER | T62: 55205OTHER
A63: 55205530113 | B63: INTERN OFF SUBS (NEWSPAPERS & PER.) | C63: 14212009800 | D63: 55205000184 | E63: INTERNATIONAL OFFICE RET INCOME | F63: 4 | G63: IO | H63: International Office | I63: Enabled | J63: Academic Support | L63: 55205 | M63: OTHER | N63: OTHER | O63: INTERNATIONAL OFFICE RET INCOME | P63: 55205000184 | Q63: 55205OTHER | R63: 55205530113 | S63: OTHER | T63: 55205OTHER
A64: 55205536113 | B64: INTERN OFF SUBS - ASSOC | C64: 14212009800 | D64: 55205000184 | E64: INTERNATIONAL OFFICE RET INCOME | F64: 4 | G64: IO | H64: International Office | I64: Enabled | J64: Academic Support | L64: 55205 | M64: OTHER | N64: OTHER | O64: INTERNATIONAL OFFICE RET INCOME | P64: 55205000184 | Q64: 55205OTHER | R64: 55205536113 | S64: OTHER | T64: 55205OTHER
A65: 55205547113 | B65: INTERN OFF TELEPHONE | C65: 14212009800 | D65: 55205000184 | E65: INTERNATIONAL OFFICE RET INCOME | F65: 4 | G65: IO | H65: International Office | I65: Enabled | J65: Academic Support | L65: =LEFT($A65,5) -> 55205 | M65: OTHER | N65: OTHER | O65: INTERNATIONAL OFFICE RET INCOME | P65: 55205000184 | Q65: 55205OTHER | R65: 55205547113 | S65: OTHER | T65: 55205OTHER
A66: 55205551113 | B66: INTERN OFFICE TRAVEL & SUBSISTENCE | C66: 14212049800 | D66: 55205000184 | E66: INTERNATIONAL OFFICE RET INCOME | F66: 4 | G66: IO | H66: International Office | I66: Enabled | J66: Academic Support | L66: 55205 | M66: OTHER | N66: OTHER | O66: INTERNATIONAL OFFICE RET INCOME | P66: 55205000184 | Q66: 55205OTHER | R66: 55205551113 | S66: OTHER | T66: 55205OTHER
A67: 55205804157 | B67: INTERN OFF CAPITAL F&E | C67: 14216009800 | D67: 55205000184 | E67: INTERNATIONAL OFFICE RET INCOME | F67: 4 | G67: IO | H67: International Office | I67: Enabled | J67: Academic Support | L67: 55205 | M67: OTHER | N67: OTHER | O67: INTERNATIONAL OFFICE RET INCOME | P67: 55205000184 | Q67: 55205OTHER | R67: 55205804157 | S67: OTHER | T67: 55205OTHER
A68: 55205824157 | B68: INTERN OFF CAPEX BOOKS | C68: 14216009800 | D68: 55205000184 | E68: INTERNATIONAL OFFICE RET INCOME | F68: 4 | G68: IO | H68: International Office | I68: Enabled | J68: Academic Support | L68: 55205 | M68: OTHER | N68: OTHER | O68: INTERNATIONAL OFFICE RET INCOME | P68: 55205000184 | Q68: 55205OTHER | R68: 55205824157 | S68: OTHER | T68: 55205OTHER
A69: 55205880168 | B69: INTERN OFF GRANT EX CENTRAL BUDGET | C69: 14212009800 | D69: 55205000184 | E69: INTERNATIONAL OFFICE RET INCOME | F69: 4 | G69: IO | H69: International Office | I69: Enabled | J69: Academic Support | L69: 55205 | M69: OTHER | N69: TRANSFERS | O69: INTERNATIONAL OFFICE RET INCOME | P69: 55205000184 | Q69: 55205OTHER | R69: 55205880168 | S69: TRANSFERS | T69: 55205TRANSFERS
A70: 55205881168 | B70: INTERN OFFICE STUDENT ASSISTANCE | C70: 14212000000 | D70: 55205000184 | E70: INTERNATIONAL OFFICE RET INCOME | F70: 4 | G70: IO | H70: International Office | I70: Enabled | J70: Academic Support | K70: General or Unallocated | L70: 55205 | M70: OTHER | N70: TRANSFERS | O70: INTERNATIONAL OFFICE RET INCOME | P70: 55205000184 | Q70: 55205OTHER | R70: 55205881168 | S70: TRANSFERS | T70: 55205TRANSFERS
A71: 55205882168 | B71: INTERN OFF TRANSFER | C71: 14212009800 | D71: 55205000184 | E71: INTERNATIONAL OFFICE RET INCOME | F71: 4 | G71: IO | H71: International Office | I71: Enabled | J71: Academic Support | L71: 55205 | M71: OTHER | N71: TRANSFERS | O71: INTERNATIONAL OFFICE RET INCOME | P71: 55205000184 | Q71: 55205OTHER | R71: 55205882168 | S71: TRANSFERS | T71: 55205TRANSFERS
A72: 55211500113 | B72: INTERNAT OFF AFRICAN BALL EXPENSES | C72: 14212009800 | D72: 55211000184 | E72: INTERNAT OFF AFRICAN BALL RET INC | F72: 4 | G72: IO | H72: International Office | I72: Enabled | J72: Academic Support | L72: 55211 | M72: OTHER | N72: OTHER | O72: INTERNAT OFF AFRICAN BALL RET INC | P72: 55211000184 | Q72: 55211OTHER | R72: 55211500113 | S72: OTHER | T72: 55211OTHER
A73: 55211798183 | B73: INTERNAT OFF AFRICAN BALL VAT INCOM | C73: 13209009800 | D73: 55211000184 | E73: INTERNAT OFF AFRICAN BALL RET INC | F73: 3 | G73: IO | H73: International Office | I73: Enabled | J73: Academic Support | L73: 55211 | M73: OTHER | N73: OTHER | O73: INTERNAT OFF AFRICAN BALL RET INC | P73: 55211000184 | Q73: 55211OTHER | R73: 55211798183 | S73: OTHER | T73: 55211OTHER
A74: 55211880168 | B74: INTERNAT OFF AFRICAN BALL TRANSFERS | C74: 14212009800 | D74: 55211000184 | E74: INTERNAT OFF AFRICAN BALL RET INC | F74: 4 | G74: IO | H74: International Office | I74: Enabled | J74: Academic Support | L74: 55211 | M74: OTHER | N74: TRANSFERS | O74: INTERNAT OFF AFRICAN BALL RET INC | P74: 55211000184 | Q74: 55211OTHER | R74: 55211880168 | S74: TRANSFERS | T74: 55211TRANSFERS
A75: 55228769372 | B75: INT OFF ERASMUS MUNDUS DONATION REC | C75: 13205009800 | D75: 55228000384 | E75: INT OFF ERASMUS MUNDUS SAPIENT RI | F75: 3 | G75: IO | H75: International Office | I75: Enabled | J75: Academic Support | L75: 55228 | M75: OTHER | N75: =S75 -> OTHER | O75: INT OFF ERASMUS MUNDUS SAPIENT RI | P75: 55228000384 | Q75: 55228OTHER | R75: 55228769372 | S75: OTHER | T75: 55228OTHER
A76: 55228880368 | B76: INT OFF ERASMUS MUNDUS TRANSFER | C76: 14212009800 | D76: 55228000384 | E76: INT OFF ERASMUS MUNDUS SAPIENT RI | F76: 4 | G76: IO | H76: International Office | I76: Enabled | J76: Academic Support | L76: 55228 | M76: OTHER | N76: OTHER | O76: INT OFF ERASMUS MUNDUS SAPIENT RI | P76: 55228000384 | Q76: 55228OTHER | R76: 55228880368 | S76: OTHER | T76: 55228OTHER
A77: 55384784376 | B77: INTERNATIONAL SCHOOL 09 COURSE FEES | C77: 13202001100 | D77: 55384000384 | E77: INTERNATIONAL SCH 36/09 RET INC | F77: 3 | G77: IO | H77: International Office | I77: Enabled | J77: Academic Support | L77: 55384 | M77: OTHER | N77: OTHER | O77: INTERNATIONAL SCH 36/09 RET INC | P77: 55384000384 | Q77: 55384OTHER | R77: 55384784376 | S77: OTHER | T77: 55384OTHER

Sheet Actuals (hidden)
A1: Rhodes University
A2: Trial Balance as at 31 12 2012 - Drawn 29 04 2013 | O2: Remember the 'R' Retained accounts balances | T2: 29/04/2013
A3: finh864f.s | O3: are as at 1.1.2013 in column Q
A5: V | B5: Account number | C5: Account number (numeric) | G5: Branch | H5: Status | I5: Retained Income | J5: Retained Income | N5: TP | O5: Description | P5: R | Q5: 29 04 2013 | R5: 31 12 2012 | S5: 31 12 2011 | T5: 31 12 2010 | U5: Alternate account number | AB5: Alternate account number
A6: I | N6: P | Q6: Balance | R6: Balance | S6: Balance | T6: Balance | AC6: Transfer Ref
A7: X | B7: 09107880168 | G7: CC | H7: E | I7: 09107000184 | N7: 4 | O7: IT DIV INTERNET TRFS 65049(SEACOM) | Q7: 1864316.3 | R7: 1864316.3 | S7: 1864316.3 | T7: 1864316.3 | U7: 14212000000 | V7: =MID($U7,8,2) -> 00 | AC7: =VLOOKUP($B7,Accounts!$R:$T,MATCH(AC$6,Accounts!$R$1:$T$1,0),FALSE) -> 
A8: R | B8: 14250000184 | G8: VC | H8: D | N8: 2 | O8: SAFETY RETAINED INCOME | Q8: -48338.9 | R8: 0 | S8: 0 | T8: 0 | U8: 22560000000 | V8: 00 | AC8: =VLOOKUP($B8,Accounts!$R:$T,MATCH(AC$6,Accounts!$R$1:$T$1,0),FALSE) -> 
A9: P | B9: 14250485112 | G9: VC | H9: E | I9: 14250000184 | N9: 4 | O9: SAFETY PRINT UNIT | Q9: 20 | R9: 0 | S9: 0 | T9: 0 | U9: 14212000000 | V9: 00 | AC9: =VLOOKUP($B9,Accounts!$R:$T,MATCH(AC$6,Accounts!$R$1:$T$1,0),FALSE) -> 
A10: P | B10: 14250500132 | G10: VC | H10: E | I10: 14250000184 | N10: 4 | O10: SAFETY MISCELLANEOUS | Q10: 26823.61 | R10: 1661.1 | S10: 44252 | T10: 27716.49 | U10: 14212000000 | V10: 00 | AC10: =VLOOKUP($B10,Accounts!$R:$T,MATCH(AC$6,Accounts!$R$1:$T$1,0),FALSE) -> 
A11: M | B11: 14250547131 | G11: VC | H11: E | I11: 53010000184 | N11: 4 | O11: SAFETY OFFICER TELEPHONE | Q11: 453.64 | R11: 0 | S11: 0 | T11: 0 | U11: 14212000000 | V11: 00 | AC11: =VLOOKUP($B11,Accounts!$R:$T,MATCH(AC$6,Accounts!$R$1:$T$1,0),FALSE) -> 
A12: X | B12: 14250880168 | G12: VC | H12: E | I12: 14250000184 | N12: 4 | O12: SAFETY GEN TRANSFERS | Q12: -1400 | R12: -50000 | S12: -44252 | T12: 0 | U12: 14212000000 | V12: 00 | AC12: =VLOOKUP($B12,Accounts!$R:$T,MATCH(AC$6,Accounts!$R$1:$T$1,0),FALSE) -> 
A13: R | B13: 19000000184 | G13: BR | H13: D | N13: 2 | O13: BRI RETAINED INCOME (52000) | P13: R | Q13: -64207.06 | R13: -62651.61 | S13: 13443.14 | T13: -66931.15 | U13: 22560000200 | V13: 02 | AC13: =VLOOKUP($B13,Accounts!$R:$T,MATCH(AC$6,Accounts!$R$1:$T$1,0),FALSE) -> 
A14: O | B14: 19000021106 | G14: BR | H14: E | I14: 19000000184 | N14: 4 | O14: BRI PERM SALARIES | P14: R | Q14: 0 | R14: 0 | S14: 0 | T14: 50938.15 | U14: 14210010200 | V14: 02 | AC14: =VLOOKUP($B14,Accounts!$R:$T,MATCH(AC$6,Accounts!$R$1:$T$1,0),FALSE) -> 
A15: O | B15: 19000031106 | G15: BR | H15: E | I15: 19000000184 | N15: 4 | O15: BRI TEMP SALARIES ACADEMIC | P15: R | Q15: 117131.37 | R15: 275870.49 | S15: 83860.76 | T15: 78850.79 | U15: 14210010200 | V15: 02 | AC15: =VLOOKUP($B15,Accounts!$R:$T,MATCH(AC$6,Accounts!$R$1:$T$1,0),FALSE) -> 
A16: O | B16: 19000034106 | G16: BR | H16: E | I16: 19000000184 | N16: 4 | O16: BRI TEMP SALARIES TECHNICAL | P16: R | Q16: 155204 | R16: 452560.25 | S16: 84680.44 | T16: 0 | U16: 14211020200 | V16: 02 | AC16: =VLOOKUP($B16,Accounts!$R:$T,MATCH(AC$6,Accounts!$R$1:$T$1,0),FALSE) -> 
A17: O | B17: 19000051106 | G17: BR | H17: E | I17: 19000000184 | N17: 4 | O17: BRI SERVICE BONUS PERMANENT | P17: R | Q17: 0 | R17: 17541 | S17: 6813.25 | T17: 6391.38 | U17: 14210010200 | V17: 02 | AC17: =VLOOKUP($B17,Accounts!$R:$T,MATCH(AC$6,Accounts!$R$1:$T$1,0),FALSE) -> 
A18: O | B18: 19000071106 | G18: BR | H18: E | I18: 19000000184 | N18: 4 | O18: BRI MEDICAL AID PERM.STAFF | P18: R | Q18: 3260.7 | R18: 8010.9 | S18: 2462.28 | T18: 2272.28 | U18: 14210010200 | V18: 02 | AC18: =VLOOKUP($B18,Accounts!$R:$T,MATCH(AC$6,Accounts!$R$1:$T$1,0),FALSE) -> 
A19: O | B19: 19000101106 | G19: BR | H19: E | I19: 19000000184 | N19: 4 | O19: BRI UIF PERM STAFF | P19: R | Q19: 535.38 | R19: 1191.07 | S19: 374.4 | T19: 623.96 | U19: 14210010200 | V19: 02 | AC19: =VLOOKUP($B19,Accounts!$R:$T,MATCH(AC$6,Accounts!$R$1:$T$1,0),FALSE) -> 
A20: O | B20: 19000104106 | G20: BR | H20: E | I20: 19000000184 | N20: 4 | O20: BRI UIF TECHNICAL STAFF | P20: R | Q20: 47.5 | R20: 133.03 | S20: 62.53 | T20: 0 | U20: 14211020200 | V20: 02 | AC20: =VLOOKUP($B20,Accounts!$R:$T,MATCH(AC$6,Accounts!$R$1:$T$1,0),FALSE) -> 
A21: O | B21: 19000111106 | G21: BR | H21: E | I21: 19000000184 | N21: 4 | O21: BRI GROUP LIFE | P21: R | Q21: 464.52 | R21: 1137.3 | S21: 348.48 | T21: 335.22 | U21: 14210010200 | V21: 02 | AC21: =VLOOKUP($B21,Accounts!$R:$T,MATCH(AC$6,Accounts!$R$1:$T$1,0),FALSE) -> 
A22: T | B22: 19000401106 | G22: BR | H22: E | I22: 19000000184 | N22: 4 | O22: BRI CONFERENCE FEES | P22: R | Q22: 0 | R22: 5400 | S22: 0 | T22: 0 | U22: 14212000200 | V22: 02 | AC22: =VLOOKUP($B22,Accounts!$R:$T,MATCH(AC$6,Accounts!$R$1:$T$1,0),FALSE) -> 
A23: T | B23: 19000405106 | G23: BR | H23: E | I23: 19000000184 | N23: 4 | O23: BRI PROJECT MANAGEMENT | P23: R | Q23: 0 | R23: 1368.42 | S23: 0 | T23: 0 | U23: 14212000200 | V23: 02 | AC23: =VLOOKUP($B23,Accounts!$R:$T,MATCH(AC$6,Accounts!$R$1:$T$1,0),FALSE) -> 
A24: P | B24: 19000441106 | G24: BR | H24: E | I24: 19000000184 | N24: 4 | O24: BRI ENTERTAINMENT | P24: R | Q24: 0 | R24: 340 | S24: 56 | T24: 0 | U24: 14212000200 | V24: 02 | AC24: =VLOOKUP($B24,Accounts!$R:$T,MATCH(AC$6,Accounts!$R$1:$T$1,0),FALSE) -> 
A25: P | B25: 19000451106 | G25: BR | H25: E | I25: 19000000184 | N25: 4 | O25: BRI FUEL CB 278516 | P25: R | Q25: 0 | R25: 3765.85 | S25: 0 | T25: 0 | U25: 14212000200 | V25: 02 | AC25: =VLOOKUP($B25,Accounts!$R:$T,MATCH(AC$6,Accounts!$R$1:$T$1,0),FALSE) -> 
A26: T | B26: 19000452106 | G26: BR | H26: E | I26: 19000000184 | N26: 4 | O26: BRI TRIAL PURCHASES | P26: R | Q26: 120288.64 | R26: 124042.2 | S26: 7759.96 | T26: 2573.04 | U26: 14212000200 | V26: 02 | AC26: =VLOOKUP($B26,Accounts!$R:$T,MATCH(AC$6,Accounts!$R$1:$T$1,0),FALSE) -> 
A27: T | B27: 19000453106 | G27: BR | H27: E | I27: 19000000184 | N27: 4 | O27: BRI CHEMICALS | P27: R | Q27: 1049.83 | R27: 0 | S27: 0 | T27: 0 | U27: 14212000200 | V27: 02 | AC27: =VLOOKUP($B27,Accounts!$R:$T,MATCH(AC$6,Accounts!$R$1:$T$1,0),FALSE) -> 
A28: T | B28: 19000463106 | G28: BR | H28: E | I28: 19000000184 | N28: 4 | O28: BRI INSURANCE | P28: R | Q28: 0 | R28: 75554.82 | S28: 0 | T28: 0 | U28: 14212000200 | V28: 02 | AC28: =VLOOKUP($B28,Accounts!$R:$T,MATCH(AC$6,Accounts!$R$1:$T$1,0),FALSE) -> 
